Workbook

Sheet Home Page (hidden)
H3: =_xlfn.CONCAT("Version"," ",H5," ","-"," ",TEXT(H4,"dd-mmm-yyyy")) -> Version 3.0 - 28-Mar-2022
H4: 2022-03-28
H5: 3.0
E9: Drydocking and Repairs Specifications
H12: Click here to select a vessel
H13: Input the date range here
H16: Click here to select a docking type
G19: Shipyard to quote on:
H20: Full Job Descriptions - Standard
H21: Full Job Descriptions - Ship Specific
I24: Budget | J24: Total Cost
H25: Expenditure | J25: ='Specific Cost'!I33 -> 0
H26: Time Taken
E29: Comments (additional costs & time):

Sheet Welcome
D1: Welcome to Grindrod Shipping Drydock Workbook. In order to use this workbook, click 'Enable Content' on the Message Bar. Alternatively, open this workbook from a Trusted Location.
D6: Excel workbook with macro-enabled does not support open in a browser window. You have to open this workbook in Desktop App.

Sheet Preamble and Tender (hidden)
G3: PREAMBLE OF SPECIFICATIONS
F5: 1 | G5: The term “OWNER” as used in the preamble specifications shall be deemed to mean “GRINDROD SHIPMANAGEMENT PTE LTD”. The term "CONTRACTOR”, “YARD” and “SHIPYARD” are to be interpreted to mean the prime contractor to whom the invitation to bid is directed. The term “SUBCONTRACTOR” as used herein shall be understood to mean any firm other than the contractor engaged to perform any service to the subject vessel whether hired by the contractor or the owner.
F6: 2 | G6: Tenders are to be addressed and delivered to: Grindrod Ship Management, a Division of Grindrod Shipping Pte. Ltd 200 Cantonment Road, #03-01. Southpoint, Singapore, 089763 Office +65 66320048/ Fax Email: technical@grindrodshipman.com Not later than .......
F7: 3 | G7: Tenders must specify the total number of consecutive calendar days required by the contractor to complete the repairs itimised in the specification. Any Public Holidays etc in between should be mentioned clearly.
F8: 4 | G8: Shipyard is to furnish individual costs in their tender for all items contained in the specification. You are requested to follow the correct sequence in order to prepare the cost comparisons smoothly.
F9: 5 | G9: The vessel shall be considered tendered for repairs when she is off the contractor’s shipyard ready to be secured at the wharf. Vessel will be accepted afloat by the owner upon completion of all repairs, renewals, and replacements and after all contractor’s equipment, tools and appliances, also dirt debris and old material have been removed.
F10: 6 | G10: From the time the vessel is tendered to the contractor and until she is redelivered to the owner, upon completion of the work, it shall be the responsibility of the contractor to comply with all specifications, equipment, applicable and regulatory to classification bodies that apply to all repairs, renewals, alterations, use of fire, burning, welding, reverting and other such methods used in carrying out such work, whether or not specifically stated in the owner‘s specifications.
F11: 7 | G11: Contractor (to clean and gas free) and to obtain gas free certificate for respective spaces in which hot work will be performed.
F12: 8 | G12: Any tender which includes modifications, alterations and/or special clauses will be rejected.
F13: 9 | G13: Vessel shall be dry docked immediately after arrival at the contractor’s shipyard, unless stipulated otherwise by the owner or mutually agreed between the contractor and the owner.
F14: 10 | G14: Where dry docking is required for regular periodic overhaul, contractor shall allow sufficient time in dock, to properly apply paint or carry out other work as called for in the specifications. Additional time in dock for work not mentioned in the specification shall be mutually agreed upon between the contractor and the owner. In connection with additional days in dock, should the contractor request an interruption of dry docking, any costs relative to undocking, are to be borne by the contractor. The contractor is to state number of days subject vessel is to be held on dry dock, as well as the cost thereof to carry out the work outlined in the specifications.
F15: 11 | G15: All scrap in connection with the work specifications shall become the property of the shipyard except where otherwise stated and for repairs which will be covered by insurance, in which case a suitable credit to be reflected in the item costs. The amount of this credit is to be indicated if called for in the specifications.
F16: 12 | G16: When any work performed by the contractor requires the opening of machinery, piping , heat exchangers , fittings, etc., which are directly or indirectly connected to a source of possible leakage into the vessel , such as sea chests , overboard discharge valves , crossovers , connections to the shell of the vessel , tanks or pipelines containing liquid , or any other source of leakage it shall be the responsibility of the shipyard to fit blanks as necessary to eliminate the possibility of leakage into any space or equipment of the vessel and / or remove the liquids ashore at his own expenses. Upon completion of any such repairs, all blanks fitted shall be removed and after reassemble these items shall be proven tight. These precautions shall be taken as necessary to prevent any damage to the vessel whether it is afloat or in dry dock.
F17: 13 | G17: In the event of any dispute between the parties arising under or pursuant to the repair contract such dispute shall be referred to the decision of arbitrators in London in accordance with British Law.
B19: Back to top | G19: CONDITIONS FOR TENDER
F21: 1 | G21: The specifications attached hereto describe repairs, renewals and/or alterations to be effected to the above named vessel and are to cover the furnishing of all necessary labour, machinery, materials, equipment and spare parts required for the contractor to complete the items of work outlined herein (except those items of machinery, equipment and spare parts specified to be furnished by the owner) in accordance with this specification.
F22: 2 | G22: All cost including but not limited to removing and refitting of parts obstructing access , cleaning, de-rusting, reconnecting and testing components, material, machinery and outfitting, temporary lighting, ventilation, staging, creation and assembling aids of any kind are to be for contractor’s account. Where specifications require the opening of machinery, piping, fittings, etc., it is intended that the cost quoted includes the renewal of all disturbed gaskets, packing, nuts and bolts and the repair and renewal of damaged insulation. All costs including but not limited to fitting, connecting, grit -blasting , painting and testing new components, material, machinery and outfitting , removal of liquids and deposits from engine room and pump room, holds, upper/lower stools and other spaces in which contractor performed work are to be for contractor’s account.
F23: 3 | G23: Whenever the word “OVERHAUL” is used in the specifications and no other specific requirements are mentioned , contractor shall allow for dismantling , removal to workshop , opening up cleaning , de rusting and painting , arranging for inspection , reassembling in good working order , using new bolts, nuts joints and packing , reinstalling on board and testing to be included.
F24: 4 | G24: Any structural parts specified to be renewed which can be restored to their original condition by fairing, etc. and also any parts specified to be removed for fairing which can be faired in placed to the satisfaction of the surveyor and the owner’s representative will be accepted .On the other hand, any parts found broken or which are broken in removal of fairing are be renewed by the contractor at his expenses.
F25: 5 | G25: All new work (piping, steel plates , brackets , etc.) alternations ,repairs, modifications etc. in cargo holds , on decks or other areas which are to be coated (or are being coated during this dry docking) are to be suitably prepared, and after approval by the owner’s representatives, coated with the same type of coatings (approved by the owner’s representatives) as have been or are being applied to the balance of these areas, it is being the intention of the owner that all steel surfaces in such areas be coated. All adjacent coated areas disturbed during the fore-going work shall be similarly, prepared and coated.
F26: 6 | G26: All workmanship and/or material is to be of the best quality and any dispute or difference of opinion as to the interpretation of these specifications or any part thereof regarding the quality of material and/or workmanship shall be left to the decision of the owner’s whose decision shall be final and binding to both parties.
F27: 7 | G27: The owners reserve the rights to correct errors or omissions in, or to make deductions from or additions to the specifications. However, the increased or decreased costs, if any and time of completion herein specified shall be adjusted accordingly. Yard is not to increased delivery time unreasonably for carrying out any extra work.
B28: Back to top | F28: 8 | G28: Any particulars of the work involved specified herein are given only for the guidance of the contractor, who will be held responsible for the securing of all necessary dimensions and details ,the intent of these specifications being to restore the vessel to first class sailing condition.
F29: 9 | G29: If the contractor considers, it is necessary to use the ship’s tools, machinery, etc this will be granted. However, the contractor will restore all of them to their original condition.
F30: 10 | G30: Tenders must specify the time required by the contractor in consecutive calendar days to complete the repairs, renewals, alterations and/or conversions set forth in the specifications attached hereto and itemized fixed rates for all services to be furnished by the contractor the number of days specified should include any Sundays /public holidays.
F31: 11 | G31: Owners reserve the rights to perform normal overhauls on deck and in the engine room by using their own crew while vessel is on contractor’s premises including hot work.
F32: 12 | G32: Before arrival of the vessel at the contractor’s shipyard, no work in connection with any of the specification to be begun without the permission of the owners who also have the right to cancel any of the specified items against respective credit, if such cancellation has been confirmed in writing. On arrival of the vessel at the shipyard, no work exceeding the scope of the specification to be commenced without the written confirmation of the owner’s representatives.
F33: 13 | G33: There shall be no deviation from these specifications unless directed, in writing, by the owner or the owner’s authorized representative. The owner has the right during the performance of this work to make the alterations, before the particular work is commenced.
F34: 14 | G34: Owner reserves the rights to engage subcontractors to perform work, furnish services and/or materials covered by the specifications. The contractor shall permit employees of such sub-contractors access to the shipyard and the vessel for such purpose.
F35: 15 | G35: In the event the contractor desires to subcontract any work or services covered by the specifications or additional work agreed upon, the contractor shall give notice of such intention to the owner, together with the name of the subcontractor who will perform the work or service also the contractor should engage a subcontractor acceptable to the Owner.
F36: 16 | G36: With regard to owner furnished material and equipment, the shipyard is to transport all such items to the point of installation aboard the vessel, whether stored aboard the vessel or delivered to the shipyard. In the latter case, the shipyard is to accept delivery of any such material and store if necessary until the time of installation. Any unused material, as designated by the owner’s representative is to be removed ashore, and held for the owner disposition. Any costs in connection with the foregoing are to be included in the bid price of any such items in the specifications.
F37: 17 | G37: It is the intent of the specifications to restore the vessel to the same good condition as existed prior to the repairs being required and to ensure that high quality standard of workmanship shall be maintained with reference to renewals and new work and that all materials shall be of the best quality, satisfactory to the owner. All materials requiring a test shall be tested in accordance with paragraph 6 of the preamble and must meet all requirements thereof. All charges and costs for tests to be borne by the contractor.
B38: Back to top | F38: 18 | G38: No overtime shall be worked for the owner’s account unless the owner’s representative shall approve the items to be worked on, the maximum number of overtime hours, the department, authorized to perform the overtime and the resultant cost as requested by the owner’s representative. The estimate of the time and costs required to complete repairs is inclusive of any overtime which the shipyard feels may be incurred.
F39: 19 | G39: No extra compensation or added time for any additions, repairs, or alterations will be allowed without approval by the owner’s representative, and confirmation in writing by owner’s, for such additions, or alterations before the same are commenced. Upon completion of the work, the cost of the additions, repairs or alterations properly authorized as indicated above shall be arrived at, using bid prices where they exist or by estimating cost during current rates where they do not.
F40: 20 | G40: All charges in connection with towage and pilotage services for entering and leaving the contractor’s shipyard will be for the owner. All towage and pilotage services and the charges thereof and other services and charges in connection with the shifting the vessel, mooring, wharfage, line handling, labour and labourers for shifting, shall be borne by the contractor except where stated else in the specifications that follow.
F41: 21 | G41: Wherein the specifications refer to one (1) unit to be repaired, and upon investigation it is determined that a second (or more) duplicated unit (s) require similar repairs, the price quoted for the first unit shall apply to each additional unit. The cost of additional unit shall take into consideration the cost if removals and replacements that are common to the first unit. Likewise, where a fewer number of units are dealt with than stated in the specification, the cost shall be reduced in proportion to the bid price.
F42: 22 | G42: After completion of all work, contractor has to supply a dry-docking report in duplicate containing all measurements taken and drawings of the modifications performed, which shall be presented to owner’s representative not later than upon settlement of accounts.
F43: 23 | G43: Pro-Forma invoice to be mailed to GRINDROD SHIPMANAGEMENT, for final approval.
F44: 24 | G44: If vessel is in dry-dock over weekend (Saturday and Sunday) and no work authorized by owner’s representative then no dry-dock charges to be levied.
F45: 25 | G45: Any holidays during expected repair period to be clearly indicated along with the quotes.
F46: 26 | G46: Any overtime incurred to meet vessels schedule will not be on the owner’s account.
F47: 27 | G47: Contractor guarantees to complete the repair of the vessel in the specified time. Contractor agrees to a penalty clause of USD 20,000.00 per day of delay.
F48: 28 | G48: All scrap material to be contractor’s property; this includes the empty paint drums.
B54: Back to top
B100: Back to top
B146: Back to top
B192: Back to top

Sheet General Information (hidden)
B2: Back to top
F3: GENERAL SHIP INFORMATION | J3: GENERAL SHIP INFORMATION | N3: GENERAL SHIP INFORMATION | R3: GENERAL SHIP INFORMATION | V3: GENERAL SHIP INFORMATION | Z3: GENERAL SHIP INFORMATION | AD3: GENERAL SHIP INFORMATION | AH3: GENERAL SHIP INFORMATION | AL3: GENERAL SHIP INFORMATION | AP3: GENERAL SHIP INFORMATION | AT3: GENERAL SHIP INFORMATION | AX3: GENERAL SHIP INFORMATION | BB3: GENERAL SHIP INFORMATION | BF3: GENERAL SHIP INFORMATION | BJ3: GENERAL SHIP INFORMATION | BN3: GENERAL SHIP INFORMATION | BR3: GENERAL SHIP INFORMATION | BV3: GENERAL SHIP INFORMATION | BZ3: GENERAL SHIP INFORMATION | CD3: GENERAL SHIP INFORMATION | CH3: GENERAL SHIP INFORMATION | CL3: GENERAL SHIP INFORMATION | CP3: GENERAL SHIP INFORMATION | CT3: GENERAL SHIP INFORMATION | CX3: GENERAL SHIP INFORMATION | DB3: GENERAL SHIP INFORMATION
F6: Vessel Particulars | J6: Vessel Particulars | N6: Vessel Particulars | R6: Vessel Particulars | V6: Vessel Particulars | Z6: Vessel Particulars | AD6: Vessel Particulars | AH6: Vessel Particulars | AL6: Vessel Particulars | AP6: Vessel Particulars | AT6: Vessel Particulars | AX6: Vessel Particulars | BB6: Vessel Particulars | BF6: Vessel Particulars | BJ6: Vessel Particulars | BN6: Vessel Particulars | BR6: Vessel Particulars | BV6: Vessel Particulars | BZ6: Vessel Particulars | CD6: Vessel Particulars | CH6: Vessel Particulars | CL6: Vessel Particulars | CP6: Vessel Particulars | CT6: Vessel Particulars | CX6: Vessel Particulars | DB6: Vessel Particulars
F7: Name | G7: Select a vessel at Home Page | J7: Name | K7: IVS KESTREL | N7: Name | O7: IVS IBIS | R7: Name | S7: IVS BOSCH HOEK | V7: Name | W7: IVS HIRONO | Z7: Name | AA7: IVS KINGLET | AD7: Name | AE7: IVS NORTH BERWICK | AH7: Name | AI7: IVS SENTOSA | AL7: Name | AM7: IVS SUNBIRD | AP7: Name | AQ7: IVS SWINLEY FOREST | AT7: Name | AU7: IVS TEMBE | AX7: Name | AY7: IVS KINGBIRD | BB7: Name | BC7: IVS KNOT | BF7: Name | BG7: IVS MERLION | BJ7: Name | BK7: IVS ORCHARD | BN7: Name | BO7: IVS WENTWORTH | BR7: Name | BS7: IVS PRESTWICK | BV7: Name | BW7: IVS OKUDOGO | BZ7: Name | CA7: IVS MAGPIE | CD7: Name | CE7: IVS THANDA | CH7: Name | CI7: IVS RAFFLES | CL7: Name | CM7: IVS GLENEAGLES | CP7: Name | CQ7: IVS PHINDA | CT7: Name | CU7: IVS SPARROWHAWK | CX7: Name | CY7: IVS PHOENIX | DB7: Name | DC7: Select a vessel at Home Page
J8: Type of vessel | K8: General Cargo | N8: Type of vessel | O8: Bulk / Lumber Carrier – Solas IX Reg 1.6 | R8: Type of vessel | S8: Bulk Carrier | V8: Type of vessel | W8: Bulk Carrier | Z8: Type of vessel | AA8: TYPE "B" BULK CARRIER | AD8: Type of vessel | AE8: Bulk Carrier | AH8: Type of vessel | AI8: BULK/LUMBER CARRIER | AL8: Type of vessel | AM8: Bulk / Lumber Carrier | AP8: Type of vessel | AQ8: Bulk Carrier | AT8: Type of vessel | AU8: Log & Cargo Ship | AX8: Type of vessel | AY8: TYPE "B" BULK CARRIER | BB8: Type of vessel | BC8: TYPE "B" BULK CARRIER | BF8: Type of vessel | BG8: Bulk Carrier | BJ8: Type of vessel | BK8: Bulk / Lumber Carrier – Type- A | BN8: Type of vessel | BO8: TYPE "B" BULK CARRIER | BR8: Type of vessel | BS8: Bulk Carrier | BV8: Type of vessel | BW8: Bulk Carrier | BZ8: Type of vessel | CA8: Bulk Carrier | CD8: Type of vessel | CE8: LOG / BULK | CH8: Type of vessel | CI8: BULK CARRIER | CL8: Type of vessel | CM8: TYPE "B" BULK CARRIER | CP8: Type of vessel | CQ8: BULK CARRIER | CT8: Type of vessel | CU8: BULK CARRIER | CX8: Type of vessel | CY8: BULK CARRIER (SOLAS IX REG. 1.6)
J9: Built by | K9: Kanda Shipyard. Japan | N9: Built by | O9: Imabari Shipbuilding Co., Ltd | R9: Built by | S9: Onomichi | V9: Built by | W9: Onomichi | Z9: Built by | AA9: Kanda Ship building Co. Ltd. Japan | AD9: Built by | AE9: Oshima, Japan | AH9: Built by | AI9: JIANGMEN NANYANG SHIP ENGINEERING CO., LTD. | AL9: Built by | AM9: Shin Kochijyuko Co., Ltd. Japan | AP9: Built by | AQ9: Sanoyas Shipbuilding Corporation | AT9: Built by | AU9: Kanda Shipbuilding Co, Ltd Japan | AX9: Built by | AY9: Kanda Ship building Co. Ltd | BB9: Built by | BC9: Kanda Ship building Co. Ltd | BF9: Built by | BG9: JIANGMEN NANYANG SHIP ENGINEERING CO., LTD. | BJ9: Built by | BK9: Jiangmen Nanyang Ship Eng’g Co., Ltd | BN9: Built by | BO9: SHIN KURUSHIMA DOCKYARD CO., LTD. | BR9: Built by | BS9: SHIN KURUSHIMA TOYOHASHI SHIPBUILDING CO., LTD | BV9: Built by | BW9: SHIN KURUSHIMA TOYOHASHI SHIPBUILDING CO., LTD. | BZ9: Built by | CA9: IMABARI SHIPBUILDING CO., LTD., JAPAN | CD9: Built by | CE9: Kanda Shipbuilding Co., Ltd. | CH9: Built by | CI9: JIANGMEN NANYANG SHIP ENGINEERING CO., LTD | CL9: Built by | CM9: SHIN KURUSHIMA DOCKYARD CO.,LTD | CP9: Built by | CQ9: KANDA SHIPYARD | CT9: Built by | CU9: SHIN KURUSHIMA DOCKYARD CO., LTD. | CX9: Built by | CY9: MITSUI E&S SHIPBUILDING CO LTD
J10: Ship no | K10: 541 | N10: Ship no | O10: 708 | R10: Ship no | S10: 712 | V10: Ship no | W10: 709 | Z10: Ship no | AA10: 512 | AD10: Ship no | AE10: 10824 | AH10: Ship no | AI10: HULL NO. 603 | AL10: Ship no | AM10: 7297 | AP10: Ship no | AQ10: 1345 | AT10: Ship no | AU10: 554 | AX10: Ship no | AY10: 475 | BB10: Ship no | BC10: 511 | BF10: Ship no | BG10: 611 | BJ10: Ship no | BK10: JNS609 | BN10: Ship no | BO10: 5858 | BR10: Ship no | BS10: 3708 | BV10: Ship no | BW10: 3720 | BZ10: Ship no | CA10: S - 707 | CD10: Ship no | CE10: 545 | CH10: Ship no | CI10: JNS 612 | CL10: Ship no | CM10: 3693 | CP10: Ship no | CQ10: 543 | CT10: Ship no | CU10: 5855 | CX10: Ship no | CY10: 1931
J11: Date of delivery | K11: 2014-05-27 | N11: Date of delivery | O11: 2012-03-02 | R11: Date of delivery | S11: 2015-10-12 | V11: Date of delivery | W11: 2015-08-27 | Z11: Date of delivery | AA11: 2011-08-10 | AD11: Date of delivery | AE11: 42451 | AH11: Date of delivery | AI11: 2010-06-22 | AL11: Date of delivery | AM11: 2015-09-16 | AP11: Date of delivery | AQ11: 10 Jan. 2017 | AT11: Date of delivery | AU11: 42398 | AX11: Date of delivery | AY11: 2007-06-29 | BB11: Date of delivery | BC11: 2010-08-31 | BF11: Date of delivery | BG11: 2013-08-12 | BJ11: Date of delivery | BK11: 2011-03-02 | BN11: Date of delivery | BO11: 2015-11-27 | BR11: Date of delivery | BS11: 2019-09-26 | BV11: Date of delivery | BW11: 2019-08-08 | BZ11: Date of delivery | CA11: 2011-10-12 | CD11: Date of delivery | CE11: 2015-01-13 | CH11: Date of delivery | CI11: 2013-07-17 | CL11: Date of delivery | CM11: 2016-03-15 | CP11: Date of delivery | CQ11: 28 AUG. 2014 | CT11: Date of delivery | CU11: 2014-12-04 | CX11: Date of delivery | CY11: 2019-06-03
J12: IMO no | K12: 9700926 | N12: IMO no | O12: 9604744 | R12: IMO no | S12: 9726243 | V12: IMO no | W12: 9726229 | Z12: IMO no | AA12: 9459149 | AD12: IMO no | AE12: 9740902 | AH12: IMO no | AI12: 9528005 | AL12: IMO no | AM12: 9736042 | AP12: IMO no | AQ12: 9736080 | AT12: IMO no | AU12: 9726164 | AX12: IMO no | AY12: 9336787 | BB12: IMO no | BC12: 9459137 | BF12: IMO no | BG12: 9620126 | BJ12: IMO no | BK12: 9528029 | BN12: IMO no | BO12: 9725550 | BR12: IMO no | BS12: 9870886 | BV12: IMO no | BW12: 9870874 | BZ12: IMO no | CA12: 9604732 | CD12: IMO no | CE12: 9701009 | CH12: IMO no | CI12: 9620138 | CL12: IMO no | CM12: 9736066 | CP12: IMO no | CQ12: 9700940 | CT12: IMO no | CU12: 9712656 | CX12: IMO no | CY12: 9774862
J13: Flag | K13: Singapore | N13: Flag | O13: Singapore | R13: Flag | S13: Singapore | V13: Flag | W13: Singapore | Z13: Flag | AA13: Singapore | AD13: Flag | AE13: Singapore | AH13: Flag | AI13: Singapore | AL13: Flag | AM13: Singapore | AP13: Flag | AQ13: Singapore | AT13: Flag | AU13: Singapore | AX13: Flag | AY13: Singapore | BB13: Flag | BC13: Singapore | BF13: Flag | BG13: Singapore | BJ13: Flag | BK13: Singapore | BN13: Flag | BO13: Singapore | BR13: Flag | BS13: Singapore | BV13: Flag | BW13: Singapore | BZ13: Flag | CA13: MAJURO | CD13: Flag | CE13: Singapore | CH13: Flag | CI13: Singapore | CL13: Flag | CM13: Singapore | CP13: Flag | CQ13: SINGAPORE | CT13: Flag | CU13: Singapore | CX13: Flag | CY13: MARSHALL ISLAND
J14: Official no | K14: 398977 | N14: Official no | O14: 396950 | R14: Official no | S14: 399950 | V14: Official no | W14: 399952 | Z14: Official no | AA14: 397164 | AD14: Official no | AE14: 400429 | AH14: Official no | AI14: 394832 | AL14: Official no | AM14: 399951 | AP14: Official no | AQ14: 400735 | AT14: Official no | AU14: 399377 | AX14: Official no | AY14: 399562 | BB14: Official no | BC14: 396302 | BF14: Official no | BG14: 397926 | BJ14: Official no | BK14: 394834 | BN14: Official no | BO14: 400216 | BR14: Official no | BS14: 401752 | BV14: Official no | BW14: 401751 | BZ14: Official no | CA14: 8745 | CD14: Official no | CE14: 399376 | CH14: Official no | CI14: 397927 | CL14: Official no | CM14: 400430 | CP14: Official no | CQ14: 399349 | CT14: Official no | CU14: 399378 | CX14: Official no | CY14: 9610
J15: Call sign | K15: 9V2398 | N15: Call sign | O15: 9V9344 | R15: Call sign | S15: 9V3260 | V15: Call sign | W15: 9V3263 | Z15: Call sign | AA15: 9V9486 | AD15: Call sign | AE15: 9V3774 | AH15: Call sign | AI15: 9V7780 | AL15: Call sign | AM15: 9V3262 | AP15: Call sign | AQ15: 9V5111 | AT15: Call sign | AU15: 9V2741 | AX15: Call sign | AY15: 9V2898 | BB15: Call sign | BC15: 9V8840 | BF15: Call sign | BG15: S6LP5 | BJ15: Call sign | BK15: 9V7782 | BN15: Call sign | BO15: 9V3519 | BR15: Call sign | BS15: 9V6323 | BV15: Call sign | BW15: 9V6321 | BZ15: Call sign | CA15: V7A2714 | CD15: Call sign | CE15: 9V2740 | CH15: Call sign | CI15: S6LP4 | CL15: Call sign | CM15: 9V3775 | CP15: Call sign | CQ15: 9V2713 | CT15: Call sign | CU15: 9V2742 | CX15: Call sign | CY15: V7A4953
J17: Classification Particulars | N17: Classification Particulars | R17: Classification Particulars | V17: Classification Particulars | Z17: Classification Particulars | AD17: Classification Particulars | AH17: Classification Particulars | AL17: Classification Particulars | AP17: Classification Particulars | AT17: Classification Particulars | AX17: Classification Particulars | BB17: Classification Particulars | BF17: Classification Particulars | BJ17: Classification Particulars | BN17: Classification Particulars | BR17: Classification Particulars | BV17: Classification Particulars | BZ17: Classification Particulars | CD17: Classification Particulars | CH17: Classification Particulars | CL17: Classification Particulars | CP17: Classification Particulars | CT17: Classification Particulars | CX17: Classification Particulars
J18: Class no | K18: NK 143021 | N18: Class no | O18: NK 121472 | R18: Class no | S18: NK 154894 | V18: Class no | W18: NK 154054 | Z18: Class no | AA18: NK 113816 | AD18: Class no | AE18: NK 161497 | AH18: Class no | AI18: NK 109231 | AL18: Class no | AM18: NK 154090 | AP18: Class no | AQ18: ABS 17259232 | AT18: Class no | AU18: NK 160965 | AX18: Class no | AY18: NK | BB18: Class no | BC18: NK 104448 | BF18: Class no | BG18: NK 109231 | BJ18: Class no | BK18: NK 119292 | BN18: Class no | BO18: NK 155363 | BR18: Class no | BS18: NK 193025 | BV18: Class no | BW18: NK 192423 | BZ18: Class no | CA18: NK 115523 | CD18: Class no | CE18: NK 150067 | CH18: Class no | CI18: NK 139180 | CL18: Class no | CM18: NK 161706 | CP18: Class no | CQ18: 143898 | CT18: Class no | CU18: NK 145648 | CX18: Class no | CY18: 191964
J19: Classification characters | K19: NS*(BCM, BC-XII, GRAB, EQ C DG, PSPC-WBT)(PSCM)(BWTS)MNS* | N19: Classification characters | O19: NS* (BC-A, BC-XII, Grab, ESP | R19: Classification characters | S19: NS*(CSR, Bulk Carrier-Type A, BC-XII, Grab 20, Performance Standard for Protective Coatings for Dedicated Seawater Ballast tanks in All Types of Ships and Double-side Skin Spaces of Bulk Carriers)(ESP) MNS* | V19: Classification characters | W19: NS*(CSR, BC-A, BC-XII, GRAB 20, PSPC-WBT)(ESP), MNS* | Z19: Classification characters | AA19: NS* (BCM,BC-XII,GRAB) (PSCM) MNS* | AD19: Classification characters | AE19: NS* (CSR,BC-A,BC-X11, GRAB 20, PSPC- WBT)(ESP)(PSCM)(BWTS), MNS* | AH19: Classification characters | AI19: NS(CSR, BC-A, BC-XII, GRAB 20)(ESP)(IWS)(PSCM) MNS | AL19: Classification characters | AM19: NS* (BCM, BC-XII, GRAB, PSPC-WBT) (PSCM) (BWTS) MNS* | AP19: Classification characters | AQ19: PMA, CRC, BWT, GRAB (20), RW | AT19: Classification characters | AU19: NK, NS*(BCM, BC-XII, GRAB, EQ C DG, EQ C LB, PSPC-WBT)(PSCM)(BWTS)MNS* | AX19: Classification characters | AY19: NS* | BB19: Classification characters | BC19: NS* (BCM,BC-XII,GRAB) MNS* | BF19: Classification characters | BG19: NS* (CSR,BC-A,BC-XII,GRAB 20) (ESP)(IWS)(PSCM) MNS* | BJ19: Classification characters | BK19: CHG, MPP, LSA, RCF, M0, AFS | BN19: Classification characters | BO19: NS* (CSR, BC-A, BC-XII, GRAB 20, EQ C DG, PSPC-WBT)(ESP)(PSCM)(IHM)MNS*MO | BR19: Classification characters | BS19: NS*MNS* (CSR, BC-A, BC-XII, GRAB 20, EQ C DG, PSPC-WBT, NC)(ESP)(PSCM)(IWS)(IHM), | BV19: Classification characters | BW19: NS*/MNS* (CSR, BC-A, BC-XII, GRAB 20, EQ C DG, PSPC-WBT, NC) (ESP) (IWS) (PSCM) (IHM) | BZ19: Classification characters | CA19: NS* / MNS* (BC-A, BC-XII, GRAB)(ESP) | CD19: Classification characters | CE19: NS*/MNS* (BCM,BC-XII,GRAB,EQ C DG,EQ C LB, PSPC-WB)(PSCM)(BWTS)(Strengthened for heavy Cargoes, No. 2 and 4 Holds may be empty) Double hull construction applied to all cargo holds | CH19: Classification characters | CI19: NS(CSR, BC-A, BC-XII, GRAB 20, PSPC-WBT)(ESP)(IWS)(PSCM)MNS | CL19: Classification characters | CM19: NS* (CSR, BC-A, BC-XII, GRAB 20, EQ C DG, PSPC-WBT)(ESP)(IHM) MNS*MO | CP19: Classification Characters | CQ19: NS*(BCM, BC-X II, GRAB, EQ C DG, EQ C LB, PSPC-WBT)(BWTS)MNS* | CT19: Classification characters | CU19: NS* (BCM, BC-XII, GRAB, PSPC-WBT) (PSCM) MNS* (Double hull construction applied to all cargo holds) | CX19: Classification characters | CY19: NS*(CSR, BC-A, BC-XII, GRAB 20, PSPC-WBT, NC, 1C)(ESP)(IWS)(PSCM)(IHM)
J20: Installation characters | K20: CHG, MPP, LSA, RCF, AFS, BWM | N20: Installation characters | O20: CHG, MPP, LSA, RCF, AFS. BWM | R20: Installation characters | S20: CHG, MPP, LSA, RCF, AFS | V20: Installation characters | W20: CHG, MPP, LSA, RCF, AFS | Z20: Installation characters | AA20: CHG, MPP, LSA, RCF, AFS | AD20: Installation characters | AE20: CHG, MPP, LSA, RCF, AFS | AH20: Installation characters | AI20: CHG, MPP, LSA, RCF, M0, AFS, BWM | AL20: Installation characters | AM20: CHG, MPP, LSA, RCF, AFS, BWM | AP20: Installation characters | AQ20: CHG, MPP, LSA, RCF, AFS | AT20: Installation characters | AU20: CHG, MPP, LSA, RCF, AFS, BWM | AX20: Installation characters | AY20: CHG, MPP, LSA, RCF, AFS | BB20: Installation characters | BC20: CHG, MPP, LSA, RCF, AFS | BF20: Installation characters | BG20: CHG, MPP, LSA, RCF, M0, AFS | BJ20: Installation characters | BK20: CHG, MPP, LSA, RCF, M0, AFS | BN20: Installation characters | BO20: CHG, MPP, LSA, RCF, MO, AFS, BWM | BR20: Installation characters | BS20: CHG, MPP, LSA, RCF, AFS, BWM | BV20: Installation characters | BW20: CHG, MPP, LSA, RCF, AFS, BWM | BZ20: Installation characters | CA20: CHG, MPP, LSA, RCF, AFS, BWM | CD20: Installation characters | CE20: CHG, MPP, LSA, RCF, AFS, BWM | CH20: Installation characters | CI20: CHG, MPP, LSA, RCF, M0, AFS, BWM | CL20: Installation characters | CM20: CHG, MPP, LSA, RCF, MO, AFS, BWM | CP20: Installation characters | CQ20: CHG, MPP, LSA, RCF, AFS, BWM | CT20: Installation characters | CU20: CHG, MPP, LSA, RCF, AFS, BWM | CX20: Installation characters | CY20: CHG, MPP, LSA, RCF, M0, AFS, BWM
J21: Survey scheduled for | K21: Intermediate, Annual Survey/ Docking Survey /LL Renewal Survey/ Boiler Survey/SC Renewal Survey/SE Renewal Survey/SR Renewal Survey/AFS Periodical survey/IOPP,IAPP,ISPP Renewal Survey/COC Renewal /BWM renewal survey /CHF Annual Thorough Survey Deck crane no.1,2,3 &4 Hatchway ( aft, center ) of Nos. 2,3,4,5 Hatchway ( fore,center ) | N21: Survey scheduled for | R21: Survey scheduled for | S21: Docking Survey / Boiler survey | V21: Survey scheduled for | W21: Docking Survey / Boiler Survey | Z21: Survey scheduled for | AA21: Docking Survey / Boiler Survey | AD21: Survey scheduled for | AE21: Special Survey No.1, Annual Survey/ Docking Survey /LL annual/ Boiler Survey/SC, SC annual/SE periodical/SE annual/SR Periodical/AFS Periodical survey/OPP intermediate,OPP Annual,APP Intermediate survey/APP annual/BWM annual/Deck crane no.1,2,3 &4 load test. | AH21: Survey scheduled for | AI21: Next Intermediate Survey is to be carried out concurrently with Next Docking Survey | AL21: Survey scheduled for | AM21: Intermediate, Annual, No. 1 Boiler, Docking, LL Annual, SC Intermediate, SC Annual, SE Periodical, SE Annual, SR Periodical, OPP Intermediate, OPP Annual, APP Intermediate Survey, APP Annual, BWM Intermediate, BWM Annual, Deck Crane for Nos.1,2,3,4 Hatchway (aft, center) of Nos.2,3,4,5 Hatchway (fore, center) | AP21: Survey scheduled for | AQ21: Intermediate, Annual Survey/ Docking Survey / Boiler Survey | AT21: Survey scheduled for | AU21: Special Survey No.1, Annual Survey/ Docking Survey /LL annual/ Boiler Survey/SC, SC annual/SE periodical/SE annual/SR Periodical/AFS Periodical survey/OPP intermediate,OPP Annual,APP Intermediate survey/APP annual/BWM annual/Deck crane no.1,2,3 &4 load test. | AX21: Survey scheduled for | AY21: Docking Survey / Boiler Survey | BB21: Survey scheduled for | BC21: Docking Survey / Boiler Survey | BF21: Survey scheduled for | BG21: Special Survey | BJ21: Survey scheduled for | BK21: Docking Survey / Boiler Survey | BN21: Survey scheduled for | BO21: Docking Survey / Boiler Survey | BR21: Survey scheduled for | BS21: Docking Survey / Boiler Survey | BV21: Survey scheduled for | BW21: Docking Survey / Boiler Survey | BZ21: Survey scheduled for | CA21: Special Survey / Docking Survey / Boiler Survey / No.1 Prof. Shaft Svy | CD21: Survey scheduled for | CH21: Survey scheduled for | CI21: Docking Survey / Boiler Survey | CL21: Survey scheduled for | CM21: Docking Survey / Boiler Survey | CP21: Survey scheduled for | CT21: Survey scheduled for | CX21: Survey scheduled for
J23: Hull Particulars | N23: Hull Particulars | R23: Hull Particulars | V23: Hull Particulars | Z23: Hull Particulars | AD23: Hull Particulars | AH23: Hull Particulars | AL23: Hull Particulars | AP23: Hull Particulars | AT23: Hull Particulars | AX23: Hull Particulars | BB23: Hull Particulars | BF23: Hull Particulars | BJ23: Hull Particulars | BN23: Hull Particulars | BR23: Hull Particulars | BV23: Hull Particulars | BZ23: Hull Particulars | CD23: Hull Particulars | CH23: Hull Particulars | CL23: Hull Particulars | CP23: Hull Particulars | CT23: Hull Particulars | CX23: Hull Particulars
J24: Length over all | K24: 179.840 m | N24: Length over all | O24: 169.37 m | R24: Length over all | S24: 199.900 m | V24: Length over all | W24: 199.900 m | Z24: Length over all | AA24: 177.00 m | AD24: Length over all | AE24: 199.980 m | AH24: Length over all | AI24: 179.90 m | AL24: Length over all | AM24: 176.830 m | AP24: Length over all | AQ24: 199.99 m | AT24: Length over all | AU24: 179.930 m | AX24: Length over all | AY24: 177.00 m | BB24: Length over all | BC24: 177.00 m | BF24: Length over all | BG24: 179.900 m | BJ24: Length over all | BK24: 179.900 m | BN24: Length over all | BO24: 189.930 m | BR24: Length over all | BS24: 199.920 m | BV24: Length over all | BW24: 199.920 m | BZ24: Length over all | CA24: 169.37 m | CD24: Length over all | CE24: 179.93 mtrs. | CH24: Length over all | CI24: 179.90 m | CL24: Length over all | CM24: 189.930 m | CP24: Length over all | CQ24: 179.930 m | CT24: Length over all | CU24: 179.99 M | CX24: Length over all | CY24: 199.99 m
J25: Length moulded | K25: 170.50 X 28.40 X 14.25 m | N25: Length moulded | O25: 160.40 m | R25: Length moulded | S25: 195.000 m | V25: Length moulded | W25: 195.000 m | Z25: Length moulded | AA25: 170.0 X 28.6 X 14.35 m | AD25: Length moulded | AE25: 196.000 m | AH25: Length Between Perpendicular | AI25: 171.50 m | AL25: Length moulded | AM25: 169.500 X 28.800 X 14.200 m | AP25: Length moulded | AQ25: 197.00 m | AT25: Length moulded | AU25: 174.50 m | AX25: Length moulded | AY25: 168.50m | BB25: Length moulded | BC25: 170.0 X 28.6 X 14.35 m | BF25: Length moulded | BG25: 168.500 m | BJ25: Length moulded | BK25: 171.50 m | BN25: Length moulded | BO25: 185.500 X 32.260 X 18.400 m | BR25: Length moulded | BS25: 196,50 X 32.260 X 18.700 m | BV25: Length moulded | BW25: 196.500 m | BZ25: Length B. P. | CA25: 160.40 m | CD25: Length moulded | CE25: 174.500 X 30.000 X 15.000 m | CH25: Length moulded | CI25: 171.50m x 28.40m x 14.10m | CL25: Length moulded | CM25: 185.500 X 32.260 X 18.400 m | CP25: length moulded | CQ25: 174.50 X 30.00 X 15.00 m | CT25: Length moulded | CU25: 179.99 x 28.20 x 14.30 M | CX25: Length moulded | CY25: 193.0 m
J26: Breadth moulded | K26: 28.400 m | N26: Breadth moulded | O26: 27.20 m | R26: Breadth moulded | S26: 32.260 m | V26: Breadth moulded | W26: 32.260 m | Z26: Breadth moulded | AA26: 28.600 m | AD26: Breadth moulded | AE26: 32.260 m | AH26: Breadth moulded | AI26: 28.40 m | AL26: Breadth moulded | AM26: 28.800 m | AP26: Breadth moulded | AQ26: 32.24 m | AT26: Breadth moulded | AU26: 30.00 m | AX26: Breadth moulded | AY26: 28.40 m | BB26: Breadth moulded | BC26: 28.600 m | BF26: Breadth moulded | BG26: 28.400 m | BJ26: Breadth moulded | BK26: 28.400 m | BN26: Breadth moulded | BO26: 32.26 m | BR26: Breadth moulded | BS26: 32.26 m | BV26: Breadth moulded | BW26: 32.26 m | BZ26: Breadth moulded | CA26: 27.20 m | CD26: Breadth moulded | CE26: 30.00 mtrs. | CH26: Breadth moulded | CI26: 28.40 m | CL26: Breadth moulded | CM26: 32.26 m | CP26: Breadth moulded | CQ26: 30.0 m | CT26: Breadth moulded | CU26: 28.20 M | CX26: Breadth moulded | CY26: 32.25 m
J27: Depth moulded | K27: 14.250 m | N27: Depth moulded | O27: 13.60 m | R27: Depth moulded | S27: 18.600 m | V27: Depth moulded | W27: 18.600 m | Z27: Depth moulded | AA27: 14.350 m | AD27: Depth moulded | AE27: 18.450 m | AH27: Depth moulded | AI27: 14.10 m | AL27: Depth moulded | AM27: 14.200 m | AP27: Depth moulded | AQ27: 18.38 m | AT27: Depth moulded | AU27: 15.00 m | AX27: Depth moulded | AY27: 14.25 m | BB27: Depth moulded | BC27: 14.350 m | BF27: Depth moulded | BG27: 14.100 m | BJ27: Depth moulded | BK27: 14.100 m | BN27: Depth moulded | BO27: MLD: 18.40 / EXT: 18.449 m | BR27: Depth moulded | BS27: 18.7 | BV27: Depth moulded | BW27: 18.700 m | BZ27: Depth moulded | CA27: 13.60 m | CD27: Depth moulded | CE27: 15.00 mtrs. | CH27: Depth moulded | CI27: MLD: 14.10 m | CL27: Depth moulded | CM27: 18.40m | CP27: Depth moulded | CQ27: 15.0 m | CT27: Depth moulded | CU27: 14.30 M | CX27: Depth moulded | CY27: 18.50 m
J28: Draught | K28: 10.034 m | N28: Draught | O28: 9.819 m | R28: Draught | S28: 13.025 m | V28: Draught | W28: 13.025 m | Z28: Draught ( Summer) | AA28: 10.034 m | AD28: Draught | AE28: 12.955 m | AH28: Draught | AI28: 10.17 m (Extreme) | AL28: Draught | AM28: 9.826 m | AP28: Draught | AQ28: 12.868 m | AT28: Draught | AU28: 10.527 m | AX28: Draught ( Summer) | AY28: 10.019 m (ordinary) | BB28: Draught ( Summer) | BC28: 10.034 m | BF28: Draught | BG28: 10.170 m | BJ28: Draught | BK28: 10.15 m | BN28: Draught | BO28: 12.951 m | BR28: Draught | BS28: 13.112 | BV28: Draught | BW28: 13.112 m | BZ28: Draught | CA28: 9.80 m | CD28: Draught | CE28: 10.527 mtrs. | CH28: Draught | CI28: 10.15 m | CL28: Draught | CM28: 12.951 m | CP28: Draught | CQ28: 10.527 m | CT28: Draught | CU28: 10.10 M | CX28: Draught | CY28: 12.948 m
J29: Deadweight | K29: 32,768 MT | N29: Deadweight | O29: 28, 238 MT | R29: Deadweight | S29: 60280 mt | V29: Deadweight | W29: 60280 mt | Z29: Deadweight | AA29: 33,132 MT | AD29: Deadweight | AE29: 60475.00 MT | AH29: Deadweight | AI29: 32701.3 MT | AL29: Deadweight | AM29: 33,399 MT | AP29: Deadweight | AQ29: 60,492 MT | AT29: Deadweight | AU29: 37735.00 MT | AX29: Deadweight | AY29: 32,561.53 MT (ordinary) | BB29: Deadweight | BC29: 33,143 MT | BF29: Deadweight | BG29: 32,043 MT | BJ29: Deadweight | BK29: 32, 398 MT | BN29: Deadweight | BO29: 58,091 MT | BR29: Deadweight | BS29: 61305 MT | BV29: Deadweight | BW29: 61,331 MT | BZ29: Deadweight | CA29: 28,240 MT | CD29: Deadweight | CE29: 37715 | CH29: Deadweight | CI29: 32,046.4 MT | CL29: Deadweight | CM29: 58,071 MT | CP29: Deadweight | CQ29: 37720 MT | CT29: Deadweight | CU29: 33 421 MT | CX29: Deadweight | CY29: 60,477 MT
J30: Propeller | K30: Type:Nakashima 4 Blades Solid SP Dia. 5750 x Pitch: 4066 mm (0.7 R) NI-AL-Bronze Weight 12650 kg | N30: Propeller | O30: 5,250 diam x 4 blades solid keyless, Aerofoil Pitch: 3,830.9mm | R30: Propeller | S30: Make: Nakashima Propeller Co. Ltd. Type: 4 Blades Solid Type, Keyless, 25 degree skew, Dia. 6100 x Pitch: 4,022.3 mm Weight 16.31 ton | V30: Propeller | W30: Make: Nakashima Propeller Co. Ltd. Type: 4 Blades Solid Type, Keyless, 25 degree skew, Dia. 6100 x Pitch: 4,022.3 mm Weight 16.31 ton | Z30: Propeller | AA30: Type:Aerofoil 4 Blades Solid Keyless Dia. 5800 x Pitch: 4276.9 mm deg Weight 12650 kg | AD30: Propeller | AE30: Type: Nakashima Propeller Co., Ltd., 4 Blades Solid Type 24.8° SKEW Dia. 6500 mm x Pitch: 4448.0mm(0.7 R) NI-AL-Bronze , 15000 kg | AH30: Propeller | AI30: Type: 4 Blades Dia. 5200, Right Handed, Weight 11220.3 kg | AL30: Propeller | AM30: Type:Nakashima, 4 Blades Solid Keyless, Diameter: 5750 mm x Pitch: 4270 mm, (0.7 R), KA1BC3, Weight 12380 kg | AP30: Propeller | AQ30: Type: Man B&W 6G50ME-B9.3 4 Blades Solid type 25° Skew Dia. 6600.0mm x Pitch 4980.7mm ABS Type4 NI-AL-BROZE 15650.0 kg | AT30: Propeller | AU30: Type:Aerofoil, 4 bladed solid keyless type ( N-PAI ) ( Normal ) Dia. 5800 mm x Pitch: 4,331.9mm(0.7 R) NI-AL-Bronze | AX30: Propeller | AY30: Type: 4 Blades Solid Keyless Dia. 5,450mm x Pitch: 3,721 mm (0.7R) deg | BB30: Propeller | BC30: Type: 4 Blades Solid Keyless Dia. 5800 x Pitch: 4276.9 mm deg Weight 12650 kg | BF30: Propeller | BG30: Maker: Jiangmen Nanyang Ship Engineering Co. Ltd.; Type: 4 Blades,Cu4 (Mn-Aluminum Bronze),Rake Angle - 10°, Diameter: 5,200 mm Ø | BJ30: Propeller | BK30: Maker: Jiangmen Nanyang Ship Engineering Co. Ltd. Dia: 5200 mm / 4 Blades / Cu4 (Mn- Aluminum Bronze) Right Rotate / Wt: 11220.3 kgs / Rake Angle: 10 deg | BN30: Propeller | BO30: Type: 4 Blades Solid Keyless Dia. 6200 x Pitch: 4.562 m, Right handed, Weight 17,595 kg | BR30: Propeller | BS30: Type: 4 Blades Solid Keyless High performance type K3 (K-Cubic) Propeller with Turbo Ring. Dia. 6500. Material KALBC3 (Ni-Al-Br) | BV30: Propeller | BW30: Type: 4 Blades Solid Keyless Dia. 6500 x Pitch: 5207.8 mm, Right handed, Weight 20,460 kg | BZ30: Propeller | CA30: Type: 4 Blades Solid Type x 1 set Material: Ni – Al – Br Diameter: 5.250 m Pitch: 3.830 m(0.7R) / 3.6539m (Mean) Right handed | CD30: Propeller | CE30: Double Plates Balance/ Right Handed | CH30: Propeller | CI30: Type: 4 Blades Solid Keyless Dia. 5200 x Pitch: 3.536 m, Right handed, Weight 11,220.3 kg | CL30: Propeller | CM30: Maker: Nakashima Propeller Co.Ltd Type: 4 Blades, Keyless with turbo-ring Dia. 6200 x Pitch: 4.562 m, Right handed, | CP30: Propeller | CQ30: 4 BLADES SOLID TYPE KEYLESS DIAMETER 5800mm X PITCH 4254.3mm RIGHT HANDED MASS: 11580kg | CT30: Propeller | CU30: Type: 4-blades solid, keyless, high performance type K3 (K-Cubic) propeller with turbo ring Material: KALBC3 (Ni-AI-Br) Diameter: 5.700 m Shaft center line height (above top of keel): 2.900 m | CX30: Propeller | CY30: MAKER : NAKASHIMA PROPELLER MATERIAL : Ni-Al-BC (KAlBC3) DESIGNED PITCH (0.7R) : 4920.3 mm NO. OF BLADE : 5 DIA : 6.3 m WEIGHT : 15380 kg REMARKS : With MIPB-WIN
J31: Main Engine | K31: KOBE DIESEL CO., LTD. Type: MITSUBISHI KOBE 6UEC45LSE-1 MCO: 6,000 KW x114 NOR: 5,100 KW x 108 min | N31: Main Engine | O31: Makita Mitsui Man- B&W MC Mark VI 5,850Kw x 129 rpm | R31: Main Engine | S31: MITSUI ENGINEERING & SHIPBUILDING CO., LTD. Type: 6S50ME-B9.3 | V31: Main Engine | W31: MITSUI ENGINEERING & SHIPBUILDING CO., LTD. TAMANO WORKS Type: 6S50ME-B9.3 | Z31: Main Engine | AA31: Mitsubishi Kobe Diesel Type: UEC45LSE | AD31: Main Engine | AE31: KAWASAKI HEAVY INDUSTRIES CO., LTD. Type: KAWASAKI-MAN B&W 6S50ME-B9.3 MCO:7300 KW x 99 Rpm | AH31: Main Engine | AI31: MAN B&W 6S42MC (MARK7) No. & Kind of Engines: 1DE : 2 SA 6 CY - Bore x Stroke (mm): 420.0 x 1,764.0 - Power (kW): 6,480 YICHANG MARINE DIESEL ENGINE CO., LTD. | AL31: Main Engine | AM31: Maker: KOBE DIESEL CO., LTD. Type: KOBE MITSUBISHI 6UEC45LSE-B2 MCO: 5,850 KW x 109 rpm NOR: 4,973 KW x 103 rpm | AP31: Main Engine | AQ31: MITSUI - MAN B & W Type: 6G50ME B9.3 MCO: 7,740 KW x 94 NOR: 6,280 KW x 87.7 min | AT31: Main Engine | AU31: KOBE DIESEL CO., LTD. Type: MITSUBISHI KOBE 6UEC45LSE-ECO-B2MCO: 6,250 KW x 108 min-1NOR: 5,000 KW x 100.3 min-1 | AX31: Main Engine | AY31: Mitsubishi diesel engine Type: 6UEC 52 LA | BB31: Main Engine | BC31: Mitsu Kobe Diesel Type: UEC45LSE | BF31: Main Engine | BG31: YMD-MAN B&W Type: 6S42MC, SN YB208 | BJ31: Main Engine | BK31: YMD-MAN B&W Type: 6S42MC, SN YB208 | BN31: Main Engine | BO31: Mitsui MAN B&W Type: 6S50ME-B9.3, Engine no. 6806 | BR31: Main Engine | BS31: Mitsui MAN B&W, Type: 6S50ME-B9.5 | BV31: Main Engine | BW31: Mitsui MAN B&W | BZ31: Main Engine | CA31: Makita- Mitsui-Man B&W Marine Diesel Engine 6S42MC (Mark VI) x 1 set Turbo Charger MET53SD X 1 SET Output: MCR 5,850kW x 129 RPM Normal (85%) 4,970 kW x 122 RPM | CD31: Main Engine | CE31: MITSUBISHI-KOBE DIESEL 6UEC45LSE-B2 x 1 set | CH31: Main Engine | CI31: YMD -MAN B&W 6S42MC (MARK7)/ OUTPUT M.E.=6480kW(8686 BHP) @ MCR 136.0 RPM: Engine No.YB408. | CL31: Main Engine | CM31: Mitsui MAN B&W Type: 6S50ME-B9.3, Engine no. 6909 | CP31: Main Engine | CQ31: MITSUBISHI - KOBE DIESEL TYPE: 6UEC45LSE-B2 ENGINE NO. UE-2992 | CT31: Main Engine | CU31: Type: One (1) set of KOBE DIESEL -MITSUBISHI 6UEC45LSE-B2 (Rated output: 8280 kW x 128 min-1) Output: Max. cont. output (MCO) 5580 kW x 108 min-1 Cont. service output (CSO) 4590 kW x abt. 101 min-1 (82.3% of MCO) | CX31: Main Engine | CY31: MITSUI E&S MAN B&W 6S50ME-B9.3 TIER II S/N: 6874 MCR: 7800kw (10605 PS) x 99rpm NOR:6630kw (9014.3 PS) X 93.8rpm (85% MCR)
J32: Generator Engine | K32: 3 x YANMAR (500 KW x 900 revs) TYPE 6EY18ALW | N32: Generator Engine | O32: 3x YANMAR 6EY18AL x 440Kw | R32: Generator Engine | S32: 3 x YANMAR (550 kW) TYPE 6EY18ALW | V32: Generator Engine | W32: 3 x YANMAR (550 kW) TYPE 6EY18ALW | Z32: Generator Engine | AA32: Daihatsu x 3 sets Type: 6DC-17A MVR” 480Kw, rpm: 900 | AD32: Generator Engine | AE32: 3 x YANMAR (570 KW x 900 revs) TYPE 6EY18ALW | AH32: Generator Engine | AI32: No. & Capacity of Generators (kVA): 4 AC 1,800 Kind of Propeller Shaft: 1B Shaft Diameter (mm): 1 x 425 | AL32: Generator Engine x 3 | AM32: Vertical Single Action, 4-Cycle,Direct Injection, Water Cooled Diesel Engine with Turbocharger and Air Cooler; Type 6EY18ALW Maker: Yanmar (455KW x 900rpm) | AP32: Generator Engine | AQ32: 3 x YANMAR (500 KW x 900 revs) TYPE 6EY18ALW | AT32: Generator Engine | AU32: 3 x YANMAR (500 KW x 900 revs) TYPE 6EY18ALW | AX32: Generator Engine | AY32: Daihatsu x 2 sets Type: 5DC-17 | BB32: Generator Engine | BC32: Daihatsu x 3 sets Type: 6DC-17A MVR” 480Kw, rpm: 900 | BF32: Generator Engine | BG32: MAN B&W CME x 3 sets Type: 5L16/24 | BJ32: Generator Engine | BK32: MAN B&W CME x 3 sets Type: 5L16/24 | BN32: Generator Engine | BO32: YANMAR x 3 sets, Type: 6EY18ALW, Cont. rating: 550 Kw, rpm: 900 | BS32: Rated Output: 10680Kw X 117min-1 Engine S. no. 7520 | BW32: Type: 6S50ME-B9.5, Engine no. 7519 | BZ32: Generator Engine | CA32: No.of set: Brushless Excited Type x 3sets Prime Mover: 4 Cycle Diesel Engine Yanmar (6EY18AL) 500 kW x 900 rpm Capacity: 550 kVA (440 kW) x 900 rpm, AC 450 V x 60 Hz | CD32: Generator Engine | CE32: YANMAR MODEL: 6EY18ALW DIESEL ENGINE | CH32: Generator Engine | CI32: STX-PY205 x 3 sets, Engine Model: 5L 16/24-G-10, 500 KW/. 1200 RPM, Alternator: 581.25KVA, 470 KW, 450V, 60 HZ | CL32: Generator Engine | CM32: YANMAR x 3 sets, Type: 6EY18ALW, Cont. rating: 550 Kw, rpm: 900 | CP32: Generator Engine | CQ32: YANMAR CO. LTD. X 3 SETS TYPE: 6EY18ALW CONTINOUS RATING: 500kw RPM 900 | CT32: Generator Engine | CU32: Main Generator (3 sets): 500 kVA (400 kW), AC 450 V, 3 C/J, 60Hz, 900min-1 Emergency Generator (1 set): 65 kVA (52 kW), AC 450 V, 3 C/J, 60Hz, 1800 min-1 | CX32: Generator Engine | CY32: DAIHATSU 3 x 6DE-18 TIER II OUTPUT: 570kw X 900rpm AE 1 SERIAL NO: DE618Z2702 AE 2 SERIAL NO: DE618Z2703 AE 3 SERIAL NO: DE618Z2704
J33: Composite Boiler | K33: 1 X OSAKA BOILER MFG., CO., LTD. OVS2-100/68-236 VERTICAL COMPOSITE 0.78 MPa DESIGN PRESSURE | N33: Composite Boiler | O33: Miura Co., Ltd., Vertical Smoke Tube, Composite Boiler | R33: Composite Boiler | S33: 1 X MIURA Co., Ltd. OHB-100/55/7(3) VERTICAL COMPOSITE 0.69 MPa DESIGN PRESSURE | V33: Composite Boiler | W33: 1 X MIURA Co., Ltd. OHB-100/55/7(3) VERTICAL COMPOSITE 0.78 MPa DESIGN PRESSURE | Z33: Composite Boiler | AA33: Osaka Boiler Mfg, Vertical Smoke Tube, Composite Boiler , 1.91 ton / hr, 0.78 Mpa | AD33: Composite Boiler | AE33: 1 X (ALFA LAVAL)AALBORG BOILER, GCS-21ST COMPOSITE BOILER 0.69 MPa DESIGN PRESSURE | AH33: Composite Boiler | AI33: No. & Kind of Boilers: 1 AUX VB - Pressure (MPa): 0.90 - Evaporation (t/h): 2.10 (ton/h) - Manufacturer: Greens Power Equipment (China) Co.,Ltd *Evaporation rate: Thermal output (kW) is shown for TOH (Thermal Oil Heater). | AL33: Composite Boiler | AM33: Maker: TORTOISE ENGINEERING CO., LTD., Type: Horizontal smoke tube vertical composite boiler, MKSC 20-750/530, Design Press: 0.69 MPa | AP33: Composite Boiler | AQ33: 1 X OSAKA BOILER MFG., CO., LTD. OVS2-80/51-22 VERTICAL COMPOSITE 0.69 MPa DESIGN PRESSURE | AT33: Composite Boiler | AU33: 1 X OSAKA BOILER MFG., CO., LTD.TYPE: OHB – 100/53/7 (3) – 26 VERTICAL COMPOSITE BOILER0.78 MPa DESIGN PRESSURE | AX33: Composite Boiler | AY33: Osaka Boiler Mfg, Vertical Smoke Tube, Composite Boiler , 1000 Kg / hr, 0.78 Mpa | BB33: Composite Boiler | BC33: Osaka Boiler Mfg, Vertical Smoke Tube, Composite Boiler , 1.91 ton / hr, 0.78 Mpa | BF33: Composite Boiler | BG33: Tortoise Engineering Co. Ltd., Vertical Smoke Tube, Composite Boiler | BJ33: Composite Boiler | BK33: Tortoise Engineering Co. Ltd., Vertical Smoke Tube, Composite Boiler | BN33: Composite Boiler | BO33: HADA Boiler (Tortoise Engineering Co., Ltd.), Model: MKSC 24-900/670, MWP: 069 MPa, No. M-3778, Type: Horizontal smoke tube vertical composite boiler | BR33: Generator Engine | BS33: YANMAR x 3 sets, Type: 6EY18ALW, Cont. rating: 550 Kw, rpm: 900 | BV33: Generator Engine | BW33: YANMAR x 3 sets, Type: 6EY18ALW, Cont. rating: 550 Kw, rpm: 900 | BZ33: Composite Boiler | CA33: Type & No.: Composite System Vertical Type Boiler x 1 set Press.Temp.: (D.P.) 0.8 Mpa / (W.P.)0.6 Mpa Evaporation: Oil Burning side 1,000 kg/h Exhaust Gas Side 650 kg/h (at M/E 85% Load) | CD33: Composite Boiler | CE33: Volcano = Type= MJII - 90 | CH33: Composite Boiler | CI33: Maker: Greens Shazhou. TYpe: ZYC1.2/0.9-0.7, MWP: 0.9Mpa, Type: Horizontal smoke tube vertical composite boiler | CL33: Composite Boiler | CM33: Maker:Tortoise Engineering Co., Ltd. Model: MKSC 24-900/670, Type: Horiz Smoke Tube Vertical Comp.Blr MWP: 069 MPa, No.M-3796 | CP33: Composite Boiler | CQ33: OSAKA BOILER MFG. CO. LTD MODEL/TYPE: OHB-100/55/7(3)-26 VERTICAL COMPOSITE BOILER SMOKE TUBE BOILER NORMAL(NWP): 0.69 MPA DESIGN PRESSURE: 0.78 MPA | CT33: Auxiliary Boiler | CU33: Type: One (1) set of Vertical cylindrical composite type Steam Condition: 0.69 MPa (design) / 0.59 MPa (working) Max. cont. Evaporation: 750 kg/h (Oil fired) / 480 kg/h (Exhaust) | CX33: Composite Boiler | CY33: OSAKA BOILER MODEL: OVS2-110/85-23 x 1set EVAPORATION: 1100kg/h (OIL FIRED PART)
BR34: Composite Boiler | BS34: Maker: Tortoise Engineering Co., Ltd., Model: MKSC 22-900/800, MWP: 069 MPa, No. M-4004/4005, Type: Horizontal smoke tube vertical composite boiler | BV34: Composite Boiler | BW34: HADA Boiler (Tortoise Engineering Co., Ltd.), Model: MKSC 22-900/800, MWP: 069 MPa, No. M-4004/4005, Type: Horizontal smoke tube vertical composite boiler
J35: COMPARTMENT - FUEL TANKS | K35: FRAME LOCATION | L35: CAPACITY (M3) | N35: COMPARTMENT - FUEL TANKS | O35: FRAME LOCATION | P35: CAPACITY (M3) | R35: COMPARTMENT - FUEL TANKS | S35: FRAME LOCATION | T35: CAPACITY (M3) | V35: COMPARTMENT - FUEL TANKS | W35: FRAME LOCATION | X35: CAPACITY (M3) | Z35: COMPARTMENT - FUEL TANKS | AA35: FRAME LOCATION | AB35: CAPACITY (M3) | AD35: COMPARTMENT - FUEL TANKS | AE35: FRAME LOCATION | AF35: CAPACITY (M3) | AL35: COMPARTMENT - FUEL TANKS | AM35: FRAME LOCATION | AN35: CAPACITY (M3) | AP35: COMPARTMENT - FUEL TANKS | AQ35: FRAME LOCATION | AR35: CAPACITY (M3) | AT35: COMPARTMENT - FUEL TANKS | AU35: FRAME LOCATION | AV35: CAPACITY (M3) | AX35: COMPARTMENT - FUEL TANKS | AY35: FRAME LOCATION | AZ35: CAPACITY (M3) | BB35: COMPARTMENT - FUEL TANKS | BC35: FRAME LOCATION | BD35: CAPACITY (M3) | BF35: COMPARTMENT - FUEL TANKS | BG35: FRAME LOCATION | BH35: CAPACITY (M3) | BJ35: COMPARTMENT - FUEL TANKS | BK35: FRAME LOCATION | BL35: CAPACITY (M3) | BN35: COMPARTMENT - FUEL TANKS | BO35: FRAME LOCATION | BP35: CAPACITY (M3) | BZ35: COMPARTMENT - FUEL TANKS | CA35: FRAME LOCATION | CB35: CAPACITY (M3) | CD35: COMPARTMENT - FUEL TANKS | CE35: FRAME LOCATION | CF35: CAPACITY (M3) | CH35: COMPARTMENT - FUEL TANKS | CI35: FRAME LOCATION | CJ35: CAPACITY (M3) | CL35: COMPARTMENT - FUEL TANKS | CM35: FRAME LOCATION | CN35: CAPACITY (M3) | CP35: COMPARTMENTS - FUEL TANK | CQ35: FRAME LOCATION | CR35: CAPACITY (M3) | CT35: COMPARTMENT - FUEL TANKS | CU35: FRAME LOCATION | CV35: CAPACITY (M3) | CX35: COMPARTMENT - FUEL TANKS | CY35: FRAME LOCATION | CZ35: CAPACITY (M3)
J36: No. 1 FO Tank (P) | K36: FR No. 105-141 | L36: 191.59 | N36: No. 1 FO Tank (P) | O36: FR No. 131 - 165 | P36: 236.33 | R36: No. 3 FO Tank (C) | S36: FR No. 107-142 | T36: 355.3 | V36: No. 3 FO Tank (C) | W36: FR No. 107-142 | X36: 355.3 | Z36: No. 1 FO Tank (P) | AA36: FR No. 168 - 200 | AB36: 362.48 | AD36: No. 1 FO Tank (P) | AE36: FR No. 64-100 | AF36: 390.2 | AH36: COMPARTMENT | AI36: FRAME LOCATION | AJ36: CAPACITY (M3) | AL36: No. 1 FO Tank (P) | AM36: FR No. 65-101 | AN36: 411 | AP36: No. 1 FO Tank (P) | AQ36: FR No. 69-109 | AR36: 405.6 | AT36: No. 1 FO Tank C | AU36: FR No. 105-141 | AV36: 230.31 | AX36: No. 1 FO Tank (P) | AY36: FR No. 135 -170 | AZ36: 301.25 | BB36: No. 1 FO Tank (P) | BC36: FR No. 168 - 200 | BD36: 362.48 | BF36: No. 1 FO Tank (P) | BG36: FR No. 103-124 | BH36: 129.6 | BJ36: No. 1 FO Tank (P) | BK36: FR No. 103-124 | BL36: 129.6 | BN36: No. 3 FO Tank (C) | BO36: FR No. 70 - 104 | BP36: 355.15 | BR36: COMPARTMENT - FUEL TANKS | BS36: FRAME LOCATION | BT36: CAPACITY (M3) | BV36: COMPARTMENT - FUEL TANKS | BW36: FRAME LOCATION | BX36: CAPACITY (M3) | BZ36: No.1 FOT (P) | CA36: 131 – 165 | CB36: 236.33 | CD36: No. 1 FO Tank (C) | CE36: 105-141 | CF36: 230.31 | CH36: No. 1 FO Tank (P) | CI36: FR No. 103 - 124 | CJ36: 127.02 | CL36: No. 1 FO Tank (P) | CM36: FR No. 70 - 104 | CN36: 355.15 | CP36: NO.1 FOT (C) | CQ36: 105 - 141 | CR36: 230.31 | CT36: N0.1 F. 0. T. (P) | CU36: 66 - 102 | CV36: 316.88 | CX36: NO.4 BTM FO TK (P) | CY36: 64 - 104.9 | CZ36: 447.1
J37: No. 1 FO Tank (S) | K37: FR No. 105-141 | L37: 191.59 | N37: No. 1 FO Tank (S) | O37: FR No. 131 - 165 | P37: 236.33 | R37: No. 4 FO Tank (P) | S37: FR No. 72-107 | T37: 387.8 | V37: No. 4 FO Tank (P) | W37: FR No. 72-107 | X37: 387.8 | Z37: No. 1 FO Tank (S) | AA37: FR No. 168 - 200 | AB37: 362.48 | AD37: No. 1 FO Tank (S) | AE37: FR No. 61-100 | AF37: 406.5 | AH37: NO.1 F.O. T (P) | AI37: FR No. 139-175 | AJ37: 223.5 | AL37: No. 1 FO Tank (S) | AM37: FR No. 65-101 | AN37: 411 | AP37: No. 1 FO Tank (S) | AQ37: FR No. 69-109 | AR37: 405.6 | AT37: No. 2 FO Tank (P) | AU37: FR No. 69-105 | AV37: 228.13 | AX37: No. 1 FO Tank (S) | AY37: FR No. 135 - 170 | AZ37: 301.25 | BB37: No. 1 FO Tank (S) | BC37: FR No. 168 - 200 | BD37: 362.48 | BF37: No. 1 FO Tank (S) | BG37: FR No. 103-124 | BH37: 129.6 | BJ37: No. 1 FO Tank (S) | BK37: FR No. 103-124 | BL37: 129.6 | BN37: No. 4 FO Tank (P) | BO37: FR No. 70 - 104 | BP37: 355.15 | BR37: No. 1 FO Tank (P) | BS37: FR No. 71 - 111 | BT37: 483.02 | BV37: No. 1 FO Tank (P) | BW37: FR No. 71 - 111 | BX37: 483.02 | BZ37: No.1 FOT (S) | CA37: 131 – 165 | CB37: 236.33 | CD37: No. 2 FO Tank (P) | CE37: 69-105 | CF37: 228.13 | CH37: No. 1 FO Tank (S) | CI37: FR No. 103 - 124 | CJ37: 127.02 | CL37: No. 1 FO Tank (S) | CM37: FR No. 70 - 104 | CN37: 355.15 | CP37: NO.2 FOT (P) | CQ37: 69 - 105 | CR37: 228.13 | CT37: N0.1 F. 0. T. (S) | CU37: 66 - 102 | CV37: 316.88 | CX37: NO.4 BTM FO TK (S) | CY37: 64 - 104.9 | CZ37: 447.1
J38: No. 2 FO Tank (P) | K38: FR No. 69-105 | L38: 189.42 | N38: No. 2 FO Tank (P) | O38: FR No. 97 – 131 | P38: 232.66 | R38: No. 4 FO Tank (S) | S38: FR No. 72-107 | T38: 399.4 | V38: No. 4 FO Tank (S) | W38: FR No. 72-107 | X38: 399.4 | Z38: No. 2 FO – LS Tank (P) | AA38: FR No. 30 – 62 | AB38: 325.46 | AD38: No. 2 FO Tank (P) | AE38: FR No. 29-64 | AF38: 260.6 | AH38: NO.1 F.O. T (S) | AI38: FR No. 139-175 | AJ38: 223.5 | AL38: No. 2 FO Tank (S) | AM38: FR No. 29-65 | AN38: 271.52 | AP38: No. 2 FO Tank (C) | AQ38: FR No. 37-71 | AR38: 344.1 | AT38: No. 2 FO Tank (S) | AU38: FR No. 69-105 | AV38: 230.31 | AX38: No. 2 FO – LS Tank (C) | AY38: FR No.100 -135 | AZ38: 301.25 | BB38: No. 2 FO – LS Tank (P) | BC38: FR No. 30 – 62 | BD38: 325.46 | BF38: No. 2 FO Tank (P) | BG38: FR No. 67-103 | BH38: 222.2 | BJ38: No. 2 FO Tank (P) | BK38: FR No. 67-103 | BL38: 222.2 | BN38: No. 4 FO Tank (S) | BO38: FR No. 35 – 70 | BP38: 280.8 | BR38: No. 1 FO Tank (S) | BS38: FR No. 71 - 111 | BT38: 483.02 | BV38: No. 1 FO Tank (S) | BW38: FR No. 71 - 111 | BX38: 483.02 | BZ38: No.2 FOT (P) | CA38: 97 – 131 | CB38: 232.66 | CD38: No. 2 FO Tank (S) | CE38: 69-105 | CF38: 230.31 | CH38: No. 2 FO Tank (P) | CI38: FR No. 67 – 103 | CJ38: 217.74 | CL38: No. 2 FO Tank (P) | CM38: FR No. 35 – 70 | CN38: 280.8 | CP38: NO.2 FOT (S) | CQ38: 69 - 105 | CR38: 230.31 | CT38: N0.2 F. 0. T. (P) | CU38: 29 - 66 | CV38: 210.78 | CX38: NO.5 BTM FO TK ( C ) | CY38: 32 - 70 | CZ38: 407.3
J39: No. 2 FO Tank (S) | K39: FR No. 69-105 | L39: 189.42 | N39: No. 2 FO Tank (S) | O39: FR No. 97 – 131 | P39: 232.66 | R39: No. 5 FO Tank (P) | S39: FR No. 35-72 | T39: 209.8 | V39: No. 5 FO Tank (P) | W39: FR No. 35-72 | X39: 209.8 | Z39: No. 2 FO – LS Tank (S) | AA39: FR No. 30 – 62 | AB39: 331.27 | AD39: No. 2 FO Tank (S) | AE39: FR No. 29-64 | AF39: 260.6 | AH39: NO.2 F.O. T (P) | AI39: FR No. 103-139 | AJ39: 223.5 | AL39: F.O. Overflow Tank | AM39: FR No. 22-26 | AN39: 11.91 | AP39: No. 3 FO Tank (S) | AQ39: FR No. 19-29 | AR39: 161.3 | AT39: No. 3 FO Tank (C) | AU39: FR No. 29-69 | AV39: 335.91 | AX39: No. 3 FO – LS Tank (C) | AY39: FR No. 65 - 100 | AZ39: 301.25 | BB39: No. 2 FO – LS Tank (S) | BC39: FR No. 30 – 62 | BD39: 331.27 | BF39: No. 2 FO Tank (S) | BG39: FR No. 67-103 | BH39: 222.2 | BJ39: No. 2 FO Tank (S) | BK39: FR No. 67-103 | BL39: 222.2 | BN39: No. 5 FO Tank (P) | BO39: FR No. 35 – 70 | BP39: 280.8 | BR39: No. 2 FO Tank (P) | BS39: FR No. 36 - 71 | BT39: 344.91 | BV39: No. 2 FO Tank (P) | BW39: FR No. 36 – 71 | BX39: 344.91 | BZ39: No.2 FOT (S) | CA39: 97 - 131 | CB39: 232.66 | CD39: No. 3 FO Tank (C) | CE39: 29-69 | CF39: 335.91 | CH39: No. 2 FO Tank (S) | CI39: FR No. 67 – 103 | CJ39: 217.74 | CL39: No. 2 FO Tank (S) | CM39: FR No. 35 – 70 | CN39: 280.8 | CP39: NO.3 FOT (C) | CQ39: 29 - 69 | CR39: 335.91 | CT39: N0.2 F. 0. T. (S) | CU39: 29 - 66 | CV39: 210.78 | CX39: DEEP FO TK (P) | CY39: 24 - 32 | CZ39: 288.5
J40: No. 3 FO Tank (C) | K40: FR No. 29-69 | L40: 246.6 | N40: No. 3 FO Tank (P) | O40: FR No. 63 – 97 | P40: 159.49 | R40: No. 5 FO Tank (S) | S40: FR No. 35-72 | T40: 221.3 | V40: No. 5 FO Tank (S) | W40: FR No. 35-72 | X40: 221.3 | Z40: H.F.O. Settling tank | AB40: 12.2 | AD40: No. 3 FO Tank (P) | AE40: FR No. 30-64 | AF40: 160.8 | AH40: NO.2 F.O. T (S) | AI40: FR No. 103-139 | AJ40: 223.5 | AL40: F.O. Service Tank | AM40: FR No. 25-28.5 | AN40: 11.86 | AP40: No. 4 FO Tank (S) | AQ40: FR No. 19-29 | AR40: 246.3 | AT40: No. 4 FO Tank (P) | AU40: FR No. 31-35 | AV40: 282.54 | AX40: No. 4 FO Tank (C) | AY40: FR No. 29 - 65 | AZ40: 264.92 | BB40: H.F.O. Settling tank | BD40: 12.2 | BF40: No. 3 FO Tank (P) | BG40: FR No. 35-67 | BH40: 197.5 | BJ40: No. 3 FO Tank (P) | BK40: FR No. 35-67 | BL40: 197.5 | BN40: No. 5 FO Tank (S) | BO40: FR No. 31 – 35 | BP40: 372.55 | BR40: No. 2 FO Tank (S) | BS40: FR No. 36 – 71 | BT40: 344.91 | BV40: No. 2 FO Tank (S) | BW40: FR No. 36 – 71 | BX40: 344.91 | BZ40: No.3 FOT (P) | CA40: 63 – 97 | CB40: 159.49 | CD40: No. 4 FO Tank (P) | CE40: 31-35 | CF40: 282.54 | CH40: No. 3 FO Tank (P) | CI40: FR No. 35 – 67 | CJ40: 193.55 | CL40: No. 3 FO Tank (P) | CM40: FR No. 31 – 35 | CN40: 372.55 | CP40: NO.4 FOT (P) | CQ40: 31 - 35 | CR40: 282.54 | CT40: N0.3 F. 0. T. (P) | CU40: 30 - 35 | CV40: 189.79 | CX40: DEEP FO TK (S) | CY40: 20 - 32 | CZ40: 349.4
J41: No. 4 FO Tank (S) | K41: FR No. 31-35 | L41: 247.01 | N41: No. 3 FO Tank (S) | O41: FR No. 63 – 97 | P41: 159.49 | R41: E/R FO Tank (S) | S41: FR No. 25-37 | T41: 248.3 | V41: E/R FO Tank (S) | W41: FR No. 25-37 | X41: 248.3 | Z41: H.F.O. Service tank 1 | AB41: 14 | AD41: No. 3 FO Tank (S) | AE41: FR No. 30-64 | AF41: 160.8 | AH41: NO.3 F.O. T (P) | AI41: FR No. 91-103 | AJ41: 74.5 | AL41: F.O. Settling Tank | AM41: FR No. 25-28.5 | AN41: 9.49 | AP41: H.F.O. Settling tank | AR41: 17 | AT41: No. 4 FO Tank (S) | AU41: FR No. 31-35 | AV41: 282.54 | AX41: H.F.O. Settling tank | AZ41: 12.42 | BB41: H.F.O. Service tank 1 | BD41: 14 | BF41: No. 3 FO Tank (S) | BG41: FR No. 35-67 | BH41: 197.5 | BJ41: No. 3 FO Tank (S) | BK41: FR No. 35-67 | BL41: 197.5 | BN41: E/R FO Tank (S) | BO41: FR No. 31 – 35 | BP41: 372.55 | BR41: No. 3 FO Tank (P) | BS41: FR No. 32 – 36 | BT41: 375.75 | BV41: No. 3 FO Tank (P) | BW41: FR No. 32 – 36 | BX41: 375.75 | BZ41: No.3 FOT (S) | CA41: 63 – 97 | CB41: 159.49 | CD41: No. 4 FO Tank (S) | CE41: 31-35 | CF41: 282.54 | CH41: No. 3 FO Tank (S) | CI41: FR No. 35 – 67 | CJ41: 193.55 | CL41: No. 3 FO Tank (S) | CM41: FR No. 31 – 35 | CN41: 372.55 | CP41: NO.4 FOT (S) | CQ41: 31 - 35 | CR41: 282.54 | CT41: N0.3 F. 0. T. (S) | CU41: 30 - 35 | CV41: 189.79 | CX41: HFO SETT TANK | CY41: 25 - 28 | CZ41: 25
J42: H.F.O. Settling tank | L42: 12.5 | N42: No. 4 FO Tank (P) | O42: FR No. 46 – 63 | P42: 79.74 | R42: H.F.O. Settling tank | T42: 17.7 | V42: H.F.O. Settling tank | X42: 18.21 | Z42: H.F.O. Service tank 2 - LS | AB42: 14 | AD42: H.F.O. Settling tank | AE42: FR 21 1/2 - 24 1/3 | AF42: 16.6 | AH42: NO.3 F.O. T (S) | AI42: FR No. 91-103 | AJ42: 74.5 | AL42: TOTAL | AN42: =SUM(AN36:AN41) -> 1126.78 | AP42: H.F.O. Service tank 1 | AR42: 17.3 | AT42: H.F.O. Settling tank | AV42: 12 | AX42: H.F.O. Service tank | AZ42: 12.94 | BB42: H.F.O. Service tank 2 - LS | BD42: 14 | BF42: No. 1 LS FO Tank (P) | BG42: FR No. 124-129 | BH42: 92.6 | BJ42: No.2 LSFO Tank | BK42: FR No. 19-33 | BL42: 98.74 | BN42: H.F.O. Sett tank | BO42: FR No. 20 – 22 | BP42: 16.25 | BR42: No. 3 FO Tank (S) | BS42: FR No. 32 – 36 | BT42: 375.75 | BV42: No. 3 FO Tank (S) | BW42: FR No. 32 – 36 | BX42: 375.75 | BZ42: No.4 FOT (P) | CA42: 46 – 63 | CB42: 79.74 | CD42: M/E L.O.S.T | CE42: 17-25 | CF42: 84.59 | CH42: No. 2 L.S.F.O | CI42: FR No. 19 - 33 | CJ42: 96.77 | CL42: H.F.O. Sett tank | CM42: FR No. 20 – 22 | CN42: 16.25 | CP42: DOT (P) | CQ42: 31 - 55 | CR42: 84.59 | CT42: No.1 D.O. Tank (P) | CU42: 18 - 30 | CV42: 89.31 | CX42: HFO SERV TANK | CY42: 28 - 31 | CZ42: 25
J43: H.F.O. Service tank 1 | L43: 12.3 | N43: No. 4 FO Tank (S) | O43: FR No. 46 – 63 | P43: 79.74 | R43: H.F.O. Service tank | T43: 16.6 | V43: H.F.O. Service tank | X43: 17.2 | Z43: Overflow Tk | AB43: 9.2 | AD43: H.F.O. Service tank 1 | AE43: FR 24 1/3- 27 2/9 | AF43: 17.3 | AH43: NO.4 F.O. T | AI43: FR No. 15-33 | AJ43: 187.61 | AL43: No. 2 FO Tank (P) (ULSMGO) | AM43: FR No. 29-65 | AN43: 271.52 | AP43: TOTAL | AR43: 1597.2 M3 | AT43: H.F.O. Service tank 1 | AV43: 12 | AX43: H.F.O.Save all Tank | AZ43: 0.5 | BB43: Overflow Tk | BD43: 9.2 | BF43: No. 1 LS FO Tank (S) | BG43: FR No. 124-129 | BH43: 92.6 | BJ43: No. 1 LS FO Tank (P) | BK43: FR No. 124-139 | BL43: 92.6 | BN43: H.F.O. Serv tank | BO43: FR No. 22 – 24 | BP43: 16.25 | BR43: M/E L.O SUMP TK | BS43: FR No. 17 – 24 | BT43: 18.86 | BV43: FO Overflow Tk | BW43: FR No. 20 – 30 | BX43: 28.78 | BZ43: No.4 FOT (S) | CA43: 46 – 63 | CB43: 79.74 | CD43: H.F.O. Sett tank | CE43: 23-26 | CF43: 12.6 | CH43: No. 1 L.S.F.O (P) | CI43: FR No. 124 - 139 | CJ43: 90.73 | CL43: H.F.O. Serv tank | CM43: FR No. 22 – 24 | CN43: 16.25 | CP43: DOT (S) | CQ43: 31-55 | CR43: 84.59 | CT43: No.1 D.O. Tank (S) | CU43: 18 - 30 | CV43: 97.42 | CX43: FO OVERFLOW TANK | CY43: 27 - 32 | CZ43: 28.8
J44: H.F.O. Service tank 2 | L44: 12.3 | N44: D.O. Tank (P) | O44: FR No. 33 – 46 | P44: 60.98 | R44: H.F.O. Service tank 1 | T44: 18.7 | V44: H.F.O. Service tank 1 | X44: 19.22 | Z44: TOTAL | AB44: =SUM(AB36:AB43) -> 1431.09 | AD44: H.F.O. Service tank 2 | AE44: FR 18 2/5- 21 1/3 | AF44: 17.3 | AH44: CYL.OIL STOR.TK FOR LSFO | AI44: FR No. 17-19 | AJ44: 5.88 | AL44: D.O. Tank (P) | AM44: FR No. 25-30 | AN44: 96.79 | AT44: H.F.O. Service tank 2 | AV44: 12 | AX44: TOTAL | AZ44: =SUM(AZ36:AZ43) -> 1495.78 | BB44: TOTAL | BD44: =SUM(BD36:BD43) -> 1431.09 | BF44: FO Drain Tank | BG44: FR No. 26-30 | BH44: 19.2 | BJ44: No. 1 LS FO Tank (S) | BK44: FR No. 124-139 | BL44: 92.6 | BN44: H.F.O. Serv tank 1 | BO44: FR No. 70 - 104 | BP44: 355.15 | BR44: BILGE SEP OIL TK | BS44: FR No. 22 – 30 | BT44: 25.15 | BV44: F.O. Sett tank | BW44: FR No. 18 – 20 | BX44: 15.11 | BZ44: TOTAL | CB44: =SUM(CB36:CB43) -> 1416.44 | CD44: H.F.O. Serv tank 1 | CE44: 28-30 | CF44: 12.2 | CH44: No. 1 L.S.F.O (S) | CI44: FR No. 124 - 139 | CJ44: 90.73 | CL44: Overflow Tk | CM44: FR No. 20 – 29 | CN44: 23.34 | CP44: TOTAL | CR44: =SUM(CR36:CR43) -> 1758.92 | CT44: F.O Overflow T. | CU44: 22 - 28 | CV44: 14.51
J45: TOTAL | L45: =SUM(L36:L44) -> 1292.73 | N45: D.O. Tank (S) | O45: FR No. 33 – 46 | P45: 60.98 | R45: TOTAL | T45: =SUM(T36:T44) -> 1874.9 | V45: TOTAL | X45: =SUM(X36:X44) -> 1876.53 | AD45: NO.4 Fuel Oil tank (S) | AE45: FR No. 29-48 | AF45: 158.8 | AH45: L.S.F.O. T (P) | AI45: FR No. 67-91 | AJ45: 149 | AL45: D.O. Tank (S) | AM45: FR No. 25-30 | AN45: 78.02 | AP45: No. 3 FOT/ L.S.D.O.T. (P) | AQ45: FR No. 15-28 | AR45: 265.4 | AT45: TOTAL | AV45: =SUM(AV36:AV44) -> 1625.74 | BF45: FO Overflow Tank | BG45: FR No. 30-34 | BH45: 26.2 | BJ45: FO Drain Tank | BK45: FR No. 26-30 | BL45: 19.2 | BN45: Overflow Tk | BO45: FR No. 20 – 29 | BP45: 23.34 | BR45: BILGE TK | BS45: FR No. 9 – 17 | BT45: 36.38 | BV45: F.O. Serv. tank | BW45: FR No. 20 – 22 | BX45: 15.11 | BZ45: Diesel oil Tank (P) | CA45: 33 – 46 | CB45: 50.98 | CD45: H.F.O. Serv tank 2 | CE45: 28-30 | CF45: 12.2 | CH45: H.F.O. Sett tank | CI45: FR No. 32 – 34 | CJ45: 22 | CL45: No.1 D.O. Tank (P) | CM45: FR No. 31 - 35 | CN45: 124.72 | CT45: F.O DRAIN T. | CU45: 20 - 22 | CV45: 2.48 | CX45: D.O TK | CY45: 16 - 20 | CZ45: 91.2
N46: F.O. Overflow T (P) | O46: FR No. 30 - 33 | P46: 14.07 | Z46: No.1 D.O. Tank (P) LS | AA46: FR No. 58 - 62 | AB46: 68.63 | AD46: TOTAL | AF46: =SUM(AF36:AF45) -> 1849.5 | AH46: L.S.F.O. T (S) | AI46: FR No. 67-91 | AJ46: 149 | AL46: No. 1 MGO Service Tank (ULSMGO) | AM46: FR No. 25-27 | AN46: 9.93 | AP46: D.O.T. (P) | AQ46: FR No. 19-15 | AR46: 90.8 | AX46: No.1 D.O. Tank (C) LS | AY46: FR No. 19 - 29 | AZ46: 95.73 | BB46: No.1 D.O. Tank (P) LS | BC46: FR No. 58 - 62 | BD46: 68.63 | BF46: H.F.O. Settling tank | BG46: FR No. 32-34 | BH46: 22.5 | BJ46: FO Overflow Tank | BK46: FR No. 30-34 | BL46: 26.2 | BN46: No.1 D.O. Tank (P) | BO46: FR No. 31 - 35 | BP46: 124.72 | BR46: S.T.C.W.T | BS46: FR No. AE – 9 | BT46: 6.92 | BV46: D.O. Tank (P) | BW46: FR No. 32 - 36 | BX46: 123.33 | BZ46: Diesel oil Tank (S) | CA46: 33 – 46 | CB46: 50.98 | CD46: F.O. Overflow Tk | CE46: 26-29 | CF46: 13.76 | CH46: H.F.O. Serv tank | CI46: FR No. 30 – 32 | CJ46: 21.57 | CL46: No. 1 D.O. Tank (S) | CM46: FR No. 31 - 35 | CN46: 124.72 | CP46: COMPARTMENTS - BALLAST TANK | CQ46: FRAME LOCATION | CR46: CAPACITY (M3) | CT46: F.O SETT. T | CU46: 23 - 25 | CV46: 14.44 | CX46: LSDO TK | CY46: 10 - 24 | CZ46: 271
J47: No. 4 FO Tank (P) MGO | K47: FR No. 31-35 | L47: 247.01 | N47: F.O. Overflow T (S) | O47: FR No. 30 - 33 | P47: 14.07 | R47: Fore D.O. Tank (P) | S47: FR No. 33-37 | T47: 100.7 | V47: Fore D.O. Tank (P) | W47: FR No. 33-37 | X47: 100.7 | Z47: No. 1 D.O. Tank (S) | AA47: FR No. 58 - 62 | AB47: 68.63 | AH47: FO. DRAIN TK | AI47: FR No. 26-30 | AJ47: 18.79 | AL47: No. 2 MGO Service Tank (ULSMGO) | AM47: FR No. 25-27 | AN47: 8.88 | AP47: L.S.D.O. Serv. T. | AQ47: FR No. 11-19 | AR47: 122 | AT47: D.O. Tank (P) | AU47: FR No. 31-35 | AV47: 84.59 | BB47: No. 1 D.O. Tank (S) | BC47: FR No. 58 - 62 | BD47: 68.63 | BF47: H.F.O. Service tank | BG47: FR No. 30-32 | BH47: 22 | BJ47: H.F.O. Settling tank | BK47: FR No. 32-34 | BL47: 22.5 | BN47: No. 1 D.O. Tank (S) | BO47: FR No. 31 - 35 | BP47: 124.72 | BR47: F.O Overflow Tk | BS47: FR No. 20 – 30 | BT47: 28.78 | BV47: D.O. Tank (S) | BW47: FR No. 32 - 36 | BX47: 123.33 | BZ47: TOTAL | CB47: =SUM(CB45:CB46) -> 101.96 | CD47: No.1 D.O. Tank (P) | CE47: 31 - 35 | CF47: 84.59 | CH47: L.S.F.O Sett tank | CI47: FR No. 26 - 28 | CJ47: 20.7 | CL47: D.O. Serv tank | CM47: FR No. 18 - 21 | CN47: 8.32 | CP47: FPT | CQ47: 209 - F.E. | CR47: 636.78 | CT47: F.O. SERV T | CU47: 25 - 27 | CV47: 14.44 | CX47: DO SERV TK | CY47: 13 - 16 | CZ47: 27.4
J48: D.O. Tank (P) | K48: FR No. 31-35 | L48: 84.46 | N48: E/R F.O. OVFL T (C ) | O48: FR No. 29 - 33 | P48: 7.53 | R48: Aft D.O. Tank (S) | S48: FR No. 29-33 | T48: 94.7 | V48: Aft D.O. Tank (S) | W48: FR No. 29-33 | X48: 94.7 | AH48: FO.OVERFLOW TK. | AI48: FR No. 30-33 | AJ48: 17.8 | AL48: TOTAL | AN48: =SUM(AN43:AN47) -> 465.14 | AP48: D.O. Service Tank | AR48: 22.1 | AT48: D.O. Tank (S) | AU48: FR No. 31-35 | AV48: 84.59 | BF48: LS H.F.O. Settling tank | BG48: FR No. 26-28 | BH48: 21.1 | BJ48: H.F.O. Service tank | BK48: FR No. 30-32 | BL48: 22 | BN48: D.O Sett Tank | BO48: N/A | BP48: N/A | BR48: No.1 D.O. Tank (P) | BS48: FR No. 32 - 36 | BT48: 123.33 | BV48: NO. 1 D.O Serv. Tank | BW48: FR No. 18 - 20 | BX48: 11.16 | BZ48: LUBRICATING OIL TANK | CD48: No. 1 D.O. Tank (S) | CE48: 31 - 35 | CF48: 84.59 | CH48: L.S.F.O Serv tank | CI48: FR No. 28 – 30 | CJ48: 21.13 | CL48: D.O. Serv tank (U.L.S.D.) | CM48: FR No. 18 - 21 | CN48: 8.32 | CP48: WBT 1 STBD | CQ48: 177 -209 | CR48: 407.78 | CT48: D.O. SERV. T | CU48: 19 - 21 | CV48: 7.31 | CX48: LSDO SERV TK | CY48: 10 - 13 | CZ48: 20.3
J49: D.O. Tank (S) | K49: FR No. 31-35 | L49: 84.46 | N49: Bilge T (P) | O49: FR No. 21 - 28 | P49: 8.3 | R49: M.G.O.T. | S49: FR No. 22-29 | T49: 84.7 | V49: M.G.O.T. | W49: FR No. 22-29 | X49: 184.7 | Z49: D.O Settling Tank | AA49: FR No. 21 - 33 | AB49: 7.63 | AD49: No. 1 D.O. Tank (P) | AE49: FR No. 39-48 | AF49: 75.2 | AH49: H.F.O. SETT. TK. | AI49: FR No. 32-34 | AJ49: 22.2 | AP49: TOTAL | AR49: 500.30 M3 | AT49: D.O. Settling Tank | AV49: 6 | AX49: D.O Settling Tank (S) | AZ49: 6 | BB49: D.O Settling Tank | BC49: FR No. 21 - 33 | BD49: 7.63 | BF49: LS H.F.O. Service tank | BG49: FR No. 28-30 | BH49: 21.6 | BJ49: LS H.F.O. Settling tank | BK49: FR No. 26-28 | BL49: 21.1 | BN49: D.O. Serv tank | BO49: FR No. 18 - 21 | BP49: 8.32 | BR49: No. 1 D.O. Tank (S) | BS49: FR No. 32 - 36 | BT49: 123.33 | BV49: NO. 2 D.O Serv. Tank | BW49: FR No. 20 - 22 | BX49: 11.16 | BZ49: L.O SUMP TK ( C ) | CA49: 17 – 25.25 | CB49: 13.58 | CD49: D.O Sett Tank | CE49: 18.5-20.5 | CF49: 7.6 | CH49: No.1 M.D.O. Tank | CI49: FR No. 13 - 22 | CJ49: 55.8 | CL49: TOTAL | CN49: =SUM(CN36:CN48) -> 2338.92 | CP49: WBT 1 PORT | CQ49: 177 -209 | CR49: 407.78 | CT49: L.S.D.O Serv. T. | CU49: 19 - 21 | CV49: 7.13
J50: D.O. Settling Tank | L50: 6.7 | N50: Stuff Box DR T (P) | O50: FR No. 15 - 16 | P50: 1.63 | R50: TOTAL | T50: =SUM(T47:T49) -> 280.1 | V50: TOTAL | X50: =SUM(X47:X49) -> 380.1 | Z50: D.O. Service tank | AA50: FR No. 23 - 25 | AB50: 7.63 | AD50: No. 2 D.O. Tank (P) | AE50: FR No. 29-39 | AF50: 83.6 | AH50: H.F.O. SERV. TK. | AI50: FR No. 30-32 | AJ50: 22.2 | AL50: COMPARTMENT - OTHER TANKS | AM50: FRAME LOCATION | AN50: CAPACITY (M3) | AT50: D.O. Service Tank 1 | AV50: 6 | AX50: D.O. Service tank (S) | AZ50: 12.5 | BB50: D.O. Service tank | BC50: FR No. 23 - 25 | BD50: 7.63 | BF50: No. 2 LS FO Tank | BG50: FR No. 19-33 | BH50: 98.7 | BJ50: LS H.F.O. Service tank | BK50: FR No. 28-30 | BL50: 21.6 | BN50: D.O. Serv tank (U.L.S.D.) | BO50: FR No. 18 - 21 | BP50: 8.32 | BR50: NO. 1 M/E CYL O. STOR TK | BS50: FR No. 27 - 32 | BT50: 42.12 | BV50: TOTAL | BX50: =SUM(BX37:BX49) -> 2735.34 | BZ50: S/T L.O.S.T. | CA50: 12 – 13 | CB50: 1.23 | CD50: D.O. Serv tank 1 | CE50: 18.5-20.5 | CF50: 7.6 | CH50: No. 2 M.D.O. Tank (P) | CI50: FR No. 25 - 34 | CJ50: 29.25 | CP50: SWBT 1 STBD | CQ50: 177 -209 | CR50: 840.18 | CT50: M/E L.O. SUMP T. | CU50: 15 - 21 | CV50: 16.23 | CX50: TOTAL | CZ50: =SUM(CZ36:CZ49) -> 2428.1
J51: D.O. Service Tank 1 | L51: 6.9 | N51: Bilge Sludge T (C ) | O51: FR No. 10 - 16 | P51: 10.19 | Z51: D.O. Service tank | AA51: FR No. 23 - 25 | AB51: 7.63 | AD51: No. 1 D.O. Serv Tank (S) | AE51: FR 17 2/9- 18 4/9 | AF51: 7.5 | AH51: L.S.F.O. SETT. TK. | AI51: FR No. 26-28 | AJ51: 21.9 | AL51: M/E L.O. Sump Tank | AM51: FR No. 15-21 | AN51: 18.22 | AP51: COMPARTMENT - BALLAST TANKS | AQ51: FRAME LOCATION | AR51: CAPACITY (M3) | AT51: D.O. Service Tank 2 | AV51: 6 | AX51: D.O. Service tank | BB51: D.O. Service tank | BC51: FR No. 23 - 25 | BD51: 7.63 | BF51: TOTAL | BH51: =SUM(BH36:BH50) -> 1515.1 | BJ51: TOTAL | BL51: =SUM(BL36:BL50) -> 1515.14 | BN51: TOTAL | BP51: =SUM(BP36:BP50) -> 2694.07 | BR51: NO. 2 M/E CYL O. STOR TK | BS51: FR No. 27 - 32 | BT51: 30.04 | BZ51: TOTAL | CB51: =SUM(CB49:CB50) -> 14.81 | CD51: D.O. Serv tank 2 | CE51: 18.5-20.5 | CF51: 7.6 | CH51: MGO.Stor Tank (S) | CI51: FR No. 30 - 34 | CJ51: 29.4 | CL51: COMPARTMENT - BALLAST TANKS | CM51: FRAME LOCATION | CN51: CAPACITY (M3) | CP51: SWBT 1 PORT | CQ51: 177 -209 | CR51: 840.18 | CT51: M/E L.O. SETT. T | CU51: 21 - 23 | CV51: 16.3
J52: D.O. Service Tank 2 | L52: 6.9 | N52: F.O Drain T (S) | O52: FR No. 25 - 26 | P52: 1.39 | R52: COMPARTMENT - BALLAST TANKS | S52: FRAME LOCATION | T52: CAPACITY (M3) | V52: COMPARTMENT - BALLAST TANKS | W52: FRAME LOCATION | X52: CAPACITY (M3) | Z52: TOTAL | AB52: =SUM(AB49:AB51) -> 22.89 | AD52: No. 2 D.O. Serv Tank (S) | AE52: FR 16 - 17 2/9 | AF52: 7.5 | AH52: L.S.F.O. SERV. TK. | AI52: FR No. 28-30 | AJ52: 22.2 | AL52: M/E L.O. Settling Tank | AM52: FR No. 20-22 | AN52: 19.51 | AP52: FPT- C | AQ52: FR No. 212-FE | AR52: 1272.6 | AT52: TOTAL | AV52: =SUM(AV47:AV51) -> 187.18 | AX52: TOTAL | AZ52: =SUM(AZ46:AZ50) -> 114.23 | BB52: TOTAL | BD52: =SUM(BD46:BD51) -> 160.15 | BR52: F.O SETT TK | BS52: FR No. 18 - 20 | BT52: 15.11 | BV52: COMPARTMENT - BALLAST TANKS | BW52: FRAME LOCATION | BX52: CAPACITY (M3) | CD52: TOTAL | CF52: =SUM(CF36:CF51) -> 1917.07 | CH52: M.G.O. Serv tank | CI52: FR No. 21 - 23 | CJ52: 19.61 | CL52: FPT (C) | CM52: 214 – FE | CN52: 2366.68 | CP52: WBT 2 STBD | CQ52: 141 - 177 | CR52: 695.68 | CT52: M/E L.O. STOR. T | CU52: 27 - 30 | CV52: 18.87 | CX52: COMPARTMENT - FW TANKS | CY52: FRAME LOCATION | CZ52: CAPACITY (M3)
J53: TOTAL | L53: =SUM(L47:L52) -> 436.43 | N53: L.O Drain T (S) | O53: FR No. 24 - 25 | P53: 1.19 | R53: FPT (C) | S53: FR No. 212-FE | T53: 1810.4 | V53: FPT (C) | W53: FR No. 212-FE | X53: 1810.4 | AD53: TOTAL | AF53: =SUM(AF49:AF52) -> 173.8 | AH53: TOTAL | AJ53: =SUM(AJ37:AJ52) -> 1659.58 | AL53: M/E L.O. Storage Tank | AM53: FR No. 18-20 | AN53: 17.75 | AP53: No. 1 WBT (P) | AQ53: Top: FR No. 180-212 | AR53: 368.6 | BF53: No. 1 M D.O. Tank | BG53: FR No.13-22 | BH53: 56.9 | BJ53: No. 1 M D.O. Tank | BK53: FR No.13-22 | BL53: 56.9 | BN53: COMPARTMENT - BALLAST TANKS | BO53: FRAME LOCATION | BP53: CAPACITY (M3) | BR53: F.O SERV. TK | BS53: FR No. 20-22 | BT53: 15.11 | BV53: FPT (C) | BW53: 224 – FE | BX53: 2277.7 | BZ53: COMPARTMENT - BALLAST TANKS | CA53: FRAME LOCATION | CB53: CAPACITY (M3) | CH53: M.D.O. Serv tank | CI53: FR No. 23 - 25 | CJ53: 20.04 | CL53: NO. 1 WBT / TST (P) | CM53: 179 – 214 | CN53: 1227.39 | CP53: WBT 2 PORT | CQ53: 141 - 177 | CR53: 695.68 | CT53: G/E L.O. SETT. T | CU53: 17 - 18 | CV53: 7.94 | CX53: D.W TK | CY53: AE - 5 | CZ53: 150
N54: M/E A.C. Drain T (S) | O54: FR No. 20 - 24 | P54: 2.96 | R54: NO. 1 WBT / TST (P) | S54: FR No. 177 - 212 | T54: 1412.2 | V54: NO. 1 WBT / TST (P) | W54: FR No. 177 - 212 | X54: 1412.2 | Z54: Machinery specifications | AL54: G/E L.O. Settling Tank | AM54: FR No. 22-23 | AN54: 4.46 | AQ54: Bottom: FR No. 180-212 | AR54: 779 | AT54: COMPARTMENT - BALLAST TANKS | AU54: FRAME LOCATION | AV54: CAPACITY (M3) | AX54: Machinery specifications | BB54: Machinery specifications | BF54: No. 2 M D.O. Tank (P) | BG54: FR No.25-34 | BH54: 29.9 | BJ54: No. 2 M D.O. Tank (P) | BK54: FR No.25-34 | BL54: 29.9 | BN54: FPT (C) | BO54: 214 – FE | BP54: 2366.68 | BR54: NO. 1 D.O SERV. TK | BS54: FR No. 22,5 - 25 | BT54: 11.16 | BV54: NO. 1 WBT / TST (P) | BW54: 189 – 214 | BX54: 1390.03 | BZ54: FPT (C) | CA54: 194 – FE | CB54: 730.92 | CD54: COMPARTMENT - BALLAST TANKS | CE54: FRAME LOCATION | CF54: CAPACITY (M3) | CH54: TOTAL | CJ54: =SUM(CJ36:CJ53) -> 1594.35 | CL54: NO. 1 WBT / TST (S) | CM54: 179 – 214 | CN54: 1227.39 | CP54: SWBT 2 STBD | CQ54: 141 - 177 | CR54: 928.58 | CT54: G/E L.O. STOR.T | CU54: 16 - 17 | CV54: 7.48 | CX54: F.W TK | CY54: AE - 8 | CZ54: 223.5
J55: COMPARTMENT - BALLAST TANKS | K55: FRAME LOCATION | L55: CAPACITY (M3) | N55: S/T C.W.T. (C ) | O55: FR No. AE - 11 | P55: 6.28 | R55: NO. 1 WBT / TST (S) | S55: FR No. 177 - 212 | T55: 1412.2 | V55: NO. 1 WBT / TST (S) | W55: FR No. 177 - 212 | X55: 1412.2 | Z55: ME LO Purifier | AA55: Mitsubishi Kakoki Kaisha Type SJ 20 G | AD55: COMPARTMENT - BALLAST TANKS | AE55: FRAME LOCATION | AF55: CAPACITY (M3) | AH55: COMPARTMENT | AI55: FRAME LOCATION | AJ55: CAPACITY (M3) | AL55: G/E L.O. Storage Tank | AM55: FR No. 22-23 | AN55: 5.87 | AR55: Total: 1147.6 | AT55: FPT – C | AU55: FR No. 209-FE | AV55: 636.78 | AX55: ME LO Purifier | AY55: Mitsubishi Kakoki Kaisha Type SJ 20 G | BB55: ME LO Purifier | BC55: Mitsubishi Kakoki Kaisha Type SJ 20 G | BF55: No. 2 M D.O. Tank (S) | BG55: FR No.30-34 | BH55: 32.1 | BJ55: No. 2 M D.O. Tank (S) | BK55: FR No.30-34 | BL55: 30 | BN55: NO. 1 WBT / TST (P) | BO55: 179 – 214 | BP55: 1227.39 | BR55: NO. 2 D.O SERV. TK | BS55: FR No. 20 - 22,5 | BT55: 11.16 | BV55: NO. 1 WBT / TST (S) | BW55: 189 – 214 | BX55: 1390.03 | BZ55: NO. 1 WBT (P) | CA55: 165 – 194 | CB55: 313.53 | CD55: FPT (C) | CE55: 209-FE | CF55: 636.78 | CL55: NO. 2 WBT / TST (P) | CM55: 142 – 179 | CN55: 1623.34 | CP55: SWBT 2 PORT | CQ55: 141 - 177 | CR55: 928.58 | CT55: NO.1 M/E CYL.O.STOR.T. | CU55: 17 - 20 | CV55: 17.02 | CX55: TOTAL | CZ55: =SUM(CZ53:CZ54) -> 373.5
J56: FPT- C | K56: FR No. 208-FE | L56: 523.76 | N56: TOTAL | P56: =SUM(P36:P55) -> 1606.01 | R56: NO. 2 WBT / TST (P) | S56: FR No. 142 - 177 | T56: 1680.1 | V56: NO. 2 WBT / TST (P) | W56: FR No. 142 - 177 | X56: 1680.1 | Z56: AE LO Purifier | AA56: Mitsubishi Kakoki Kaisha Type SJ 10 G | AD56: FPT – C | AE56: FR No. 203-FE | AF56: 1837.9 | AH56: N O.1 M.D.O. T K. | AI56: FR No. 13-22 | AJ56: 55.8 | AL56: No. 1 M/E Cyl. Oil Storage Tank | AM56: FR No. 17-20 | AN56: 7.59 | AP56: No. 1 WBT (S) | AQ56: Top: FR No. 180-212 | AR56: 368.6 | AT56: No. 1 WBT (P) | AU56: FR No. 177-209 | AV56: 407.78 | AX56: AE LO Purifier | AY56: Mitsubishi Kakoki Kaisha Type SJ 700 | BB56: AE LO Purifier | BC56: Mitsubishi Kakoki Kaisha Type SJ 10G | BF56: M D.O Settling Tank | BG56: FR No.21-23 | BH56: 20 | BJ56: M D.O Settling Tank | BK56: FR No.21-23 | BL56: 20 | BN56: NO. 1 WBT / TST (S) | BO56: 179 – 214 | BP56: 1227.39 | BR56: M/E L.O SETT TK | BS56: FR No. 22,6 - 25,1 | BT56: 18.89 | BV56: NO. 2 WBT / TST (P) | BW56: 149 – 189 | BX56: 1908.49 | BZ56: NO. 1 WBT (S) | CA56: 165 – 194 | CB56: 313.53 | CD56: NO. 1 WBT (P) | CE56: 177-209 | CF56: 407.78 | CH56: COMPARTMENT - BALLAST TANKS | CI56: FRAME LOCATION | CJ56: CAPACITY (M3) | CL56: NO. 2 WBT / TST (S) | CM56: 142 – 179 | CN56: 1623.34 | CP56: WBT 3 STBD | CQ56: 105 - 141 | CR56: 587.96 | CT56: NO.2 M/E CYL.O.STOR.T. | CU56: 17 - 20 | CV56: 16.12
J57: No. 1 WBT (P) | K57: FR No. 177-208 | L57: 1148.13 | R57: NO. 2 WBT / TST (S) | S57: FR No. 142 - 177 | T57: 1680.1 | V57: NO. 2 WBT / TST (S) | W57: FR No. 142 - 177 | X57: 1680.1 | Z57: HFO Purifier | AA57: Mitsubishi Kakoki Kaisha Type SJ 20 G | AD57: No. 1 WBT (P) | AE57: FR No. 169-203 | AF57: 1473.2 | AH57: N O.2 M.D.O. T K.(P) | AI57: FR No. 25-34 | AJ57: 47.1 | AL57: No. 2 M/E Cyl. Oil Storage Tank | AM57: FR No. 17-20 | AN57: 28.88 | AQ57: Bottom: FR No. 180-212 | AR57: 779 | AT57: No. 1 WBT (S) | AU57: FR No. 177-209 | AV57: 407.78 | AX57: HFO Purifier | AY57: Mitsubishi Kakoki Kaisha Type SJ 20 G | BB57: HFO Purifier | BC57: Mitsubishi Kakoki Kaisha Type SJ 20 G | BF57: D.O. Service tank | BG57: FR No.23-25 | BH57: 20.5 | BJ57: D.O. Service tank | BK57: FR No.23-25 | BL57: 20.5 | BN57: NO. 2 WBT / TST (P) | BO57: 142 – 179 | BP57: 1623.34 | BR57: M/E L.O STOR TK | BS57: FR No. 25,1 - 27,6 | BT57: 18.89 | BV57: NO. 2 WBT / TST (S) | BW57: 149 – 189 | BX57: 1908.49 | BZ57: NO. 2 WBT (P) | CA57: 131 – 165 | CB57: 610.1 | CD57: NO. 1 WBT (S) | CE57: 177-209 | CF57: 407.78 | CH57: FPT (C) | CI57: 208 – 229 | CJ57: 951.28 | CL57: NO. 3 WBT / TST (P) | CM57: 107 – 142 | CN57: 1565.74 | CP57: WBT 3 PORT | CQ57: 105 - 141 | CR57: 587.96 | CT57: BILGE SEP.OIL T. | CU57: 20 - 28 | CV57: 14.39 | CX57: COMPARTMENT - BALLAST TANKS | CY57: FRAME LOCATION | CZ57: CAPACITY (M3)
J58: No. 1 WBT (S) | K58: FR No. 177-208 | L58: 1148.13 | N58: COMPARTMENT - BALLAST TANKS | O58: FRAME LOCATION | P58: CAPACITY (M3) | R58: NO. 3 WBT / TST (P) | S58: FR No. 107 - 142 | T58: 1501.5 | V58: NO. 3 WBT / TST (P) | W58: FR No. 107 - 142 | X58: 1501.5 | Z58: Fresh Water Generator | AA58: Sasakura Engineering KE -15 | AD58: No. 1 WBT (S) | AE58: FR No. 169-203 | AF58: 1473.2 | AH58: N O.2 M.D.O. T K.(S) | AI58: FR No. 30-34 | AJ58: 22.9 | AL58: Clean Drain Tank | AM58: FR No. 26-29 | AN58: 11.08 | AR58: Total: 1147.6 | AT58: No. 2 WBT (P) | AU58: FR No. 141-177 | AV58: 695.68 | AX58: Fresh Water Generator | AY58: Sasakura Engineering KE-15 | BB58: Fresh Water Generator | BC58: Sasakura Engineering KE-15 | BF58: TOTAL | BH58: =SUM(BH53:BH57) -> 159.4 | BJ58: TOTAL | BL58: =SUM(BL53:BL57) -> 157.3 | BN58: NO. 2 WBT / TST (S) | BO58: 142 – 179 | BP58: 1623.34 | BR58: G/E L.O SETT TK | BS58: FR No. 18 - 19 | BT58: 4.46 | BV58: NO. 3 WBT / TST (P) | BW58: 111 – 149 | BX58: 1817.24 | BZ58: NO. 2 WBT (S) | CA58: 131 – 165 | CB58: 610.1 | CD58: NO. 2 WBT (P) | CE58: 141-177 | CF58: 695.68 | CH58: NO. 1 WBT | CI58: 175 – 208 | CJ58: 532.8 | CL58: NO. 3 WBT / TST (S) | CM58: 107 – 142 | CN58: 1565.74 | CP58: SWBT 3 STBD | CQ58: 105 - 141 | CR58: 939.22 | CT58: BILGE TANK | CU58: 2015-08-01 | CV58: 17.13 | CX58: FPT (C) | CY58: 213 - FE | CZ58: 2448.1
J59: No. 2 WBT (P) | K59: FR No. 141-177 | L59: 1451.86 | N59: FPT (C) | O59: 194 – FE | P59: 730.92 | R59: NO. 3 WBT / TST (S) | S59: FR No. 107 - 142 | T59: 1501.5 | V59: NO. 3 WBT / TST (S) | W59: FR No. 107 - 142 | X59: 1501.5 | Z59: Air Compressor | AA59: Yanmar Co.Ltd. C300 | AD59: No. 2 WBT (P) | AE59: FR No. 133-169 | AF59: 1822.3 | AH59: M.D.O. SE T T L.T K. | AI59: FR No. 21-23 | AJ59: 20.5 | AL59: Bilge Sep. Oil Tank | AM59: FR No. 20-29 | AN59: 22.57 | AP59: No. 2 WBT (P) | AQ59: Top: FR No. 142-180 | AR59: 580.9 | AT59: No. 2 WBT (S) | AU59: FR No. 141-177 | AV59: 695.68 | AX59: Air Compressor | AY59: YANMAR C-300 | BB59: Air Compressor | BC59: Yanmar Co, C-300 | BN59: NO. 3 WBT / TST (P) | BO59: 107 – 142 | BP59: 1565.74 | BR59: G/E L.O STOR TK | BS59: FR No. 19 - 20 | BT59: 4.46 | BV59: NO. 3 WBT / TST (S) | BW59: 111 – 149 | BX59: 1817.24 | BZ59: NO. 3 WBT (P) | CA59: 97 – 131 | CB59: 637.69 | CD59: NO. 2 WBT (S) | CE59: 141-177 | CF59: 695.68 | CH59: NO. 1 WBT | CI59: 175 – 208 | CJ59: 532.8 | CL59: NO. 4 WBT / TST (P) | CM59: 70 – 107 | CN59: 1235.77 | CP59: SWBT 3 PORT | CQ59: 105 - 141 | CR59: 939.22 | CT59: S.T.C.W. T | CU59: A. E. - 8 | CV59: 3.81 | CX59: NO. 1 WBT / TST (P) | CY59: 176 - 213 | CZ59: 1381
J60: No. 2 WBT (S) | K60: FR No. 141-177 | L60: 1451.86 | N60: NO. 1 WBT / TST (P) | O60: 165 – 194 | P60: 553.41 | R60: NO. 4 WBT / TST (P) | S60: FR No. 72 -107 | T60: 1279.6 | V60: NO. 4 WBT / TST (P) | W60: FR No. 72 -107 | X60: 1279.6 | Z60: Stern Seal | AA60: KEMEL DX-480 | AD60: No. 2 WBT (S) | AE60: FR No. 133-169 | AF60: 1822.3 | AH60: M.D.O. SE RV.T K. | AI60: FR No. 23-25 | AJ60: 21.1 | AL60: Bilge Tank | AM60: FR No. 8-15 | AN60: 20.04 | AQ60: Bottom: FR No. 142-180 | AR60: 1175.4 | AT60: No. 3 WBT (P) | AU60: FR No. 105-141 | AV60: 587.96 | AX60: Stern Seal | AY60: KEMEL DX-480 | BB60: Stern Seal | BC60: KEMEL, DX-480 | BF60: COMPARTMENT - BALLAST TANKS | BG60: FRAME LOCATION | BH60: CAPACITY (M3) | BJ60: COMPARTMENT - BALLAST TANKS | BK60: FRAME LOCATION | BL60: CAPACITY (M3) | BN60: NO. 3 WBT / TST (S) | BO60: 107 – 142 | BP60: 1565.74 | BR60: TOTAL | BT60: =SUM(BT37:BT59) -> 2941.51 | BV60: NO. 4 WBT / TST (P) | BW60: 71 – 111 | BX60: 1403.17 | BZ60: NO. 3 WBT (S) | CA60: 97 – 131 | CB60: 637.69 | CD60: NO. 3 WBT (P) | CE60: 105-141 | CF60: 587.96 | CH60: NO. 2 WBT | CI60: 139 – 175 | CJ60: 922.53 | CL60: NO. 4 WBT / TST (S) | CM60: 70 – 107 | CN60: 1235.77 | CP60: WBT 4 STBD | CQ60: 69 - 105 | CR60: 468.47 | CT60: TOTAL | CV60: =SUM(CV36:CV59) -> 1817.23 | CX60: NO. 1 WBT / TST (S) | CY60: 176 - 213 | CZ60: 1381
J61: No. 3 WBT (P) | K61: FR No. 105-141 | L61: 1254.76 | N61: NO. 1 WBT / TST (S) | O61: 165 – 194 | P61: 553.41 | R61: NO. 4 WBT / TST (S) | S61: FR No. 72 - 107 | T61: 1279.6 | V61: NO. 4 WBT / TST (S) | W61: FR No. 72 - 107 | X61: 1279.6 | Z61: Sewage Treatment Plant | AA61: Taiko Kikai SBH 25 | AD61: No. 3 WBT (P) | AE61: FR No. 100-133 | AF61: 1673.8 | AH61: TOTAL | AJ61: =SUM(AJ56:AJ60) -> 167.4 | AL61: S.T.C.W.T. | AM61: A.E. - 8 | AN61: 4.46 | AR61: Total: 1756.2 | AT61: No. 4 WBT (P) | AU61: FR No. 69-105 | AV61: 468.47 | AX61: Sewage Treatment Plant | AY61: TAIKO KIKAI SBT-25 | BB61: Sewage Treatment Plant | BC61: Taiko Kikai Industries SBH-25 | BF61: No. 1 TST (P) | BG61: FR No. 175-208 | BH61: 317.3 | BJ61: No. 1 TST (P) | BK61: FR No. 175-208 | BL61: 317.3 | BN61: NO. 4 WBT / TST (P) | BO61: 70 – 107 | BP61: 1235.77 | BV61: NO. 4 WBT / TST (S) | BW61: 71 – 111 | BX61: 1403.17 | BZ61: NO. 4 WBT (P) | CA61: 63 – 97 | CB61: 618.3 | CD61: NO. 3 WBT (S) | CE61: 105-141 | CF61: 587.96 | CH61: NO. 2 WBT | CI61: 139 – 175 | CJ61: 922.53 | CL61: NO. 5 WBT / TST (P) | CM61: 35 – 70 | CN61: 1086.75 | CP61: WBT 4 PORT | CQ61: 69 - 105 | CR61: 468.47 | CX61: NO. 2 WBT / TST (P) | CY61: 140 - 179 | CZ61: 1790.4
J62: No. 3 WBT (S) | K62: FR No. 105-141 | L62: 1254.76 | N62: NO. 2 WBT / TST (P) | O62: 131 – 165 | P62: 783.2 | R62: NO. 5 WBT / TST (P) | S62: FR No. 34 - 72 | T62: 1335.4 | V62: NO. 5 WBT / TST (P) | W62: FR No. 34 - 72 | X62: 1335.4 | Z62: Oily Water Separator | AA62: Taiko Kikai Industries USH 20 Bilge Alarm:FOCAS1800 | AD62: No. 3 WBT (S) | AE62: FR No. 100-133 | AF62: 1674.7 | AP62: No. 2 WBT (S) | AQ62: Top: FR No. 142-180 | AR62: 580.9 | AT62: No. 4 WBT (S) | AU62: FR No. 69-105 | AV62: 468.47 | AX62: Oily Water Separator | AY62: TAIKO KIKAI USC-20 Bilge Alarm: FOCAS 2000 | BB62: Oily Water Separator | BC62: Taiko Kikai Industries USH-20 Bilge Alarm: FOCAS1800 | BF62: No. 1 TST (S) | BG62: FR No. 175-208 | BH62: 317.3 | BJ62: No. 1 TST (S) | BK62: FR No. 175-208 | BL62: 317.3 | BN62: NO. 4 WBT / TST (S) | BO62: 70 – 107 | BP62: 1235.77 | BR62: COMPARTMENT - BALLAST TANKS | BS62: FRAME LOCATION | BT62: CAPACITY (M3) | BV62: NO. 5 WBT / TST (P) | BW62: 36 – 71 | BX62: 1120.1 | BZ62: NO. 4 WBT (S) | CA62: 63 – 97 | CB62: 618.3 | CD62: NO. 4 WBT (P) | CE62: 69-105 | CF62: 468.47 | CH62: NO. 3 WBT | CI62: 103 – 139 | CJ62: 930.36 | CL62: NO. 5 WBT / TST (S) | CM62: 35 – 70 | CN62: 1086.75 | CP62: SWBT 4 STBD | CQ62: 69 - 105 | CR62: 938.27 | CT62: COMPARTMENT - BALLAST TANKS | CU62: FRAME LOCATION | CV62: CAPACITY (M3) | CX62: NO. 2 WBT / TST (S) | CY62: 140 - 179 | CZ62: 1790.4
J63: No. 4 WBT (P) | K63: FR No. 69-105 | L63: 1248.14 | N63: NO. 2 WBT / TST (S) | O63: 131 – 165 | P63: 783.2 | R63: NO. 5 WBT / TST (S) | S63: FR No. 34 - 72 | T63: 1335.4 | V63: NO. 5 WBT / TST (S) | W63: FR No. 34 - 72 | X63: 1335.4 | Z63: Steering Gear | AA63: KAWASAKI TYPE RV21-070S | AD63: No. 4 WBT (P) | AE63: FR No. 64-100 | AF63: 1429 | AH63: COMPARTMENT | AI63: FRAME LOCATION | AJ63: CAPACITY (M3) | AL63: COMPARTMENT - BALLAST TANKS | AM63: FRAME LOCATION | AN63: CAPACITY (M3) | AQ63: Bottom: FR No. 142-180 | AR63: 1175.4 | AT63: No. 5 WBT (P) | AU63: FR No. 35-69 | AV63: 371.11 | AX63: Steering Gear | AY63: KAWASAKI PRECISION MACHINERY CO. RV21-070 | BB63: Steering Gear | BC63: Kawasaki Precision Industries, RV21 - 070S | BF63: No. 2 TST (P) | BG63: FR No. 139-175 | BH63: 352.4 | BJ63: No. 2 TST (P) | BK63: FR No. 139-175 | BL63: 352.4 | BN63: NO. 5 WBT / TST (P) | BO63: 35 – 70 | BP63: 1086.75 | BR63: FPT (C) | BS63: 224 – FE | BT63: 2277.7 | BV63: NO. 5 WBT / TST (S) | BW63: 36 – 71 | BX63: 1120.1 | BZ63: NO. 5 WBT (P) | CA63: 29 – 63 | CB63: 377.78 | CD63: NO. 4 WBT (S) | CE63: 69-105 | CF63: 468.47 | CH63: NO. 3 WBT | CI63: 103 – 139 | CJ63: 930.36 | CL63: APT ( C ) | CM63: AE - 8 | CN63: 734.24 | CP63: SWBT 4 PORT | CQ63: 69 - 105 | CR63: 938.27 | CT63: FPT | CU63: 206 - F.E. | CV63: 963.79 | CX63: NO. 3 WBT / TST (P) | CY63: 103 - 143 | CZ63: 1798
J64: No. 4 WBT (S) | K64: FR No. 69-105 | L64: 1248.14 | N64: NO. 3 WBT / TST (P) | O64: 97 – 131 | P64: 809.52 | R64: NO. 1 SWBT (P) | V64: NO. 1 SWBT (P) | Z64: Ballast Water Treatment Plant | AA64: N.A | AD64: No. 4 WBT (S) | AE64: FR No. 64-100 | AF64: 1429 | AH64: L.O.ST O R.T K. | AI64: FR No. 12-14 | AJ64: 14.5 | AL64: F.P.T. (C) | AM64: FR No. 203-F.E. | AN64: 1256.8 | AR64: Total: 1756.2 | AT64: No. 5 WBT (S) | AU64: FR No. 35-69 | AV64: 371.11 | AX64: Ballast Water Treatment Plant | AY64: N.A | BB64: Ballast Water Treatment Plant | BC64: DESMI , COMPACT CLEAN 500, S/N: 473739-01-01, 473739-01-02 | BF64: No. 2 TST (S) | BG64: FR No. 139-175 | BH64: 352.4 | BJ64: No. 2 TST (S) | BK64: FR No. 139-175 | BL64: 352.4 | BN64: NO. 5 WBT / TST (S) | BO64: 35 – 70 | BP64: 1086.75 | BR64: NO. 1 WBT / TST (P) | BS64: 189-224 | BT64: 1390.03 | BV64: APT (C) | BW64: AE - 9 | BX64: 765.91 | BZ64: NO. 5 WBT (S) | CA64: 29 – 63 | CB64: 377.78 | CD64: NO. 5 WBT (P) | CE64: 35-69 | CF64: 371.11 | CH64: NO. 4 WBT | CI64: 67 – 103 | CJ64: 909.12 | CL64: TOTAL | CN64: =SUM(CN52:CN63) -> 16578.9 | CP64: WBT 5 STBD | CQ64: 35 - 69 | CR64: 371.11 | CT64: NO. 1 WBT (P) | CU64: 174 - 206 | CV64: 846.5 | CX64: NO. 3 WBT / TST (S) | CY64: 103 - 143 | CZ64: 1798
J65: No. 5 WBT (P) | K65: FR No. 31-69 | L65: 1179.65 | N65: NO. 3 WBT / TST (S) | O65: 97 – 131 | P65: 809.52 | R65: NO. 1 SWBT (S) | V65: NO. 1 SWBT (S) | Z65: Propeller | AA65: MAKER: NAKASHIMA PROPELLER CO.,LTD TYPE: 200 SKEW | AD65: No. 5 WBT (P) | AE65: FR No.29-64 | AF65: 1461.7 | AH65: L.O. SE T T L.T K. | AI65: FR No. 14-16 | AJ65: 13 | AL65: No. 1 S.W.B.T. (P) | AM65: FR No. 173-203 | AN65: 724.04 | AP65: No. 3 WBT (P) | AQ65: Top: FR No. 106-142 | AR65: 550.3 | AT65: No. 1 SWBT (P) | AU65: FR No. 177-209 | AV65: 840.18 | AX65: Propeller | AY65: Nakashima Propeller Co. Ltd. | BB65: Propeller | BC65: NAKASHIMA PROPELLER CO. LTD; Type: Aerofoil 4 bladed solid keyless | BF65: No. 1 WBT (P) | BG65: FR No. 175-208 | BH65: 543.7 | BJ65: No. 1 WBT (P) | BK65: FR No. 175-208 | BL65: 543.7 | BN65: APT ( C ) | BO65: AE - 8 | BP65: 734.24 | BR65: NO. 1 WBT / TST (S) | BS65: 189-224 | BT65: 1390.03 | BV65: TOTAL | BX65: =SUM(BX53:BX64) -> 18321.67 | BZ65: NO. 1 TST (P) | CA65: 165 – 194 | CB65: 239.88 | CD65: NO. 5 WBT (S) | CE65: 35-69 | CF65: 371.11 | CH65: NO. 4 WBT | CI65: 67 – 103 | CJ65: 909.12 | CP65: WBT 5 PORT | CQ65: 35 - 69 | CR65: 371.11 | CT65: NO. 1 WBT (S) | CU65: 174 - 206 | CV65: 846.5 | CX65: NO. 4 WBT / TST (P) | CY65: 67 - 106 | CZ65: 1356.6
J66: No. 5 WBT (S) | K66: FR No. 31-69 | L66: 1187.34 | N66: NO. 4 WBT / TST (P) | O66: 63 – 97 | P66: 863.85 | R66: NO. 2 SWBT (P) | V66: NO. 2 SWBT (P) | Z66: Incinerator | AA66: Sunflame Co Ltd OSV 360 | AD66: No. 5 WBT (S) | AE66: FR No. 29-64 | AF66: 1461.7 | AH66: G/E L.O.SE T T L.T K. | AI66: FR No. 9-12 | AJ66: 15.9 | AL66: No. 1 S.W.B.T. (S) | AM66: FR No. 173-203 | AN66: 724.04 | AQ66: Bottom: FR No. 106-142 | AR66: 1024 | AT66: No. 1 SWBT (S) | AU66: FR No. 177-209 | AV66: 840.18 | AX66: Incinerator | AY66: SUNFLAME CO. LTD 0 S V - 3 6 0 S A J | BB66: Incinerator | BC66: Sunflame Co Ltd OSV 360 SAI | BF66: No. 1 WBT (S) | BG66: FR No. 175-208 | BH66: 543.7 | BJ66: No. 1 WBT (S) | BK66: FR No. 175-208 | BL66: 543.7 | BN66: TOTAL | BP66: =SUM(BP54:BP65) -> 16578.9 | BR66: NO. 2 WBT / TST (P) | BS66: 149- 189 | BT66: 1908.49 | BZ66: NO. 1 TST (S) | CA66: 165 – 194 | CB66: 239.88 | CD66: NO. 1 SWBT (P) | CE66: 177-209 | CF66: 840.18 | CH66: NO. 5 WBT | CI66: 35 – 67 | CJ66: 440.37 | CL66: Machinery specifications | CP66: SWBT 5 STBD | CQ66: 35 - 69 | CR66: 835.84 | CT66: NO. 2 WBT (P) | CU66: 138 - 174 | CV66: 1272.32 | CX66: NO. 4 WBT / TST (S) | CY66: 67 - 106 | CZ66: 1356.6
J67: APT | K67: FR No. A.E.-10 | L67: 183.82 | N67: NO. 4 WBT / TST (S) | O67: 63 – 97 | P67: 863.85 | R67: NO. 2 SWBT (S) | V67: NO. 2 SWBT (S) | Z67: Valve Remote Control System | AA67: AMCO ENGINEERING Corporation | AD67: APT (C) | AE67: A.E-10 | AF67: 811.3 | AH67: G/E L.O.ST O R.T K. | AI67: FR No. 9-12 | AJ67: 3.7 | AL67: No. 2 S.W.B.T. (P) | AM67: FR No. 137-173 | AN67: 773.97 | AR67: Total: 1574.3 | AT67: No. 2 SWBT (P) | AU67: FR No. 141-177 | AV67: 928.58 | AX67: Valve Remote Control System | AY67: AMCO Engineering Corp./ MHPS | BB67: Valve Remote Control System | BC67: AMCO Engineering Corp. | BF67: No. 2 WBT (P) | BG67: FR No. 139-175 | BH67: 941.4 | BJ67: No. 2 WBT (P) | BK67: FR No. 139-175 | BL67: 941.4 | BR67: NO. 2 WBT / TST (S) | BS67: 149- 189 | BT67: 1908.49 | BV67: Machinery Specifications | BZ67: NO. 2 TST (P) | CA67: 131 – 165 | CB67: 173.1 | CD67: NO. 1 SWBT (S) | CE67: 177-209 | CF67: 840.18 | CH67: NO. 5 WBT | CI67: 35 – 67 | CJ67: 497.66 | CL67: ME LO Purifier | CM67: Maker: MITSUBISHI KAKOKI KAISHA, LTD. Type: SJH15 | CP67: SWBT 5 PORT | CQ67: 35 - 69 | CR67: 835.84 | CT67: NO. 2 WBT (S) | CU67: 138 - 174 | CV67: 1272.32 | CX67: NO. 5 WBT / TST (P) | CY67: 32 - 70 | CZ67: 1521.5
J68: TOTAL | L68: =SUM(L56:L67) -> 13280.35 | N68: NO. 5 WBT / TST (P) | O68: 29 – 63 | P68: 479 | R68: NO. 3 SWBT (P) | V68: NO. 3 SWBT (P) | Z68: Main Engine Turbocharger | AA68: Maker: Mitsubishi Heavy Industries, LTD. TYPE: MET 53 SE, SPEC: CV3E43DD55N. | AD68: No. 3 CH | AE68: FR No. 100-133 | AF68: 15938 | AH68: No.1 C Y L.L.O.ST O R.T K. | AI68: FR No. 14-18 | AJ68: 20.4 | AL68: No. 2 S.W.B.T. (S) | AM68: FR No. 137-173 | AN68: 773.97 | AP68: No. 3 WBT (S) | AQ68: Top: FR No. 106-142 | AR68: 550.3 | AT68: No. 2 SWBT (S) | AU68: FR No. 141-177 | AV68: 928.58 | AX68: Main Engine Turbocharger | AY68: Mitsubishi Heavy Industries LTD/ MET53SD | BB68: Main Engine Turbocharger | BC68: MITSUBISHI HEAVY INDS. Type; MET53SE | BF68: No. 2 WBT (S) | BG68: FR No. 139-175 | BH68: 941.4 | BJ68: No. 2 WBT (S) | BK68: FR No. 139-175 | BL68: 941.4 | BN68: Machinery specifications | BR68: NO. 3 WBT / TST (P) | BS68: 111-149 | BT68: 1817.24 | BV68: ME LO Purifier | BW68: Maker: MITSUBISHI KAKOKI KAISHA, LTD. Type: SJH15 | BZ68: NO. 2 TST (S) | CA68: 131 – 165 | CB68: 173.1 | CD68: NO. 2 SWBT (P) | CE68: 141-177 | CF68: 928.58 | CH68: NO. 1 TST (P) | CI68: 175 – 208 | CJ68: 310.94 | CL68: AE LO Purifier | CM68: Maker: MITSUBISHI KAKOKI KAISHA, LTD. Type: SJH25 | CP68: APT | CQ68: A.E. - 10 | CR68: 303.17 | CT68: NO. 3 WBT (P) | CU68: 102 - 138 | CV68: 1296.49 | CX68: NO. 5 WBT / TST (S) | CY68: 32 - 70 | CZ68: 1521.5
N69: NO. 5 WBT / TST (S) | O69: 29 – 63 | P69: 479 | R69: NO. 3 SWBT (S) | V69: NO. 3 SWBT (S) | Z69: Aux Engine Alternators | AA69: MAKER: NISHISHIBA ELECTRIC CO,.LTD. MODEL: NTAKL-VE | AD69: TOTAL | AF69: =SUM(AF56:AF68) -> 34308.1 | AH69: No.2 C Y L.L.O.ST O R.T K. | AI69: FR No. 18-20 | AJ69: 13 | AL69: No. 3 S.W.B.T. (P) | AM69: FR No. 101-137 | AN69: 759.75 | AQ69: Bottom: FR No. 106-142 | AR69: 1024 | AT69: No. 3 SWBT (P) | AU69: FR No. 105-141 | AV69: 939.22 | AX69: Aux Engine Alternators | AY69: Nishishiba Electric Co., Ltd./ NTAKL-VE | BB69: Aux Engine Alternators | BC69: Synchronous Enclosed drip-proof Salient pole type, Brush less excitation, Insulation Class F, A.C. 450V 3 phase 60 Hz, 550KVA (440KW) 900 rpm | BF69: No. 3 WBT (P) | BG69: FR No. 103-139 | BH69: 949.4 | BJ69: No. 3 WBT (P) | BK69: FR No. 103-139 | BL69: 949.4 | BN69: ME LO Purifier | BO69: Maker: MITSUBISHI KAKOKI KAISHA, LTD. Type: SJH15 | BR69: NO. 3 WBT / TST (S) | BS69: 111-149 | BT69: 1817.24 | BV69: AE LO Purifier | BW69: Maker: MITSUBISHI KAKOKI KAISHA, LTD. Type: SJH15 | BZ69: NO. 3 TST (P) | CA69: 97 – 131 | CB69: 171.83 | CD69: NO. 2 SWBT (S) | CE69: 141-177 | CF69: 928.58 | CH69: NO. 1 TST (S) | CI69: 175 – 208 | CJ69: 310.94 | CL69: HFO Purifier | CM69: Maker: MITSUBISHI KAKOKI KAISHA, LTD. Type: SJH35 2 Sets | CP69: TOTAL | CR69: =SUM(CR47:CR68) -> 14966.13 | CT69: NO. 3 WBT (S) | CU69: 102 - 138 | CV69: 1296.49 | CX69: APT ( C ) | CY69: AE - 8 | CZ69: 578.3
J70: Machinery specifications | N70: APT ( C ) | O70: AE - 10 | P70: 136.59 | R70: No. 4 SWBT (P) | V70: No. 4 SWBT (P) | Z70: Refrigeration Compressor | AA70: MAKER: DAIKIN MR ENGINEERING CO.,LTD. MODEL: RHSN4BC | AH70: M/E L.O.SU MP T K. | AI70: FR No. 19-29 | AJ70: 14.1 | AL70: No. 3 S.W.B.T. (S) | AM70: FR No. 101-137 | AN70: 759.75 | AR70: Total: 1574.3 | AT70: No. 3 SWBT (S) | AU70: FR No. 105-141 | AV70: 939.22 | AX70: Refrigeration Compressor | AY70: Namirei Showa/ 2C582LE-CE | BB70: Refrigeration Compressor | BC70: DAIKIN (JT125BK-NFYE) Hermetical Sealed Type, Capacity control: 100-67-0% | BF70: No. 3 WBT (S) | BG70: FR No. 103-139 | BH70: 949.4 | BJ70: No. 3 WBT (S) | BK70: FR No. 103-139 | BL70: 949.4 | BN70: AE LO Purifier | BO70: Maker: MITSUBISHI KAKOKI KAISHA, LTD. Type: SJH25 | BR70: NO. 4 WBT / TST (P) | BS70: 71-111 | BT70: 1403.17 | BV70: HFO Purifier | BW70: Maker: MITSUBISHI KAKOKI KAISHA, LTD. Type: SJH25 2 Sets | BZ70: NO. 3 TST (S) | CA70: 97 – 131 | CB70: 171.83 | CD70: NO. 3 SWBT (P) | CE70: 105-141 | CF70: 939.22 | CH70: NO. 2 TST (P) | CI70: 139 – 175 | CJ70: 345.35 | CL70: Fresh Water Generator | CM70: Maker: Sasakura Engineering Co. Ltd Type: KE20 (18mt/day @ CSO) | CT70: NO. 4 WBT (P) | CU70: 66 - 102 | CV70: 968.13 | CX70: TOTAL | CZ70: =SUM(CZ58:CZ69) -> 18721.4
J71: ME LO Purifier | K71: Mitsubishi Kakoki Kaisha TYPE SJ 20 G | N71: TOTAL | P71: =SUM(P59:P70) -> 7845.47 | R71: No. 4 SWBT (S) | V71: No. 4 SWBT (S) | Z71: A.C Compressor | AA71: MAKER: DAIKIN MR ENGINEERING CO.,LTD. MODEL: USDN40J | AD71: Machinery specifications | AH71: L.O.D RAIN T K. | AI71: FR No. 18-24 | AJ71: 10.4 | AL71: No. 4 S.W.B.T. (P) | AM71: FR No. 65-101 | AN71: 793.81 | AP71: No. 4 WBT (P) | AQ71: Top: FR No. 68-106 | AR71: 580.9 | AT71: No. 4 SWBT (P) | AU71: FR No. 69-105 | AV71: 938.27 | AX71: A.C Compressor | AY71: DAIKIN/ JT300D-YE | BB71: A.C Compressor | BC71: DAIKIN (JT300DGFYE X 4 ) Hermetical Scroll Type, capacity abt. 137 KW | BF71: No. 4 WBT (P) | BG71: FR No. 67-103 | BH71: 927.7 | BJ71: No. 4 WBT (P) | BK71: FR No. 67-103 | BL71: 927.7 | BN71: HFO Purifier | BO71: Maker: MITSUBISHI KAKOKI KAISHA, LTD. Type: SJH35 2 Sets | BR71: NO. 4 WBT / TST (S) | BS71: 71-111 | BT71: 1403.17 | BV71: Fresh Water Generator | BW71: Maker: Sasakura Engineering Co. Ltd Type: KM20 | BZ71: NO. 4 TST (P) | CA71: 63 – 97 | CB71: 245.55 | CD71: NO. 3 SWBT (S) | CE71: 105-141 | CF71: 939.22 | CH71: NO. 2 TST (S) | CI71: 139 – 175 | CJ71: 345.35 | CL71: Air Compressor | CM71: Maker: Yanmar Co.Ltd. Type: C300 2 Sets | CP71: OTHER TANKS: | CT71: NO. 4 WBT (S) | CU71: 66 - 102 | CV71: 968.13 | CX71: NO.3 HOLD (WB) | CY71: 104.8 - 143 | CZ71: 15843.2
J72: AE LO Purifier | K72: Mitsubishi Kakoki Kaisha TYPE SJ 10 G | R72: No. 5 SWBT (P) | V72: No. 5 SWBT (P) | Z72: E.C.R. AIR CON | AA72: MAKER: DAIKIN MR ENGINEERING CO.,LTD. MODEL: USP3HR1 | AD72: ME LO Purifier | AE72: Maker: MITSUBISHI KAKOKI KAISHA, LTD. Type: SJH15 | AH72: TOTAL | AJ72: =SUM(AJ64:AJ71) -> 105 | AL72: No. 4 S.W.B.T. (S) | AM72: FR No. 65-101 | AN72: 793.81 | AQ72: Bottom: FR No. 71-109 | AR72: 776.8 | AT72: No. 4 SWBT (S) | AU72: FR No. 69-105 | AV72: 938.27 | AX72: E.C.R. AIR CON | AY72: DAIKIN Ind. Ltd./ US3GE | BB72: E.C.R. AIR CON | BC72: DAIKIN (JT112BK-YE) Hermetical Sealed Scroll Type | BF72: No. 4 WBT (S) | BG72: FR No. 67-103 | BH72: 927.7 | BJ72: No. 4 WBT (S) | BK72: FR No. 67-103 | BL72: 927.7 | BN72: Fresh Water Generator | BO72: Maker: Sasakura Engineering Co. Ltd Type: KE20 (18mt/day @ CSO) | BR72: NO. 5 WBT / TST (P) | BS72: 36 – 71 | BT72: 1120.1 | BV72: Air Compressor | BW72: Maker: Tanabe Puematic Machinery Type: H-73 2 Sets | BZ72: NO. 4 TST (S) | CA72: 63 – 97 | CB72: 245.55 | CD72: NO. 4 SWBT (P) | CE72: 69-105 | CF72: 938.27 | CH72: C. HOLD NO.3 | CI72: 103 – 139 | CJ72: 9053.03 | CL72: Stern Seal | CM72: Maker: Kemel Type: AX-530 | CP72: FWT (P) | CQ72: 2-10 | CR72: 144.2 | CT72: NO. 5 WBT (P) | CU72: 28 - 66 | CV72: 790.18 | CX72: TOTAL | CZ72: 34564.6
J73: HFO Purifier | K73: Mitsubishi Kakoki Kaisha TYPE SJ 20 G | N73: Machinery specifications | R73: No. 5 SWBT (S) | V73: No. 5 SWBT (S) | Z73: Service Air Compressor | AA73: N.A | AD73: AE LO Purifier | AE73: Maker: MITSUBISHI KAKOKI KAISHA, LTD. Type: SJH15 | AL73: No. 5 S.W.B.T. (P) | AM73: FR No. 39-65 | AN73: 716.58 | AR73: Total: 1357.6 | AT73: No. 5 WBT (P) | AU73: FR No. 35-69 | AV73: 835.84 | AX73: Service Air Compressor | AY73: N.A | BB73: Service Air Compressor | BC73: N.A | BF73: No. 5 WBT (P) | BG73: FR No. 35-67 | BH73: 449.4 | BJ73: No. 5 WBT (P) | BK73: FR No. 35-67 | BL73: 449.4 | BN73: Air Compressor | BO73: Maker: Yanmar Co.Ltd. Type: C300 2 Sets | BR73: NO. 5 WBT / TST (S) | BS73: 36 – 71 | BT73: 1120.1 | BV73: Stern Seal | BW73: Maker: Wartsila Type: CE-530/ DX–530 | BZ73: NO. 5 TST (P) | CA73: 165 – 194 | CB73: 101.22 | CD73: NO. 4 SWBT (S) | CE73: 69-105 | CF73: 938.27 | CH73: APT ( C ) | CI73: -5 – 12 | CJ73: 318.87 | CL73: Sewage Treatment Plant | CM73: Maker: TAIKO KIKAI INDUSTRIES CO., LTD Type: SBH-40 | CP73: DWT (S) | CQ73: 6-10 | CR73: 82.07 | CT73: NO. 5 WBT (S) | CU73: 28 - 66 | CV73: 790.18
J74: Fresh Water Generator | K74: Sasakura Engineering Type: KE-15 | N74: ME LO Purifier | O74: ELECTRIC MOTOR DRIVEN VERTICAL CENTRIFUGE TYPE, Selfjector SJ20G, Mitsubishi Kakoki Kaisha LTD. | R74: APT ( C ) | S74: FR No. A.E.-12 | T74: 1023.3 | V74: APT ( C ) | W74: FR No. A.E.-12 | X74: 1023.3 | Z74: Sea Water Cooling Pump | AA74: MAKER: SHINKO IND.LTD. MODEL: SVA200 | AD74: HFO Purifier | AE74: Maker: MITSUBISHI KAKOKI KAISHA, LTD. Type: SJH25 2 Sets | AH74: COMPARTMENT | AI74: FRAME LOCATION | AJ74: CAPACITY (M3) | AL74: No. 5 S.W.B.T. (S) | AM74: FR No. 39-65 | AN74: 716.58 | AP74: No. 4 WBT (S) | AQ74: Top: FR No. 68-106 | AR74: 580.9 | AT74: No. 5 WBT (S) | AU74: FR No. 35-69 | AV74: 835.84 | AX74: Sea Water Cooling Pump | AY74: Cooling SW Pump: Shinko Ind. Ltd./ SVA 150M Reserve & Serv Pump: Shinko Ind. Ltd./ SVA 150-2M | BB74: Sea Water Cooling Pump | BC74: SHINKO IND. LTD. MODEL: SVA 200 | BF74: No. 5 WBT (S) | BG74: FR No. 35-67 | BH74: 507.8 | BJ74: No. 5 WBT (S) | BK74: FR No. 35-67 | BL74: 507.8 | BN74: Stern Seal | BO74: Maker: Kemel Type: AX-530 | BR74: APT ( C ) | BS74: AE - 9 | BT74: 765.91 | BV74: Sewage Treatment Plant | BW74: Maker: TAIKO KIKAI INDUSTRIES CO., LTD Type: SBH-25 | BZ74: NO. 5 TST (S) | CA74: 165 – 194 | CB74: 101.22 | CD74: NO. 5 SWBT (P) | CE74: 35-69 | CF74: 835.84 | CH74: TOTAL | CJ74: =SUM(CJ57:CJ73) -> 19163.41 | CL74: Oily Water Separator | CM74: Make: Heishin Pump work co. Type: HFM-200A Bilge Alarm Type: Bilgmon 488 | CP74: DIST W.T. (S) | CQ74: 2-6 | CR74: 71.89 | CT74: APT | CU74: AE - 8 | CV74: 224.66 | CX74: Machinery specifications
J75: Air Compressor | K75: Yanmar Co.Ltd. Type: C300 | N75: AE LO Purifier | O75: N.A | R75: TOTAL | T75: =SUM(T53:T74) -> 17251.3 | V75: TOTAL | X75: =SUM(X53:X74) -> 17251.3 | Z75: ME HT Cooling FW Pump | AA75: MAKER: SHINKO IND.LTD. MODEL: SVA100 | AD75: Fresh Water Generator | AE75: Maker: Sasakura Engineering Co. Ltd Type: KM20 | AH75: C W D R AIN T K. | AI75: FR No. 24-26 | AJ75: 6.8 | AL75: No. 1 W.B.T. (P) | AM75: FR No. 173-203 | AN75: 398.71 | AQ75: Bottom: FR No. 71-109 | AR75: 776.8 | AT75: APT (C) | AU75: FR No. A.E.-10 | AV75: 303.17 | AX75: ME HT Cooling FW Pump | AY75: Shinko Ind. Ltd./ SVA100M | BB75: ME HT Cooling FW Pump | BC75: SHINKO IND. LTD. MODEL: SVA 100 | BF75: FPT | BG75: FR No. 208-229 | BH75: 970.7 | BJ75: FPT | BK75: FR No. 208-229 | BL75: 970.7 | BN75: Sewage Treatment Plant | BO75: Maker: TAIKO KIKAI INDUSTRIES CO., LTD Type: SBH-40 | BR75: TOTAL | BT75: =SUM(BT63:BT74) -> 18321.67 | BV75: Oily Water Separator | BW75: Make: TAIKO KIKAI INDUSTRIES CO. LTD Type: USH-20 Bilge Alarm Type: FOCAS-2000 | BZ75: AFT PEAK TANK ( C ) | CA75: AE – 10 | CB75: 136.59 | CD75: NO. 5 SWBT (S) | CE75: 35-69 | CF75: 835.84 | CL75: Steering Gear | CM75: Maker: KAWASAKI HEAVY Industry Ltd. TYPE: RV21-070-H | CP75: TOTAL | CR75: =SUM(CR72:CR74) -> 298.16 | CT75: TOTAL | CV75: =SUM(CV63:CV74) -> 11535.69 | CX75: ME LO Purifier | CY75: MAKE/MODEL: 1 x set MITSUBISHI SJ15H CAPACITY: 1600 l/hr (at 100cst/40degC) Motor: 3.7kw x 1800rpm
J76: Stern Seal | K76: KEMEL DX-480 | N76: HFO Purifier | O76: ELECTRIC MOTOR DRIVEN VIRTICAL CENTRIFUGE TYPE, Mitsubishi Kakoki Kaisha LTD. / Selfjector SJ20G, | Z76: ME LO Pump | AA76: MAKER: SHINKO IND.LTD. MODEL: SAD150-2 | AD76: Air Compressor | AE76: Maker: Tanabe Puematic Machinery Type: H-73 2 Sets | AH76: BIL G E SL U D G E T K | AI76: FR No. 18-24 | AJ76: 10.4 | AL76: No. 1 W.B.T. (S) | AM76: FR No. 173-203 | AN76: 398.71 | AR76: Total: 1357.6 | AT76: TOTAL | AV76: =SUM(AV55:AV75) -> 14378.17 | AX76: ME LO Pump | AY76: Shinko Ind. Ltd./ SAD150-2 | BB76: ME LO Pump | BC76: SHINKO IND. LTD. MODEL: SAD150-2 | BF76: APT | BG76: FR No. 5-12 | BH76: 325.4 | BJ76: APT | BK76: FR No. – 5 to 12 | BL76: 325.4 | BN76: Oily Water Separator | BO76: Make: Heishin Pump work co. Type: HFM-200 | BV76: Steering Gear | BW76: Maker: Mitsubishi Heavy Industries TYPE: SFC-80 | BZ76: NO.3 HOLD (W.B.) | CA76: 97 – 131 | CB76: 8204.38 | CD76: APT | CE76: AE-10 | CF76: 303.17 | CH76: Machinery specifications | CL76: Ballast Water Treatment Plant | CM76: Make: PANASIA CO. LTD Model/Type: GLOEN-P800 / PF500 + PU500 & PU250 / Non Ex-Proof Serial No: 2015-OP-127 date 2015-07 | CX76: AE LO Purifier | CY76: MAKE/MODEL: 1 x set MITSUBISHI SJ15H CAPACITY: 1300 l/hr (at 100cst/40degC) Motor: 3.7kw x 1800rpm
J77: Sewage Treatment Plant | K77: Taiko Kikai Type: SBH25 | N77: Fresh Water Generator | O77: Maker: Miura Co., Ltd. Type: WM-10DK | R77: Machinery specifications | V77: Machinery specifications | Z77: FO Supply Pump | AA77: MAKER: TAIKO KIKAI INDUSTRIES CO.,LTD. MODEL: NHG-2, 5MA | AD77: Stern Seal | AE77: Maker: Wartsila Type: CE-530/ DX–530 | AH77: ST UFF B O X D RAIN T K | AI77: FR No. 24-25 | AJ77: 3.2 | AL77: No. 2 W.B.T. (P) | AM77: FR No. 137-173 | AN77: 654.03 | AP77: No. 5 WBT (P) | AQ77: Top: FR No. 32-68 | AR77: 550.1 | AX77: FO Supply Pump | AY77: ME Supply 1 & 2: Taiko Kikai Ind. Co. Ltd./ No.1 Pump (MSH-2A) No.2 Pump (NHG-2MA) AE Supply 1& 2: Taiko Kikai Ind. Co. Ltd./ No.1 Pump (MSA-1A) No.2 Pump (NHG-0.5MA) | BB77: FO Supply Pump | BC77: TAIKO KIKAI INDUSTRIES CO. LTD., MODEL: NHG-2.5MA | BF77: TOTAL | BH77: =SUM(BH61:BH76) -> 10317.1 | BJ77: TOTAL | BL77: =SUM(BL61:BL76) -> 10317.1 | BN77: Steering Gear | BO77: Maker: KAWASAKI HEAVY Industry Ltd. TYPE: RV21-070 | BR77: Machinery specifications | BV77: Ballast Water Treatment Plant | BW77: Make: TECHCROSS Model/Type:ECS-1600 Serial Numbers: PDE1506-0601 / ANU1506-0601 / TSU1506-0601 / HCM1506-0601 / HCM1506-0602 | BZ77: TOTAL | CB77: =SUM(CB54:CB76) -> 16049.85 | CD77: TOTAL | CF77: =SUM(CF55:CF76) -> 14966.13 | CH77: ME LO Purifier | CI77: GEA Westfalia D 10 / type: OSE 5-91-037/5 | CL77: Propeller | CM77: Maker: NAKASHIMA PROPELLER CO., LTD. Type: KEYLESS WITH TURBO-RING | CP77: Machinery specifications | CT77: Machinery specifications | CX77: HFO Purifier | CY77: MAKE/MODEL: 2 x set MITSUBISHI SJ25H CAPACITY: 1800 l/hr (at 100cst/40degC) Motor: 5.5kw x 1800rpm
J78: Oily Water Separator | K78: Taiko Kikai Industries Type : USH-20 BILGE ALARM: FOCAS1800 | N78: Air Compressor | O78: VERTICAL 2-STAGE, WATER COOLED TYPE, H-63, TANABE PNEUMATIC MACHINERY CO., LTD. | R78: ME LO Purifier | S78: Maker: MITSUBISHI KAKOKI KAISHA, LTD. Type: SJH15 | V78: ME LO Purifier | W78: Maker: MITSUBISHI KAKOKI KAISHA, LTD. Type: SJH15 | Z78: FO Circulating Pump | AA78: MAKER: TAIKO KIKAI INDUSTRIES CO.,LTD. MODEL: HHC-4MA | AD78: Sewage Treatment Plant | AE78: Maker: TAIKO KIKAI INDUSTRIES CO., LTD Type: SBH-25 | AH78: BIL G E T K | AI78: FR No. 12-18 | AJ78: 20.2 | AL78: No. 2 W.B.T. (S) | AM78: FR No. 137-173 | AN78: 654.03 | AQ78: Bottom: FR No. 31-71 | AR78: 993.9 | AT78: Machinery specifications | AX78: FO Circulating Pump | AY78: ME Circ 1 & 2: Taiko Kikai Ind. Co. Ltd./ No.1 Pump (MSHS-4A) No.2 Pump (HHC-3MA) AE Circ 1& 2: Taiko Kikai Ind. Co. Ltd./ No.1 Pump (MSHS-2A) No.2 Pump (HHC-1,5MA) | BB78: FO Circulating Pump | BC78: TAIKO KIKAI INDUSTRIES CO. LTD., MODEL: HHC-4MA | BN78: Ballast Water Treatment Plant | BO78: Make: PANASIA CO. LTD Type: GLOEN-P800 / PF500 + PU500 & PU250 / Non Ex-Proo Serial No: 2010-CP-19 | BR78: ME LO Purifier | BS78: MITSUBISHI SELFJECTOR MODEL: SJ25H MAKER:MITSUBISHI KAKOKI KAISHA, LTD. | BV78: Propeller | BW78: NAKASHIMA PROPELLER CO., LTD/ TYPE 4 BLADES SOLID KEYLESS | CH78: AE LO Purifier | CI78: GEA Westfalia D 10 / type: OSE 5-91-037/5 | CL78: Incinerator | CM78: Maker: Sunflame Co Ltd Type: OSV-600 SDAI | CP78: ME LO Purifier | CQ78: Mitsubishi Kakouki Kaisha / Type: Mitsubishi Selfjector / Model: SJ25H | CT78: ME LO Purifier | CU78: MITSUBISHI SELFJECTOR MODEL: SJ25H MAKER:MITSUBISHI KAKOKI KAISHA, LTD. | CX78: Fresh Water Generator | CY78: MAKE/MODEL: SASAKURA XM20 (SHELL & TUBE TYPE) CAPACITY: 20T/DAY
J79: Steering Gear | K79: Kawasaki Type: RV21-070S | N79: Stern Seal | O79: WARTSILA 4-BL | R79: AE LO Purifier | S79: Maker: MITSUBISHI KAKOKI KAISHA, LTD. Type: SJH25 | V79: AE LO Purifier | W79: Maker: MITSUBISHI KAKOKI KAISHA, LTD. Type: SJH25 | Z79: HFO Transfer Pump | AA79: MAKER: TAIKO KIKAI INDUSTRIES CO.,LTD. MODEL: NHG-15 | AD79: Oily Water Separator | AE79: Make: TAIKO KIKAI INDUSTRIES CO. LTD Type: USH-20 Bilge Alarm Type: FOCAS-2000 | AH79: SL U D G E T K | AI79: FR No. 31-35 | AJ79: 21.6 | AL79: No. 3 W.B.T. (P) | AM79: FR No. 101-137 | AN79: 654.94 | AR79: Total: 1544.1 | AT79: ME LO Purifier | AU79: Mitsubishi Kakouki Kaisha Type: SJ25H | AX79: HFO Transfer Pump | AY79: Taiko Kikai Ind./ NHG-15 | BB79: HFO Transfer Pump | BC79: TAIKO KIKAI INDUSTRIES CO. LTD., MODEL: NHG-15 | BF79: Machinery specifications | BJ79: Machinery specifications | BN79: Propeller | BO79: Maker: Nakashima Propeller Type: 4 BLADES SOLID KEYLESS | BR79: AE LO Purifier | BS79: MITSUBISHI SELFJECTOR MODEL: SJ15H MAKER:MITSUBISHI KAKOKI KAISHA, LTD. | BV79: Incinerator | BW79: Maker: Sunflame Co Ltd Type: OSV-360 SAI | BZ79: Machinery specifications | CD79: Machinery specifications | CH79: HFO Purifier | CI79: GEA Westfalia type: OSE 10-0136 | CL79: Valve Remote Control System | CM79: Maker: NAKAKITA SEISAKUSMO CO., LTD Type: ACBT-3290 SERIES | CP79: AE LO Purifier | CQ79: Mitsubishi Kakouki Kaisha / Type: Mitsubishi Selfjector / Model: SJ15H | CT79: AE LO Purifier | CU79: MITSUBISHI SELFJECTOR MODEL: SJ15H MAKER:MITSUBISHI KAKOKI KAISHA, LTD. | CX79: Air Compressor | CY79: MAKE: JP SAUER MODEL: WP101L x 2 set TYPE: AIR COOLED, RECIPRO ELECT, HOR CAPACITY: 120m³/h x 2.8MPa , MOTOR CAPACITY: 24.4kw x 1780rpm
J80: Ballast Water Treatment Plant | K80: TECHCROSS ECS-1000B Serial No: CPC1311-0101 | N80: Sewage Treatment Plant | O80: Maker: Taiko Kikai Industries Co., Ltd. Type: SBH-25 | R80: HFO Purifier | S80: Maker: MITSUBISHI KAKOKI KAISHA, LTD. Type: SJH35 2 Sets | V80: HFO Purifier | W80: Maker: MITSUBISHI KAKOKI KAISHA, LTD. Type: SJH35 2 Sets | Z80: Fire / GS Pump | AA80: MAKER: SHINKO IND.LTD. MODEL: RVP250S | AD80: Steering Gear | AE80: Maker: Mitsubishi Heavy Industries TYPE: SFC-80 | AH80: SE W A G E T K | AI80: FR No. 8-13 | AJ80: 15.3 | AL80: No. 3 W.B.T. (S) | AM80: FR No. 101-137 | AN80: 654.94 | AP80: No. 5 WBT (S) | AQ80: Top: FR No. 32-68 | AR80: 550.1 | AT80: AE LO Purifier | AU80: Mitsubishi Kakouki Kaisha Type: SJ15H | AX80: Fire / GS Pump | AY80: Shinko Ind. Ltd./ RVP250MS | BB80: Fire / GS Pump | BC80: SHINKO IND. LTD. MODEL: RVP250S | BF80: ME LO Purifier | BG80: GEA Westfalia D 10 / type: OSE 5-91-037/5 | BJ80: ME LO Purifier | BK80: GEA Westfalia OSD6-91-067 | BN80: Incinerator | BO80: Maker: Sunflame Co Ltd Type: OSV-600 SDAI | BR80: HFO Purifier | BS80: MITSUBISHI SELFJECTOR MODEL: SJ25H MAKER:MITSUBISHI KAKOKI KAISHA, LTD. | BV80: Valve Remote Control System | BW80: NAKAKITA SEISAKUSHO CO., LTD. SN:15A90O5 | BZ80: ME LO Purifier | CA80: ELECTRIC MOTOR DRIVEN VERTICAL CENTRIFUGE TYPE, Selfjector SJ20G, Mitsubishi Kakoki Kaisha LTD. | CD80: ME LO Purifier | CE80: Mitsubishi Kakouki Kaisha Type: SJ25H | CH80: Fresh Water Generator | CI80: Sondex A/S Type: SFD 13/20 | CL80: Main Engine Turbocharger | CM80: Maker: MITSUI ENGINEERING & SHIPBUILDING CO., LTD. Type: NOO COOLING Model: TCA-55 21205 | CP80: HFO Purifier | CQ80: Mitsubishi Kakouki Kaisha / Type: Mitsubishi Selfjector / Model: SJ25H | CT80: HFO Purifier | CU80: MITSUBISHI SELFJECTOR MODEL: SJ25H MAKER:MITSUBISHI KAKOKI KAISHA, LTD. | CX80: Stern Seal | CY80: KEMEL DX-530
J81: Propeller | K81: Nakashima Propeller Co. Ltd. 4 BLADES Solid Keyless | N81: Oily Water Separator | O81: 15ppm BILGE SEPARATOR TYPE: USH-20, TAIKO KIKAI INDUSTRIES CO., LTD. Bilge Alarm: FOCAS1800 | R81: Fresh Water Generator | S81: Maker: Sasakura Engineering Type: XE20 | V81: Fresh Water Generator | W81: Maker: Sasakura Engineering Type: XE20 | Z81: Emergency Fire Pump | AA81: MAKER; SHINKO IND,.LTD. MODEL: SVB100S | AD81: Ballast Water Treatment Plant | AE81: Make: TECHCROSS Model/Type:ECS-1600 Serial Numbers: PDE1506-0601 / ANU1506-0601 / TSU1506-0601 / HCM1506-0601 / HCM1506-0602 | AH81: ST E R N T U B E L O T K | AI81: FR No. 14-15 | AJ81: 1.7 | AL81: No. 4 W.B.T. (P) | AM81: FR No. 65-101 | AN81: 235.68 | AQ81: Bottom: FR No. 31-71 | AR81: 993.9 | AT81: HFO Purifier | AU81: Mitsubishi Kakouki Kaisha Type: SJ25H | AX81: Emergency Fire Pump | AY81: Shinko Ind. Ltd./ SVB100S | BB81: Emergency Fire Pump | BC81: SHINKO IND. LTD. MODEL: SVB100S | BF81: AE LO Purifier | BG81: GEA Westfalia D 10 / type: OSE 5-91-037/5 | BJ81: AE LO Purifier | BK81: GEA Westfalia OSD6-91-067 | BN81: Valve Remote Control System | BO81: Maker: Nakakita Seisakusho Co., Ltd. Type: 15A2026 14JY015 | BR81: Fresh Water Generator | BS81: MODEL: XE20 MAKER: SASAKURA ENGINEERING CO., LTD. | BV81: Main Engine Turbocharger | BW81: KAWASAKI-MAN TCA TURBO CHARGER TYPE: TCA55-21188 | BZ81: AE LO Purifier | CA81: N.A | CD81: AE LO Purifier | CE81: Mitsubishi Kakouki Kaisha Type: SJ15H | CH81: Air Compressor | CI81: JP. Sauer & Sohn WP200 | CL81: Aux Engine Alternators | CM81: Maker:TAIYO ELECTRIC CO.,LTD Type: BRUSHLESS Model: FE547A-8 | CP81: Fresh Water Generator | CQ81: Sasakura Engineering / Type : Tubular Type / Model: KE15 | CT81: Fresh Water Generator | CU81: SASAKURA ENGINEERING KE-15 | CX81: Sewage Treatment Plant | CY81: MAKE: TAIKO KIKAI INDUSTRIES CO LTD TYPE: SBH-40 TREATMENT CAPABILITY: 60L/person*day (Max 40 persons*day)
J82: Incinerator | K82: Sunflame Co Ltd Type: OSV-360SAI | N82: Steering Gear | O82: Maker: Mitsubishi Heavy Industries Electro Hydraulic Steering Gear Type: T6C-005X2 | R82: Air Compressor | S82: Maker: Yanmar Co.Ltd. Type: C300 | V82: Air Compressor | W82: Maker: Yanmar Co.Ltd. Type: C300 | Z82: DO Transfer Pump | AA82: MAKER: TAIKO KIKAI INDUSTRIES CO.,LTD. MODEL: MSH-4A | AD82: Propeller | AE82: NAKASHIMA PROPELLER CO., LTD/ TYPE 4 BLADES SOLID KEYLESS | AH82: W ASHIN G W A T E R T K | AI82: FR No. 19-29 | AJ82: 57.3 | AL82: No. 4 W.B.T. (S) | AM82: FR No. 65-101 | AN82: 235.68 | AR82: Total: 1544.1 | AT82: Fresh Water Generator | AU82: Sasakura Engineering / Type: KE 15 | AX82: DO Transfer Pump | AY82: Taiko Kikai Ind./ NHG-4 | BB82: DO Transfer Pump | BC82: TAIKO KIKAI INDUSTRIES CO. LTD., MODEL: MSH-4A | BF82: HFO Purifier | BG82: GEA Westfalia type: OSE 10-0136- 067/8 | BJ82: HFO Purifier | BK82: GEA Westfalia OSD18-0136-067 | BN82: Main Engine Turbocharger | BO82: Maker: Mitsui Engineering & Shipping Co., Ltd. Model: TCA55-21205 | BR82: Air Compressor | BS82: TYPE: VERTICAL 2-STAGE WATER COOLED MODEL: H-74 MAKER: TANABE PNEUMATIC MACHINERY CO., LTD | BV82: Aux Engine Alternators | BW82: YANMAR MODEL:NZ 61 | BZ82: HFO Purifier | CA82: ELECTRIC MOTOR DRIVEN VIRTICAL CENTRIFUGE TYPE, Mitsubishi Kakoki Kaisha LTD. / Selfjector SJ20G, | CD82: HFO Purifier | CE82: Mitsubishi Kakouki Kaisha Type: SJ25H | CH82: Stern Seal | CI82: Blom & Voss Type: SC2M+SC2Z | CL82: Refrigeration Compressor | CM82: Maker: BITZER KUHLMASCHINENBAU GMBH Type: 2DES-2Y-40S | CP82: Air Compressor | CQ82: Yanmar Co.Ltd. / Model : C300 | CT82: Air Compressor | CU82: YANMAR CO., LTD. C-185 | CX82: Oily Water Separator | CY82: MAKE/MODEL: HEISHIN HFM-200 CAPACITY: 2m³/h OCM: BILGMON 488
J83: Valve Remote Control System | K83: AMCO ENGINEERING CORP. 705G-01 BRC250 | N83: Ballast Water Treatment Plant | O83: N.A | R83: Stern Seal | S83: Maker: Kemel Co Ltd (AEGIR) Type: DX-560 | V83: Stern Seal | W83: Maker: Kemel Co Ltd Type: DX-560 | Z83: FO Purifier Feed Pump | AA83: ATTACHED PUMP | AD83: Incinerator | AE83: Maker: Sunflame Co Ltd Type: OSV-360 SAI | AH83: C. W. T. | AI83: FR No. 7-12 | AJ83: 16.5 | AL83: No. 5 W.B.T. (P) | AM83: FR No. 29-65 | AN83: 146.8 | AP83: APT | AQ83: FR No. A.E.-10 | AR83: 896.2 | AT83: Air Compressor | AU83: Yanmar Co.Ltd. / Type: C300 | AX83: FO Purifier Feed Pump | AY83: ATTACHED PUMP | BB83: FO Purifier Feed Pump | BC83: ATTACHED PUMP | BF83: Fresh Water Generator | BG83: Sondex A/S Type: SFD 13/20 | BJ83: Fresh Water Generator | BK83: GEA Westfalia Model: SWD20-85 | BN83: Aux Engine Alternators | BO83: Maker: Taiyo Electric Co., Ltd. Model: FE5474-8 | BR83: Stern Seal | BS83: TYPE: AFT: AX-560, FWD: AX-560 MAKER: EAGLE INDUSTRY CO., LTD(KEMEL) | BV83: Refrigeration Compressor | BW83: TAIYO ELECTRIC CO LTD. FEK 547A-8 | BZ83: Fresh Water Generator | CA83: Maker: Miura Co., Ltd. Type: WM-10DK | CD83: Fresh Water Generator | CE83: Sasakura Engineering / Type: KE 15 | CH83: Sewage Treatment Plant | CI83: WUXI NAUTICAL ELECTRIC APPLIANCE FACTORY TYPE: WCMBR-30 | CL83: A.C Compressor | CM83: Maker: USHIO REINETSU CO., LTD Type: SEMI-HERMETIC Model: 6JE-33Y-40F | CP83: Stern Seal | CQ83: KEMEL DX-480 | CT83: Stern Seal | CU83: Kemel DX-500 | CX83: Steering Gear | CY83: MAKE: MITSUBISHI HEAVY INDUSTRIES TYPE: ELECTRO-HYDRAULIC, 1-RAM 2 CYLINDER, SFC-80 TORQUE: 844kN-m AT MAX WORKING PRESS MAX WORKING PRESSURE: 21.6MPa HYDRAULIC PUMP: 2 sets x VANE PUMPT YPE:T6C-017 , SAFETY VALVE SET PRESS 27.0MPa , ELEC MOTOR 25kW x 4P(1800rpm) x 2sets
J84: Main Engine Turbocharger | K84: MITSUBISHI MET-53 MA | N84: Propeller | O84: Maker: NAKASHIMA PROPELLER CO., LTD. Type: 4 BLADE SOLID KEYLESS | R84: Sewage Treatment Plant | S84: Maker:Taiko Kikai Type:SBH-40 | V84: Sewage Treatment Plant | W84: Maker:Taiko Kikai Type:SBH-40 | Z84: ME LO Purifier Feed Pump | AA84: MAKER: TAIKO KIKAI INDUSTRIES CO.,LTD. MODEL: NSG-2, 5MT | AD84: Valve Remote Control System | AE84: NAKAKITA SEISAKUSHO CO., LTD. SN:15A90O5 | AH84: TOTAL | AJ84: =SUM(AJ75:AJ83) -> 136.5 | AL84: No. 5 W.B.T. (S) | AM84: FR No. 29-65 | AN84: 146.8 | AP84: TOTAL | AR84: 16928.40 M3 | AT84: Stern Seal | AU84: Kemel DX-480 | AX84: ME LO Purifier Feed Pump | AY84: ATTACHED PUMP | BB84: ME LO Purifier Feed Pump | BC84: TAIKO KIKAI INDUSTRIES CO. LTD., MODEL: NHG-2.5 MT | BF84: Air Compressor | BG84: JP. Sauer & Sohn WP200 | BJ84: Air Compressor | BK84: JP. Sauer & Sohn WP200 | BN84: Refrigeration Compressor | BO84: Maker: Bitzer Kohlmaschinebau GMBH Model: 2DES-2Y-40S | BR84: Sewage Treatment Plant | BS84: TYPE: SBH-25 MAKER: TAIKO KIKAI INDUSTRIES CO., LTD | BV84: A.C Compressor | BW84: DAIKIN MR ENGINEERING CO., LTD. MODEL: LSVLP1A | BZ84: Air Compressor | CA84: VERTICAL 2-STAGE, WATER COOLED TYPE, H-63, TANABE PNEUMATIC MACHINERY CO., LTD. | CD84: Air Compressor | CE84: Yanmar Co.Ltd. / Type: C300 | CH84: Oily Water Separator | CI84: Taiko Kikai Industries Type : USH-50 | CL84: E.C.R. AIR CON | CM84: Maker: USHIO REINETSU CO., LTD. Type: PACKAGE (R-404a) Model: UAP-2HS4PL4-1 | CP84: Sewage Treatment Plant | CQ84: Taiko Kikai / Type : SBH-25 | CT84: Sewage Treatment Plant | CU84: TAIKO KIKA INDUSTRIES CO., LTD SBH-25 | CX84: Ballast Water Treatment Plant | CY84: MAKE: ALFA LAVAL (INSTALLED 23 MAY 2019) TYPE: PUREBALLAST 3.1 1500m³/h BWMS: FLOW-THROUGH METHOD/BWTS , IN ACCORDANCE WITH D-1 & D-2(FILTER & UV)
J85: Aux Engine Alternators | K85: NISHISHIBA Elect. Co.Ltd. AC 3ǿ, 60Hz, Cont. Rating | N85: Incinerator | O85: Maker: Miura Co., Ltd. Type: BGW-20N | R85: Oily Water Separator | S85: Maker: Heishin Pump Type:HFM-200A | V85: Oily Water Separator | W85: Maker: Heishin Pump Type:HFM-200A | Z85: AE LO Purifier Feed Pump | AA85: MAKER: TAIKO KIKAI INDUSTRIES CO.,LTD. MODEL: NSG-1, 5MT | AD85: Main Engine Turbocharger | AE85: KAWASAKI-MAN TCA TURBO CHARGER TYPE: TCA55-21188 | AL85: A.P.T. (C) | AM85: A.E. - 8 | AN85: 368.22 | AT85: Sewage Treatment Plant | AU85: Taiko Kikai / Type: SBH-25 | AX85: AE LO Purifier Feed Pump | AY85: ATTACHED PUMP | BB85: AE LO Purifier Feed Pump | BC85: TAIKO KIKAI INDUSTRIES CO. LTD., MODEL: NHG-1.5 MT | BF85: Stern Seal | BG85: Blom & Voss Type: SC2M+SC2Z | BJ85: Stern Seal | BK85: Blom & Voss Type: SC2M+SC2Z | BN85: A.C Compressor | BO85: Maker: Bitzer Kohlmaschinebau GMBH Model: 6JE-33Y-40P | BR85: Oily Water Separator | BS85: MODEL: HFM-200 MAKER: HEISHIN PUMP WORKS CO., LTD. BILGE ALARM: BILGMON 488 | BV85: E.C.R. AIR CON | BW85: DAIKIN INSDUSTRIES LTD., JAPAN MODEL: USP3HR1 | BZ85: Stern Seal | CA85: WARTSILA STERNGUARD MK-11 (FWD) , ST-BY SEAL (AFT) 4-BL | CD85: Stern Seal | CE85: Kemel DX-480 | CH85: Steering Gear | CI85: HATLAPA UETERSEN Type: Posseidon 520-35° | CL85: Service Air Compressor | CM85: Maker: TECHNO-TRADE, LTD. Type: OIL-INJECTED ROTARY SCREW, 1-STAGE AIR COOLED Model: MASGA22+PA-100 | CP85: Oily Water Separator | CQ85: Taiko Kikai Industries / Type: USH-20 Bilge Alarm: FOCAS2000 | CT85: Oily Water Separator | CU85: HEISHIN PUMP WORKS HFM-200 , Bilgmon488 | CX85: Propeller | CY85: REMARKS : PROPELLER TYPE : SOLID, KEYLESS, WET TYPE MAKER : NAKASHIMA PROPELLER MATERIAL : Ni-Al-BC (KAlBC3) DESIGNED PITCH (0.7R) : 4920.3 mm NO. OF BLADE : 5 DIA : 6.3 m WEIGHT : 15380 kg REMARKS : With MIPB-WIN
J86: Refrigeration Compressor | K86: DAIKIN MR ENGINEERING CO., LTD. RHSN4BC | N86: Valve Remote Control System | O86: Maker: Niikura Kogyo Co., Ltd. Type: ESA ( G ) | R86: Steering Gear | S86: Maker: Mitsubishi Heavy Industries Ltd. Type: SFC-80 | V86: Steering Gear | W86: Maker: Mitsubishi Heavy Industries Ltd. Type: SFC-80 | Z86: LO Transfer Pump | AA86: MAKER: TAIKO KIKAI INDUSTRIES CO.,LTD. MODEL: NSG-4 | AD86: Aux Engine Alternators | AE86: YANMAR MODEL:NZ 61 | AH86: COMPARTMENT - BALLAST TANKS | AI86: FRAME LOCATION | AJ86: CAPACITY (M3) | AL86: TOTAL | AN86: =SUM(AN64:AN85) -> 13341.64 | AP86: Machinery specifications | AT86: Oily Water Separator | AU86: Taiko Kikai Industries / Type: USH-20 Bilge Alarm: FOCAS2000 | AX86: LO Transfer Pump | AY86: Taiko Kikai Ind./ NHG-4 | BB86: LO Transfer Pump | BC86: TAIKO KIKAI INDUSTRIES CO. LTD., MODEL: NHG-4 | BF86: Sewage Treatment Plant | BG86: Maker: Jiangsu Nanji Machinery Co. Ltd TYPE: WCMBR-30U S/N: M11223 | BJ86: Sewage Treatment Plant | BK86: WCMBR-30 Marine Membrane Sewage | BN86: E.C.R. AIR CON | BO86: Maker: Ushio Reinetsu Co., Ltd. Model: UAP-2HS4PL4-1 | BR86: Steering Gear | BS86: TYPE: RV21-070 MAKER: KAWASAKI HEAVY INDUSTRIES, LTD. | BV86: Service Air Compressor | BW86: TANABE PNEUMATIC MACHINERY CO. LTD H-73 | BZ86: Sewage Treatment Plant | CA86: Maker: Taiko Kikai Industries Co., Ltd. Type: SBH-25 | CD86: Sewage Treatment Plant | CE86: Taiko Kikai / Type: SBH-25 | CH86: Ballast Water Treatment Plant | CI86: N.A | CL86: Sea Water Cooling Pump | CM86: Maker: HEISHIN PUMP WORKS CO., LTD. Type: VERTICAL CENT. WITH AIR EJECTOR Model: RVD-450EN | CP86: Steering Gear | CQ86: Kawasaki Heavy Industries Ltd/ Type: RV21-070 | CT86: Steering Gear | CU86: Kawasaki Heavy Industries, RV21-045-H | CX86: Incinerator | CY86: MAKE/MODEL: SUNFLAME OSV-600-SAI CAPACITY: 600KW SOLID WASTE: 50kg/h , WASTE OIL 64kg/h
J87: A.C Compressor | K87: DAIKIN MR ENGINEERING CO., LTD. Hermetic Scroll Type JT300DGFYE x 4 | N87: Main Engine Turbocharger | O87: MITSUBISHI HEAVY INDUSTRY MODEL: MET53SD | R87: Ballast Water Treatment Plant | S87: Make: PANASIA CO. LTD Type: GLOEN-P900 / PF900 + PU500 / Non Ex-Proof | V87: Ballast Water Treatment Plant | W87: Make: PANASIA CO. LTD Type: GLOEN-P900 / PF900 + PU500 / Non Ex-Proof | Z87: Cyl. LO Transfer Pump | AA87: N.A | AD87: Refrigeration Compressor | AE87: TAIYO ELECTRIC CO LTD. FEK 547A-8 | AH87: FORE PEAK | AI87: 208-227 | AJ87: 951.28 | AP87: ME LO Purifier | AQ87: Make: Mitsubishi Kakouki Kaisha Model: SJ15H | AT87: Steering Gear | AU87: Kawasaki / Type: RV21-070 | AX87: Cyl. LO Transfer Pump | AY87: N.A | BB87: Cyl. LO Transfer Pump | BC87: N.A | BF87: Oily Water Separator | BG87: Taiko Kikai Industries Type : USH-50 | BJ87: Oily Water Separator | BK87: Taiko Kikai Industries Type:USH-50 | BN87: Service Air Compressor | BO87: Maker: Yanmar Co., Ltd. Model: C-300 | BR87: Ballast Water Treatment Plant | BS87: Make: Alfa Laval Model/Type: PUREBALLAST 3.1 Serial No:PB-01927 | BV87: Sea Water Cooling Pump | BW87: NANIWA PUMP MFG.CO.,LTD. MODEL: FEV-200D | BZ87: Oily Water Separator | CA87: 15ppm BILGE SEPARATOR TYPE: USH-20, TAIKO KIKAI INDUSTRIES CO., LTD. Bilge Alarm: FOCAS1800 | CD87: Oily Water Separator | CE87: Taiko Kikai Industries / Type: USH-20 Bilge Alarm: FOCAS2000 | CH87: Propeller | CI87: DALIAN MARINE PROPELLER CO., LTD SOLID PROPELLER 12128 | CL87: ME HT Cooling FW Pump | CM87: Maker: HEISHIN PUMP WORKS CO., LTD. Type: VERTICAL CENTRIFUGAL Model: RVA-140JN | CP87: Ballast Water Treatment Plant | CQ87: TECHCROSS ECS-1000B Serial No: CPC1311-0031 | CT87: Ballast Water Treatment Plant | CU87: PANASIA CO, GLOEN-P750/PF750 + PU500 & PU250 NON EX PROOF | CX87: Valve Remote Control System | CY87: UTSUKI KEIKI CO.,LTD NO.1 VALVE CONTROL: PVC-21A NO.2 VALVE CONTROL: PVC-20A NO.3 VALVE CONTROL: PVC-40A NO.4 VALVE CONTROL: PVC-20A
J88: E.C.R. AIR CON | K88: DAIKIN MR ENGINEERING CO., LTD. Hermetically Sealed scroll type JT112BK-YE | N88: Aux Engine Alternators | O88: Maker: Nishishiba Electric Co., Ltd Brushless Excitation Systemm Type: NTAKL | R88: Propeller | S88: Maker: NAKASHIMA PROPELLER CO., LTD. Type: 4BLADES SOLID TYPE, KEYLESS 25 DEGREES SKEW | V88: Propeller | W88: Maker: NAKASHIMA PROPELLER CO., LTD. Type: 4BLADES SOLID TYPE, KEYLESS 25 DEGREES SKEW | Z88: Composite Boiler Feed Pump | AA88: MAKER; SHINKO IND,.LTD. MODEL: SVQ50LM | AD88: A.C Compressor | AE88: DAIKIN MR ENGINEERING CO., LTD. MODEL: LSVLP1A | AH88: NO. 1 TST (P) | AI88: 175-208 | AJ88: 310.94 | AL88: COMPARTMENT - FRESH WATER TANKS | AM88: FRAME LOCATION | AN88: CAPACITY (M3) | AP88: AE LO Purifier | AQ88: Make: Mitsubishi Kakouki Kaisha Model: SJ15H | AT88: Ballast Water Treatment Plant | AU88: Techcross Type: ECS-1000B Serial No: 1505-0101 | AX88: Composite Boiler Feed Pump | AY88: Shinko Ind. Ltd./ SVQ50L | BB88: Composite Boiler Feed Pump | BC88: SHINKO IND. LTD. MODEL: SVQ50LM & SVQ50M | BF88: Steering Gear | BG88: HATLAPA UETERSEN Type: Posseidon 520-35° | BJ88: Steering Gear | BK88: Hatlapa Type: R4 LG-380 | BN88: Sea Water Cooling Pump | BO88: Manufacturer: Shin Kurishima Dockyard Co., Ltd. Material:KSFA75 Type:14-32G57-O | BR88: Propeller | BS88: Maker: NAKASHIMA PROPELLER CO., LTD. Type: KEYLESS WUTH TURBO-RING | BV88: ME HT Cooling FW Pump | BW88: NANIWA PUMP MFG.CO.,LTD. MODEL: FEV-125-2D | BZ88: Steering Gear | CA88: Maker: Mitsubishi Heavy Industries Electro Hydraulic Steering Gear Type: SFC-50 | CD88: Steering Gear | CE88: Kawasaki / Type: RV21-070 | CH88: Incinerator | CI88: Teamtec Type: 0G200C | CL88: ME LO Pump | CM88: Maker: HEISHIN PUMP WORKS CO., LTD. Type: VERTICAL CENTRIFUGAL (DEEP WELL) Model: SMK-250HA | CP88: Propeller | CQ88: NAKASHIMA PROPELLER CO., LTD/ 4 BLADES SOLID TYPE 25°SKEW | CT88: Propeller | CU88: Nakashima Propeller Co. Ltd. 4 Blades Solid Keyless. | CX88: Main Engine Turbocharger | CY88: MAKE: MITSUI MODEL : TCA55 x 1set
J89: Service Air Compressor | K89: YANMAR CO., LTD C300 | N89: Refrigeration Compressor | O89: Maker: Ushio Reinetsu Co., Ltd. / Model: HGX22P/160-4S / 2 sets | R89: Incinerator | S89: Make: Sunflame Co Ltd Type:OSV-360SAJ | V89: Incinerator | W89: Make: Sunflame Co Ltd Type:OSV-360SAJ | Z89: FW Hydrophore Pump | AA89: MAKER: SHINKO IND.LTD. MODEL: VJ40-2 | AD89: E.C.R. AIR CON | AE89: DAIKIN INSDUSTRIES LTD., JAPAN MODEL: USP3HR1 | AH89: NO. 1 TST (S) | AI89: 175-208 | AJ89: 310.94 | AL89: F.W.T. (P) | AM89: FR No. 7-15. | AN89: 157.78 | AP89: HFO Purifier | AQ89: Make: Mitsubishi Kakouki Kaisha Model: SJ25H | AT89: Propeller | AU89: NAKISHIMA PROPELLER CO., LTD. KEYLESS PROPELLER DIA.-5800mm PITCH-4331.9 mm (0.7R), 4 BLADES | AX89: FW Hydrophore Pump | AY89: Shinko Ind. Ltd./ VJ40-2 | BB89: FW Hydrophore Pump | BC89: SHINKO IND. LTD. MODEL: UH102 | BF89: Ballast Water Treatment Plant | BG89: N.A | BJ89: Ballast Water Treatment Plant | BK89: DESMI AS , COMPACT CLEAN 750 S/N: 473740-01-01 / 473740-01-02 | BN89: ME HT Cooling FW Pump | BO89: Maker: Heishin Pump Works Co., Ltd. Model: RVD-450EN | BR89: Incinerator | BS89: TYPE: OSV-600SAI MAKER: SUNFLAME CO., LTD | BV89: ME LO Pump | BW89: NANIWA PUMP MFG.CO.,LTD. MODEL: TOM-200E | BZ89: Ballast Water Treatment Plant | CA89: N.A | CD89: Ballast Water Treatment Plant | CE89: Techcross Type: ECS-1000B Serial No: CPC1403-0401 | CH89: Valve Remote Control System | CI89: NORDIC FLOW CONTROL PTE LTD., HPU150 | CL89: FO Supply Pump | CM89: Maker: HEISHIN PUMP WORKS CO., LTD. Type: VERTICAL GEAR Model: TG50-601TL | CP89: Incinerator | CQ89: Sunflame Co Ltd / Type: OSV-360SAI | CT89: Incinerator | CU89: SUNFLAME CO LTD, OSV-360SAI | CX89: Aux Engine Alternators | CY89: MAKE: TAIYO OUTPUT: 650kVA (520kW), PF 0.8 , 60Hz TYPE: DRIP PROOF, SELF-VENT BRUSHLESS , AC450V 60HZ 3φ, 900rpm x 3sets
J90: Sea Water Cooling Pump | K90: SHINKO IND. LTD. Centrifugal SVA 200 | N90: A.C Compressor | O90: Maker: USHIO REINETSU CO., LTD Type: SEMI-HERMETIC Model: 6JE-33Y-40F | R90: Valve Remote Control System | S90: MAKER- NAKAKITA SEISAKUSHO CO., LTD TYPE- 15A2005 A/B | V90: Valve Remote Control System | W90: MAKER- NAKAKITA SEISAKUSHO CO., LTD TYPE- 15A2005 A/B | Z90: Hot Water Circulating Pump | AA90: MAKER: HARISON CO.,LTD. MODEL: CFL-2000-S | AD90: Service Air Compressor | AE90: TANABE PNEUMATIC MACHINERY CO. LTD H-73 | AH90: NO. 1 WBT (P) | AI90: 175-208 | AJ90: 532.8 | AL90: D.W.T. (S) | AM90: FR No. 7-15 | AN90: 157.78 | AP90: Fresh Water Generator | AQ90: Make: MIURA Type: WM-20SK | AT90: Incinerator | AU90: Sunflame Co Ltd Type: OSV-360SAI | AX90: Hot Water Circulating Pump | AY90: Ebara Corp./ 32LPD6.4A | BB90: Hot Water Circulating Pump | BC90: HARISON SANGYO CO. LTD. Type: CFL-2000-S | BF90: Propeller | BG90: Maker: Shanghai Bestway Marine Engineering Design | BJ90: Propeller | BK90: Shanghai Bestway Marine Engineering Co., Ltd. | BN90: ME LO Pump | BO90: Maker: Heishin Pump Works Co., Ltd. Model: RVA-140JN | BR90: Valve Remote Control System | BS90: MAKER: NAKAKITA SEISAKUSHO CO., LTD SERIAL NO: 18AW015B | BV90: FO Supply Pump | BW90: TAIKO KIKAI INDUSTRIES CO.,LTD. MODEL: MSDK-3MA | BZ90: Propeller | CA90: Maker: NAKASHIMA PROPELLER CO., LTD. Type: 4 BLADE SOLID KEYLESS | CD90: Propeller | CE90: NAKISHIMA PROPELLER CO., LTD. KEYLESS PROPELLER DIA.-5800mm PITCH-4331.9 mm (0.7R), 4 BLADES | CH90: Main Engine Turbocharger | CI90: MAN DIESEL AND TURBO SE TCA55-21104 | CL90: FO Circulating Pump | CM90: Maker: HEISHIN PUMP WORKS CO., LTD. Type: VERTICAL GEAR Model: TG80-702L | CP90: Valve Remote Control System | CQ90: NIL | CT90: Valve Remote Control System | CU90: Nabtesco 7SH66704-01E | CX90: Refrigeration Compressor | CY90: UNIT MODEL/ MAKE: DAIKIN MR / RHSN4BC COMPRESSOR: Hermetically sealed scroll type WEIGHT:35kg/set Model : JT125BKNFYE Capacity control : 100-67-0 % Motor output : 3.0 kW (7.5A)
J91: ME HT Cooling FW Pump | K91: SHINKO IND.LTD. Centrifugal SVA 100 | N91: E.C.R. AIR CON | O91: Maker: USHIO REINETSU CO., LTD. Type: PACKAGE (R-404a) Model: UAP-2HS4PL4-1 | R91: Main Engine Turbocharger | S91: MAKER- MITSUI ENGINEERING AND SHIP BUILDING CO., LTD. TYPE-TCA55-21192 | V91: Main Engine Turbocharger | W91: MAKER- MITSUI ENGINEERING AND SHIP BUILDING CO., LTD. TYPE-TCA55-21192 | AD91: Sea Water Cooling Pump | AE91: NANIWA PUMP MFG.CO.,LTD. MODEL: FEV-200D | AH91: NO. 1 WBT (S) | AI91: 175-208 | AJ91: 532.8 | AL91: TOTAL | AN91: =SUM(AN89:AN90) -> 315.56 | AP91: Air Compressor | AQ91: Tanabe Pneumatic Machinery Co. Ltd. Type:VH-64 | AT91: Valve Remote Control System | AU91: DAMCOS,CB-HP-D50,160G5142 | BF91: Incinerator | BG91: Teamtec Type: 0G200C S/N 11612 | BJ91: Incinerator | BK91: Teamtec Type: 00200C | BN91: FO Supply Pump | BO91: Maker: Heishin Pump Works Co., Ltd. Model: SMK-250HA | BR91: Main Engine Turbocharger | BS91: Maker: MITSUI ENGINEERING & SHIPBUILDING CO., LTD Type: TCA55 | BV91: FO Circulating Pump | BW91: TAIKO KIKAI INDUSTRIES CO.,LTD. MODEL: MSDK-6HMA | BZ91: Incinerator | CA91: Maker: Miura Co., Ltd. Type: BGW-20N | CD91: Incinerator | CE91: Sunflame Co Ltd Type: OSV-360SAI | CH91: Aux Engine Alternators | CI91: ZHENGJIANG CHINA MARINE XIADAI GENERATING CO.,LTD. HFC6 454-64K | CL91: HFO Transfer Pump | CM91: Maker: HEISHIN PUMP WORKS CO., LTD. Type: VERTICAL GEAR Model: MGA30-1WL | CP91: Main Engine Turbocharger | CQ91: Mitsubishi Heavy Industries / Type: MET48MB | CT91: Main Engine Turbocharger | CU91: Mitsubishi Exhaust-Gas Turbocharger MET48MB | CX91: A.C Compressor | CY91: UNIT MODEL/MAKE: DAIKIN USDN30JB2 COMPRESSOR: Hermetic scroll type JT300DGFYE × 3
J92: ME LO Pump | K92: SHINKO IND.LTD. Centrifugal SAD150-2 | N92: Service Air Compressor | O92: Maker: Tanabe Pheumatic Machiner Co., Ltd. Type: H-63 | R92: Aux Engine Alternators | S92: MAKER- NISHISHIBA ELECTRIC CO., LTD TYPE- NTAKL | V92: Aux Engine Alternators | W92: MAKER- NISHISHIBA ELECTRIC CO., LTD TYPE- NTAKL | Z92: Cargo Hold dimensions | AD92: ME HT Cooling FW Pump | AE92: NANIWA PUMP MFG.CO.,LTD. MODEL: FEV-125-2D | AH92: NO. 2 TST (P) | AI92: 139-175 | AJ92: 345.35 | AP92: Stern Seal | AQ92: Make: Kemel Type: DX-530 | AT92: Main Engine Turbocharger | AU92: MISUBISHI HEAVY INDUSTRIES MET-48MB S.N.-15037 | AX92: Cargo Hold dimensions | BB92: Cargo Hold dimensions | BF92: Valve Remote Control System | BG92: Maker: Nordic Flow Control Type: 2011-3290 | BJ92: Valve Remote Control System | BK92: MAKER: NORDIC FLOW CONTROL PTE LTD TYPE: HPU 150 | BN92: FO Circulating Pump | BO92: Maker: Heishin Pump Works Co., Ltd. Model: TG50-601TL | BR92: Aux Engine Alternators | BS92: Maker: TAIYO ELECTRIC CO., LTD. Type: BRUSHLESS Model: FE547A-8 | BV92: HFO Transfer Pump | BW92: TAIKO KIKAI INDUSTRIES CO.,LTD. MODEL: VG-20 | BZ92: Valve Remote Control System | CA92: MAKER: NAKAKITA HAND PUMP Type: No. NS672-N-2 | CD92: Valve Remote Control System | CE92: MAKER: AMCO ENGINEERING 705G-01-BRC250 | CH92: Refrigeration Compressor | CI92: JL MARINE & ENGINEERING BITZER 4FC-3.2Y-40S SEMI HERMETIC | CL92: Fire / GS Pump | CM92: Maker: HEISHIN PUMP WORKS CO., LTD. Type: VERTICAL CENT. WITH AIR EJECTOR Model: RDY-150R | CP92: Aux Engine Alternators | CQ92: NISHISHIBA ELECTRIC Co., LTD/NTAKL | CT92: Aux Engine Alternators | CU92: Taiyo Electric co,Ltd Model:FE541B-8 | CX92: E.C.R. AIR CON | CY92: UNIT MAKE/MODEL: DAIKIN USP5HR1 COMPRESSOR: Hermetically sealed scroll type JT150BK-YE
J93: FO Supply Pump | K93: TAIKO KIKAI IND. Co.Ltd. Gear Type NHG-1MA | N93: Sea Water Cooling Pump | O93: Maker: Taiko Kikai Industries Co., Ltd. Model: EMC-250C | R93: Refrigeration Compressor | S93: MAKER-DAIKIN MR ENGINEERING CO.,LTD TYPE-JT125BKNFYE HERMITICALLY SEALED SCROLL TYPE | V93: Refrigeration Compressor | W93: MAKER-DAIKIN MR ENGINEERING CO.,LTD TYPE-JT125BKNFYE HERMITICALLY SEALED SCROLL TYPE | Z93: Cargo Hold #1 | AA93: 16.4m x 16.4m | AD93: ME LO Pump | AE93: NANIWA PUMP MFG.CO.,LTD. MODEL: TOM-200E | AH93: NO. 2 TST (S) | AI93: 139-175 | AJ93: 345.35 | AL93: COMPARTMENT - OTHER WATER TANKS | AM93: FRAME LOCATION | AN93: CAPACITY (M3) | AP93: Sewage Treatment Plant | AQ93: Make: Taiko Kikai Type: SBH-25 | AT93: Aux Engine Alternators | AU93: NISHISIBA ELECTRIC CO. LTD. NTAKL S.N.-362508A A1 X 3 | AX93: Cargo Hold #1 | AY93: 15.2m x 15.8m | BB93: Cargo Hold #1 | BC93: 16.40m x 16.40m | BF93: Main Engine Turbocharger | BG93: Maker: Man B&W Type: TCA55-21464 | BJ93: Main Engine Turbocharger | BK93: MAKER: MITSUBISHI HEAVY INDUSTRIES Ltd. TYPE: MET 53SD | BN93: HFO Transfer Pump | BO93: Maker: Heishin Pump Works Co., Ltd. Model: TG80-702L | BR93: Refrigeration Compressor | BS93: Maker: USHIO REINETSU CO., LTD. Type: 2DES-2Y-40S SEMI-HERMETIC | BV93: Fire / GS Pump | BW93: NANIWA PUMP MFG.CO.,LTD. MODEL: FBCV-200 | BZ93: Main Engine Turbocharger | CA93: Maker: Mitsubishi Heavy Industries Type: MET-53SD | CD93: Main Engine Turbocharger | CE93: MAKER: MITSUBISHI HEAVY INDUSTRIES TYPE: MET 48MB | CH93: A.C Compressor | CI93: JL MARINE & ENGINEERING JL-RP-5W5 HERMETIC SCROLL | CL93: Emergency Fire Pump | CM93: Maker: HEISHIN PUMP WORKS CO., LTD. Type: VERTICAL CENT. WITH AIR EJECTOR Model: RDY-150R | CP93: Refrigeration Compressor | CQ93: DAIKIN MR. ENGINEERING CO.,LTD/ Model: JT125BKNFYE / Type: Hermetically sealed scroll type | CT93: Refrigeration Compressor | CU93: Ushio Reinetsu Co., LTD. Model: 2DES-2Y-40S Semi-Hermetic type | CX93: Service Air Compressor | CY93: N.A
J94: FO Circulating Pump | K94: TAIKO KIKAI IND. Co.Ltd. Gear Type NHC-4MA | N94: ME HT Cooling FW Pump | O94: Maker: Taiko Kikai Industries Co., Ltd. Model: TMV-80C | R94: A.C Compressor | S94: MAKER- DAIKIN MR ENGINEERING CO., LTD TYPE-JT300DGFYE X4 HERMITIC SCROLL TYPE | V94: A.C Compressor | W94: MAKER- DAIKIN MR ENGINEERING CO., LTD TYPE-JT300DGFYE X4 HERMITIC SCROLL TYPE | Z94: Cargo Hold #2 | AA94: 21.32m x 24.2m | AD94: FO Supply Pump | AE94: TAIKO KIKAI INDUSTRIES CO.,LTD. MODEL: MSDK-3MA | AH94: NO. 2 WBT (P) | AI94: 139-175 | AJ94: 699 | AL94: Collecting Tank (P) | AM94: FR No. 30-39 | AN94: 243.22 | AP94: Oily Water Separator | AQ94: Make: Heishin Pump Works Type: HFM-200 Bilge Alarm Type: Bilgmon 488 | AT94: Refrigeration Compressor | AU94: RoHS Japan JT125BKNFYE MFG. No. 5600995 2015-07 x 2 | AX94: Cargo Hold #2 | AY94: 20.0m x 19.0m | BB94: Cargo Hold #2 | BC94: 21.32m x 24.20m | BF94: Aux Engine Alternators | BG94: Maker: ZHENJIANG CHINA MARINE XIANDAI GENERATING CO.LTD. TYPE: HFC6 454-64K | BJ94: Aux Engine Alternators | BK94: CM HUNDAI TYPE: HFC 6 454-64K ZHENJIANG CHINA MARINE XIANDAI GENERATING CO. LTD. | BN94: Fire / GS Pump | BO94: Maker: Heishin Pump Works Co., Ltd. Model: MGA30-1WL | BR94: A.C Compressor | BS94: Maker: USHIO REINETSU CO., LTD. Type: 6JE-33Y-40P SEMI-HERMETIC | BV94: Emergency Fire Pump | BW94: NANIWA PUMP MFG.CO.,LTD. MODEL: FFV-100E with VK 20NC | BZ94: Aux Engine Alternators | CA94: MAKER:NISHISHIBA ELECTRIC CO., LTD. Brushless Excitation System TYPE: NTAKL SERIAL NO. 360998A1A-3 | CD94: Aux Engine Alternators | CE94: MAKER:NISHISHIBA ELECTRIC CO LTD / TYPE: NTAKL SELF VENTILATING | CH94: E.C.R. AIR CON | CI94: JL MARINE & ENGINEERING BITZER 6F-502.Y-40P SEMI HERMETIC | CL94: DO Transfer Pump | CM94: Maker: HEISHIN PUMP WORKS CO., LTD. Type: VERTICAL GEAR Model: MGB-5PB | CP94: A.C Compressor | CQ94: DAIKIN MR. ENGINEERING CO.,LTD/ Model: JT300DGFYE / Type: Hermetic Scroll type | CT94: A.C Compressor | CU94: Ushio Reinetsu Co., LTD. Model: 4GE-30Y-40P Semi-Hermetic type | CX94: Sea Water Cooling Pump | CY94: SHINKP SVA250/250S
J95: HFO Transfer Pump | K95: TAIKO KIKAI IND. Co.Ltd. Gear Type NHG-20 | N95: ME LO Pump | O95: Maker: Taiko Kikai Industries Co., Ltd. Model: MST-150T | R95: E.C.R. AIR CON | S95: MAKER- DAIKIN MR ENGINEERING CO. LTD TYPE- MODEL USP3HR1 | V95: E.C.R. AIR CON | W95: MAKER- DAIKIN MR ENGINEERING CO. LTD TYPE- MODEL USP3HR1 | Z95: Cargo Hold #3 | AA95: 21.32m x 24.2m | AD95: FO Circulating Pump | AE95: TAIKO KIKAI INDUSTRIES CO.,LTD. MODEL: MSDK-6HMA | AH95: NO. 2 WBT (S) | AI95: 139-175 | AJ95: 699 | AL95: Hold Wash. F.W. Tank (S) | AM95: FR No. 30-39 | AN95: 145.17 | AP95: Steering Gear | AQ95: Make: Kawasaki Heavy Industries Type: RE22-063 | AT95: A.C Compressor | AU95: XIÄN DAIKING QINGÄN COMPRESSOR, 0400192-201503,JT300DGFYE@N, (X3) | AX95: Cargo Hold #3 | AY95: 20.0m x 19.0m | BB95: Cargo Hold #3 | BC95: 21.32m x 24.20m | BF95: Refrigeration Compressor | BG95: Maker: Bitzer Type: 4FC-3.2Y-40S | BJ95: Refrigeration Compressor | BK95: MAKER: JL MARINE & ENGINEERING PTE LDT SINGAPORE Type: Bitzer 4FC-3.2Y-40S Semi-hermetic | BN95: Emergency Fire Pump | BO95: Maker: Heishin Pump Works Co., Ltd. Model: RDY-150R | BR95: E.C.R. AIR CON | BS95: Maker: USHIO REINETSU CO., LTD. Type: PACKAGE TYPE (R-404a) Model: UAP-3HFAPL4-1 | BV95: DO Transfer Pump | BW95: TAIKO KIKAI INDUSTRIES CO.,LTD. MODEL: MSDK-5MA | BZ95: Refrigeration Compressor | CA95: Maker: USHIO REINETSU CO., LTD (BOCK COMPRESSOR ) TYPE:HGX22P-160-4S | CD95: Refrigeration Compressor | CE95: MAKER: DAIKIN MR ENGINEERING CO., LTD TYPE: HERMETICALLY SEALED SCROLL TYPE MODEL JT125BKNFYE | CH95: Service Air Compressor | CI95: JP SAUER SC26-31 | CL95: FO Purifier Feed Pump | CM95: Maker: MITSUBISHI KAKOKI KAISHA LTD Model: GP 35 HA | CP95: E.C.R. AIR CON | CQ95: DAIKIN MR ENGINEERING CO. LTD/ Model: USP3HR1 | CT95: E.C.R. AIR CON | CU95: Ushio Reinetsu Co., LTD. Model:UAP-2HS4PL4-1 | CX95: ME HT Cooling FW Pump | CY95: 2 X SHINKO SVA125 CENT PUMP CAP: 100 X 30 15KW X 1800RPM
J96: Fire / GS Pump | K96: SHINKO IND.LTD. Centrifugal RVP250-1S | N96: FO Supply Pump | O96: Maker: Taiko Kikai Industries Co., Ltd. Model: NHG-2 | R96: Service Air Compressor | S96: MAKER- KOBE STEEL, LTD. TYPE- FROGED STEEL (JIS SFCM740S, Dia. 440mm X 7300mm) | V96: Service Air Compressor | W96: MAKER- KOBE STEEL, LTD. TYPE- FROGED STEEL (JIS SFCM740S, Dia. 440mm X 7300mm) | Z96: Cargo Hold #4 | AA96: 21.32m x 24.2m | AD96: HFO Transfer Pump | AE96: TAIKO KIKAI INDUSTRIES CO.,LTD. MODEL: VG-20 | AH96: NO. 3 TST (P) | AI96: 103-139 | AJ96: 345.35 | AL96: Grey Water Tank (S) | AM96: FR No. 30-39 | AN96: 97.93 | AP96: Ballast Water Treatment Plant | AQ96: Make: TECHCROSS Type: ECS-750B Serial No: PDE1512-0301 | AT96: E.C.R. AIR CON | AU96: DAIKIN INDUSTRIES LTD. USP3HR1 COMPRESSOR: RoHS Japan JT112BK-YE | AX96: Cargo Hold #4 | AY96: 20.0m x 19.0m | BB96: Cargo Hold #4 | BC96: 21.32m x 24.20m | BF96: A.C Compressor | BG96: Maker: Bitzer Group of Companies Type: 6F-50.2 | BJ96: A.C Compressor | BK96: MAKER: JL MARINE & ENGINEERING PTE LDT SINGAPORE Type: BITZER 6F- 50.2Y-40P | BN96: DO Transfer Pump | BO96: Maker: Heishin Pump Works Co., Ltd. Model: RDY-80R | BR96: Service Air Compressor | BS96: Maker: TANABE PNEUNATIC MACHINERY CO., LTD. Type: VERTICAL 2-STAGE WATER COOLED Model: H-74 | BV96: FO Purifier Feed Pump | BW96: MITSUBISHI KAKOKI KAISHA, LTD./MODEL:GP 25 HA | BZ96: A.C Compressor | CA96: Maker: USHIO REINETSU CO., LTD. (BOCK COMPRESSOR ) SEMI-HERMETIC TYPE TYPE:HGX5-830-4S | CD96: A.C Compressor | CE96: MAKER: DAIKIN INDUSTRIES / TYPE: HERMETIC SCROLL / MODEL JT300DGYE X 3 | CH96: Sea Water Cooling Pump | CI96: DESMI VERTICAL CENTRIFUGAL PUMP NSL250-265 / D02 | CL96: ME LO Purifier Feed Pump | CM96: Maker: HEISHIN PUMP WORKS CO., LTD. Type: VERTICAL GEAR Model: MGB-3PB | CP96: Service Air Compressor | CQ96: FS AIR COMPRESSOR (FU YAO POWER MACHINERY(SHANGHAI) CO.LTD)/ FD30P | CT96: Service Air Compressor | CU96: Yanmar Co., LTD. Model: C185 | CX96: ME LO Pump | CY96: MAKE / MODEL: SHINKO SAD200-2 TYPE: CENT. EL VER TANK MOUNT
J97: Emergency Fire Pump | K97: SHINKO IND.LTD. Centrifugal SVB100S | N97: FO Circulating Pump | O97: Maker: Taiko Kikai Industries Co., Ltd. Model: HHC-3MA | R97: Sea Water Cooling Pump | S97: MAKER- HEISHIN PUMP WORKS CO., LTD TYPE- RVA -300EN | V97: Sea Water Cooling Pump | W97: MAKER- HEISHIN PUMP WORKS CO., LTD TYPE- RVA -300EN | Z97: Cargo Hold #5 | AA97: 19.68m x 24.2m | AD97: Fire / GS Pump | AE97: NANIWA PUMP MFG.CO.,LTD. MODEL: FBCV-200 | AH97: NO. 3 TST (S) | AI97: 103-139 | AJ97: 345.35 | AL97: F.W.T. for F.F.S. | AM97: FR No. 4-7 | AN97: 9.23 | AP97: Propeller | AQ97: TYPE: 4 BLADE SOLID TYPE MAKER: NAKASHIMA PROPELLER CO., LTD. | AT97: Service Air Compressor | AU97: SHINKO, SVA200, S/NO.: 1099896 | AX97: Cargo Hold #5 | AY97: 20.0m x 19.0m | BB97: Cargo Hold #5 | BC97: 19.68m x 24.20m | BF97: E.C.R. AIR CON | BG97: Maker: JL Marine Type: JL-RP-5W5 Serial: JL-1088-PAU-1109-3788 | BJ97: E.C.R. AIR CON | BK97: MAKER: JL MARINE & ENGINEERING PTE LDT SINGAPORE Type: JL-RP-5W5-FOR ECR | BN97: FO Purifier Feed Pump | BO97: Maker: Heishin Pump Works Co., Ltd. Model: MGB-5PB | BR97: Sea Water Cooling Pump | BS97: Maker: HEISHIN PUMP WORKS CO., LTD. Type: VERTICAL CENTRIFUGAL WITH AIR EJECTOR Model: RVD-450EN | BV97: ME LO Purifier Feed Pump | BW97: TAIKO KIKAI INDUSTRIES CO.,LTD. MODEL: NHG-1.5 | BZ97: E.C.R. AIR CON | CA97: MAKER: USHISHIO REINETSU CO., LTD. TYPE:PACKAGE (R404A) MODEL:UAP-2HS4DL4 | CD97: E.C.R. AIR CON | CE97: MAKER: DAIKIN MR ENGINEERING CO .LTD TYPE: MODEL USP3HR1 | CH97: LT Cooling Pump | CI97: DESMI VERTICAL INLINE CENTRIFUGAL PUMP NSL150-330 / D02 | CL97: AE LO Purifier Feed Pump | CM97: Maker: HEISHIN PUMP WORKS CO., LTD. Type: VERTICAL GEAR Model: MGB-1PB | CP97: Sea Water Cooling Pump | CQ97: SHINKO IND LTD./ Model: SVA150-2 | CT97: Sea Water Cooling Pump | CU97: Heishi Pump Works Co.Ltd. RVD-450AN | CX97: FO Supply Pump | CY97: MAKE/MODEL: TAIKO MSDK-3MA x 2 SET TYPE: SCREW, CAP 3m³/h x 0.50MPag MOTOR: 3.7Kw x 3600rpm
J98: DO Transfer Pump | K98: TAIKO KIKAI IND. Co.Ltd. Gear Type MSH-4A | N98: HFO Transfer Pump | O98: Maker: Taiko Kikai Industries Co., Ltd. Model: VG-15 | R98: ME HT Cooling FW Pump | S98: MAKER- HEISHIN PUMP WORKS CO., LTD. TYPE- RVA-140JN | V98: ME HT Cooling FW Pump | W98: MAKER- HEISHIN PUMP WORKS CO., LTD. TYPE- RVA-140JN | AD98: Emergency Fire Pump | AE98: NANIWA PUMP MFG.CO.,LTD. MODEL: FFV-100E with VK 20NC | AH98: NO. 3 WBT (P) | AI98: 103-139 | AJ98: 706.83 | AL98: TOTAL | AN98: =SUM(AN94:AN97) -> 495.55 | AP98: Incinerator | AQ98: Make: MIURA Type: BGW-30N | AT98: Sea Water Cooling Pump | AU98: SHINKO SVA 100 S/N-1099901 S/N-1099902 | BF98: Service Air Compressor | BG98: Maker: Alup Kompressors Type : SC 26-8 MA 60 | BJ98: Service Air Compressor | BK98: MAKER: ALUP-COMPRESSOR GMBH (GERMANY) SAUER COMPRESSOR Type: SC 26-8 MA60 | BN98: ME LO Purifier Feed Pump | BO98: Maker: Mitsubishi Kakoko Kaisha, Ltd. Model: GP35HA | BR98: ME HT Cooling FW Pump | BS98: Maker: HEISHIN PUMP WORKS CO., LTD. Type: VERTICAL CENTRIFUGAL Model: RVA-140JN | BV98: AE LO Purifier Feed Pump | BW98: TAIKO KIKAI INDUSTRIES CO.,LTD. MODEL: NHG-1.5 | BZ98: Service Air Compressor | CA98: MAKER: TANABE PNEUMATIC MACHINERY CO., LTD. TYPE: H-63 | CD98: Service Air Compressor | CE98: YANMAR CO.LTD / TYPE: C300 | CH98: ME HT Cooling FW Pump | CI98: DESMI VERTICAL INLINE CENTRIFUGAL PUMP PVLN1065 / A12 | CL98: LO Transfer Pump | CM98: Maker: HEISHIN PUMP WORKS CO., LTD. Type: VERTICAL GEAR Model: MGB-3PB | CP98: ME HT Cooling FW Pump | CQ98: SHINKO IND LTD./SVA100 | CT98: ME HT Cooling FW Pump | CU98: Heishin Pump Works Co. Ltd Model: HLY-55MN | CX98: FO Circulating Pump | CY98: MAKE/MODEL: TAIKO MSDK-7.5HMA x 2 SET TYPE: SCREW, CAP 6m³/h x 1.0MPag MOTOR: 7.5Kw x 3600rpm
J99: FO Purifier Feed Pump | K99: MITSUBISHI KAKOKI KAISHA, LTD. Gear Type GP20GL | N99: Fire / GS Pump | O99: Maker: Taiko Kikai Industries Co., Ltd. Model: ESCE-200 D | R99: ME LO Pump | S99: MAKER- HEISHIN PUMP WORKS CO., LTD TYPE- SMK - 250HA | V99: ME LO Pump | W99: MAKER- HEISHIN PUMP WORKS CO., LTD TYPE- SMK - 250HA | Z99: Crane specifications | AD99: DO Transfer Pump | AE99: TAIKO KIKAI INDUSTRIES CO.,LTD. MODEL: MSDK-5MA | AH99: NO. 3 WBT (S) | AI99: 103-139 | AJ99: 706.83 | AP99: Valve Remote Control System | AQ99: TYPE: BUTTERFLY (IC) MOTOR OPERATED VALVE MAKER: NAKAKITA SEISAKUSHO CO., LTD. | AT99: ME HT Cooling FW Pump | AU99: SHINKO, SAD-150-3, MK97B166F (X2), S/NO. 1099907, S/NO. 1099908 | AX99: Crane specifications | BB99: Crane specifications | BF99: Sea Water Cooling Pump | BG99: Maker: DESMI Serial No.: 17421-14-01/02 | BJ99: Sea Water Cooling Pump | BK99: MAKER: TAIKO KIKAI INDUSTRIES CO LTD. TYPE : EMC - 200MCT | BN99: AE LO Purifier Feed Pump | BO99: Maker: Heishin Pump Works Co., Ltd. Model: MGB-3PB | BR99: ME LO Pump | BS99: Maker: HEISHIN PUMP WORKS CO., LTD. Type: VERTICAL CENTRIFUGAL (DEEP WELL) Model: SMK-250HA | BV99: LO Transfer Pump | BW99: TAIKO KIKAI INDUSTRIES CO.,LTD. MODEL: NHG-1.5 | BZ99: Sea Water Cooling Pump | CA99: MAKER: TAIKO KIKAI INDUSTRIES CO., LTD. TYPE:M.D.V. CENTRIFUGAL MODEL:EMCE-250C | CD99: Sea Water Cooling Pump | CE99: MAKER: SHINKO IND.LTD/ TYPE CENTRIFUGAL/ MODEL SVA150-2 | CH99: ME LO Pump | CI99: DESMI VERTICAL DEEPWELL CENTRIFUGAL PUMP DL300-4 | CL99: Cyl. LO Transfer Pump | CM99: N.A | CP99: ME LO Pump | CQ99: SHINKO IND LTD./SAD150-2 | CT99: ME LO Pump | CU99: Heishin Pump Works Co. Ltd.SMY-150NA | CX99: HFO Transfer Pump | CY99: MAKE/MODEL: TAIKO MSDK-20MA x 1 SET TYPE: SCREW, CAP 20m³/h x 0.30MPag MOTOR: 18.5Kw x 3600rpm
J100: ME LO Purifier Feed Pump | K100: TAIKO KIKAI IND. Co.Ltd. Gear Type NHG-2MT | N100: Emergency Fire Pump | O100: Maker: Ishii Kosakusho Co., Ltd. Type: 125CSB / 7FPN | R100: FO Supply Pump | S100: MAKER- HEISHIN PUMP WORKS CO., LTD TYPE- MGB-4PB | V100: FO Supply Pump | W100: MAKER- HEISHIN PUMP WORKS CO., LTD TYPE- MGB-4PB | Z100: Cargo Crane #1 | AA100: Make: IHI Corp 30.5mt X 24m Type: H305 l 90-240 | AD100: FO Purifier Feed Pump | AE100: MITSUBISHI KAKOKI KAISHA, LTD./MODEL:GP 25 HA | AH100: NO. 4 TST (P) | AI100: 67-103 | AJ100: 345.35 | AL100: Machinery specifications | AP100: Main Engine Turbocharger | AQ100: TYPE: TCA55 MAKER: MITSUI | AT100: ME LO Pump | AU100: ME SUPPLY FO: TAIKO KIKAI IND. CO. LTD, NHG1MA, S/No. A2D9770-1, S/No. A2D9770-2 AE SUPPLY FO: Taiko / Type: NGH-1MA / S.No. A209772-1 / S.No. A209772-2 | AX100: Cargo Crane #1 | AY100: IHI Industries Co, Type: H305185-220 | BB100: Cargo Crane #1 | BC100: IHI Industries Co, H30T SINGLE DECK CRANE Type: H305190-240(20') | BF100: LT Cooling Pump | BG100: Maker: DESMI Type: NSL150-330/D02 Serial #: 673334 | BJ100: LT Cooling Pump | BK100: MAKER: TAIKO KIKAI INDUSTRIES CO LTD. TYPE: EMC - 200MD | BN100: LO Transfer Pump | BO100: Maker: Heishin Pump Works Co., Ltd. Model: MGB-1PB | BR100: FO Supply Pump | BS100: Maker: HEISHIN PUMP WORKS CO., LTD. Type: VERTICAL GEAR Model: TG50-601TL | BV100: Cyl. LO Transfer Pump | BW100: N.A | BZ100: ME HT Cooling FW Pump | CA100: MAKER: TAIKO KIKAI INDUSTRIES CO., LTD. TMV-80C | CD100: ME HT Cooling FW Pump | CE100: MAKER: SHINKO IND.LTD/ TYPE CENTRIFUGAL/ MODEL SVA100 | CH100: FO Supply Pump | CI100: NANTONG NAVIGATION MACHINERY GROUP CO., LTD FO SCREW PUMP ACE 032N3 NTBP | CL100: Composite Boiler Feed Pump | CM100: Maker: HEISHIN PUMP WORKS CO., LTD. Type: VERTICAL CENTRIFUGAL Model: WYU-2Y | CP100: FO Supply Pump | CQ100: TAIKO KIKAI/ Model: NHG2.5MA / Type: Horizontal Gear | CT100: FO Supply Pump | CU100: Heishin Pump Works Co. Ltd Model: TG50-601TL | CX100: Fire / GS Pump | CY100: 2 SETS x VERTICAL CENTRIFUGAL, ELECT MOTOR DRIVEN CAPACITY: 90/210 m³/h X T. 65 /25m X S. 0/-5 m ELEC MOTOR: 37Kw X 4P MAKE: SINKO INDUSTRIC LTD
J101: AE LO Purifier Feed Pump | K101: TAIKO KIKAI IND. Co.Ltd. Gear Type NHG-1.5MT | N101: DO Transfer Pump | O101: Maker: Taiko Kikai Industries Co., Ltd. Model: NHG-4 | R101: FO Circulating Pump | S101: MAKER- HEISHIN PUMP WORKS CO., LTD TYPE- MGB-6PBS | V101: FO Circulating Pump | W101: MAKER- HEISHIN PUMP WORKS CO., LTD TYPE- MGB-6PBS | Z101: Cargo Crane #2 | AA101: Make: IHI Corp 30.5mt X 24m Type: H305 l 90-240 | AD101: ME LO Purifier Feed Pump | AE101: TAIKO KIKAI INDUSTRIES CO.,LTD. MODEL: NHG-1.5 | AH101: NO. 4 TST (S) | AI101: 67-103 | AJ101: 345.35 | AL101: ME LO Purifier | AM101: MITSUBISHI KAKOKI KAISHA, LTD. SJ-25H | AP101: Aux Engine Alternators | AQ101: TYPE: DRIP PROOF. SELF VENTILATION, BRUSHLESS TYPE (1 BEARING TYPE) NTAKL-VE MAKER: NISISHIBA ELECTRIC CO., LTD. | AT101: FO Supply Pump | AU101: ME Circulating Pump: TAIKO KIAKAI IND. CO. LTD, FHG-4MA, S/No. A2D977I-1, S/No. A2D977I-2 AE Circulating Pump: Taiko / Type: HHC-2MA | AX101: Cargo Crane #2 | AY101: IHI Industries Co, Type: H305185-220 | BB101: Cargo Crane #2 | BC101: IHI Industries Co, H30T SINGLE DECK CRANE Type: H305190-240(20') | BF101: ME HT Cooling FW Pump | BG101: Maker: DESMI Type: PVLN1065/A12 Serial No.: 17420-16-01/02 | BJ101: ME HT Cooling FW Pump | BK101: MAKER: TAIKO KIKAI INDUSTRIES CO LTD. TYPE : EMC 125MCT | BN101: Cyl. LO Transfer Pump | BO101: Maker: Heishin Pump Works Co., Ltd. Model: MGB-1PB | BR101: FO Circulating Pump | BS101: Maker: HEISHIN PUMP WORKS CO., LTD. Type: VERTICAL GEAR Model: TG80-702L | BV101: Composite Boiler Feed Pump | BW101: NANIWA PUMP MFG. EB2H-32D | BZ101: ME LO Pump | CA101: MAKER: TAIKO KIKAI INDUSTRIES CO., LTD. TYPE: M.D.V SCREW MODEL:MST-150T | CD101: ME LO Pump | CE101: MAKER: SHINKO IND.LTD/ TYPE CENTRIFUGAL/ MODEL SAD150-2 | CH101: FO Circulating Pump | CI101: NANTONG NAVIGATION MACHINERY GROUP CO., LTD FO SCREW PUMP ACE 032L3 NTBP | CL101: FW Hydrophore Pump | CM101: Maker: HEISHIN PUMP WORKS CO., LTD. Type: VERTICAL CENTRIFUGAL Model: HLY-5LN | CP101: FO Circulating Pump | CQ101: TAIKO KIKAI/ Model: HHC-4MA / Type: Horizontal Gear | CT101: FO Circulating Pump | CU101: Heishin Pump Works Co. Ltd Model: TG80-702L | CX101: Emergency Fire Pump | CY101: 1 SET x VERTICAL CENTRIFUGAL, ELECT MOTOR DRIVEN CAPACITY: 72 m³/h X T. 70m X S. -7 m ELEC MOTOR: 30Kw X 4P MAKE: SINKO INDUSTRIC LTD
J102: LO Transfer Pump | K102: TAIKO KIKAI IND. Co.Ltd. Gear Type NHG-4 | N102: FO Purifier Feed Pump | O102: N/A | R102: HFO Transfer Pump | S102: MAKER- HEISHIN PUMP WORKS CO., LTD TYPE - MV- 40BL | V102: HFO Transfer Pump | W102: MAKER- HEISHIN PUMP WORKS CO., LTD TYPE - MV- 40BL | Z102: Cargo Crane #3 | AA102: Make: IHI Corp 30.5mt X 24m Type: H305 l 90-240 | AD102: AE LO Purifier Feed Pump | AE102: TAIKO KIKAI INDUSTRIES CO.,LTD. MODEL: NHG-1.5 | AH102: NO. 4 WBT (P) | AI102: 67-103 | AJ102: 685.59 | AL102: AE LO Purifier | AM102: MITSUBISHI KAKOKI KAISHA, LTD. SJ-15H | AP102: Refrigeration Compressor | AQ102: TYPE: ZDJ005YA (HERMETIC TYPE) MAKER: USHIO REINETSU CO., LTD. | AT102: FO Circulating Pump | AU102: TAIKO KIKAI IND. CO. LTD., NHG-20, S/No. A2D9774 | AX102: Cargo Crane #3 | AY102: IHI Industries Co, Type: H305185-220 | BB102: Cargo Crane #3 | BC102: IHI Industries Co, H30T SINGLE DECK CRANE Type: H305190-240(20') | BF102: ME LO Pump | BG102: Maker: DESMI Serial No.: 17421-04-01/02 | BJ102: ME LO Pump | BK102: MAKER: TAIKO KIKAI CO LTD. TYPE: C1T - 200 | BN102: Composite Boiler Feed Pump | BO102: Maker: Heishin Pump Works Co., Ltd. Model: WYU-2Y | BR102: HFO Transfer Pump | BS102: Maker: HEISHIN PUMP WORKS CO., LTD. Type: VERTICAL GEAR Model: MGA30-1WL | BV102: FW Hydrophore Pump | BW102: NANIWA PUMP MFG.CO.,LTD. MODEL: BHD-40 Drinking Water pump: TERAL TAKU INC. | BZ102: FO Supply Pump | CA102: MAKER: TAIKO KIKAI INDUSTRIES CO., LTD. TYPE: M.D.H. GEAR MODEL:NHG-2 | CD102: FO Supply Pump | CE102: MAKER: TAIKO KIKAI IND. CO .LTD TYPE: GEAR PUMP | CH102: HFO Transfer Pump | CI102: DESMI HORIZONTAL SELF-PRIMING PUMP GP81EFM | CL102: Hot Water Circulating Pump | CM102: Maker: GRUNDFOS. Type: UPS 25-70 N 180 | CP102: HFO Transfer Pump | CQ102: TAIKO KIKAI/ Model: NHG-20 / Type: Horizontal Gear | CT102: HFO Transfer Pump | CU102: Heishin Pump Works Co. Ltd Model: MGB-15PB | CX102: DO Transfer Pump | CY102: MAKE/MODEL: TAIKO MSDK-10MA x 1 SET TYPE: SCREW, CAP 10m³/h x 0.30MPag MOTOR: 7.5Kw x 3600rpm
J103: Cyl. LO Transfer Pump | K103: N.A | N103: ME LO Purifier Feed Pump | O103: Maker: Taiko Kikai Industries Co., Ltd. Model: NHG-2 | R103: Fire / GS Pump | S103: MAKER- HEISHIN PUMP WORKS CO., LTD TYPE- RVA -200PN | V103: Fire / GS Pump | W103: MAKER- HEISHIN PUMP WORKS CO., LTD TYPE- RVA -200PN | Z103: Crago Crane #4 | AA103: Make: IHI Corp 30.5mt X 24m Type: H305 l 90-240 | AD103: LO Transfer Pump | AE103: TAIKO KIKAI INDUSTRIES CO.,LTD. MODEL: NHG-1.5 | AH103: NO. 4 WBT (S) | AI103: 67-103 | AJ103: 685.59 | AL103: HFO Purifier | AM103: MITSUBISHI KAKOKI KAISHA, LTD. SJ-25H | AP103: A.C Compressor | AQ103: TYPE: MR-B4SS (SEMI-HERMETIC TYPE) MAKER: USHIO REINETSU CO., LTD. | AT103: HFO Transfer Pump | AU103: SHINKO, RVP250-1S, S/No.(Bilge) 1099899, S/No.(GS) 1099900 | AX103: Crago Crane #4 | AY103: IHI Industries Co, Type: H305185-240 | BB103: Crago Crane #4 | BC103: IHI Industries Co, H30T SINGLE DECK CRANE Type: H305190-240(20') | BF103: FO Supply Pump | BG103: Maker: IMO AB Type: ACE- 032N3 NTBP | BJ103: FO Supply Pump | BK103: MAKER: IMO PUMP (Colfax Pump Group) Type: ACE 032L3 NTBP | BN103: FW Hydrophore Pump | BO103: Maker: Heishin Pump Works Co., Ltd. Model: HLY-5LN | BR103: Fire / GS Pump | BS103: Maker: HEISHIN PUMP WORKS CO., LTD. Type: VERTICAL CENTRIFUGAL WITH AIR EJECTOR Model: RDY-150R | BV103: Hot Water Circulating Pump | BW103: NANIWA PUMP MFG. CO., LTD MODEL: BHR-65 | BZ103: FO Circulating Pump | CA103: MAKER: TAIKO KIKAI INDUSTRIES CO., LTD. TYPE: M.D.H. GEAR MODEL:HHC3MA | CD103: FO Circulating Pump | CE103: MAKER: TAIKO KIKAI IND. CO .LTD TYPE: GEAR PUMP | CH103: Fire / GS Pump | CI103: DESMI VERTICAL INLINE CENTRIFUGAL PUMP NSL100-215 / DO2 | CP103: Fire / GS Pump | CQ103: SHINKO IND LTD./ Model: RVP250-1S | CT103: Fire / GS Pump | CU103: Heishin Pump Works Co. Ltd Model: RDY-150R | CX103: FO Purifier Feed Pump | CY103: ATTACHED PUMP WITH PURIFIER**
J104: Composite Boiler Feed Pump | K104: SHINKO IND.LTD. Centrifugal SVQ50LM | N104: AE LO Purifier Feed Pump | O104: N/A | R104: Emergency Fire Pump | S104: MAKER- HEISHIN PUMP WORKS CO., LTD TYPE- RDY-80R | V104: Emergency Fire Pump | W104: MAKER- HEISHIN PUMP WORKS CO., LTD TYPE- RDY-80R | Z104: Engine Room Crane | AA104: Make: Toyo Hoist Mfg Co 3. 7 Ton X 3 m/min Type: SS-3. 7T | AD104: Cyl. LO Transfer Pump | AE104: N.A | AH104: NO. 5 TST (P) | AI104: 35-67 | AJ104: 305.41 | AL104: Fresh Water Generator | AM104: SASAKURA ENGINEERING CO KE-15 | AP104: E.C.R. AIR CON | AQ104: TYPE: UAP-ZHS4PL4-1 MAKER: USHIO REINETSU CO., LTD. | AT104: Fire / GS Pump | AU104: SHINKO, SVB 100S, S/No. 1099910 | AX104: Engine Room Crane | AY104: FUTABA MFG. CO., LTD. Type: FS-REKL 2.6 t X 3 .65 m/min | BB104: Engine Room Crane | BC104: Toyo Hoist Mfg Co Ltd 3.7mt Overhead Crane Type: SS-3. 7T | BF104: FO Circulating Pump | BG104: Maker: Hoyer Motors Type: NIL | BJ104: FO Circulating Pump | BK104: MAKER: IMO PUMP (Colfax Pump Group) Type: ACE 032N3 NTBP | BN104: Hot Water Circulating Pump | BO104: Maker: Grundfos Type: UPS-25-70N 180 | BR104: Emergency Fire Pump | BS104: Maker: HEISHIN PUMP WORKS CO., LTD. Type: VERTICAL CENTRIFUGAL Model: RDY-80R | BZ104: HFO Transfer Pump | CA104: MAKER: TAIKO KIKAI INDUSTRIES CO., LTD. TYPE:VERTICAL GEAR MODEL:VG-15 Shifter Pump: MAKER: HOKUSHIN ENGINEERING CO. LTD., TYPE: SF JR-112M-23HRM | CD104: HFO Transfer Pump | CE104: MAKER: TAIKO KIKAI IND. CO .LTD TYPE: GEAR PUMP | CH104: Emergency Fire Pump | CI104: DESMI VERTICAL INLINE CENTRIFUGAL PUMP NSL80-215 / DO2 | CL104: Cargo Hold dimensions | CP104: Emergency Fire Pump | CQ104: SHINKO IND LTD./ Model: SVB-100S | CT104: Emergency Fire Pump | CU104: Heishin Pump Works Co. Ltd Model: RDY-80R | CX104: ME LO Purifier Feed Pump | CY104: TAIKO KIKAI , TYPE NHG1.5
J105: FW Hydrophore Pump | K105: SHINKO IND.LTD. Centrifugal VJ40-2 | N105: LO Transfer Pump | O105: Maker: Taiko Kikai Industries Co., Ltd. Model: NHG-4 | R105: DO Transfer Pump | S105: MAKER- HEISHIN PUMP WORKS CO., LTD TYPE- MGB - 5PB | V105: DO Transfer Pump | W105: MAKER- HEISHIN PUMP WORKS CO., LTD TYPE- MGB - 5PB | Z105: Misc Crane | AA105: Make: Mansei Inc Type: RD-2540P | AD105: Composite Boiler Feed Pump | AE105: NANIWA PUMP MFG. EB2H-32D | AH105: NO. 5 TST (S) | AI105: 35-67 | AJ105: 305.41 | AL105: Air Compressor | AM105: YANMAR CO., LTD. C-185 | AP105: Service Air Compressor | AQ105: TYPE: VH-64 MAKER: TANABE PNEUMATIC MACHINERY CO., LTD. | AT105: Emergency Fire Pump | AU105: TAIKO KIKAI IND.,CO.,LTD, A2D9775, MSH-4A | AX105: Spare Parts Handling Crane | AY105: MANSEI Type: RD-2655P (051) 2. 6 t x 5.5 MR | BB105: Spares Part Handling Crane | BC105: MANSEI INC (2.5mt x 4MR) Type: RD-2540P | BF105: HFO Transfer Pump | BG105: Maker: DESMI Serial No.: 17420-02-01 | BJ105: HFO Transfer Pump | BK105: MAKER: TAIKO KIKAI IND. CO LTD. TYPE NHG - 20MA | BR105: DO Transfer Pump | BS105: Maker: HEISHIN PUMP WORKS CO., LTD. Type: VERTICAL GEAR Model: MGB-5PB | BV105: Cargo Hold Dimensions | BZ105: Fire / GS Pump | CA105: Maker: Taiko Kikai Industries Co., Ltd. Type: M.D.V.C Self-priming Model: ESCE-200 D | CD105: Fire / GS Pump | CE105: MAKER: SHINKO IND.LTD/ TYPE CENTRIFUGAL/ MODEL RVP250-1S | CH105: DO Transfer Pump | CI105: DESMI HORIZONTAL SELF-PRIMING GEAR PUMP GP41EFM | CL105: Cargo Hold #1 | CM105: 17.43m x 19.20m | CP105: DO Transfer Pump | CQ105: TAIKO KIKAI/ Model: MSH-4A / Type: Horizontal Screw | CT105: DO Transfer Pump | CU105: Heishin Pump Works Co. Ltd Model: MGB-5PB | CX105: AE LO Purifier Feed Pump | CY105: TAIKO KIKAI , TYPE NHG1
J106: Hot Water Circulating Pump | K106: EBARA CORP. Centrifugal32LPD6.4A | N106: Cyl. LO Transfer Pump | O106: Maker: Taiko Kikai Industries Co., Ltd. Model: NHG-0.5 | R106: FO Purifier Feed Pump | S106: MAKER- MITSUBISHI KAKOKI KAISHA.,LTD TYPE- GP 35 HA | V106: FO Purifier Feed Pump | W106: MAKER- MITSUBISHI KAKOKI KAISHA.,LTD TYPE- GP 35 HA | AD106: FW Hydrophore Pump | AE106: NANIWA PUMP MFG.CO.,LTD. MODEL: BHD-40 Drinking Water pump: TERAL TAKU INC. | AH106: NO. 5 WBT (P) | AI106: 35-67 | AJ106: 440.37 | AL106: Stern Seal | AM106: KEMEL DX-480 | AP106: Sea Water Cooling Pump | AQ106: TYPE: 200TVS-A MAKER: TEIKUKO MACHINERY WORKS LTD. | AT106: DO Transfer Pump | AU106: MITSUBISHI KAKOKI KAISHA, LTD, GP25HA, AF 0786 (X2) | BF106: Fire / GS Pump | BG106: Maker: DESMI Type: NSL 100-215-D02 Type No.: 672738 | BJ106: Fire / GS Pump | BK106: MAKER: TAIKO KIKAI INDUSTRIES CO. LTD MODEL VSE- 150MBT | BN106: Cargo Hold dimensions | BR106: FO Purifier Feed Pump | BS106: Maker: MITSUBISHI KAKOKI KAISHA., LTD Model: GP 25 HA | BV106: Cargo Hold #1 | BW106: 17.67m x 18.6m | BZ106: Emergency Fire Pump | CA106: Maker: Ishii Kosakusho Co., Ltd. Type: 125CSB / 7FPN Water Mist Pump: MAKER: NANIWA PUMP MFG CO., LTD. MODEL: EB2H-40D | CD106: Emergency Fire Pump | CE106: MAKER: NISHISHIBA TYPE: VERTICAL SINGLE-STAGE SINGLE SUCTION CENTRIFUGAL TYPE | CH106: FO Purifier Feed Pump | CI106: GEA WESFALIA SEPARATOR GEAR PUMP KF25 | CL106: Cargo Hold #2 | CM106: 20.75m X 19.20m | CP106: FO Purifier Feed Pump | CQ106: MITSUBISHI SELFJECTOR/ GP25HA | CT106: FO Purifier Feed Pump | CU106: Mitsubishi Kakoki Kaisha,LTD. Model :GP 25 HA | CX106: LO Transfer Pump | CY106: N.A
N107: Composite Boiler Feed Pump | O107: Maker: Taiko Kikai Industries Co., Ltd. Model: 2MF-52M | R107: ME LO Purifier Feed Pump | S107: MAKER: Heishin Pump Works Co., Ltd. MODEL: MGB-2PB (No.1 LO Transfer & Purifier LO Supply Pump) | V107: ME LO Purifier Feed Pump | W107: MAKER: Heishin Pump Works Co., Ltd. MODEL: MGB-2PB (No.1 LO Transfer & Purifier LO Supply Pump) | Z107: Winch Specs | AD107: Hot Water Circulating Pump | AE107: NANIWA PUMP MFG. CO., LTD MODEL: BHR-65 | AH107: NO. 5 WBT (S) | AI107: 35-67 | AJ107: 497.66 | AL107: Sewage Treatment Plant | AM107: TAIKO KIKAl INDUSTRIES CO. , LTD SBH-25 | AP107: ME HT Cooling FW Pump | AQ107: TYPE: 125TVS-A MAKER: TEIKUKO MACHINERY WORKS LTD. | AT107: FO Purifier Feed Pump | AU107: TAIKOKIKAIINDUSTRIES., CO., LTD, A2D9768, NHG-2 | AX107: Winch Specs | BB107: Winch Specs | BF107: Emergency Fire Pump | BG107: Maker: DESMI Type: NSL80-215-D02 Type No.: 678186 | BJ107: Emergency Fire Pump | BK107: MAKER: TAIKO KIKAI INDUSTRIES CO. LTD TYPE EMCN - 125MB | BN107: Cargo Hold #1 | BO107: 17.43m x 19.2m | BR107: ME LO Purifier Feed Pump | BS107: Maker: HEISHIN PUMP WORKS CO., LTD. Type: VERTICAL GEAR Model: MGB-3PB | BV107: Cargo Hold #2 | BW107: 23.25m x 18.6m | BZ107: DO Transfer Pump | CA107: MAKER:TAIKO KIKAI INDUSTRIES CO., LTD. TYPE:HORIZONTAL GEAR MODEL:NHG-4 | CD107: DO Transfer Pump | CE107: MAKER: TAIKO KIKAI IND. CO .LTD/ TYPE 3-ROTOR SCREWS/ MODEL-4A | CH107: ME LO Purifier Feed Pump | CI107: GEA WESFALIA SEPARATOR GEAR PUMP KF16 | CL107: Cargo Hold #3 | CM107: 20.75m X 19.20m | CP107: ME LO Purifier Feed Pump | CQ107: TAIKO KIKAI/ Model: NHG-2.5MT / Type: Horizontal Gear | CT107: ME LO Purifier Feed Pump | CU107: Heishin Pump Works Co. Ltd Model: MGB-2PB | CX107: Cyl. LO Transfer Pump | CY107: N.A
J108: Cargo Hold dimensions | N108: FW Hydrophore Pump | O108: Maker: Taiko Kikai Industries Co., Ltd. Model: TMV-32 | R108: AE LO Purifier Feed Pump | S108: MAKER: Heishin Pump Works Co., Ltd. MODEL: MGB-2PB (No.2 LO Transfer & Purifier LO Supply Pump) | V108: AE LO Purifier Feed Pump | W108: MAKER: Heishin Pump Works Co., Ltd. MODEL: MGB-2PB (No.2 LO Transfer & Purifier LO Supply Pump) | Z108: Mooring Winch & Windlass Port | AA108: Make: IHI Corp Type: WL-K64WL3K | AH108: AFT PEAK | AI108: =-5 -7 -> -12 | AJ108: 324.15 | AL108: Oily Water Separator | AM108: TAIKO KIKA INDUSTRIES CO., LTD Type: USH-20 Bilge Alarm: FOCAS2000 | AP108: ME LO Pump | AQ108: TYPE: TVC-A MAKER: TEIKUKO MACHINERY WORKS LTD. | AT108: ME LO Purifier Feed Pump | AU108: TAIKO KIKAI INDUSTRIES., CO. LTD, A2D9769, NHG-1.5MT | AX108: Mooring Winch & Windlass Port | AY108: Make: IHI Corp Type: WL-K64WL3K | BB108: Mooring Winch & Windlass Port | BC108: IHI Industries Co, Type: K64WL3K | BF108: DO Transfer Pump | BG108: Maker: DESMI Serial No.: 17420-01-01 | BJ108: DO Transfer Pump | BK108: MAKER: TAIKO KIKAI INDUSTRIES CO LTD TYPE NHG- 4MA | BN108: Cargo Hold #2 | BO108: 20.75m X 19.2m | BR108: AE LO Purifier Feed Pump | BS108: Maker: HEISHIN PUMP WORKS CO., LTD. Type: VERTICAL GEAR Model: MGB-1PB | BV108: Cargo Hold #3 | BW108: 21.39m x 18.6m | BZ108: FO Purifier Feed Pump | CA108: MAKER:TAIKO KIKAI INDUSTRIES CO., LTD. MODEL:2.0 GA | CD108: FO Purifier Feed Pump | CE108: MAKER: MITSUBISHI KAKOKI KAISHA. LTD/ TYPE CENTRIFUGAL ENCLOSED/ MODEL GP25HA | CH108: AE LO Purifier Feed Pump | CI108: GEA WESFALIA SEPARATOR GEAR PUMP KF16 | CL108: Cargo Hold #4 | CM108: 20.75m X 19.20m | CP108: AE LO Purifier Feed Pump | CQ108: TAIKO KIKAI/ Model: NHG-1.5MT / Type: Horizontal Gear | CT108: AE LO Purifier Feed Pump | CU108: Heishin Pump Works Co. Ltd Model: MGB-1PB | CX108: Composite Boiler Feed Pump | CY108: SHINO SVQ50/50L
J109: Cargo Hold #1 | K109: 13.6m x 15.8m | N109: Hot Water Circulating Pump | O109: Maker: Taiko Kikai Industries Co., Ltd. Model: TMC-32 | R109: LO Transfer Pump | S109: MAKER: Heishin Pump Works Co., Ltd. MODEL: MGB-2PB (No transfer pump but same as No1 & No2) | V109: LO Transfer Pump | W109: MAKER: Heishin Pump Works Co., Ltd. MODEL: MGB-2PB (No transfer pump but same as No1 & No2) | Z109: Mooring Winch & Windlass Stbd | AA109: Make: IHI Corp Type: WL-K64WL3K | AD109: Cargo Hold dimensions | AH109: NO.3 CARGO HOLD | AI109: 103-139 | AJ109: 8976.61 | AL109: Steering Gear | AM109: KAWASAKI HEAVY INDUSTRIES, TYPE: RV21-045-H | AP109: FO Supply Pump | AQ109: TYPE: NHG-3B MAKER: TAIKO KIKAI INDUSTRIES CO., LTD. | AT109: AE LO Purifier Feed Pump | AU109: TAIKO KIAI INDUSTRIES CO., LTD, A2D9776, NHG-5 | AX109: Mooring Winch & Windlass Stbd | AY109: Make: IHI Corp Type: WL-K64WL3K | BB109: Mooring Winch & Windlass Stbd | BC109: IHI Industries Co, Type: K64WL3K | BF109: FO Purifier Feed Pump | BG109: Maker: ROTOR© Type: 5RN90S04 | BJ109: FO Purifier Feed Pump | BK109: MAKER: WESFALIA SEPARATOR (ATTACHED PUMP) TYPE: KF32 RATED | BN109: Cargo Hold #3 | BO109: 20.75m X 19.2m | BR109: LO Transfer Pump | BS109: Maker: HEISHIN PUMP WORKS CO., LTD. Type: VERTICAL GEAR Model: MGB-3PB | BV109: Cargo Hold #4 | BW109: 23.25m x 18.6m | BZ109: ME LO Purifier Feed Pump | CA109: MAKER:TAIKO KIKAI INDUSTRIES CO., LTD. TYPE:HORIZONTAL GEAR MODEL:NHG-2 | CD109: ME LO Purifier Feed Pump | CE109: MAKER: TAIKO KIKAI IND. CO .LTD/ TYPE: GEAR/ MODEL NHG-2. 5MT | CH109: LO Transfer Pump | CI109: DESMI HORIZONTAL SELF-PRIMING GEAR PUMP GP41EFM | CL109: Cargo Hold #5 | CM109: 20.75m X 19.20m | CP109: LO Transfer Pump | CQ109: TAIKO KIKAI/ Model: NHG-5 / Type: Horizontal Gear | CT109: LO Transfer Pump | CU109: N.A | CX109: FW Hydrophore Pump | CY109: SHINKO UH153L
J110: Cargo Hold #2 | K110: 20.8m x 24.0m | R110: Cyl. LO Transfer Pump | S110: N.A | V110: Cyl. LO Transfer Pump | W110: N.A | Z110: Mooring Winch Port | AA110: Make: IHI Corp Type: 118Kn-Mooring Winch | AD110: Cargo Hold #1 | AE110: 17.67m x 18.6m | AH110: TOTAL | AJ110: =SUM(AJ87:AJ109) -> 19743.31 | AL110: Ballast Water Treatment Plant | AM110: PANASIA CO LTD TYPE: GLOEN-P750/PF750 + PU500 / PU250 S/N:2015-CP-36 | AP110: FO Circulating Pump | AQ110: TYPE: HHC-7.5B MAKER: TAIKO KIKAI INDUSTRIES CO., LTD. | AT110: LO Transfer Pump | AU110: N.A | AX110: Mooring Winch Port | AY110: Make: IHI Corp Type: 118Kn-Mooring Winch | BB110: Mooring Winch Port | BC110: IHI Industries Co, Type: 118kN MOORING WINCH | BF110: ME LO Purifier Feed Pump | BG110: Maker: GEA Westfalia Seperator Model: PUAGKF16 WS0,55Kw | BJ110: ME LO Purifier Feed Pump | BK110: MAKER: WESFALIA SEPARATOR (ATTACHED PUMP) TYPE: KF20 RATED | BN110: Cargo Hold #4 | BO110: 20.75m X 19.2m | BR110: Cyl. LO Transfer Pump | BS110: N.A. | BV110: Cargo Hold #5 | BW110: 22.32m x 18.6m | BZ110: AE LO Purifier Feed Pump | CA110: N/A | CD110: AE LO Purifier Feed Pump | CE110: MAKER: TAIKO KIKAI IND. CO .LTD/ TYPE: GEAR/ MODEL NHG-1.5 MT | CH110: Cyl. LO Transfer Pump | CI110: DESMI HORIZONTAL SELF-PRIMING GEAR PUMP GP26EFM | CP110: Cyl. LO Transfer Pump | CQ110: N.A | CT110: Cyl. LO Transfer Pump | CU110: N.A | CX110: Hot Water Circulating Pump | CY110: SHINKO JJ40-2 CENT PUMP CAP: 4 X 35 2.2KW X 3600RPM
J111: Cargo Hold #3 | K111: 20.8m x 24.0m | N111: Cargo Hold dimensions | R111: Composite Boiler Feed Pump | S111: MAKER- HEISHIN PUMP WORKS CO., LTD TYPE- WYH - 2Y | V111: Composite Boiler Feed Pump | W111: MAKER- HEISHIN PUMP WORKS CO., LTD TYPE- WYH - 2Y | Z111: Mooring Winch Stbd | AA111: Make: IHI Corp Type: 118Kn-Mooring Winch | AD111: Cargo Hold #2 | AE111: 23.25m x 18.6m | AL111: Propeller | AM111: TYPE: 4 BLADES SOLID KEYLESS MAKER: NAKASHIMA PROPELLER CO.,LTD | AP111: HFO Transfer Pump | AQ111: TYPE: NHG-12 MAKER: TAIKO KIKAI INDUSTRIES CO., LTD. | AT111: Cyl. LO Transfer Pump | AU111: SHINKO SVQ50M, S.N.-1099802 (#2), S.N.-1099801 (#1) | AX111: Mooring Winch Stbd | AY111: Make: IHI Corp Type: 118Kn-Mooring Winch | BB111: Mooring Winch Stbd | BC111: IHI Industries Co, Type: 118kN MOORING WINCH | BF111: AE LO Purifier Feed Pump | BG111: Maker: GEA Westfalia Seperator Model: PUAGKF16 WS0,55Kw | BJ111: AE LO Purifier Feed Pump | BK111: MAKER: WESFALIA SEPARATOR (ATTACHED PUMP) TYPE: KF20 RATED | BN111: Cargo Hold #5 | BO111: 20.75m X 19.2m | BR111: Composite Boiler Feed Pump | BS111: Maker: HEISHIN PUMP WORKS CO., LTD. Type: VERTICAL CENTRIFUGAL Model: WYU-2Y | BZ111: LO Transfer Pump | CA111: MAKER:TAIKO KIKAI INDUSTRIES CO., LTD. TYPE:HORIZONTAL GEAR MODEL:NHG-4 | CD111: LO Transfer Pump | CE111: MAKER: TAIKO KIKAI IND. CO .LTD/ TYPE: GEAR/ MODEL:NHG-5 | CH111: Composite Boiler Feed Pump | CI111: GRUNDFUS CR3-13 E-FGJ-A-E-HOOE | CL111: Crane specifications | CP111: Composite Boiler Feed Pump | CQ111: SHINKO IND LTD./ SVQ50M | CT111: Composite Boiler Feed Pump | CU111: Heishin Pump Works Co.Ltd. WYU-2Y
J112: Cargo Hold #4 | K112: 20.8m x 24.0m | N112: Cargo Hold #1 | O112: 13.6m x 16.0m | R112: FW Hydrophore Pump | S112: MAKER- HEISHIN PUMP WORKS CO., LTD TYPE- UHY - 15L | V112: FW Hydrophore Pump | W112: MAKER- HEISHIN PUMP WORKS CO., LTD TYPE- UHY - 15L | Z112: Pump Station | AA112: Make: IHI Corp Type: T6C - 028 (Fore) T6C - 022 (Aft) | AD112: Cargo Hold #3 | AE112: 21.39m x 18.6m | AH112: COMPARTMENT | AI112: FRAME LOCATION | AJ112: CAPACITY (M3) | AL112: Incinerator | AM112: SUNFLAME CO LTD , TYPE:OSV-360SAI | AP112: Fire / GS Pump | AQ112: TYPE: 150TVES-A-EA MAKER: TEIKUKO MACHINERY WORK LTD. | AT112: Composite Boiler Feed Pump | AU112: DAITO PUMP KOGYO CO., LTD, 155659, DGP-M25 | AX112: Pump Station | AY112: Make: IHI Corp Type: T6D - 042 (Fore) T6D - 035 (Aft) | BB112: Pump Station | BC112: IHI Industries Co, Type: T6C - 028(FWD) , T6C - 022 (AFT) | BF112: LO Transfer Pump | BG112: Maker: DESMI Serial No.: 17421-06-01 | BJ112: LO Transfer Pump | BK112: MAKER TAIKO KIKAI IND. CO LTD TYPE: NHG-4MT | BR112: FW Hydrophore Pump | BS112: Maker: HEISHIN PUMP WORKS CO., LTD. Type: VERTICAL CENTRIFUGAL Model: HLY-5LN | BV112: Crane Specifications | BZ112: Cyl. LO Transfer Pump | CA112: MAKER:TAIKO KIKAI INDUSTRIES CO., LTD. TYPE:HORIZONTAL GEAR MODEL:NHG-0.5 | CD112: Cyl. LO Transfer Pump | CE112: N.A | CH112: FW Hydrophore Pump | CI112: DESMI VERTICAL MULTISTAGE CENTRIFUGAL PUMP DPV4 / 5 | CL112: Cargo Crane #1 | CM112: Make & Model: Mitsubishi Heavy Industries, Ltd. 30.5T X 26M Serial No: HDC 6942 | CP112: FW Hydrophore Pump | CQ112: SHINKO IND LTD./ VJ40-2 | CT112: FW Hydrophore Pump | CU112: Heishin Pump Works Co. Ltd Model: HLY-5LN | CX112: Cargo Hold dimensions
J113: Cargo Hold #5 | K113: 20.8m x 24.0m | N113: Cargo Hold #2 | O113: 19.2m x 17.6m | R113: Hot Water Circulating Pump | S113: MAKER- HITACHI INDUSTRIAL EQUIPMENT SYSTEMS CO., LTD. TYPE- JL 32P2-60.4K | V113: Hot Water Circulating Pump | W113: MAKER- HITACHI INDUSTRIAL EQUIPMENT SYSTEMS CO., LTD. TYPE- JL 32P2-60.4K | AD113: Cargo Hold #4 | AE113: 23.25m x 18.6m | AH113: F.W.T K.(P) | AI113: FR No. -5 -7 | AJ113: 175.1 | AL113: Valve Remote Control System | AM113: NAME: CONTROL UNIT MAKER: NAKAKITA SEISAKUSHO CO., LTD | AP113: Emergency Fire Pump | AQ113: TYPE: 200-2VSR-ANV-S MAKER: TEIKUKO MACHINERY WORK LTD. | AT113: FW Hydrophore Pump | AU113: SHINKO, VJ40-2 (X2) S/No.: 1099904 1099905 | BF113: Cyl. LO Transfer Pump | BG113: Maker: DESMI Serial No.: 17421-05-01 | BJ113: Cyl. LO Transfer Pump | BK113: MAKER TAIKO KIKAI IND. CO LTD TYPE: NHG- 0.5M | BN113: Crane specifications | BR113: Hot Water Circulating Pump | BS113: MAKER: GRUNDFOS PUMPS K.K. Type: UPS25-70N 180 | BV113: Cargo Crane #1 | BW113: Make & Model: IKNOW Machinery Co Ltd 30tx26M/R Serial No: 106682 | BZ113: Composite Boiler Feed Pump | CA113: MAKER:TAIKO KIKAI INDUSTRIES CO., LTD. TYPE:HORIZONTAL CENTRIFUGAL MODEL:2MF-52M | CD113: Composite Boiler Feed Pump | CE113: MAKER: SHINKO IND.LTD/ TYPE CENTRIFUGAL/ MODEL SVQ50M | CH113: Hot Water Circulating Pump | CI113: DESMI VERTICAL MULTISTAGE CENTRIFUGAL PUMP DPV2 / 2 | CL113: Cargo Crane #2 | CM113: Make & Model: Mitsubishi Heavy Industries, Ltd. 30.5T X 26M Serial No: HDC 6943 | CP113: Hot Water Circulating Pump | CQ113: HARISON SANGYO CO.LTD SERIAL NO.HR23394/ Model: CFL-2000-S | CT113: Hot Water Circulating Pump | CU113: Heishin Pump Works Co. Ltd. HLY-15F | CX113: Cargo Hold #1 | CY113: 16.625M X 18.92M
N114: Cargo Hold #3 | O114: 19.2m x 17.6m | Z114: Aux Eng (including Emergency Generator) | AD114: Cargo Hold #5 | AE114: 22.32m x 18.6m | AH114: D RI. W.T K.(S) | AI114: FR No. -5 -7 | AJ114: 175.1 | AL114: Main Engine Turbocharger | AM114: Type: MET48MB-VTI Maker: MHI | AP114: DO Transfer Pump | AQ114: TYPE: NHG-2 MAKER: TAIKO KIKAI INDUSTRIES CO., LTD. | AT114: Hot Water Circulating Pump | AU114: EBARA CORPORATION Model-32LPD6.4A | AX114: Aux Eng (including Emergency Generator) | BB114: Aux Eng (including Emergency Generator) | BF114: Composite Boiler Feed Pump | BG114: Maker: Grundfos Type: CR3-13 E-FGJ-A-E-HQQE | BJ114: Composite Boiler Feed Pump | BK114: GRUNDFOS TYPE: CR3-15 E-FGJ-A-E-RQQE DENMARK | BN114: Cargo Crane #1 | BO114: Make & Model: Mitsubishi Heavy Industries, Ltd. 30.5T X 26M Serial No: HDC 6811 | BV114: Cargo Crane #2 | BW114: Make & Model: IKNOW Machinery Co Ltd 30tx26M/R Serial No: 106683 | BZ114: FW Hydrophore Pump | CA114: MAKER;TAIKO KIKAI INDUSTRIES CO., LTD. TYPE:VERTICAL CENTRIFUGAL MODEL:TMV-32 | CD114: FW Hydrophore Pump | CE114: MAKER: SHINKO IND.LTD/ TYPE CENTRIFUGAL/ MODEL VJ40-2 | CL114: Cargo Crane #3 | CM114: Make & Model: Mitsubishi Heavy Industries, Ltd. 30.5T X 26M Serial No: HDC 6944 | CX114: Cargo Hold #2 | CY114: 21.87M X 18.92M
J115: Crane specifications | N115: Cargo Hold #4 | O115: 19.2m x 17.6m | R115: Cargo Hold dimensions | V115: Cargo Hold dimensions | Z115: Aux Engine No. 1 (Engine Number: DC617A0545 ) | AA115: Model: DAIHATSU 6DC-17A Rated Output: 480Kw Rated Speed: 900rpm No. of Cylinder: 6 Cylinder Bore x Stroke: 170mm x 270mm Starting System: Air Motor Firing Order: 1-5-3-6-2-4-1 Turbocharger: IHI AT14-16 (Serial No: AT450610) Governor: BOSCH Model: RHD6-MC | AH115: TOTAL | AJ115: =SUM(AJ113:AJ114) -> 350.2 | AL115: Aux Engine Alternators | AM115: Type: Brushless Model: FE541B-8 Maker: TAIYO ELECTRIC CO., LTD. | AP115: FO Purifier Feed Pump | AQ115: ATTACHED PUMP | AX115: Aux Engine No. 1 (Engine Number: DC517Z0546) | AY115: Model: DAIHATSU 5DC-17A Rated Output: 440Kw Rated Speed: 900rpm No. of Cylinder: 6 Cylinder Bore x Stroke: 170mm x 270mm Starting System: Air Motor Firing Order: 1-5-3-6-2-4-1 Turbocharger:MAN B&W NR12/S052 (Serial No: 7020787) Governor: BOSCH Model: RHD6-MC | BB115: Aux Engine No. 1 (Engine Number:DC617A0443) | BC115: Model: DAIHATSU 6DC-17A Rated Output: 480Kw Rated Speed: 900rpm No. of Cylinder: 6 Cylinder Bore x Stroke: 170mm x 270mm Starting System: Air Motor Firing Order: 1-5-3-6-2-4-1 Turbocharger: IHI Corp, AT14-16 (Serial No: AT450332) Governor: BOSCH (ZEXEL) Model: RHD6-MC | BF115: FW Hydrophore Pump | BG115: Maker: DESMI Type: 4A90S-2 B14A ID:2800422618 | BJ115: FW Hydrophore Pump | BK115: MAKER: TAIKO KIKAI IND. CO LTD TYPE TMC- 32MT | BN115: Cargo Crane #2 | BO115: Make & Model: Mitsubishi Heavy Industries, Ltd. 30.5T X 26M Serial No: HDC 6812 | BR115: Cargo Hold dimensions | BV115: Cargo Crane #3 | BW115: Make & Model: IKNOW Machinery Co Ltd 30tx26M/R Serial No: 106684 | BZ115: Hot Water Circulating Pump | CA115: MAKER: TAIKO KIKAI INDUSTRIES CO., LTD. TYPE:HORIZONTAL CENTRIFUGAL MODEL:TMC-32 | CD115: Hot Water Circulating Pump | CE115: MAKER: HARISON SANGYO CO., LTD/ MODEL CFL-2000-S | CH115: Cargo Hold dimensions | CL115: Crago Crane #4 | CM115: Make & Model: Mitsubishi Heavy Industries, Ltd. 30.5T X 26M Serial No: HDC 6945 | CP115: Cargo Hold dimensions | CT115: Cargo Hold dimensions | CX115: Cargo Hold #3 | CY115: 21.0M X 18.92M
J116: Cargo Crane #1 | K116: Make: IHI Corp (H30T Single Deck Crane) Type: H305190-240(20') | N116: Cargo Hold #5 | O116: 19.2m x 17.6m | R116: Cargo Hold #1 | S116: 21.00m x 18.50m | V116: Cargo Hold #1 | W116: 21.00m x 18.50m | Z116: Aux Engine No. 2 (Engine Number: DC617A0546 ) | AA116: Model: DAIHATSU 6DC-17A Rated Output: 480Kw Rated Speed: 900rpm No. of Cylinder: 6 Cylinder Bore x Stroke: 170mm x 270mm Starting System: Air Motor Firing Order: 1-5-3-6-2-4-1 Turbocharger: IHI AT14-16 (Serial No: AT450611) Governor: BOSCH Model: RHD6-MC | AD116: Crane specifications | AL116: Refrigeration Compressor | AM116: TYPE: 2DES-2Y-40S MAKER: BITZER KUHLMASCHINENBAU GMBH | AP116: ME LO Purifier Feed Pump | AQ116: TYPE: NHG-2 MAKER: TAIKO KIKAI INDUSTRIES CO., LTD. | AT116: Cargo Hold dimensions | AX116: Aux Engine No. 2 (Engine Number: DC517Z0547) | AY116: Model: DAIHATSU 5DC-17A Rated Output: 440Kw Rated Speed: 900rpm No. of Cylinder: 6 Cylinder Bore x Stroke: 170mm x 270mm Starting System: Air Motor Firing Order: 1-5-3-6-2-4-1 Turbocharger:MAN B&W NR12/S052 (Serial No: 7020788) Governor: BOSCH Model: RHD6-MC | BB116: Aux Engine No. 2 (Engine Number:DC617A0444) | BC116: Model: DAIHATSU 6DC-17A Rated Output: 480Kw Rated Speed: 900rpm No. of Cylinder: 6 Cylinder Bore x Stroke: 170mm x 270mm Starting System: Air Motor Firing Order: 1-5-3-6-2-4-1 Turbocharger: IHI Corp, AT14-16 (Serial No: AT450333) Governor: BOSCH (ZEXEL) Model: RHD6-MC | BF116: Hot Water Circulating Pump | BG116: Maker: DESMI Type: DPV 2/2 B | BJ116: Hot Water Circulating Pump | BK116: MAKER: TAIKO KIKAI IND. CO LTD TYPE TMCS - 32 MT | BN116: Cargo Crane #3 | BO116: Make & Model: Mitsubishi Heavy Industries, Ltd. 30.5T X 26M Serial No: HDC 6813 | BR116: Cargo Hold #1 | BS116: 17.64m x 19.20m | BV116: Crago Crane #4 | BW116: Make & Model: IKNOW Machinery Co Ltd 30tx26M/R Serial No: 106685 | CH116: Cargo Hold #1 | CI116: 14.40m x 17.60m | CL116: Engine Room Crane | CM116: Make: KOEI 3T x 4.3M Span Type: KCD30N-4.3E | CP116: Cargo Hold #1 | CQ116: 15.2m x 16.0m | CT116: Cargo Hold #1 | CU116: 16.0m x 15.9m | CX116: Cargo Hold #4 | CY116: 21.875M X 18.92M
J117: Cargo Crane #2 | K117: Make: IHI Corp (H30T Single Deck Crane) Type: H305190-240(20') | R117: Cargo Hold #2 | S117: 21.00m x 18.50m | V117: Cargo Hold #2 | W117: 21.00m x 18.50m | Z117: Aux Engine No. 3 (Engine Number:DC617A0547 ) | AA117: Model: DAIHATSU 6DC-17A Rated Output: 480Kw Rated Speed: 900rpm No. of Cylinder: 6 Cylinder Bore x Stroke: 170mm x 270mm Starting System: Air Motor Firing Order: 1-5-3-6-2-4-1 Turbocharger: IHI AT14-16 (Serial No: AT450612) Governor: BOSCH Model: RHD6-MC | AD117: Cargo Crane #1 | AE117: Make & Model: IKNOW Machinery Co Ltd 30tx26M/R Serial No: 106682 | AH117: Machinery specifications | AL117: A.C Compressor | AM117: TYPE: 4GE-30Y-40P MAKER: BITZER KUHLMASCHINENBAU GMBH | AP117: AE LO Purifier Feed Pump | AQ117: TYPE: NHG-2 MAKER: TAIKO KIKAI INDUSTRIES CO., LTD. | AT117: Cargo Hold #1 | AU117: 15.2m x 16.0m | AX117: Emergency Engine Generator | AY117: Engine Model: Mitsui Zosen Machinery Deutz Air Cooled Diesel Engine BF6L913 Engine Rated Output: 99Kw Rated Speed: 1800rpm No. of Cylinder : 6 Cylinder Bore x Stroke: 102mm x 125mm Generator Model: NISHISHIBA ELECTRIC , NTAKL-VEK Generator Output: 100KvA No. of phase: 3 Freq,Voltage & Power factor: 60Hz, 450V & 0.8 | BB117: Aux Engine No. 3 (Engine Number:DC617A0445) | BC117: Model: DAIHATSU 6DC-17A Rated Output: 480Kw Rated Speed: 900rpm No. of Cylinder: 6 Cylinder Bore x Stroke: 170mm x 270mm Starting System: Air Motor Firing Order: 1-5-3-6-2-4-1 Turbocharger: IHI Corp, AT14-16 (Serial No: AT450334) Governor: BOSCH (ZEXEL) Model: RHD6-MC | BN117: Crago Crane #4 | BO117: Make & Model: Mitsubishi Heavy Industries, Ltd. 30.5T X 26M Serial No: HDC 6814 | BR117: Cargo Hold #2 | BS117: 23.52m x 19.20m | BV117: Engine Room Crane | BW117: Make: TOYO HOIST MFG.CO. ,LTD Type: SS-3T | BZ117: Cargo Hold dimensions | CD117: Cargo Hold dimensions | CH117: Cargo Hold #2 | CI117: 20.00m x 19.20m | CL117: Misc Crane | CM117: Make: KOEI 3T x 11.5M Type KCT-30N-11.5NE | CP117: Cargo Hold #2 | CQ117: 20.8m x 20.8m | CT117: Cargo Hold #2 | CU117: 20.8m x 23.8m | CX117: Cargo Hold #5 | CY117: 21.875M X 18.92M
J118: Cargo Crane #3 | K118: Make: IHI Corp (H30T Single Deck Crane) Type: H305190-240(20') | N118: Crane specifications | R118: Cargo Hold #3 | S118: 21.00m x 18.50m | V118: Cargo Hold #3 | W118: 21.00m x 18.50m | Z118: Emergency Engine Generator | AA118: Engine Model: Mitsui Zosen Machinery Deutz Air Cooled Diesel Engine TD914L06M Engine Rated Output: 99Kw Rated Speed: 1800rpm No. of Cylinder : 6 Cylinder Bore x Stroke: 102mm x 136mm Generator Model: Taiyo Electric Mfg Co Ltd ATW 25C Generator Output: 100KvA No. of phase: 3 Freq,Voltage & Power factor: 60Hz, 450V & 0.8 | AD118: Cargo Crane #2 | AE118: Make & Model: IKNOW Machinery Co Ltd 30tx26M/R Serial No: 106683 | AH118: ME LO Purifier | AI118: GEA Westfalia OSD6-91-067 | AL118: E.C.R. AIR CON | AM118: Model: UAP-2HS4PL4-1 Maker: USHIO REINETSU CO., LTD. | AP118: LO Transfer Pump | AQ118: N.A | AT118: Cargo Hold #2 | AU118: 20.8m x 20.8m | BB118: Emergency Engine Generator | BC118: Engine Model: Mitsui Zosen Machinery Deutz Air Cooled Diesel Engine B6L913 Engine Rated Output: 99Kw Rated Speed: 1800rpm No. of Cylinder : 6 Cylinder Bore x Stroke: 102mm x 125mm Generator Model: Taiyo Electric Co Ltd, ATW-25C Generator Output: 100KvA No. of phase: 3 Freq,Voltage & Power factor: 60Hz, 450V & 0.8 | BF118: Cargo Hold dimensions | BJ118: Cargo Hold dimensions | BN118: Engine Room Crane | BO118: Make: KOEI 3T x 4.3M Span Type: KCD30N-4.3E | BR118: Cargo Hold #3 | BS118: 23.52m x 19.20m | BV118: 2.3T F.O Hose, Prov., Small Parts Handling Davit | BW118: Make: SHIN MYUNG TECH Co., Ltd. 2.3T x 23M | BZ118: Cargo Hold #1 | CA118: 13.6m x 16.0m | CD118: Cargo Hold #1 | CE118: 15.2m x 16.0m | CH118: Cargo Hold #3 | CI118: 20.00m x 19.20m | CP118: Cargo Hold #3 | CQ118: 20.8m x 20.8m | CT118: Cargo Hold #3 | CU118: 20.8m x 23.8m
J119: Crago Crane #4 | K119: Make: IHI Corp (H30T Single Deck Crane) Type: H305190-240(20') | N119: Cargo Crane #1 | O119: MITSUBISHI HEAVY INDUSTRIES 30.5T x 22M | R119: Cargo Hold #4 | S119: 21.00m x 18.50m | V119: Cargo Hold #4 | W119: 21.00m x 18.50m | AD119: Cargo Crane #3 | AE119: Make & Model: IKNOW Machinery Co Ltd 30tx26M/R Serial No: 106684 | AH119: AE LO Purifier | AI119: GEA Westfalia OSD6-91-067 | AL119: Service Air Compressor | AM119: NA | AP119: Cyl. LO Transfer Pump | AQ119: N.A | AT119: Cargo Hold #3 | AU119: 20.8m x 20.8m | AX119: Boiler | BF119: Cargo Hold #1 | BG119: 14.40m x 17.60m | BJ119: Cargo Hold #1 | BK119: 14.40m x 17.60m | BN119: Misc Crane | BO119: Make: KOEI 3T x 11.5M Type KCT-30N-11.5NE | BR119: Cargo Hold #4 | BS119: 23.52m x 19.20m | BV119: 0.5 T F.O Hose, Provision Handling Davit | BW119: Make: SHIN MYUNG TECH Co., Ltd. 0.5T x 22M | BZ119: Cargo Hold #2 | CA119: 19.2m x 17.6m | CD119: Cargo Hold #2 | CE119: 20.8m x 20.8m | CH119: Cargo Hold #4 | CI119: 20.00m x 19.20m | CL119: Winch Specs | CP119: Cargo Hold #4 | CQ119: 20.8m x 20.8m | CT119: Cargo Hold #4 | CU119: 20.8m x 23.8m | CX119: Crane specifications
J120: Engine Room Crane | K120: Make: Toyo Hoist MFG. Co. Ltd 3.7 Ton Overhead Crane Type:SS-3.7T | N120: Cargo Crane #2 | O120: MITSUBISHI HEAVY INDUSTRIES 30.5T x 22M | R120: Cargo Hold #5 | S120: 21.00m x 18.50m | V120: Cargo Hold #5 | W120: 21.00m x 18.50m | Z120: Boiler | AD120: Crago Crane #4 | AE120: Make & Model: IKNOW Machinery Co Ltd 30tx26M/R Serial No: 106685 | AH120: HFO Purifier | AI120: GEA Westfalia OSD18-0136-067 | AL120: Sea Water Cooling Pump | AM120: Type: VERTICAL CENTRIFUGAL WITH AIE EJECTOR Model: RVD450EN Maker: HEISHIN PUMP WORKS CO., LTD. | AP120: Composite Boiler Feed Pump | AQ120: TYPE: 50-2MSH-A MAKER: TEIKUKO MACHINERY WORK LTD. | AT120: Cargo Hold #4 | AU120: 20.8m x 20.8m | AX120: Composite Boiler (Aux Boiler) (Boiler number:14161 ) | AY120: Boiler Model: Osaka Boiler Mfg Co. Ltd .OVS2-100/75-23 (Vertical Composite Boiler) Evaporation: 1000kg/h Design Pressure: 0.78MPa Normal Working Pressure: 0.69MPa Fuel Consumption: 83kg/h Burner Unit Model: Pressure Jet System, Volcano Co. Ltd VJP-90-3 Combustion Capacity: 87kg/h FO Pressure: 1.86 MPa FO Pump Model: Trochiodal Gear Type | BB120: Boiler | BF120: Cargo Hold #2 | BG120: 20.00m x 19.20m | BJ120: Cargo Hold #2 | BK120: 20.00m x 19.20m | BR120: Cargo Hold #5 | BS120: 23.52m x 19.20m | BZ120: Cargo Hold #3 | CA120: 19.2m x 17.6m | CD120: Cargo Hold #3 | CE120: 20.8m x 20.8m | CH120: Cargo Hold #5 | CI120: 18.40m x 19.20m | CL120: Mooring Winch & Windlass Port | CM120: Make: Kawasaki Heavy Industries Ltd., Hyd. Pump Make & Type: Kawasaki Heavy Industries Ltd. K3VG180 | CP120: Cargo Hold #5 | CQ120: 20.8m x 20.8m | CT120: Cargo Hold #5 | CU120: 20.8m x 23.8m | CX120: Cargo Crane #1 | CY120: MHI 30MT X 26M / 28.6M ( R) S/N: HDC7602
J121: Misc Crane | K121: Make: Mansei Inc 2.5t x 4.6MR Type: RD-2546P | N121: Cargo Crane #3 | O121: MITSUBISHI HEAVY INDUSTRIES 30.5T x 22M | Z121: Composite Boiler (Aux Boiler) (Boiler number: 14812) | AA121: Boiler Model: Osaka Boiler Mfg Co. Ltd .OVS2-l00/75-23 (Vertical Composite Boiler) Evaporation: 1000kg/h Design Pressure: 0.78MPa Normal Working Pressure: 0.69MPa Fuel Consumption: 83kg/h Burner Unit Model: Pressure Jet System, Volcano Co. Ltd MJII-90-3 Combustion Capacity: 87kg/h FO Pressure: 1.86 MPa FO Pump Model: Trochiodal Gear Type | AD121: Engine Room Crane | AE121: Make: TOYO HOIST MFG.CO. ,LTD Type: SS-3T | AH121: Fresh Water Generator | AI121: GEA Westfalia Model: SWD20-85 | AL121: ME HT Cooling FW Pump | AM121: TYPE: VOLUTE PUMP MODEL: HLY-55MN MAKER: HEISHIN PUMP WORKS CO., LTD. | AP121: FW Hydrophore Pump | AQ121: TYPE: 50MSS-JV1 MAKER: TEIKUKO MACHINERY WORK LTD. | AT121: Cargo Hold #5 | AU121: 20.8m x 20.8m | BB121: Composite Boiler (Aux Boiler) (Boiler number: ) | BC121: Boiler Model: Osaka Boiler Mfg Co. Ltd .OVS2-100/75-23 (Vertical Composite Boiler) Evaporation: 1000kg/h Design Pressure: 0.78MPa Normal Working Pressure: 0.69MPa Fuel Consumption: 83kg/h Burner Unit Model: Pressure Jet System, Volcano Co. Ltd MJII-90--3 Combustion Capacity: 87kg/h FO Pressure: 1.86 MPa FO Pump Model: Trochiodal Gear Type | BF121: Cargo Hold #3 | BG121: 20.00m x 19.20m | BJ121: Cargo Hold #3 | BK121: 20.00m x 19.20m | BN121: Winch Specs | BV121: Winch Specification | BZ121: Cargo Hold #4 | CA121: 19.2m x 17.6m | CD121: Cargo Hold #4 | CE121: 20.8m x 20.8m | CL121: Mooring Winch & Windlass Stbd | CM121: Make: Kawasaki Heavy Industries Ltd., Hyd. Pump Make & Type: Kawasaki Heavy Industries Ltd. K3VG180 | CX121: Cargo Crane #2 | CY121: MHI 30MT X 26M ( R ) S/N: HDC7603
N122: Crago Crane #4 | O122: MITSUBISHI HEAVY INDUSTRIES 30.5T x 24M | R122: Crane specifications | V122: Crane specifications | AD122: 2.3T F.O Hose, Prov., Small Parts Handling Davit | AE122: Make: SHIN MYUNG TECH Co., Ltd. 2.3T x 23M | AH122: Air Compressor | AI122: JP. Sauer & Sohn WP200 | AL122: ME LO Pump | AM122: Type: VERTICAL CENTRIFUGAL (Deep Well) Model: SMY-150NA Maker: HEISHIN PUMP WORKS CO., LTD. | AP122: Hot Water Circulating Pump | AQ122: TYPE: 50MSS-AH1 MAKER: TEIKUKO MACHINERY WORK LTD. | BF122: Cargo Hold #4 | BG122: 20.00m x 19.20m | BJ122: Cargo Hold #4 | BK122: 20.00m x 19.20m | BN122: Mooring Winch & Windlass Port | BO122: Make: Kawasaki Heavy Industries Ltd., Hyd. Pump Make & Type: Kawasaki Heavy Industries Ltd. K3VG180 | BR122: Crane specifications | BV122: Mooring Winch & Windlass Port | BW122: Make: NIPPON PUSNES CO., LTD. Type: 18CU + NS130HW | BZ122: Cargo Hold #5 | CA122: 19.2m x 17.6m | CD122: Cargo Hold #5 | CE122: 20.8m x 20.8m | CH122: Crane specifications | CL122: Mooring Winch Port | CM122: Make: Kawasaki Heavy Industries Ltd., Hyd. Pump Make & Type: Kawasaki Heavy Industries Ltd. K3VG112 | CP122: Crane specifications | CT122: Crane specifications | CX122: Cargo Crane #3 | CY122: MHI 30MT X 26M ( R ) S/N: HDC7604
J123: Winch Specs | N123: Engine Room Crane | O123: Sekigahara Seisakusho Ltd, 2T Type:MSA-02055 | R123: Cargo Crane #1 | S123: Make & Model: Mitsubishi Heavy Industries, Ltd. 30T X 26M Serial No: HDC6815 | V123: Cargo Crane #1 | W123: Make & Model: Mitsubishi Heavy Industries, Ltd. 30T X 26M | AD123: 0.5 T F.O Hose, Provision Handling Davit | AE123: Make: SHIN MYUNG TECH Co., Ltd. 0.5T x 22M | AH123: Stern Seal | AI123: Blom & Voss Type: SC2M+SC2Z | AL123: FO Supply Pump | AM123: Type: VERTICAL GEAR Model: TG50-601TL Maker: HEISHIN PUMP WORKS CO., LTD. | AT123: Crane specifications | BF123: Cargo Hold #5 | BG123: 18.40m x 19.20m | BJ123: Cargo Hold #5 | BK123: 18.40m x 19.20m | BN123: Mooring Winch & Windlass Stbd | BO123: Make: Kawasaki Heavy Industries Ltd., Hyd. Pump Make & Type: Kawasaki Heavy Industries Ltd. K3VG180 | BR123: Cargo Crane #1 | BS123: Make & Model: IKNOW Machinery Co Ltd (IHI MACHINERY) TYPE: H350185-260(25⁰)B | BV123: Mooring Winch & Windlass Stbd | BW123: Make: NIPPON PUSNES CO., LTD. Type: 18CU + NS130HW | CH123: Cargo Crane #1 | CI123: MASADA-MITSUBISHI Jiangsu Masada Heavy Industries Co., Ltd Type:30.5x24® | CL123: Mooring Winch Stbd | CM123: Make: Kawasaki Heavy Industries Ltd., Hyd. Pump Make & Type: Kawasaki Heavy Industries Ltd. K3VG112 | CP123: Cargo Crane #1 | CQ123: Make: IHI Corp (H30T Single Deck Crane) Type: H305190-240(20') | CT123: Cargo Crane #1 | CU123: Make: MITSUBISHI HYDRAULIC DECK CRANE 30. 5t x 24m (R) | CX123: Crago Crane #4 | CY123: MHI 30MT X 26M ( R ) S/N: HDC7605
J124: Mooring Winch & Windlass Port | K124: Make: IHI Corp Type: K64WL3K | N124: Provision Crane (2set) | O124: Sekigahara Seisakusho Ltd 1.5Tx3.8m/r (TYPE: EEO-015038) , 0.9Tx3.8m/r (TYPE:EEO-01038) | R124: Cargo Crane #2 | S124: Make & Model: Mitsubishi Heavy Industries, Ltd. 30T X 26M Serial No: HDC6816 | V124: Cargo Crane #2 | W124: Make & Model: Mitsubishi Heavy Industries, Ltd. 30T X 26M | AH124: Sewage Treatment Plant | AI124: WCB10-30-Jiangsu Nanji Machinery Co. Ltd. | AL124: FO Circulating Pump | AM124: Type: VERTICAL GEAR Model: TG80-702L Maker: HEISHIN PUMP WORKS CO., LTD. | AP124: Cargo Hold dimensions | AT124: Cargo Crane #1 | AU124: Make: IHI Corp (H30T Single Deck Crane) 22TYPE | BN124: Mooring Winch Port | BO124: Make: Kawasaki Heavy Industries Ltd., Hyd. Pump Make & Type: Kawasaki Heavy Industries Ltd. K3VG112 | BR124: Cargo Crane #2 | BS124: Make & Model: IKNOW Machinery Co Ltd (IHI MACHINERY) TYPE: H350185-260(25⁰)B | BV124: Mooring Winch Port | BW124: Make: NIPPON PUSNES CO., LTD. Type: NS130HW | BZ124: Crane specifications | CD124: Crane specifications | CH124: Cargo Crane #2 | CI124: MASADA-MITSUBISHI Jiangsu Masada Heavy Industries Co., Ltd Type:30.5x24® | CP124: Cargo Crane #2 | CQ124: Make: IHI Corp (H30T Single Deck Crane) Type: H305190-240(20') | CT124: Cargo Crane #2 | CU124: Make: MITSUBISHI HYDRAULIC DECK CRANE 30. 5t x 24m (R) | CX124: Engine Room Crane | CY124: SEKIGAHARA SEISAKUSHO 2.5MT ER CRANE TYPE: MBA-025058
J125: Mooring Winch & Windlass Stbd | K125: Make: IHI Corp Type: K64WL3K | R125: Cargo Crane #3 | S125: Make & Model: Mitsubishi Heavy Industries, Ltd. 30T X 26M Serial No: HDC6817 | V125: Cargo Crane #3 | W125: Make & Model: Mitsubishi Heavy Industries, Ltd. 30T X 26M | AD125: Winch Specs | AH125: Oily Water Separator | AI125: Taiko Kangda USH-50 | AL125: HFO Transfer Pump | AM125: Type: VERTICAL GEAR Model: MGA30-1WL Maker: HEISHIN PUMP WORKS CO., LTD. | AP125: Cargo Hold #1 | AQ125: 16.72m x 18.37m | AT125: Cargo Crane #2 | AU125: Make: IHI Corp (H30T Single Deck Crane) 22TYPE | BF125: Areas | BJ125: Crane specifications | BN125: Mooring Winch Stbd | BO125: Make: Kawasaki Heavy Industries Ltd., Hyd. Pump Make & Type: Kawasaki Heavy Industries Ltd. K3VG112 | BR125: Cargo Crane #3 | BS125: Make & Model: IKNOW Machinery Co Ltd (IHI MACHINERY) TYPE: H350185-260(25⁰)B | BV125: Mooring Winch Stbd | BW125: Make: NIPPON PUSNES CO., LTD. Type: NS130HW | BZ125: Cargo Crane #1 | CA125: MITSUBISHI HEAVY INDUSTRIES 30.5T x 22M | CD125: Cargo Crane #1 | CE125: Make: IHI Corp (H30T Single Deck Crane) Type: H305190-240(20') | CH125: Cargo Crane #3 | CI125: MASADA-MITSUBISHI Jiangsu Masada Heavy Industries Co., Ltd Type:30.5x24® | CL125: Aux Eng (including Emergency Generator) | CP125: Cargo Crane #3 | CQ125: Make: IHI Corp (H30T Single Deck Crane) Type: H305190-240(20') | CT125: Cargo Crane #3 | CU125: Make: MITSUBISHI HYDRAULIC DECK CRANE 30. 5t x 24m (R) | CX125: Provision Crane (2set) | CY125: KYORITSU KIKAI PCA-0241 HOISTING: 1SET(PORT) 24.5KN X R9.2M X ABT 10M/MIN, 7.5KW X 4P SLWING: ABT 0.4RPM, 1.5KW X 4P
J126: Mooring Winch Port | K126: Make: IHI Corp Type: 118kN MOORING WINCH | N126: Winch Specs | R126: Crago Crane #4 | S126: Make & Model: Mitsubishi Heavy Industries, Ltd. 30T X 26M Serial No: HDC6818 | V126: Crago Crane #4 | W126: Make & Model: Mitsubishi Heavy Industries, Ltd. 30T X 26M | AD126: Mooring Winch & Windlass Port | AE126: Make: NIPPON PUSNES CO., LTD. Type: 18CU + NS130HW | AH126: Steering Gear | AI126: Hatlapa Type: R4 LG-380 | AL126: Fire / GS Pump | AM126: Type: VERTICAL CENTRIFUGAL WITH AIR EJECTOR Maker: HEISHIN PUMP WORKS CO., LTD. | AP126: Cargo Hold #2 | AQ126: 20.24m x 18.37m | AT126: Cargo Crane #3 | AU126: Make: IHI Corp (H30T Single Deck Crane) 22TYPE | BF126: Topside | BG126: 2050m2 | BJ126: Cargo Crane #1 | BK126: IHI-WMMP Type: H305190-240 | BR126: Crago Crane #4 | BS126: Make & Model: IKNOW Machinery Co Ltd (IHI MACHINERY) TYPE: H350185-260(25⁰)B (H280185-280(12.7⁰) | BV126: Pump Station | BW126: Make: NIPPON PUSNES CO LTD Type:N2K x 140K | BZ126: Cargo Crane #2 | CA126: MITSUBISHI HEAVY INDUSTRIES 30.5T x 22M | CD126: Cargo Crane #2 | CE126: Make: IHI Corp (H30T Single Deck Crane) Type: H305190-240(20') | CH126: Crago Crane #4 | CI126: MASADA-MITSUBISHI Jiangsu Masada Heavy Industries Co., Ltd Type:30.5x24® | CL126: Aux Engine No. 1 (Engine Number: 7100FXG) | CM126: Model: YANMAR 6EY18ALW x 500Kw Rated Output: 550Kw Rated Speed: 900rpm No. of Cylinder: 6 Cylinder Bore x Stroke: 180mm x 280mm Starting System: Air Motor Firing Order: 1-4-2-6-3-5-1 Turbocharger: MET 18SRC (Serial No: 99200) Governor: Yanmar Co., Ltd. Model: NZ61 | CP126: Crago Crane #4 | CQ126: Make: IHI Corp (H30T Single Deck Crane) Type: H305190-240(20') (H200190-272(10.6)) | CT126: Crago Crane #4 | CU126: Make: MITSUBISHI HYDRAULIC DECK CRANE 30. 5t x 24m (R)
J127: Mooring Winch Stbd | K127: Make: IHI Corp Type: 118kN MOORING WINCH | N127: Mooring Winch & Windlass Port | O127: MITSUBISHI HEAVY INDUSTRIES 181kN x 9m/min | R127: Engine Room Crane | S127: Make: SEKIGAHARA SEISAKUSHO LTD. Type:MBA-025057 | V127: Engine Room Crane | W127: Make: SEKIGAHARA SEISAKUSHO LTD. Type:MBA-025057 | AD127: Mooring Winch & Windlass Stbd | AE127: Make: NIPPON PUSNES CO., LTD. Type: 18CU + NS130HW | AH127: Ballast Water Treatment Plant | AI127: DESMI A/S Compact Clean 750 S/N: 473741-01-01 / 473741-01-02 | AL127: Emergency Fire Pump | AM127: Type: VOLUTE PUMP MODEL: RDY-80R MAKER: HEISHIN PUMP WORKS CO., LTD | AP127: Cargo Hold #3 | AQ127: 20.24m x 18.37m | AT127: Crago Crane #4 | AU127: Make: IHI Corp (H30T Single Deck Crane) 22TYPE | BF127: Boot top | BG127: 3379m2 | BJ127: Cargo Crane #2 | BK127: IHI-WMMP Type: H305190-240 | BN127: Aux Eng (including Emergency Generator) | BR127: Engine Room Crane | BS127: Make: TOYO HOIST MFG.CO. ,LTD 3T Overhead crane | BZ127: Cargo Crane #3 | CA127: MITSUBISHI HEAVY INDUSTRIES 30.5T x 22M | CD127: Cargo Crane #3 | CE127: Make: IHI Corp (H30T Single Deck Crane) Type: H305190-240(20') | CH127: Engine Room Crane | CI127: JIANGYINSHI HUASHENG SHIP MACHINERY CO., LTD (2t ENGINE ROOM CRANE) Type:479SC503-00SM | CL127: Aux Engine No. 2 (Engine Number: 7101FXG) | CM127: Model: YANMAR 6EY18ALW x 500Kw Rated Output: 550Kw Rated Speed: 900rpm No. of Cylinder: 6 Cylinder Bore x Stroke: 180mm x 280mm Starting System: Air Motor Firing Order: 1-4-2-6-3-5-1 Turbocharger: MET 18SRC (Serial No: 99201) Governor: Yanmar Co., Ltd. Model: NZ61 | CP127: Engine Room Crane | CQ127: Make: Toyo Hoist MFG. Co. Ltd 3.7 Ton Overhead Crane Type:SS-3.7T | CT127: Engine Room Crane | CU127: Make: KOEI SANGYO CO., LTD. Type:KCD30N-2.7SE 3Tonx 2.7SM SPAN | CX127: Winch Specs
J128: Pump Station | K128: Make: IHI Corp Type: T7DS - B31(Fore Group) T6C-022(Aft Group) | N128: Mooring Winch & Windlass Stbd | O128: MITSUBISHI HEAVY INDUSTRIES 181kN x 9m/min | R128: Provision Crane | S128: Make: Mansei Inc 2.0t X 4.8mr Type: RD-2084PL | V128: Provision Crane | W128: Make: Mansei Inc 2.0t X 4.8mr Type: RD-2084PL | AD128: Mooring Winch Port | AE128: Make: NIPPON PUSNES CO., LTD. Type: NS130HW | AH128: Propeller | AI128: SHANGHAI BESTWAY MARINE ENGINEERING DESIGN CO. LTD NO. OF BLADE: 4 SCREW SERIES: MAU | AL128: DO Transfer Pump | AM128: Type: VERTICAL GEAR Model: MGB-5PB Maker: HEISHIN PUMP WORKS CO., LTD. | AP128: Cargo Hold #4 | AQ128: 20.24m x 18.37m | AT128: Engine Room Crane | AU128: Make: Toyo Hoist MFG. Co. Ltd 3.7 Ton Overhead Crane Type:SS-3.7T | BF128: Vertical side | BG128: 2144m2 | BJ128: Cargo Crane #3 | BK128: IHI-WMMP Type: H305190-240 | BN128: Aux Engine No. 1 (Engine Number: 6714FXG) | BO128: Model: YANMAR 6EY18ALW x 500Kw Rated Output: 550Kw Rated Speed: 900rpm No. of Cylinder: 6 Cylinder Bore x Stroke: 180mm x 280mm Starting System: Air Motor Firing Order: 1-4-2-6-3-5-1 Turbocharger: MET 18SRC (Serial No: 98695) Governor: Yanmar Co., Ltd. Model: NZ61 | BR128: Provision crane | BS128: Maker: MANSEI Inc. Type: RD-30115PL | BV128: Aux Eng (including Emergency Generator) | BZ128: Crago Crane #4 | CA128: MITSUBISHI HEAVY INDUSTRIES 30.5T x 24M | CD128: Crago Crane #4 | CE128: Make: IHI Corp (H30T Single Deck Crane) Type: H305190-240(20') (H200190-272(10.6)) | CH128: Hydraulic Slewing Crane | CI128: JIANGSU JIAOYAN MARINE EQUIPMENT CO. LTD. JYC0105 HYDRAULIC SLEWING CRANE | CL128: Aux Engine No. 3 (Engine Number: 7102FXG) | CM128: Model: YANMAR 6EY18ALW x 500Kw Rated Output: 550Kw Rated Speed: 900rpm No. of Cylinder: 6 Cylinder Bore x Stroke: 180mm x 280mm Starting System: Air Motor Firing Order: 1-4-2-6-3-5-1 Turbocharger: MET 18SRC (Serial No: 99202) Governor: Yanmar Co., Ltd. Model: NZ61 | CP128: Misc Crane | CQ128: Make: Mansei Inc 2.5t x 4.4MR Type: RD-2544P | CT128: Misc Crane | CU128: Make: KOEI SANGYO CO., LTD. Type: KCT20-8.5NE 2.0 Ton X 8.5 MR | CX128: Mooring Winch & Windlass Port | CY128: NIPPON PUSNES NS130HW & I-18CU
N129: Mooring Winch Port | O129: MITSUBISHI HEAVY INDUSTRIES 98kN x 15m/min | AD129: Mooring Winch Stbd | AE129: Make: NIPPON PUSNES CO., LTD. Type: NS130HW | AH129: Incinerator | AI129: Luzhou Teamtec Marine Incinerator CSSC-LZ Type OG200C | AL129: FO Purifier Feed Pump | AM129: ATTACHED PUMP | AP129: Cargo Hold #5 | AQ129: 20.24m x 18.37m | AT129: Spare Part Handling Crane | AU129: Make: Mansei Inc 2.5t x 4.4MR Type: RD-2544P | BF129: Flat bottom | BG129: 3004m2 | BJ129: Crago Crane #4 | BK129: IHI-WMMP Type: H305190-240 | BN129: Aux Engine No. 2 (Engine Number: 6715FXG) | BO129: Model: YANMAR 6EY18ALW x 500Kw Rated Output: 550Kw Rated Speed: 900rpm No. of Cylinder: 6 Cylinder Bore x Stroke: 180mm x 280mm Starting System: Air Motor Firing Order: 1-4-2-6-3-5-1 Turbocharger: MET 18SRC (Serial No: 98696) Governor: Yanmar Co., Ltd. Model: NZ61 | BR129: Hose Handling davit | BS129: Maker: MANSEI Inc. Type: RD-0515JT | BV129: Aux Engine No. 1 (Engine Number: 7252FXG ) | BW129: Model: YANMAR 6EY18ALW x 520Kw Rated Output: 615Kw Rated Speed: 900rpm No. of Cylinder: 6 Cylinder Bore x Stroke: 180mm x 280mm Starting System: Air Motor Firing Order: 1-4-2-6-3-5-1 Turbocharger: MET 18SRC (Serial No: 99851) Governor: Yanmar Co., Ltd. Model: NZ61 | BZ129: Engine Room Crane | CA129: Sekigahara Seisakusho Ltd, 2T Type:MSA-02055 | CD129: Engine Room Crane | CE129: Make: Toyo Hoist MFG. Co. Ltd 3.7 Ton Overhead Crane Type:SS-3.7T | CL129: Emergency Engine Generator | CM129: Engine Model: Mitsui Zosen Machinery Deutz Air Cooled Diesel Engine TCD914L06M Engine Rated Output: 129Kw Rated Speed: 1800rpm No. of Cylinder : 6 Cylinder Bore x Stroke: 102mm x 132mm Generator Model: Cummins Generator Techonologies UC.M274F1 Generator Output: 120KvA No. of phase: 3 Freq,Voltage & Power factor: 60Hz, 450V & 0.8 | CX129: Mooring Winch & Windlass Stbd | CY129: NIPPON PUSNES NS130HW & I-18CU
J130: Aux Eng (including Emergency Generator) | N130: Mooring Winch Stbd | O130: MITSUBISHI HEAVY INDUSTRIES 98kN x 15m/min | R130: Winch Specs | V130: Winch Specs | AD130: Pump Station | AE130: Make: NIPPON PUSNES CO LTD Type:N2K x 140K | AH130: Valve Remote Control System | AI130: NORDIC FLOW CONTROL Pte Ltd. MODEL: No. HPU - 150 SN: 2008-2488 TAG No. 093SGP093 | AL130: ME LO Purifier Feed Pump | AM130: TYPE: GEAR PUMP MODEL: MGB-2PB MAKER: HEISHIN PUMP WORKS CO., LTD | BF130: Main deck | BJ130: Engine Room Crane | BK130: JIANGYIN OYA MARINE MACHINERY 2T crane Type: HM-C2-12A1 | BN130: Aux Engine No. 3 (Engine Number: 6716FXG) | BO130: Model: YANMAR 6EY18ALW x 500Kw Rated Output: 550Kw Rated Speed: 900rpm No. of Cylinder: 6 Cylinder Bore x Stroke: 180mm x 280mm Starting System: Air Motor Firing Order: 1-4-2-6-3-5-1 Turbocharger: MET 18SRC (Serial No: 98697) Governor: Yanmar Co., Ltd. Model: NZ61 | BV130: Aux Engine No. 2 (Engine Number: 7253FXG ) | BW130: Model: YANMAR 6EY18ALW x 520Kw Rated Output: 615Kw Rated Speed: 900rpm No. of Cylinder: 6 Cylinder Bore x Stroke: 180mm x 280mm Starting System: Air Motor Firing Order: 1-4-2-6-3-5-1 Turbocharger: MET 18SRC (Serial No: 99852) Governor: Yanmar Co., Ltd. Model: NZ61 | BZ130: Provision Crane (2set) | CA130: Sekigahara Seisakusho Ltd 1.5Tx3.8m/r (TYPE: EEO-015038) , 0.9Tx3.8m/r (TYPE:EEO-01038) | CD130: Spare Part Handling Crane | CE130: Make: Mansei Inc 2.5t x 4.4MR Type: RD-2544P | CH130: Winch Specs | CP130: Winch Specs | CT130: Winch Specs | CX130: Mooring Winch Port | CY130: NIPPON PUSNES NS130HW
J131: Aux Engine No. 1 (Engine Number: 5142FXS) | K131: Model: YANMAR 6EY18ALW x 440Kw Rated Output: 500Kw Rated Speed: 900rpm No. of Cylinder: 6 Cylinder Bore x Stroke: 180mm x 280mm Starting System: Air Motor Firing Order: 1-4-2-6-3-5-1 Turbocharger: MET 18SRC (Serial No: 96507) Governor: Yanmar Co., Ltd. Model: NZ61 | N131: Pump Station | O131: MITSUBISHI HEAVY INDUSTRIES (MKV-23H-RFA-C10-LQ-11) | R131: Mooring Winch & Windlass Port | S131: Make: Mitsubishi Heavy Industries 235kN (24tf) x 9m/min Hyd. Oil pump type: MKV-23H-RFA-C1 0-LQ-11 | V131: Mooring Winch & Windlass Port | W131: Make: Mitsubishi Heavy Industries 235kN (24tf) x 9m/min Hyd. Oil pump type: MKV-23H-RFA-C1 0-LQ-11 | AH131: Main Engine Turbocharger | AI131: MITSUBISHI HEAVY INDUSTRIES Ltd Tokyo Japan. Type; MET 53SD SPEC: DV3F37DD5L Max.continues Speed 17300 rpm Max gas temp: 580 C | AL131: AE LO Purifier Feed Pump | AM131: TYPE: GEAR PUMP MODEL: MGB-2PB MAKER: HEISHIN PUMP WORKS CO., LTD | AP131: Crane specifications | AT131: Winch Specs | BJ131: Hydraulic Slewing Crane | BK131: MAKER: JIANGYIN XINJIANG F.R.P.CO. LTD DITTO | BN131: Emergency Engine Generator | BO131: Engine Model: Mitsui Zosen Machinery Deutz Air Cooled Diesel Engine TCD914L06M Engine Rated Output: 129Kw Rated Speed: 1800rpm No. of Cylinder : 6 Cylinder Bore x Stroke: 102mm x 132mm Generator Model: Cummins Generator Techonologies UC.M274F1 Generator Output: 120KvA No. of phase: 3 Freq,Voltage & Power factor: 60Hz, 450V & 0.8 | BR131: Winch Specs | BV131: Aux Engine No. 3 (Engine Number: 7254FXG ) | BW131: Model: YANMAR 6EY18ALW x 520Kw Rated Output: 615Kw Rated Speed: 900rpm No. of Cylinder: 6 Cylinder Bore x Stroke: 180mm x 280mm Starting System: Air Motor Firing Order: 1-4-2-6-3-5-1 Turbocharger: MET 18SRC (Serial No: 99853) Governor: Yanmar Co., Ltd. Model: NZ61 | CH131: Mooring Winch & Windlass Port | CI131: Nantong Masada Ship Machinery Co. Ltd. Windlass MOW-F64 | CL131: Boiler | CP131: Mooring Winch & Windlass Port | CQ131: Make: IHI Corp Type: K66WL3K | CT131: Mooring Winch & Windlass Port | CU131: Kawasaki Heavy Industries, Ltd 194.6kN X 9m/min | CX131: Mooring Winch Stbd | CY131: NIPPON PUSNES NS130HW
J132: Aux Engine No. 2 (Engine Number:5143FXS) | K132: Model: YANMAR 6EY18ALW x 440Kw Rated Output: 500Kw Rated Speed: 900rpm No. of Cylinder: 6 Cylinder Bore x Stroke: 180mm x 280mm Starting System: Air Motor Firing Order: 1-4-2-6-3-5-1 Turbocharger: MET 18SRC (Serial No: 96508) Governor: Yanmar Co., Ltd. Model: NZ61 | R132: Mooring Winch & Windlass Stbd | S132: Make: Mitsubishi Heavy Industries 235kN (24tf) x 9m/min Hyd. Oil pump type: MKV-23H-RFA-C1 0-LQ-11 | V132: Mooring Winch & Windlass Stbd | W132: Make: Mitsubishi Heavy Industries 235kN (24tf) x 9m/min Hyd. Oil pump type: MKV-23H-RFA-C1 0-LQ-11 | AD132: Aux Eng (including Emergency Generator) | AH132: Aux Engine Alternators | AI132: MAKER: CM HYUNDAI 3 SYN. GENERATOR TYPE: HFC-6454-641 SERIAL NUMBER: CMO-9115 RULE: BV-45degC ZhenJiang Marine Xian Dai Generating Co.Ltd Main: 550 Kva AC: 450 V, 705.6 A, 60 HZ, 1200 rpm | AL132: LO Transfer Pump | AM132: N.A | AP132: Cargo Crane #1 | AQ132: Make: IHI Corp Type: H310185-260(25° )B | AT132: Mooring Winch & Windlass Port | AU132: Make: IHI Corp Type: K66WL3K | BF132: Crane specifications | BR132: Mooring Winch & Windlass Port | BS132: Make: Kawasaki Heavy Industries Ltd. Type/Description: 274.7knx8m/min (NK:274.4kN) | BV132: Emergency Engine Generator | BW132: Engine Model: Mitsui Zosen Machinery Deutz Air Cooled Diesel Engine TCD914L06M Engine Rated Output: 129Kw Rated Speed: 1800rpm No. of Cylinder : 6 Cylinder Bore x Stroke: 102mm x 132mm Generator Model: Cummins Generator Techonologies UC.M274F1 Generator Output: 120KvA No. of phase: 3 Freq,Voltage & Power factor: 60Hz, 450V & 0.8 | BZ132: Winch Specs | CD132: Winch Specs | CH132: Mooring Winch & Windlass Stbd | CI132: Nantong Masada Ship Machinery Co. Ltd. Windlass MOW-F64 | CL132: Composite Boiler (Aux Boiler) (Boiler number:M-3796) | CM132: Boiler Model: Hada Boiler , Tortoise Engineering Co. Ltd, MKSC 24-900/670 (Horizontal Smoke Tube Vertical Composite Boiler) Evaporation: 900kg/h Design Pressure: 0.69Mpa Normal Working Pressure: 0.59Mpa Fuel Consumption: 76.9kg/h Burner Unit Model: Forced Draft Pressure Jet System - Sunflame Co Ltd, SSC-4 Combustion Capacity: 84kg/h FO Pressure: 2MPa FO Pump Model: Nippon G-Rotar MFG Co. Ltd , GFH-V3L (Trochiodal Gear Type) | CP132: Mooring Winch & Windlass Stbd | CQ132: Make: IHI Corp Type: K66WL3K | CT132: Mooring Winch & Windlass Stbd | CU132: Kawasaki Heavy Industries, Ltd 194.6kN X 9m/min | CX132: Pump Station | CY132: NIPPON PUSNES FORE GROUP: N2K X 140K AFT GROUP : N2K X 140K
J133: Aux Engine No. 3 (Engine Number:5144FXS) | K133: Model: YANMAR 6EY18ALW x 440Kw Rated Output: 500Kw Rated Speed: 900rpm No. of Cylinder: 6 Cylinder Bore x Stroke: 180mm x 280mm Starting System: Air Motor Firing Order: 1-4-2-6-3-5-1 Turbocharger: MET 18SRC (Serial No: 96509) Governor: Yanmar Co., Ltd. Model: NZ61 | N133: Aux Eng (including Emergency Generator) | R133: Mooring Winch Port | S133: Make: Mitsubishi Heavy Industries 235kN (24tf) x 9m/min Hyd. Oil pump type: MKV-23H-RFA-C1 0-LQ-11 | V133: Mooring Winch Port | W133: Make: Mitsubishi Heavy Industries 235kN (24tf) x 9m/min Hyd. Oil pump type: MKV-23H-RFA-C1 0-LQ-11 | AD133: Aux Engine No. 1 (Engine Number: 7252FXG ) | AE133: Model: YANMAR 6EY18ALW x 520Kw Rated Output: 615Kw Rated Speed: 900rpm No. of Cylinder: 6 Cylinder Bore x Stroke: 180mm x 280mm Starting System: Air Motor Firing Order: 1-4-2-6-3-5-1 Turbocharger: MET 18SRC (Serial No: 99851) Governor: Yanmar Co., Ltd. Model: NZ61 | AH133: Refrigeration Compressor | AI133: NAMIREI RHSN5BC | AL133: Cyl. LO Transfer Pump | AM133: N.A | AP133: Cargo Crane #2 | AQ133: Make: IHI Corp Type: H310185-260(25° )B | AT133: Mooring Winch & Windlass Stbd | AU133: Make: IHI Corp Type: K66WL3K | BF133: Cargo Crane #1 | BG133: MASADA-MITSUBISHI Jiangsu Masada Heavy Industries Co., Ltd Type:30.5x24® | BJ133: Winch Specs | BN133: Boiler | BR133: Mooring Winch & Windlass Stbd | BS133: Make: Kawasaki Heavy Industries Ltd. Type/Description: 274.7knx8m/min (NK:274.4kN) | BZ133: Mooring Winch & Windlass Port | CA133: MITSUBISHI HEAVY INDUSTRIES 181kN x 9m/min | CD133: Mooring Winch & Windlass Port | CE133: Make: IHI Corp Type: K66WL3K | CH133: Mooring Winch Port | CI133: Nantong Masada Ship Machinery Co. Ltd. Mooring: MOK-H11 | CP133: Mooring Winch Port | CQ133: Make: IHI Corp Type: 118kN MOORING WINCH | CT133: Mooring Winch Port | CU133: Kawasaki Heavy Industries, Ltd 125kN X 15m/min
J134: Emergency Engine Generator | K134: Engine Model: Mitsui Zosen Machinery Deutz Air Cooled Diesel Engine TD914L06M Engine Rated Output: 99Kw Rated Speed: 1800rpm No. of Cylinder : 6 Cylinder Bore x Stroke: 102mm x 132mm Generator Model: NISHISHIBA ELECTRIC, NTAKL-VEK Generator Output: 100KvA No. of phase: 3 Freq,Voltage & Power factor: 60Hz, 450V & 0.8 | N134: Aux Engine No. 1 (Engine Number: 3263FXE) | O134: Model: YANMAR 6EY18AL x 440Kw Rated Output: 500Kw Rated Speed: 900rpm No. of Cylinder: 6 Cylinder Bore x Stroke: 180mm x 280mm Starting System: Air Motor Firing Order: 1-4-2-6-3-5-1 Turbocharger: MET 18SRC (Serial No: 93517) Governor: Yanmar Co., Ltd. Model: NZ61 | R134: Mooring Winch Stbd | S134: Make: Mitsubishi Heavy Industries 235kN (24tf) x 9m/min Hyd. Oil pump type: MKV-23H-RFA-C1 0-LQ-11 | V134: Mooring Winch Stbd | W134: Make: Mitsubishi Heavy Industries 235kN (24tf) x 9m/min Hyd. Oil pump type: MKV-23H-RFA-C1 0-LQ-11 | AD134: Aux Engine No. 2 (Engine Number: 7253FXG ) | AE134: Model: YANMAR 6EY18ALW x 520Kw Rated Output: 615Kw Rated Speed: 900rpm No. of Cylinder: 6 Cylinder Bore x Stroke: 180mm x 280mm Starting System: Air Motor Firing Order: 1-4-2-6-3-5-1 Turbocharger: MET 18SRC (Serial No: 99852) Governor: Yanmar Co., Ltd. Model: NZ61 | AH134: A.C Compressor | AI134: MAKER: BITZER KUHLMASCHINENBAU GMBH Type: 6FE-50Y-40P Serial No. 1686303176 | AL134: Composite Boiler Feed Pump | AM134: Type: VERTICAL CENTRIFUGAL Maker: HEISHIN PUMP WORKS CO., LTD. | AP134: Cargo Crane #3 | AQ134: Make: IHI Corp Type: H310185-260(25° )B | AT134: Mooring Winch Port | AU134: Make: IHI Corp Type: 118kN MOORING WINCH | BF134: Cargo Crane #2 | BG134: MASADA-MITSUBISHI Jiangsu Masada Heavy Industries Co., Ltd Type:30.5x24® | BJ134: Mooring Winch & Windlass Port | BK134: MAKER: HATLAPA HUMBURG TYPE: 28460212 | BN134: Composite Boiler (Aux Boiler) (Boiler number: 3778) | BO134: Boiler Model: Hada Boiler , Tortoise Engineering Co. Ltd, MKSC 24-900/670 (Horizontal Smoke Tube Vertical Composite Boiler) Evaporation: 900kg/h Design Pressure: 0.69Mpa Normal Working Pressure: 0.59Mpa Fuel Consumption: 76.9kg/h Burner Unit Model: Forced Draft Pressure Jet System - Sunflame Co Ltd, SSC-4 Combustion Capacity: 84kg/h FO Pressure: 2MPa FO Pump Model: Nippon G-Rotar MFG Co. Ltd , GFH-V3L (Trochiodal Gear Type) | BR134: Mooring Winch Port | BS134: Make: Kawasaki Heavy Industries Ltd. Type/Description: 147kNx15m/min) | BV134: Boiler | BZ134: Mooring Winch & Windlass Stbd | CA134: MITSUBISHI HEAVY INDUSTRIES 181kN x 9m/min | CD134: Mooring Winch & Windlass Stbd | CE134: Make: IHI Corp Type: K66WL3K | CH134: Mooring Winch Stbd | CI134: Nantong Masada Ship Machinery Co. Ltd. Mooring: MOK-H11 | CP134: Mooring Winch Stbd | CQ134: Make: IHI Corp Type: 118kN MOORING WINCH | CT134: Mooring Winch Stbd | CU134: Kawasaki Heavy Industries, Ltd 125kN X 15m/min | CX134: Aux Eng (including Emergency Generator)
N135: Aux Engine No. 2 (Engine Number: 3264FXE) | O135: Model: YANMAR 6EY18AL x 440Kw Rated Output: 500Kw Rated Speed: 900rpm No. of Cylinder: 6 Cylinder Bore x Stroke: 180mm x 280mm Starting System: Air Motor Firing Order: 1-4-2-6-3-5-1 Turbocharger: MET 18SRC (Serial No: 93518) Governor: Yanmar Co., Ltd. Model: NZ61 | AD135: Aux Engine No. 3 (Engine Number: 7254FXG ) | AE135: Model: YANMAR 6EY18ALW x 520Kw Rated Output: 615Kw Rated Speed: 900rpm No. of Cylinder: 6 Cylinder Bore x Stroke: 180mm x 280mm Starting System: Air Motor Firing Order: 1-4-2-6-3-5-1 Turbocharger: MET 18SRC (Serial No: 99853) Governor: Yanmar Co., Ltd. Model: NZ61 | AH135: E.C.R. AIR CON | AI135: Maker: JL Marine and Engineering PTE LTD. TYPE: JL-PR-5W5 R- 404A Type: Scroll Comp. Power: 3.5K | AL135: FW Hydrophore Pump | AM135: TYPE: VOLUTE PUMP MODEL: HLY-5LN MAKER: HEISHIN PUMP WORKS CO., LTD. | AP135: Crago Crane #4 | AQ135: Make: IHI Corp Type: H310185-260(25° )B | AT135: Mooring Winch Stbd | AU135: Make: IHI Corp Type: 118kN MOORING WINCH | BF135: Cargo Crane #3 | BG135: MASADA-MITSUBISHI Jiangsu Masada Heavy Industries Co., Ltd Type:30.5x24® | BJ135: Mooring Winch & Windlass Stbd | BK135: MAKER: HATLAPA HUMBURG TYPE: 28460212 | BR135: Mooring Winch Stbd | BS135: Make: Kawasaki Heavy Industries Ltd. Type/Description: 147kNx15m/min) | BV135: Composite Boiler (Aux Boiler) (Boiler number: 31451) | BW135: Boiler Model: Alfa Laval, GCS-21ST (Composite Boiler) Evaporation: 1000kg/h Design Pressure: 0.69Mpa Normal Working Pressure: 0.55Mpa Fuel Consumption: 76.8kg/h Burner Unit Model: Forced Draft Pressure Jet System - Sunflame Co Ltd, SSC-4 Combustion Capacity: 84kg/h FO Pressure: 2MPa FO Pump Model: Nippon G-Rotar MFG Co. Ltd , GFH-V5L (Trochiodal Gear Type) | BZ135: Mooring Winch Port | CA135: MITSUBISHI HEAVY INDUSTRIES 98kN x 15m/min | CD135: Mooring Winch Port | CE135: Make: IHI Corp Type: 118kN MOORING WINCH | CH135: Pump Station | CI135: Nantong Masada Ship Machinery Co. Ltd. Type: A7V0160LR0/63RNPB0 | CP135: Pump Station | CQ135: Make: IHI Corp Type: T6C - 022(Fore Group) T6C-020(Aft Group) | CT135: Pump Station | CU135: Kawasaki Heavy Industries, Ltd ( K3VG112-55/68kW X 2), (K3VG112-45/55kW X 1) | CX135: Aux Engine No. 1 (Engine Number: DE618Z2702) | CY135: MAKE: DAIHATSU MODEL: 6DE-18 OUTPUT: 570kw X 900rpm
J136: Boiler | N136: Aux Engine No. 3 (Engine Number: 3265FXE) | O136: Model: YANMAR 6EY18AL x 440Kw Rated Output: 500Kw Rated Speed: 900rpm No. of Cylinder: 6 Cylinder Bore x Stroke: 180mm x 280mm Starting System: Air Motor Firing Order: 1-4-2-6-3-5-1 Turbocharger: MET 18SRC (Serial No: 93519) Governor: Yanmar Co., Ltd. Model: NZ61 | R136: Aux Eng (including Emergency Generator) | V136: Aux Eng (including Emergency Generator) | AD136: Emergency Engine Generator | AE136: Engine Model: Mitsui Zosen Machinery Deutz Air Cooled Diesel Engine TCD914L06M Engine Rated Output: 129Kw Rated Speed: 1800rpm No. of Cylinder : 6 Cylinder Bore x Stroke: 102mm x 132mm Generator Model: Cummins Generator Techonologies UC.M274F1 Generator Output: 120KvA No. of phase: 3 Freq,Voltage & Power factor: 60Hz, 450V & 0.8 | AH136: Service Air Compressor | AI136: MAKER - ALUP-KOMPRESSOR TYPE - SCK26-08MA60 PRODUCT NO - F0901134/50004500 ID NO. 217.01351-K00001301030 YR. 2009 MAX. PRESS. 7 BAR SPEED MOTOR. 3530 RPM MOTOR KW. 21.3 | AL136: Hot Water Circulating Pump | AM136: TYPE: UPS- 25-70 N 180 MAKER: GRUNDFOS | AP136: Engine Room Crane | AQ136: Make: SEKIGAHARA SEISAKUSHO LTD 3Tx13m Type: MBA-030069 | AT136: Pump Station | AU136: Make: IHI Corp Type: T6C - 022(Fore Group) T6C-020(Aft Group) | BF136: Crago Crane #4 | BG136: MASADA-MITSUBISHI Jiangsu Masada Heavy Industries Co., Ltd Type:30.5x24® | BJ136: Mooring Winch Port | BK136: MAKER: HATLAPA HAMBURG TYPE:2846212 | BR136: Pump Station | BS136: Make: Kawasaki Heavy Industries Ltd. Type/Description:( K3VG180-75/90KW x 2 , K3VG112-55/68KW x 2) | BZ136: Mooring Winch Stbd | CA136: MITSUBISHI HEAVY INDUSTRIES 98kN x 15m/min | CD136: Mooring Winch Stbd | CE136: Make: IHI Corp Type: 118kN MOORING WINCH | CX136: Aux Engine No. 2 (Engine Number: DE618Z2703) | CY136: MAKE: DAIHATSU MODEL: 6DE-18 OUTPUT: 570kw X 900rpm
J137: Composite Boiler (Aux Boiler) (Boiler number: 15455 ) | K137: Boiler Model: Osaka Boiler Mfg Co. Ltd. OHB-100/55/7(3)-26 (Vertical Composite Boiler) Evaporation: 1000kg/h Design Pressure: 0.78MPa Normal Working Pressure: 0.69MPa Fuel Consumption: 83kg/h Burner Unit Model: Pressure Jet System, Volcano Co. Ltd MJII-90-3 Combustion Capacity: 87kg/h FO Pressure: 1.86 MPa FO Pump Model: Trochiodal Gear Type | N137: Emergency Engine Generator | O137: Engine Model: Mitsui Zosen Machinery Deutz Air Cooled Diesel Engine F6L912 Engine Rated Output: 60Kw Rated Speed: 1800rpm No. of Cylinder : 6 Cylinder Bore x Stroke: 100mm x 120mm Generator Model: Cummis Generator Technologies UC. M224F1 Generator Output: 65KvA No. of phase: 3 Freq,Voltage & Power factor: 60Hz, 450V & 0.8 | R137: Aux Engine No. 1 (Engine Number: 6781FXG) | S137: Model: YANMAR 6EY18ALW x 550Kw Rated Output: 615Kw Rated Speed: 900rpm No. of Cylinder: 6 Cylinder Bore x Stroke: 180mm x 280mm Starting System: Air Motor Firing Order: 1-4-2-6-3-5-1 Turbocharger: MET 18SRC (Serial No: 98816) Governor: Yanmar Co., Ltd. Model: NZ61 | V137: Aux Engine No. 1 (Engine Number: 6658FXC ) | W137: Model: YANMAR 6EY18ALW x 550Kw Rated Output: 615Kw Rated Speed: 900rpm No. of Cylinder: 6 Cylinder Bore x Stroke: 180mm x 280mm Starting System: Air Motor Firing Order: 1-4-2-6-3-5-1 Turbocharger: MET 18SRC (Serial No: 98531) Governor: Yanmar Co., Ltd. Model: NZ61 | AH137: Sea Water Cooling Pump | AI137: TAIKO PUMP SERIAL NO. 1AP1367-2 TYPE: EMC-200MCT CAP. 240 M3/H TOTAL HEAD: 0.2 MPA SPEED: 1800 RPM SUC. PRESS: 0 MPA POWER: 22 KW DATE OF MANUF: JAN 2009 TAIKO KIKAI INDUSTRIES CO, LTD DRAWING NO. S0E55A1P1367 | AP137: Provision crane | AQ137: Make: Kyoritsu Kikai Co . Ltd 0.9T x 3mR [Stbd] Type: PCD-0703 | BF137: Engine Room Crane | BG137: JIANGYINSHI HUASHENG SHIP MACHINERY CO., LTD (2t ENGINE ROOM CRANE) Type:479SC503-00SM | BJ137: Mooring Winch Stbd | BK137: MAKER: HATLAPA HAMBURG TYPE:2846212 | BZ137: Pump Station | CA137: MITSUBISHI HEAVY INDUSTRIES (MKV-23H-RFA-C10-LQ-11) | CD137: Pump Station | CE137: Make: IHI Corp Type: T6C - 022(Fore Group) T6C-020(Aft Group) | CH137: Aux Eng (including Emergency Generator) | CP137: Aux Eng (including Emergency Generator) | CT137: Aux Eng (including Emergency Generator) | CX137: Aux Engine No. 3 (Engine Number: DE618Z2704) | CY137: MAKE: DAIHATSU MODEL: 6DE-18 OUTPUT: 570kw X 900rpm
R138: Aux Engine No. 2 (Engine Number: 6782FXG) | S138: Model: YANMAR 6EY18ALW x 550Kw Rated Output: 615Kw Rated Speed: 900rpm No. of Cylinder: 6 Cylinder Bore x Stroke: 180mm x 280mm Starting System: Air Motor Firing Order: 1-4-2-6-3-5-1 Turbocharger: MET 18SRC (Serial No: 98817) Governor: Yanmar Co., Ltd. Model: NZ61 | V138: Aux Engine No. 2 (Engine Number: 6659FXC ) | W138: Model: YANMAR 6EY18ALW x 550Kw Rated Output: 615Kw Rated Speed: 900rpm No. of Cylinder: 6 Cylinder Bore x Stroke: 180mm x 280mm Starting System: Air Motor Firing Order: 1-4-2-6-3-5-1 Turbocharger: MET 18SRC (Serial No: 98532) Governor: Yanmar Co., Ltd. Model: NZ61 | AD138: Boiler | AH138: LT Cooling Pump | AI138: TAIKO PUMP SERIAL NO. 1AP 369-3 TYPE: EMC-200 MD CAP. 240 m3/H SPEED: 1800 min-1 POWER: 37 KW TAIKO KIKAI INDUSTRIES CO, LTD | AL138: Cargo Hold dimensions | AP138: General use crane | AQ138: Make: Kyoritsu Kikai Co . Ltd 3T x 8.57mR [Port] Type: PCA-0235 | AT138: Aux Eng (including Emergency Generator) | BF138: Hydraulic Slewing Crane | BG138: JIANGSU JIAOYAN MARINE EQUIPMENT CO. LTD. JYC0105 HYDRAULIC SLEWING CRANE | BJ138: Pump Station | BR138: Aux Eng (including Emergency Generator) | CH138: Aux Engine No. 1 (Engine Number:SF5L16-0484) | CI138: Model: STX-B&W 5L16/24 Rated Output: 500Kw Rated Speed: 1200rpm No. of Cylinder: 5 Cylinder Bore x Stroke: 160mm x 240mm Starting System: Air Motor Firing Order: 1-2-4-5-3-1 Turbocharger: MANSEI TCR12 Governor: MAN B&W EUROPA Model: RE2800 | CP138: Aux Engine No. 1 (Engine Number:5589FXS ) | CQ138: Model: YANMAR 6EY18ALW x 440Kw Rated Output: 500Kw Rated Speed: 900rpm No. of Cylinder: 6 Cylinder Bore x Stroke: 180mm x 280mm Starting System: Air Motor Firing Order: 1-4-2-6-3-5-1 Turbocharger: MET 18SRC (Serial No: 96621) Governor: Yanmar Co., Ltd. Model: NZ61 | CT138: Aux Engine No. 1 (Engine Number: 5806FXC) | CU138: Model: YANMAR 6EY18ALW x 400Kw Rated Output: 455Kw Rated Speed: 900rpm No. of Cylinder: 6 Cylinder Bore x Stroke: 180mm x 280mm Starting System: Air Motor Firing Order: 1-4-2-6-3-5-1 Turbocharger: MET 18SRC (Serial No: 96298) Governor: Yanmar Co., Ltd. Model: NZ61 | CX138: Emergency Engine Generator | CY138: ENGINE MODEL: TD914L06M ENGINE MAKE: MITSUI ZOSEN MACHINERY SERVICE ENGINE OUTPUT: 99kw 1800rpm FORCED AIR COOLED, BATTERY STARTING GENERATOR/ALTERNATOR MAKE: CUMMINS GENERATOR TECHNOLOGIES GENERATOR RATED POWER: 80kw 60Hz
N139: Boiler | R139: Aux Engine No. 3 (Engine Number: 6783FXG) | S139: Model: YANMAR 6EY18ALW x 550Kw Rated Output: 615Kw Rated Speed: 900rpm No. of Cylinder: 6 Cylinder Bore x Stroke: 180mm x 280mm Starting System: Air Motor Firing Order: 1-4-2-6-3-5-1 Turbocharger: MET 18SRC (Serial No: 98818) Governor: Yanmar Co., Ltd. Model: NZ61 | V139: Aux Engine No. 3 (Engine Number: 6660FXC ) | W139: Model: YANMAR 6EY18ALW x 550Kw Rated Output: 615Kw Rated Speed: 900rpm No. of Cylinder: 6 Cylinder Bore x Stroke: 180mm x 280mm Starting System: Air Motor Firing Order: 1-4-2-6-3-5-1 Turbocharger: MET 18SRC (Serial No: 98533) Governor: Yanmar Co., Ltd. Model: NZ61 | AD139: Composite Boiler (Aux Boiler) (Boiler number: 31451) | AE139: Boiler Model: Alfa Laval, GCS-21ST (Composite Boiler) Evaporation: 1000kg/h Design Pressure: 0.69Mpa Normal Working Pressure: 0.55Mpa Fuel Consumption: 76.8kg/h Burner Unit Model: Forced Draft Pressure Jet System - Sunflame Co Ltd, SSC-4 Combustion Capacity: 84kg/h FO Pressure: 2MPa FO Pump Model: Nippon G-Rotar MFG Co. Ltd , GFH-V5L (Trochiodal Gear Type) | AH139: ME HT Cooling FW Pump | AI139: TAIKO PUMP SERIAL NO. 1AP1 68-1 TYPE: EMC-125 MCT CAP. 64 m3/h SPEED: 1800 min-1 TAIKO KIKAI INDUSTRIES CO, LTD | AL139: Cargo Hold #1 | AM139: 13.6m x 15.4m | AT139: Aux Engine No. 1 (Engine Number: 7030FXG) | AU139: Model: YANMAR 6EY18ALW x 440Kw Rated Output: 500Kw Rated Speed: 900rpm No. of Cylinder: 6 Cylinder Bore x Stroke: 180mm x 280mm Starting System: Air Motor Firing Order: 1-4-2-6-3-5-1 Turbocharger: MET 18SRC (Serial No: 98357 ) Governor: Yanmar Co., Ltd. Model: NZ61 | BR139: Aux Engine No. 1 (Engine Number: 9573 ) | BS139: Model: YANMAR 6EY18ALW x 500Kw Rated Output: 550Kw Rated Speed: 900rpm No. of Cylinder: 6 Cylinder Bore x Stroke: 180mm x 280mm Starting System: Air Motor Firing Order: 1-4-2-6-3-5-1 Turbocharger: MET 18SRC (Serial No: 44496) Governor: Yanmar Co., Ltd. Model: NZ61 | BZ139: Aux Eng (including Emergency Generator) | CD139: Aux Eng (including Emergency Generator) | CH139: Aux Engine No. 2 (Engine Number:SF5L16-0485) | CI139: Model: STX-B&W 5L16/24 Rated Output: 500Kw Rated Speed: 1200rpm No. of Cylinder: 5 Cylinder Bore x Stroke: 160mm x 240mm Starting System: Air Motor Firing Order: 1-2-4-5-3-1 Turbocharger: MANSEI TCR12 Governor: MAN B&W EUROPA Model: RE2800 | CP139: Aux Engine No. 2 (Engine Number:5590FXS ) | CQ139: Model: YANMAR 6EY18ALW x 440Kw Rated Output: 500Kw Rated Speed: 900rpm No. of Cylinder: 6 Cylinder Bore x Stroke: 180mm x 280mm Starting System: Air Motor Firing Order: 1-4-2-6-3-5-1 Turbocharger: MET 18SRC (Serial No: 96622) Governor: Yanmar Co., Ltd. Model: NZ61 | CT139: Aux Engine No. 2 (Engine Number: 5807FXC ) | CU139: Model: YANMAR 6EY18ALW x 400Kw Rated Output: 455Kw Rated Speed: 900rpm No. of Cylinder: 6 Cylinder Bore x Stroke: 180mm x 280mm Starting System: Air Motor Firing Order: 1-4-2-6-3-5-1 Turbocharger: MET 18SRC (Serial No: 96299) Governor: Yanmar Co., Ltd. Model: NZ61
N140: Composite Boiler (Aux Boiler) (Boiler number: 89010603) | O140: Boiler Model: MIURA Co, GK2028-1000/650 (Vertical water tube composite boiler) Evaporation: 1000kg/h Design Pressure: 0.8MPa Normal Working Pressure: 0.5-0.7MPa Fuel Consumption: 76.5kg/h Burner Unit Model: Forced Draft Pressure Atomizing System, CS-9 Combustion Capacity: 77kg/h FO Pressure: 1.8 MPa (Main) , 0.8MPa (Pilot) FO Pump Model: Trochiodal Gear Type | R140: Emergency Engine Generator | S140: Engine Model: Mitsui Zosen Machinery Deutz Air Cooled Diesel Engine TCD914L06M Engine Rated Output: 129Kw Rated Speed: 1800rpm No. of Cylinder : 6 Cylinder Bore x Stroke: 102mm x 132mm Generator Model: Cummins Generator Techonologies UC.M274F1 Generator Output: 125KvA No. of phase: 3 Freq,Voltage & Power factor: 60Hz, 450V & 0.8 | V140: Emergency Engine Generator | W140: Engine Model: Mitsui Zosen Machinery Deutz Air Cooled Diesel Engine TCD914L06M Engine Rated Output: 129Kw Rated Speed: 1800rpm No. of Cylinder : 6 Cylinder Bore x Stroke: 102mm x 132mm Generator Model: Cummins Generator Techonologies UC.M274F1 Generator Output: 125KvA No. of phase: 3 Freq,Voltage & Power factor: 60Hz, 450V & 0.8 | AH140: ME LO Pump | AI140: TAIKO PUMP TYPE: C1T-1869-2 SPEED: 1800 REV/MIN POWER: 75 KW MAKER: TAIKO KIKAI INDUSTRIES CO. LTD. | AL140: Cargo Hold #2 | AM140: 20.0m x 20.0m | AP140: Winch Specs | AT140: Aux Engine No. 2 (Engine Number: 7031FXG) | AU140: Model: YANMAR 6EY18ALW x 440Kw Rated Output: 500Kw Rated Speed: 900rpm No. of Cylinder: 6 Cylinder Bore x Stroke: 180mm x 280mm Starting System: Air Motor Firing Order: 1-4-2-6-3-5-1 Turbocharger: MET 18SRC (Serial No: 98358 ) Governor: Yanmar Co., Ltd. Model: NZ61 | BF140: Winch Specs | BJ140: Aux Eng (including Emergency Generator) | BR140: Aux Engine No. 2 (Engine Number: 9574 ) | BS140: Model: YANMAR 6EY18ALW x 500Kw Rated Output: 550Kw Rated Speed: 900rpm No. of Cylinder: 6 Cylinder Bore x Stroke: 180mm x 280mm Starting System: Air Motor Firing Order: 1-4-2-6-3-5-1 Turbocharger: MET 18SRC (Serial No: 44497) Governor: Yanmar Co., Ltd. Model: NZ61 | BZ140: Aux Engine No. 1 (Engine Number:2776FXE) | CA140: Model: YANMAR 6EY18AL x 440Kw Rated Output: 500Kw Rated Speed: 900rpm No. of Cylinder: 6 Cylinder Bore x Stroke: 180mm x 280mm Starting System: Air Motor Firing Order: 1-4-2-6-3-5-1 Turbocharger: MET 18SRC (Serial No: 92817 ) Governor: Yanmar Co., Ltd. Model: NZ61 | CD140: Aux Engine No. 1 (Engine Number: 5777FXC) | CE140: Model: YANMAR 6EY18ALW x 440Kw Rated Output: 500Kw Rated Speed: 900rpm No. of Cylinder: 6 Cylinder Bore x Stroke: 180mm x 280mm Starting System: Air Motor Firing Order: 1-4-2-6-3-5-1 Turbocharger: MET 18SRC (Serial No: 96461) Governor: Yanmar Co., Ltd. Model: NZ61 | CH140: Aux Engine No. 3 (Engine Number:SF5L16-0486) | CI140: Model: STX-B&W 5L16/24 Rated Output: 500Kw Rated Speed: 1200rpm No. of Cylinder: 5 Cylinder Bore x Stroke: 160mm x 240mm Starting System: Air Motor Firing Order: 1-2-4-5-3-1 Turbocharger: MANSEI TCR12 Governor: MAN B&W EUROPA Model: RE2800 | CP140: Aux Engine No. 3 (Engine Number: 5591FXS ) | CQ140: Model: YANMAR 6EY18ALW x 440Kw Rated Output: 500Kw Rated Speed: 900rpm No. of Cylinder: 6 Cylinder Bore x Stroke: 180mm x 280mm Starting System: Air Motor Firing Order: 1-4-2-6-3-5-1 Turbocharger: MET 18SRC (Serial No: 96623) Governor: Yanmar Co., Ltd. Model: NZ61 | CT140: Aux Engine No. 3 (Engine Number: 5808FXC) | CU140: Model: YANMAR 6EY18ALW x 400Kw Rated Output: 455Kw Rated Speed: 900rpm No. of Cylinder: 6 Cylinder Bore x Stroke: 180mm x 280mm Starting System: Air Motor Firing Order: 1-4-2-6-3-5-1 Turbocharger: MET 18SRC (Serial No: 96300) Governor: Yanmar Co., Ltd. Model: NZ61 | CX140: Boiler
AH141: FO Supply Pump | AI141: PUMP DETAILS: ACE 032L3 NTBP 030X0 STD IMO AB STOCKHOLM SWEDEN IMO PUMP MOTOR DETAILS: BROOK CROMPTON TYPE: WW.DA90LM-D COUPLING DETAILS: OUTER DIAMETER: 56MM SHAFT DIAMETER: 24 MM COUPLING LENGHT: 45 MM | AL141: Cargo Hold #3 | AM141: 20.0m x 20.0m | AP141: Mooring Winch & Windlass Port | AQ141: Make: KAWASAKI HYDRAULIC DECK MACHINERY Type/Description: 253kN x 9m/min | AT141: Aux Engine No. 3 (Engine Number: 7032FXG) | AU141: Model: YANMAR 6EY18ALW x 440Kw Rated Output: 500Kw Rated Speed: 900rpm No. of Cylinder: 6 Cylinder Bore x Stroke: 180mm x 280mm Starting System: Air Motor Firing Order: 1-4-2-6-3-5-1 Turbocharger: MET 18SRC (Serial No: 98359 ) Governor: Yanmar Co., Ltd. Model: NZ61 | BF141: Mooring Winch & Windlass Port | BG141: Nantong Masada Ship Machinery Co. Ltd. Windlass MOW-F64 | BJ141: Aux Engine No. 1 (Engine Number:10226) | BK141: Model: ZJMD-MAN B&W 5L16/24 Rated Output: 500Kw Rated Speed: 1200rpm No. of Cylinder: 5 Cylinder Bore x Stroke: 160mm x 240mm Starting System: Air Motor Firing Order: 1-2-4-5-3-1 Turbocharger: MAN B&W DIESEL NR12 Governor: REGULATEURS EUROPA TYPE: 1102V-4G-8R COLCHESTER ENGLAND & RODEN NETHERLAND | BR141: Aux Engine No. 3 (Engine Number: 9575 ) | BS141: Model: YANMAR 6EY18ALW x 500Kw Rated Output: 550Kw Rated Speed: 900rpm No. of Cylinder: 6 Cylinder Bore x Stroke: 180mm x 280mm Starting System: Air Motor Firing Order: 1-4-2-6-3-5-1 Turbocharger: MET 18SRC (Serial No: 44498) Governor: Yanmar Co., Ltd. Model: NZ61 | BZ141: Aux Engine No. 2 (Engine Number: 2777FXE) | CA141: Model: YANMAR 6EY18AL x 440Kw Rated Output: 500Kw Rated Speed: 900rpm No. of Cylinder: 6 Cylinder Bore x Stroke: 180mm x 280mm Starting System: Air Motor Firing Order: 1-4-2-6-3-5-1 Turbocharger: MET 18SRC (Serial No: 92818 ) Governor: Yanmar Co., Ltd. Model: NZ61 | CD141: Aux Engine No. 2 (Engine Number: 5778FXC) | CE141: Model: YANMAR 6EY18ALW x 440Kw Rated Output: 500Kw Rated Speed: 900rpm No. of Cylinder: 6 Cylinder Bore x Stroke: 180mm x 280mm Starting System: Air Motor Firing Order: 1-4-2-6-3-5-1 Turbocharger: MET 18SRC (Serial No: 96462) Governor: Yanmar Co., Ltd. Model: NZ61 | CH141: Emergency Engine Generator | CI141: Engine Model: STX Engine (CUMMINS) 6CT8.3DMGE Engine Rated Output: 125Kw Rated Speed: 1800rpm No. of Cylinder : 6 Cylinder Bore x Stroke: 114mm x 135mm No. of phase: 3 Freq,Voltage & Power factor: 60Hz, 450V & 0.8 | CP141: Emergency Engine Generator | CQ141: Engine Model: Mitsui Zosen Machinery Deutz Air Cooled Diesel Engine TCD914L06M Engine Rated Output: 99Kw Rated Speed: 1800rpm No. of Cylinder : 6 Cylinder Bore x Stroke: 102mm x 132mm Generator Model: NISHISHIBA ELECTRIC, NTAKL-VEK Generator Output: 100KvA No. of phase: 3 Freq,Voltage & Power factor: 60Hz, 450V & 0.8 | CT141: Emergency Engine Generator | CU141: Engine Model: Mitsui Zosen Machinery Deutz Air Cooled Diesel Engine F6L912 Engine Rated Output: 60Kw Rated Speed: 1800rpm No. of Cylinder : 6 Cylinder Bore x Stroke: 111mm x 139mm Generator Model: Cummis Generator Technologies UC. M224F1 Generator Output: 65KvA No. of phase: 3 Freq,Voltage & Power factor: 60Hz, 450V & 0.8 | CX141: Composite Boiler (Aux Boiler) (Boiler number: 89010603) | CY141: MAKE: OSAKA BOILER MODEL: OVS2-110/85-23 x 1set EVAPORATION: 1100kg/h (OIL FIRED PART) 850kg/h (EXHAUST HEATING WITH ME AT 85% MCR) STEAM CONDITION: 0.5MPa (0.6MPa) FEED CONDITION: 60degC EXH GAS CONDITION (85% MCR): FLOW:51480kg/h INLET TEMP: 222degC
R142: Boiler | V142: Boiler | AH142: FO Circulating Pump | AI142: IMO AB STOCKHOLM ACE 025N3 NTBP SERIAL NO. 620659 | AL142: Cargo Hold #4 | AM142: 20.0m x 20.0m | AP142: Mooring Winch & Windlass Stbd | AQ142: Make: KAWASAKI HYDRAULIC DECK MACHINERY Type/Description: 253kN x 9m/min | AT142: Emergency Engine Generator | AU142: Engine Model: Mitsui Zosen Machinery Deutz Air Cooled Diesel Engine TCD914L06M Engine Rated Output: 99Kw Rated Speed: 1800rpm No. of Cylinder : 6 Cylinder Bore x Stroke: 102mm x 132mm Generator Model: NISHISHIBA ELECTRIC, NTAKL-VEK Generator Output: 100KvA No. of phase: 3 Freq,Voltage & Power factor: 60Hz, 450V & 0.8 | BF142: Mooring Winch & Windlass Stbd | BG142: Nantong Masada Ship Machinery Co. Ltd. Windlass MOW-F64 | BJ142: Aux Engine No. 2 (Engine Number:10227) | BK142: Model: ZJMD-MAN B&W 5L16/24 Rated Output: 500Kw Rated Speed: 1200rpm No. of Cylinder: 5 Cylinder Bore x Stroke: 160mm x 240mm Starting System: Air Motor Firing Order: 1-2-4-5-3-1 Turbocharger: MAN B&W DIESEL NR12 Governor: REGULATEURS EUROPA TYPE: 1102V-4G-8R COLCHESTER ENGLAND & RODEN NETHERLAND | BR142: Emergency Engine Generator | BS142: Engine Model: Mitsui Zosen Machinery Deutz Air Cooled Diesel Engine TD914L06M Engine Rated Output: 99Kw Rated Speed: 1800rpm No. of Cylinder : 6 Cylinder Bore x Stroke: 102mm x 132mm Generator Model: Cummins Generator Techonologies UC.M274C1 Generator Output: 90KvA No. of phase: 3 Freq,Voltage & Power factor: 60Hz, 450V & 0.8 | BZ142: Aux Engine No. 3 (Engine Number:2778FXE) | CA142: Model: YANMAR 6EY18AL x 440Kw Rated Output: 500Kw Rated Speed: 900rpm No. of Cylinder: 6 Cylinder Bore x Stroke: 180mm x 280mm Starting System: Air Motor Firing Order: 1-4-2-6-3-5-1 Turbocharger: MET 18SRC (Serial No: 92819 ) Governor: Yanmar Co., Ltd. Model: NZ61 | CD142: Aux Engine No. 3 (Engine Number: 5779FXC) | CE142: Model: YANMAR 6EY18ALW x 440Kw Rated Output: 500Kw Rated Speed: 900rpm No. of Cylinder: 6 Cylinder Bore x Stroke: 180mm x 280mm Starting System: Air Motor Firing Order: 1-4-2-6-3-5-1 Turbocharger: MET 18SRC (Serial No: 96463) Governor: Yanmar Co., Ltd. Model: NZ61
R143: Composite Boiler (Aux Boiler) (Boiler number: 89014200) | S143: Boiler Model: MIURA Boiler, GK-2232-1100/720 (Vertical Water Tube Composite Boiler) Evaporation: 1100kg/h Design Pressure: 0.69Mpa Normal Working Pressure: 0.59Mpa Fuel Consumption: 84.1kg/h Burner Unit Model: MIURA Boiler, CS-9 Combustion Capacity: 84.1kg/h FO Pressure: 1.8MPa FO Pump Model: MIURA , Trochiodal Gear Type | V143: Composite Boiler (Aux Boiler) (Boiler number: 89014199) | W143: Boiler Model: MIURA Boiler, GK-2232-1100/720 (Vertical Water Tube Composite Boiler) Evaporation: 1100kg/h Design Pressure: 0.69Mpa Normal Working Pressure: 0.59Mpa Fuel Consumption: 84.1kg/h Burner Unit Model: MIURA Boiler, CS-9 Combustion Capacity: 84.1kg/h FO Pressure: 1.8MPa FO Pump Model: MIURA , Trochiodal Gear Type | AH143: HFO Transfer Pump | AI143: HFO TRANSFER PUMP Maker: TAIKO KIKAI INDUSTRIES Serial Number: A1P1377 MODEL- NHG-20MA Drawing number H0015A1P1376 | AL143: Cargo Hold #5 | AM143: 20.0m x 20.0m | AP143: Mooring Winch Port | AQ143: Make: KAWASAKI HYDRAULIC DECK MACHINERY Type/Description: 127kN x 15m/min | BF143: Mooring Winch Port | BG143: Nantong Masada Ship Machinery Co. Ltd. Mooring: MOK-H11 | BJ143: Aux Engine No. 3 (Engine Number:10228) | BK143: Model: ZJMD-MAN B&W 5L16/24 Rated Output: 500Kw Rated Speed: 1200rpm No. of Cylinder: 5 Cylinder Bore x Stroke: 160mm x 240mm Starting System: Air Motor Firing Order: 1-2-4-5-3-1 Turbocharger: MAN B&W DIESEL NR12 Governor: REGULATEURS EUROPA TYPE: 1102V-4G-8R COLCHESTER ENGLAND & RODEN NETHERLAND | BZ143: Emergency Engine Generator | CA143: Engine Model: Mitsui Zosen Machinery Deutz Air Cooled Diesel Engine F6L912 Engine Rated Output: 60Kw Rated Speed: 1800rpm No. of Cylinder : 6 Cylinder Bore x Stroke: 100mm x 120mm Generator Model: Cummis Generator Technologies UC. M224F1 Generator Output: 65KvA No. of phase: 3 Freq,Voltage & Power factor: 60Hz, 450V & 0.8 | CD143: Emergency Engine Generator | CE143: Engine Model: Mitsui Zosen Machinery Deutz Air Cooled Diesel Engine TCD914L06M Engine Rated Output: 99Kw Rated Speed: 1800rpm No. of Cylinder : 6 Cylinder Bore x Stroke: 102mm x 132mm Generator Model: NISHISHIBA ELECTRIC, NTAKL-VEK Generator Output: 100KvA No. of phase: 3 Freq,Voltage & Power factor: 60Hz, 450V & 0.8 | CH143: Boiler | CP143: Boiler | CT143: Boiler
AH144: Fire / GS Pump | AI144: Maker: TAIKO INDUSTRIES.INDUSTRIES.CO.LTD MODEL VSE-150 MBT DRAWING NO. S0923A1P1372 | AP144: Mooring Winch Stbd | AQ144: Make: KAWASAKI HYDRAULIC DECK MACHINERY Type/Description: 127kN x 15m/min | AT144: Boiler | BF144: Mooring Winch Stbd | BG144: Nantong Masada Ship Machinery Co. Ltd. Mooring: MOK-H11 | BJ144: Emergency Engine Generator | BK144: Engine Model: Cummins Model: 6CT8.3-D(M) Engine Rated Output: 125Kw Rated Speed: 1800rpm No. of Cylinder : 6 Cylinder Bore x Stroke: 114mm x 135mm No. of phase: 3 Freq,Voltage & Power factor: 60Hz, 450V & 0.8 | BR144: Boiler | CH144: Composite Boiler (Aux Boiler) (Boiler number: C11379) | CI144: Boiler Model: Green Power Equipment ZYC1.2/0.9-0.7 (Horizontal smoke tube vertical composite boiler) Evaporation: 1200kg/h Design Pressure: 0.9MPa Normal Working Pressure: 0.7MPa Burner Unit Model: Olion Type: RP-130 H CCS Combustion Capacity: 44-121kg/h | CP144: Composite Boiler (Aux Boiler) (Boiler number: 15435) | CQ144: Boiler Model: Osaka Boiler Mfg Co. Ltd. OHB-100/55/7(3)-26 (Vertical Composite Boiler) Evaporation: 1000kg/h Design Pressure: 0.78MPa Normal Working Pressure: 0.69MPa Fuel Consumption: 83kg/h Burner Unit Model: Pressure Jet System, Volcano Co. Ltd MJII-90-3 Combustion Capacity: 87kg/h FO Pressure: 1.86 MPa FO Pump Model: Trochiodal Gear Type | CT144: Composite Boiler (Aux Boiler) (Boiler number: M-3710 ) | CU144: Boiler Model: HADA Boiler, Tortoise Engineering Co.,Ltd. MKSC 20-750/480 (Horizontal smoke tube vertical composite boiler) Evaporation: 750kg/h Design Pressure: 0.69MPa Normal Working Pressure: 0.59MPa Fuel Consumption: 64.1kg/h Burner Unit Model: Forced Draft Pressure Jet System, Sunflame Co. SSC-4 Combustion Capacity: 72kg/h FO Pressure: 2.0 MPa FO Pump Model: NIPPON G-ROTAR MFG. CO., LTD Trochiodal Gear Type (GFH - V3L )
AH145: Emergency Fire Pump | AI145: Maker: TAIKO INDUSTRIES.INDUSTRIES.CO.LTD Serial no : AIP1574 Type : EMCN - 125MB Capacity : 72 m3/h @ 0.7 MPa Speed : 3600 rpm Power : 30kW MODEL VSE-150 MBT DRAWING NO. S0923A1P1372 | AL145: Crane specifications | AP145: Pump Station | AQ145: Make: KAWASAKI HYDRAULIC DECK MACHINERY Type: H402PON | AT145: Composite Boiler (Aux Boiler) (Boiler number: A-21612) | AU145: Boiler Model: Osaka Boiler Mfg Co. Ltd. OHB-100/53/7(3)-26 (Vertical Composite Boiler) Evaporation: 1000kg/h Design Pressure: 0.78MPa Normal Working Pressure: 0.69MPa Fuel Consumption: 83kg/h Burner Unit Model: Pressure Jet System, Volcano Co. Ltd MJII-90-3 Combustion Capacity: 87kg/h FO Pressure: 1.86 MPa FO Pump Model: Trochiodal Gear Type | BF145: Pump Station | BG145: Nantong Masada Ship Machinery Co. Ltd. Type: A7V0160LR0/63RNPB0 | BR145: Composite Boiler (Aux Boiler) (Boiler number: M-4005) | BS145: Boiler Model:Hada Boiler , Tortoise Engineering Co. Ltd, MKSC 22-900/800 (Horizontal Smoke Tube Vertical Composite Boiler) Evaporation: 900kg/h Design Pressure: 0.69MPa Normal Working Pressure: 0.59MPa Fuel Consumption: 77.3kg/h Burner Unit Model: FORCED DRAFT ROTARY-CUP ATOMIZING SYSTEM, SUNFLAME CO., LTD. SDR-1 Combustion Capacity: 78kg/h FO Pressure: 0.3 MPa FO Pump Model: SUNFLAME FTP-210ASFM-VB (Trochiodal Gear Type) | BZ145: Boiler | CD145: Boiler
AH146: DO Transfer Pump | AI146: MAKER: TAIKO Serial No. A1P1377 Cap.: 4m3/h Speed: 1,200 | AL146: Cargo Crane #1 | AM146: Make: Mitsubishi Heavy Industries Type: 30.5MT x 24M Crane | BJ146: Boiler | BZ146: Composite Boiler (Aux Boiler) (Boiler number: 89010603) | CA146: Boiler Model: MIURA Co, GK2028-1000/650 (Vertical water tube composite boiler) Evaporation: 1000kg/h Design Pressure: 0.8MPa Normal Working Pressure: 0.5-0.7MPa Fuel Consumption: 76.5kg/h Burner Unit Model: Forced Draft Pressure Atomizing System, CS-9 Combustion Capacity: 77kg/h FO Pressure: 1.8 MPa (Main) , 0.8MPa (Pilot) FO Pump Model: Trochiodal Gear Type | CD146: Composite Boiler (Aux Boiler) (Boiler number: 13182937) | CE146: Boiler Model: Osaka Boiler Mfg Co. Ltd. OHB-100/55/7(3)-26 (Vertical Composite Boiler) Evaporation: 1000kg/h Design Pressure: 0.78MPa Normal Working Pressure: 0.69MPa Fuel Consumption: 83kg/h Burner Unit Model: Pressure Jet System, Volcano Co. Ltd MJII-90-3 Combustion Capacity: 87kg/h FO Pressure: 1.86 MPa FO Pump Model: Trochiodal Gear Type
AH147: FO Purifier Feed Pump | AI147: HFO Purifier Feed Pump: Model: PUAGKF32-WS-1.10 KW PART NO: 9990-0180-798 T-Nr: PUAG 6640 | AL147: Cargo Crane #2 | AM147: Make: Mitsubishi Heavy Industries Type: 30.5MT x 24M Crane | AP147: Aux Eng (including Emergency Generator) | BF147: Aux Eng (including Emergency Generator) | BJ147: Composite Boiler (Aux Boiler) (Boiler number:0982) | BK147: Boiler Model: Green Power Equipment ZYC1.2/0.9-0.7 (Horizontal smoke tube vertical composite boiler) Evaporation: 1200kg/h Design Pressure: 0.9MPa Normal Working Pressure: 0.7MPa Burner Unit Model: OILON PL5 /TYPE:RP-130H Combustion Capacity: 44-121kg/h
AH148: ME LO Purifier Feed Pump | AI148: M.E. L.O Purifier Feed Pump: Model: PUAGKF32-WS-1.10 KW PART NO: 9990-0180-798 T-Nr: PUAG 6640 | AL148: Cargo Crane #3 | AM148: Make: Mitsubishi Heavy Industries Type: 30.5MT x 24M Crane | AP148: Aux Engine No. 1 (Engine Number: 7615 ) | AQ148: Model: YANMAR 6EY18ALW x 480Kw Rated Output: 550Kw Rated Speed: 900rpm No. of Cylinder: 6 Cylinder Bore x Stroke: 180mm x 280mm Starting System: Air Motor Firing Order: 1-4-2-6-3-5-1 Turbocharger: MET 18SRC (Serial No: 40608) Governor: Yanmar Co., Ltd. Model: NZ61 | BF148: Aux Engine No. 1 (Engine Number:SF5L16-0445) | BG148: Model: STX-B&W 5L16/24 Rated Output: 500Kw Rated Speed: 1200rpm No. of Cylinder: 5 Cylinder Bore x Stroke: 160mm x 240mm Starting System: Air Motor Firing Order: 1-2-4-5-3-1 Turbocharger: MANSEI TCR12 (Serial No: 7030141) Governor: MAN B&W EUROPA Model: RE2800
AH149: AE LO Purifier Feed Pump | AI149: A.E L.O Purifier Feed Pump: Model: PUAGKF32-WS-1.10 KW PART NO: 9990-0180-798 T-Nr: PUAG 6640 | AL149: Crago Crane #4 | AM149: Make: Mitsubishi Heavy Industries Type: 30.5 /20 MT x 24 /25 M Crane | AP149: Aux Engine No. 2 (Engine Number: 7616 ) | AQ149: Model: YANMAR 6EY18ALW x 480Kw Rated Output: 550Kw Rated Speed: 900rpm No. of Cylinder: 6 Cylinder Bore x Stroke: 180mm x 280mm Starting System: Air Motor Firing Order: 1-4-2-6-3-5-1 Turbocharger: MET 18SRC (Serial No: 40609) Governor: Yanmar Co., Ltd. Model: NZ61 | BF149: Aux Engine No. 2 (Engine Number:SF5L16-0446) | BG149: Model: STX-B&W 5L16/24 Rated Output: 500Kw Rated Speed: 1200rpm No. of Cylinder: 5 Cylinder Bore x Stroke: 160mm x 240mm Starting System: Air Motor Firing Order: 1-2-4-5-3-1 Turbocharger: MANSEI TCR12 (Serial No: 7030142) Governor: MAN B&W EUROPA Model: RE2800
AH150: LO Transfer Pump | AI150: MAKER: TAIKO PUMP Serial No.: A1P1379 Type: NHG-4MT Cap.: 4m3/h | AL150: Engine Room Crane | AM150: Make: KOEI SANGYOU 3-Ton Type: KCD30N-3.25E | AP150: Aux Engine No. 3 (Engine Number: 7617 ) | AQ150: Model: YANMAR 6EY18ALW x 480Kw Rated Output: 550Kw Rated Speed: 900rpm No. of Cylinder: 6 Cylinder Bore x Stroke: 180mm x 280mm Starting System: Air Motor Firing Order: 1-4-2-6-3-5-1 Turbocharger: MET 18SRC (Serial No: 40610) Governor: Yanmar Co., Ltd. Model: NZ61 | BF150: Aux Engine No. 3 (Engine Number:SF5L16-0447) | BG150: Model: STX-B&W 5L16/24 Rated Output: 500Kw Rated Speed: 1200rpm No. of Cylinder: 5 Cylinder Bore x Stroke: 160mm x 240mm Starting System: Air Motor Firing Order: 1-2-4-5-3-1 Turbocharger: MANSEI TCR12 (Serial No: 7030143) Governor: MAN B&W EUROPA Model: RE2800
AH151: Cyl. LO Transfer Pump | AI151: MAKER: TAIKO PUMP Serial No.:A1P1381 Type: NHG-0.5M Cap.: 0.5m3/h Suct. 0.05Mpa Diff. Pres.: 0.15m3 | AL151: Misc Crane | AM151: Make: KOEI SANGYOU 2ton x 9.7MR Type: KCT20-9.7NE | AP151: Emergency Engine Generator | AQ151: Engine Model: Doosan Infracore AD136TIS Engine Rated Output: 138Kw Rated Speed: 1800rpm No. of Cylinder : 6 Cylinder Bore x Stroke: 111mm x 139mm Generator Model: Leroy Somer M 44.3 M6 C6S/4 Generator Output: 125KvA No. of phase: 3 Freq,Voltage & Power factor: 60Hz, 450V & 0.8 | BF151: Emergency Engine Generator | BG151: Engine Model: STX Engine (CUMMINS) 6CT8.3DMGE Engine Rated Output: 125Kw Rated Speed: 1800rpm No. of Cylinder : 6 Cylinder Bore x Stroke: 114mm x 135mm No. of phase: 3 Freq,Voltage & Power factor: 60Hz, 450V & 0.8
AH152: Composite Boiler Feed Pump | AI152: MAKER: GRUNDFOS TYPE: CR3-15-E-FGJ-A-E-HQQE MODEL: A96799403 P10912-81297 SERIAL: 0001 MADE IN DENMARK FREQUENCY: 60 HZ / 2.20 kw N: 3501 min-1 / Q: 3.5 m3/h Pmax/Tmax: 25/120 bar
AH153: FW Hydrophore Pump | AI153: MAKER: TAIKO PUMP Type: TMC-32MT Serial No.: A1S9980-2 Cap.: 5m3/h Speed: 3600min-1 Power: 7KW Total Head: 5Mpa | AL153: Winch Specs | AP153: Boiler | BF153: Boiler
AH154: Hot Water Circulating Pump | AI154: MAKER: TAIKO PUMP Type: TMC-32MT Serail No.A1S9990 | AL154: Mooring Winch & Windlass Port | AM154: Make: Kawasaki Heavy Industries Type: 194.6KN x 9m/min | AP154: Composite Boiler (Aux Boiler) (Boiler number: 15182417 ) | AQ154: Boiler Model: Osaka Boiler Mfg Co. Ltd. OVS2-80/51-22 (Vertical Composite Boiler) Evaporation: 800kg/h Design Pressure: 0.69MPa Normal Working Pressure: 0.59MPa Fuel Consumption: 66kg/h Burner Unit Model: Pressure Jet System, Volcano Co. Ltd MJII-90-3 Combustion Capacity: 69kg/h FO Pressure: 1.76 MPa FO Pump Model: Trochiodal Gear Type | BF154: Composite Boiler (Aux Boiler) (Boiler number:16335 CHN11) | BG154: Boiler Model: Green Power Equipment ZYC1.2/0.9-0.7 (Horizontal smoke tube vertical composite boiler) Evaporation: 1200kg/h Design Pressure: 0.9MPa Normal Working Pressure: 0.7MPa Burner Unit Model: Olion Type: RP-130 H CCS Combustion Capacity: 44-121kg/h
AL155: Mooring Winch & Windlass Stbd | AM155: Make: Kawasaki Heavy Industries Type: 194.6KN x 9m/min
AH156: Cargo Hold dimensions | AL156: Mooring Winch Port | AM156: Make: Kawasaki Heavy Industries Type: 125KN x 15m/min
AH157: Cargo Hold #1 | AI157: 14.40m x 17.60m | AL157: Mooring Winch Stbd | AM157: Make: Kawasaki Heavy Industries Type: 125KN x 15m/min
AH158: Cargo Hold #2 | AI158: 20.00m x 19.20m | AL158: Pump Station | AM158: Make: Kawasaki Heavy Industries Type: K3VG 112-55/68kW X 2 , K3VG112-45/55kW X 1
AH159: Cargo Hold #3 | AI159: 20.00m x 19.20m
AH160: Cargo Hold #4 | AI160: 20.00m x 19.20m | AL160: Aux Eng (including Emergency Generator)
AH161: Cargo Hold #5 | AI161: 18.40m x 19.20m | AL161: Aux Engine No. 1 (Engine Number: 6696FXC) | AM161: Model: YANMAR 6EY18ALW x 400Kw Rated Output: 455Kw Rated Speed: 900rpm No. of Cylinder: 6 Cylinder Bore x Stroke: 180mm x 280mm Starting System: Air Motor Firing Order: 1-4-2-6-3-5-1 Turbocharger: MET 18SRC (Serial No: 98203) Governor: Yanmar Co., Ltd. Model: NZ61
AL162: Aux Engine No. 2 (Engine Number: 6697FXC) | AM162: Model: YANMAR 6EY18ALW x 400Kw Rated Output: 455Kw Rated Speed: 900rpm No. of Cylinder: 6 Cylinder Bore x Stroke: 180mm x 280mm Starting System: Air Motor Firing Order: 1-4-2-6-3-5-1 Turbocharger: MET 18SRC (Serial No: 98204 ) Governor: Yanmar Co., Ltd. Model: NZ61
AH163: Crane specifications | AL163: Aux Engine No. 3 (Engine Number: 6698FXC) | AM163: Model: YANMAR 6EY18ALW x 400Kw Rated Output: 455Kw Rated Speed: 900rpm No. of Cylinder: 6 Cylinder Bore x Stroke: 180mm x 280mm Starting System: Air Motor Firing Order: 1-4-2-6-3-5-1 Turbocharger: MET 18SRC (Serial No: 98205 ) Governor: Yanmar Co., Ltd. Model: NZ61
AH164: Cargo Crane #1 | AI164: IHI-WMMP | AL164: Emergency Engine Generator | AM164: Engine Model: Mitsui Zosen Machinery Deutz Air Cooled Diesel Engine F6L912 Engine Rated Output: 60Kw Rated Speed: 1800rpm No. of Cylinder : 6 Cylinder Bore x Stroke: 102mm x 132mm Generator Model: Cummis Generator Technologies UC. M224F1 Generator Output: 65KvA No. of phase: 3 Freq,Voltage & Power factor: 60Hz, 450V & 0.8
AH165: Cargo Crane #2 | AI165: IHI-WMMP
AH166: Cargo Crane #3 | AI166: IHI-WMMP | AL166: Boiler
AH167: Crago Crane #4 | AI167: IHI-WMMP | AL167: Composite Boiler (Aux Boiler) (Boiler number: M-3777 ) | AM167: Boiler Model: HADA Boiler, Tortoise Engineering Co.,Ltd. MKSC 20-750/530 (Horizontal smoke tube vertical composite boiler) Evaporation: 750kg/h Design Pressure: 0.69MPa Normal Working Pressure: 0.59MPa Fuel Consumption: 64.1kg/h Burner Unit Model: Forced Draft Pressure Jet System, Sunflame Co. SSC-4 Combustion Capacity: 72kg/h FO Pressure: 2.0 MPa FO Pump Model: NIPPON G-ROTAR MFG. CO., LTD Trochiodal Gear Type (GFH - V3L )
AH168: Engine Room Crane | AI168: JIANGYIN OYA MARINE MACHINERY 2T crane Type: HM-C2-12A1
AH169: Hydraulic Slewing Crane | AI169: Jiangsu Jiaoyan Marine Equipment Co. Ltd (Jiangyin Xinjiang F.R.P. Co.LTD) JYC0105 Hydraulic Slewing Crane
AH171: Winch Specs
AH172: Mooring Winch & Windlass Port | AI172: MAKER: HATLAPA HUMBURG TYPE: 28460212
AH173: Mooring Winch & Windlass Stbd | AI173: MAKER: HATLAPA HUMBURG TYPE: 28460212
AH174: Mooring Winch Port | AI174: MAKER: HATLAPA HAMBURG TYPE:2846212
AH175: Mooring Winch Stbd | AI175: MAKER: HATLAPA HAMBURG TYPE:2846212
AH176: Pump Station
AH178: Aux Eng (including Emergency Generator)
AH179: Aux Engine No. 1 (Engine Number:L16/124-003PF/15819W) | AI179: Model: ZJMD-MAN B&W 5L16/24 Rated Output: 500Kw Rated Speed: 1200rpm No. of Cylinder: 5 Cylinder Bore x Stroke: 160mm x 240mm Starting System: Air Motor Firing Order: 1-2-4-5-3-1 Turbocharger: MAN B&W DIESEL NR12 Governor: REGULATEURS EUROPA TYPE: 1102V-4G-8R COLCHESTER ENGLAND & RODEN NETHERLAND
AH180: Aux Engine No. 2 (Engine Number:L16/124-003PF/15819W) | AI180: Model: ZJMD-MAN B&W 5L16/24 Rated Output: 500Kw Rated Speed: 1200rpm No. of Cylinder: 5 Cylinder Bore x Stroke: 160mm x 240mm Starting System: Air Motor Firing Order: 1-2-4-5-3-1 Turbocharger: MAN B&W DIESEL NR12 Governor: REGULATEURS EUROPA TYPE: 1102V-4G-8R COLCHESTER ENGLAND & RODEN NETHERLAND
AH181: Aux Engine No. 3 (Engine Number:L16/124-003PF/15819W) | AI181: Model: ZJMD-MAN B&W 5L16/24 Rated Output: 500Kw Rated Speed: 1200rpm No. of Cylinder: 5 Cylinder Bore x Stroke: 160mm x 240mm Starting System: Air Motor Firing Order: 1-2-4-5-3-1 Turbocharger: MAN B&W DIESEL NR12 Governor: REGULATEURS EUROPA TYPE: 1102V-4G-8R COLCHESTER ENGLAND & RODEN NETHERLAND
AH182: Emergency Engine Generator | AI182: Engine Model: Cummins Model: 6CT8.3-D(M) Engine Rated Output: 125Kw Rated Speed: 1800rpm No. of Cylinder : 6 Cylinder Bore x Stroke: 114mm x 135mm No. of phase: 3 Freq,Voltage & Power factor: 60Hz, 450V & 0.8
AH184: Boiler
AH185: Composite Boiler (Aux Boiler) (Boiler number:41GPEOI-1-0) | AI185: Boiler Model: Green Power Equipment ZYC1.2/0.9-0.7 (Horizontal smoke tube vertical composite boiler) Evaporation: 1200kg/h Design Pressure: 0.9MPa Normal Working Pressure: 0.7MPa Burner Unit Model: OILON PL5 /TYPE:RP-130H Combustion Capacity: 44-121kg/h

Sheet Full Job Descriptions Standard (hidden)
B2: Back to top | F2: FULL JOB DESCRIPTIONS - STANDARD
F4: =IF('Home Page'!H12="Click here to select a vessel","Select a vessel and a docking type at Home Page",'Home Page'!H12) -> Select a vessel and a docking type at Home Page
L5: G1000
L6: H1000
F7: Item No | G7: Description | H7: Cost | I7: Remarks | L7: D1000
G8: Select a docking type at Home Page
L341: C1000
L342: M1000
L343: E1000
L344: O1000

Sheet Full Job Desc Ship Specific (hidden)
B2: Back to top | F2: FULL JOB DESCRIPTIONS - SHIP SPECIFIC
F4: =IF('Home Page'!H12="Click here to select a vessel","Select a vessel and a docking type at Home Page",'Home Page'!H12) -> Select a vessel and a docking type at Home Page
F7: Item No | G7: Description | H7: Cost | I7: Remarks | U7: Column0 | X7: Column1 | AA7: Column2 | AC7: SSJItemNo | AD7: ListA | AE7: SumA | AF7: ListB | AG7: SumB | AH7: ListC | AI7: SumC
G8: title is bold | T8: =MAX(IF(IFERROR(IF(LEFT(SourceJobClass[Item No],1)="G",VALUE(RIGHT(SourceJobClass[Item No],6)),),"")=0,"",IFERROR(IF(LEFT(SourceJobClass[Item No],1)="G",VALUE(RIGHT(SourceJobClass[Item No],6)),),"")))+1 ->  | U8: =_xlfn.CONCAT("G",T8) ->  | W8: =CONCATENATE(ROUNDDOWN(MAX(U18:U19),0)+1,".00") ->  | X8: =_xlfn.CONCAT("G",W8) ->  | Z8: =CONCATENATE(ROUNDDOWN(MAX(U21:U23),0)+1,".00") ->  | AA8: =_xlfn.CONCAT("G",Z8) ->  | AC8: =_xlfn.UNIQUE((_xlfn._xlws.FILTER(tblShipSpecific[Item No],tblShipSpecific[Item No]<>""))) ->  | AD8: =SUMIF(StandardAndSpecific[Item No],_xlfn.UNIQUE((_xlfn._xlws.FILTER(tblShipSpecific[Item No],tblShipSpecific[Item No]<>""))),tblCostComp[Column7]) -> 0 | AE8: =SUM(AD:AD) -> 0 | AF8: =SUMIF(StandardAndSpecific[Item No],_xlfn.UNIQUE((_xlfn._xlws.FILTER(tblShipSpecific[Item No],tblShipSpecific[Item No]<>""))),tblCostComp[Column13]) -> 0 | AG8: =SUM(AF:AF) -> 0 | AH8: =SUMIF(StandardAndSpecific[Item No],_xlfn.UNIQUE((_xlfn._xlws.FILTER(tblShipSpecific[Item No],tblShipSpecific[Item No]<>""))),tblCostComp[Column19]) -> 0 | AI8: =SUM(AH:AH) -> 0
G9: description | T9: =MAX(IF(IFERROR(IF(LEFT(SourceJobClass[Item No],1)="H",VALUE(RIGHT(SourceJobClass[Item No],6)),),"")=0,"",IFERROR(IF(LEFT(SourceJobClass[Item No],1)="H",VALUE(RIGHT(SourceJobClass[Item No],6)),),"")))+1 ->  | U9: =_xlfn.CONCAT("H",T9) ->  | W9: =CONCATENATE(ROUNDDOWN(MAX(V18:V19),0)+1,".00") ->  | X9: =_xlfn.CONCAT("H",W9) ->  | Z9: =CONCATENATE(ROUNDDOWN(MAX(V21:V23),0)+1,".00") ->  | AA9: =_xlfn.CONCAT("H",Z9) -> 
G10: just type in below the last row, and it will be automatically included in the table | T10: =MAX(IF(IFERROR(IF(LEFT(SourceJobClass[Item No],1)="D",VALUE(RIGHT(SourceJobClass[Item No],6)),),"")=0,"",IFERROR(IF(LEFT(SourceJobClass[Item No],1)="D",VALUE(RIGHT(SourceJobClass[Item No],6)),),"")))+1 ->  | U10: =_xlfn.CONCAT("D",T10) ->  | W10: =CONCATENATE(ROUNDDOWN(MAX(W18:W19),0)+1,".00") ->  | X10: =_xlfn.CONCAT("D",W10) ->  | Z10: =CONCATENATE(ROUNDDOWN(MAX(W21:W23),0)+1,".00") ->  | AA10: =_xlfn.CONCAT("D",Z10) -> 
T11: =MAX(IF(IFERROR(IF(LEFT(SourceJobClass[Item No],1)="D",VALUE(RIGHT(SourceJobClass[Item No],6)),),"")=0,"",IFERROR(IF(LEFT(SourceJobClass[Item No],1)="D",VALUE(RIGHT(SourceJobClass[Item No],6)),),"")))+1 ->  | U11: =_xlfn.CONCAT("C",T11) ->  | W11: =CONCATENATE(ROUNDDOWN(MAX(X18:X19),0)+1,".00") ->  | X11: =_xlfn.CONCAT("C",W11) ->  | Z11: =CONCATENATE(ROUNDDOWN(MAX(X21:X23),0)+1,".00") ->  | AA11: =_xlfn.CONCAT("C",Z11) -> 
T12: =MAX(IF(IFERROR(IF(LEFT(SourceJobClass[Item No],1)="M",VALUE(RIGHT(SourceJobClass[Item No],6)),),"")=0,"",IFERROR(IF(LEFT(SourceJobClass[Item No],1)="M",VALUE(RIGHT(SourceJobClass[Item No],6)),),"")))+1 ->  | U12: =_xlfn.CONCAT("M",T12) ->  | W12: =CONCATENATE(ROUNDDOWN(MAX(Y18:Y19),0)+1,".00") ->  | X12: =_xlfn.CONCAT("M",W12) ->  | Z12: =CONCATENATE(ROUNDDOWN(MAX(Y21:Y23),0)+1,".00") ->  | AA12: =_xlfn.CONCAT("M",Z12) -> 
T13: =MAX(IF(IFERROR(IF(LEFT(SourceJobClass[Item No],1)="E",VALUE(RIGHT(SourceJobClass[Item No],6)),),"")=0,"",IFERROR(IF(LEFT(SourceJobClass[Item No],1)="E",VALUE(RIGHT(SourceJobClass[Item No],6)),),"")))+1 ->  | U13: =_xlfn.CONCAT("E",T13) ->  | W13: =CONCATENATE(ROUNDDOWN(MAX(Z18:Z19),0)+1,".00") ->  | X13: =_xlfn.CONCAT("E",W13) ->  | Z13: =CONCATENATE(ROUNDDOWN(MAX(Z21:Z23),0)+1,".00") ->  | AA13: =_xlfn.CONCAT("E",Z13) -> 
T14: =MAX(IF(IFERROR(IF(LEFT(SourceJobClass[Item No],1)="O",VALUE(RIGHT(SourceJobClass[Item No],6)),),"")=0,"",IFERROR(IF(LEFT(SourceJobClass[Item No],1)="O",VALUE(RIGHT(SourceJobClass[Item No],6)),),"")))+1 ->  | U14: =_xlfn.CONCAT("O",T14) ->  | W14: =CONCATENATE(IF(ROUNDDOWN(MAX(AA18:AA19),0)=0,100,ROUNDDOWN(MAX(AA18:AA19),0)+1),".00") ->  | X14: =_xlfn.CONCAT("O",W14) ->  | Z14: =CONCATENATE(IF(ROUNDDOWN(MAX(AA21:AA23),0)=0,100,ROUNDDOWN(MAX(AA21:AA23),0)+1),".00") ->  | AA14: =_xlfn.CONCAT("O",Z14) -> 
U17: G | V17: H | W17: D | X17: C | Y17: M | Z17: E | AA17: O
U18: =MAX(IF(IFERROR(IF(LEFT(SourceJobClass[Item No],1)="G",VALUE(RIGHT(SourceJobClass[Item No],6)),),"")=0,"",IFERROR(IF(LEFT(SourceJobClass[Item No],1)="G",VALUE(RIGHT(SourceJobClass[Item No],6)),),""))) ->  | V18: =MAX(IF(IFERROR(IF(LEFT(SourceJobClass[Item No],1)="H",VALUE(RIGHT(SourceJobClass[Item No],6)),),"")=0,"",IFERROR(IF(LEFT(SourceJobClass[Item No],1)="H",VALUE(RIGHT(SourceJobClass[Item No],6)),),""))) ->  | W18: =MAX(IF(IFERROR(IF(LEFT(SourceJobClass[Item No],1)="D",VALUE(RIGHT(SourceJobClass[Item No],6)),),"")=0,"",IFERROR(IF(LEFT(SourceJobClass[Item No],1)="D",VALUE(RIGHT(SourceJobClass[Item No],6)),),""))) ->  | X18: =MAX(IF(IFERROR(IF(LEFT(SourceJobClass[Item No],1)="D",VALUE(RIGHT(SourceJobClass[Item No],6)),),"")=0,"",IFERROR(IF(LEFT(SourceJobClass[Item No],1)="D",VALUE(RIGHT(SourceJobClass[Item No],6)),),""))) ->  | Y18: =MAX(IF(IFERROR(IF(LEFT(SourceJobClass[Item No],1)="M",VALUE(RIGHT(SourceJobClass[Item No],6)),),"")=0,"",IFERROR(IF(LEFT(SourceJobClass[Item No],1)="M",VALUE(RIGHT(SourceJobClass[Item No],6)),),""))) ->  | Z18: =MAX(IF(IFERROR(IF(LEFT(SourceJobClass[Item No],1)="E",VALUE(RIGHT(SourceJobClass[Item No],6)),),"")=0,"",IFERROR(IF(LEFT(SourceJobClass[Item No],1)="E",VALUE(RIGHT(SourceJobClass[Item No],6)),),""))) ->  | AA18: =MAX(IF(IFERROR(IF(LEFT(SourceJobClass[Item No],1)="O",VALUE(RIGHT(SourceJobClass[Item No],6)),),"")=0,"",IFERROR(IF(LEFT(SourceJobClass[Item No],1)="O",VALUE(RIGHT(SourceJobClass[Item No],6)),),""))) -> 
U19: =IFERROR(MAX(IF(IFERROR(IF(LEFT(tblShipSpecific[Item No],1)="G",VALUE(RIGHT(tblShipSpecific[Item No],6)),),"")=0,"",IFERROR(IF(LEFT(tblShipSpecific[Item No],1)="G",VALUE(RIGHT(tblShipSpecific[Item No],6)),),""))),0) -> 0 | V19: =IFERROR(MAX(IF(IFERROR(IF(LEFT(tblShipSpecific[Item No],1)="H",VALUE(RIGHT(tblShipSpecific[Item No],6)),),"")=0,"",IFERROR(IF(LEFT(tblShipSpecific[Item No],1)="H",VALUE(RIGHT(tblShipSpecific[Item No],6)),),""))),0) -> 0 | W19: =IFERROR(MAX(IF(IFERROR(IF(LEFT(tblShipSpecific[Item No],1)="D",VALUE(RIGHT(tblShipSpecific[Item No],6)),),"")=0,"",IFERROR(IF(LEFT(tblShipSpecific[Item No],1)="D",VALUE(RIGHT(tblShipSpecific[Item No],6)),),""))),0) -> 0 | X19: =IFERROR(MAX(IF(IFERROR(IF(LEFT(tblShipSpecific[Item No],1)="C",VALUE(RIGHT(tblShipSpecific[Item No],6)),),"")=0,"",IFERROR(IF(LEFT(tblShipSpecific[Item No],1)="C",VALUE(RIGHT(tblShipSpecific[Item No],6)),),""))),0) -> 0 | Y19: =IFERROR(MAX(IF(IFERROR(IF(LEFT(tblShipSpecific[Item No],1)="M",VALUE(RIGHT(tblShipSpecific[Item No],6)),),"")=0,"",IFERROR(IF(LEFT(tblShipSpecific[Item No],1)="M",VALUE(RIGHT(tblShipSpecific[Item No],6)),),""))),0) -> 0 | Z19: =IFERROR(MAX(IF(IFERROR(IF(LEFT(tblShipSpecific[Item No],1)="E",VALUE(RIGHT(tblShipSpecific[Item No],6)),),"")=0,"",IFERROR(IF(LEFT(tblShipSpecific[Item No],1)="E",VALUE(RIGHT(tblShipSpecific[Item No],6)),),""))),0) -> 0 | AA19: =IFERROR(MAX(IF(IFERROR(IF(LEFT(tblShipSpecific[Item No],1)="O",VALUE(RIGHT(tblShipSpecific[Item No],6)),),"")=0,"",IFERROR(IF(LEFT(tblShipSpecific[Item No],1)="O",VALUE(RIGHT(tblShipSpecific[Item No],6)),),""))),0) -> 0
T20: MAX
U21: =MAX(IF(IFERROR(IF(LEFT(SourceJobClass[Item No],1)="G",VALUE(RIGHT(SourceJobClass[Item No],6)),),"")=0,"",IFERROR(IF(LEFT(SourceJobClass[Item No],1)="G",VALUE(RIGHT(SourceJobClass[Item No],6)),),""))) ->  | V21: =MAX(IF(IFERROR(IF(LEFT(SourceJobClass[Item No],1)="H",VALUE(RIGHT(SourceJobClass[Item No],6)),),"")=0,"",IFERROR(IF(LEFT(SourceJobClass[Item No],1)="H",VALUE(RIGHT(SourceJobClass[Item No],6)),),""))) ->  | W21: =MAX(IF(IFERROR(IF(LEFT(SourceJobClass[Item No],1)="D",VALUE(RIGHT(SourceJobClass[Item No],6)),),"")=0,"",IFERROR(IF(LEFT(SourceJobClass[Item No],1)="D",VALUE(RIGHT(SourceJobClass[Item No],6)),),""))) ->  | X21: =MAX(IF(IFERROR(IF(LEFT(SourceJobClass[Item No],1)="D",VALUE(RIGHT(SourceJobClass[Item No],6)),),"")=0,"",IFERROR(IF(LEFT(SourceJobClass[Item No],1)="D",VALUE(RIGHT(SourceJobClass[Item No],6)),),""))) ->  | Y21: =MAX(IF(IFERROR(IF(LEFT(SourceJobClass[Item No],1)="M",VALUE(RIGHT(SourceJobClass[Item No],6)),),"")=0,"",IFERROR(IF(LEFT(SourceJobClass[Item No],1)="M",VALUE(RIGHT(SourceJobClass[Item No],6)),),""))) ->  | Z21: =MAX(IF(IFERROR(IF(LEFT(SourceJobClass[Item No],1)="E",VALUE(RIGHT(SourceJobClass[Item No],6)),),"")=0,"",IFERROR(IF(LEFT(SourceJobClass[Item No],1)="E",VALUE(RIGHT(SourceJobClass[Item No],6)),),""))) ->  | AA21: =MAX(IF(IFERROR(IF(LEFT(SourceJobClass[Item No],1)="O",VALUE(RIGHT(SourceJobClass[Item No],6)),),"")=0,"",IFERROR(IF(LEFT(SourceJobClass[Item No],1)="O",VALUE(RIGHT(SourceJobClass[Item No],6)),),""))) -> 
U22: =IFERROR(MAX(IF(IFERROR(IF(LEFT(tblShipSpecific[Item No],1)="G",VALUE(RIGHT(tblShipSpecific[Item No],6)),),"")=0,"",IFERROR(IF(LEFT(tblShipSpecific[Item No],1)="G",VALUE(RIGHT(tblShipSpecific[Item No],6)),),""))),0) -> 0 | V22: =IFERROR(MAX(IF(IFERROR(IF(LEFT(tblShipSpecific[Item No],1)="H",VALUE(RIGHT(tblShipSpecific[Item No],6)),),"")=0,"",IFERROR(IF(LEFT(tblShipSpecific[Item No],1)="H",VALUE(RIGHT(tblShipSpecific[Item No],6)),),""))),0) -> 0 | W22: =IFERROR(MAX(IF(IFERROR(IF(LEFT(tblShipSpecific[Item No],1)="D",VALUE(RIGHT(tblShipSpecific[Item No],6)),),"")=0,"",IFERROR(IF(LEFT(tblShipSpecific[Item No],1)="D",VALUE(RIGHT(tblShipSpecific[Item No],6)),),""))),0) -> 0 | X22: =IFERROR(MAX(IF(IFERROR(IF(LEFT(tblShipSpecific[Item No],1)="C",VALUE(RIGHT(tblShipSpecific[Item No],6)),),"")=0,"",IFERROR(IF(LEFT(tblShipSpecific[Item No],1)="C",VALUE(RIGHT(tblShipSpecific[Item No],6)),),""))),0) -> 0 | Y22: =IFERROR(MAX(IF(IFERROR(IF(LEFT(tblShipSpecific[Item No],1)="M",VALUE(RIGHT(tblShipSpecific[Item No],6)),),"")=0,"",IFERROR(IF(LEFT(tblShipSpecific[Item No],1)="M",VALUE(RIGHT(tblShipSpecific[Item No],6)),),""))),0) -> 0 | Z22: =IFERROR(MAX(IF(IFERROR(IF(LEFT(tblShipSpecific[Item No],1)="E",VALUE(RIGHT(tblShipSpecific[Item No],6)),),"")=0,"",IFERROR(IF(LEFT(tblShipSpecific[Item No],1)="E",VALUE(RIGHT(tblShipSpecific[Item No],6)),),""))),0) -> 0 | AA22: =IFERROR(MAX(IF(IFERROR(IF(LEFT(tblShipSpecific[Item No],1)="O",VALUE(RIGHT(tblShipSpecific[Item No],6)),),"")=0,"",IFERROR(IF(LEFT(tblShipSpecific[Item No],1)="O",VALUE(RIGHT(tblShipSpecific[Item No],6)),),""))),0) -> 0
U23: =IFERROR(MAX(IF(IFERROR(IF(LEFT(tblAdditionalJobs[Item No],1)="G",VALUE(RIGHT(tblAdditionalJobs[Item No],6)),),"")=0,"",IFERROR(IF(LEFT(tblAdditionalJobs[Item No],1)="G",VALUE(RIGHT(tblAdditionalJobs[Item No],6)),),""))),0) -> 0 | V23: =IFERROR(MAX(IF(IFERROR(IF(LEFT(tblAdditionalJobs[Item No],1)="H",VALUE(RIGHT(tblAdditionalJobs[Item No],6)),),"")=0,"",IFERROR(IF(LEFT(tblAdditionalJobs[Item No],1)="H",VALUE(RIGHT(tblAdditionalJobs[Item No],6)),),""))),0) -> 0 | W23: =IFERROR(MAX(IF(IFERROR(IF(LEFT(tblAdditionalJobs[Item No],1)="D",VALUE(RIGHT(tblAdditionalJobs[Item No],6)),),"")=0,"",IFERROR(IF(LEFT(tblAdditionalJobs[Item No],1)="D",VALUE(RIGHT(tblAdditionalJobs[Item No],6)),),""))),0) -> 0 | X23: =IFERROR(MAX(IF(IFERROR(IF(LEFT(tblAdditionalJobs[Item No],1)="C",VALUE(RIGHT(tblAdditionalJobs[Item No],6)),),"")=0,"",IFERROR(IF(LEFT(tblAdditionalJobs[Item No],1)="C",VALUE(RIGHT(tblAdditionalJobs[Item No],6)),),""))),0) -> 0 | Y23: =IFERROR(MAX(IF(IFERROR(IF(LEFT(tblAdditionalJobs[Item No],1)="M",VALUE(RIGHT(tblAdditionalJobs[Item No],6)),),"")=0,"",IFERROR(IF(LEFT(tblAdditionalJobs[Item No],1)="M",VALUE(RIGHT(tblAdditionalJobs[Item No],6)),),""))),0) -> 0 | Z23: =IFERROR(MAX(IF(IFERROR(IF(LEFT(tblAdditionalJobs[Item No],1)="E",VALUE(RIGHT(tblAdditionalJobs[Item No],6)),),"")=0,"",IFERROR(IF(LEFT(tblAdditionalJobs[Item No],1)="E",VALUE(RIGHT(tblAdditionalJobs[Item No],6)),),""))),0) -> 0 | AA23: =IFERROR(MAX(IF(IFERROR(IF(LEFT(tblAdditionalJobs[Item No],1)="O",VALUE(RIGHT(tblAdditionalJobs[Item No],6)),),"")=0,"",IFERROR(IF(LEFT(tblAdditionalJobs[Item No],1)="O",VALUE(RIGHT(tblAdditionalJobs[Item No],6)),),""))),0) -> 0
T24: MAX
B530: Back to top
B568: Back to top
B606: Back to top
B644: Back to top
B682: Back to top
B720: Back to top
B758: Back to top
B796: Back to top
B834: Back to top
B872: Back to top
B910: Back to top
B948: Back to top
B986: Back to top
B1024: Back to top
B1062: Back to top
B1100: Back to top

Sheet Cost Comparison (hidden)
B2: Back to top | L2: Grand Total Repair Charge | M2: =SUM(tblCostComp[Column7])-(SUM(tblCostComp[Column7])*CCGDiscA) -> 0 | R2: Grand Total Repair Charge | S2: =SUM(tblCostComp[Column13])-(SUM(tblCostComp[Column13])*CCGDiscB) -> 0 | X2: Grand Total Repair Charge | Y2: =SUM(tblCostComp[Column19])-(SUM(tblCostComp[Column19])*CCGDiscC) -> 0
G3: Select the Accepted Shipyard | H3: A | N3: B | T3: C
G4: Nothing selected yet | H4: HRDD China | N4: 2ND | T4: 3RD
H6: Unit type | I6: Unit price | J6: Qty | K6: Gross | L6: Discount | M6: Net | N6: Unit type | O6: Unit price | P6: Qty | Q6: Gross | R6: Discount | S6: Net | T6: Unit type | U6: Unit price | V6: Qty | W6: Gross | X6: Discount | Y6: Net
F7: Item No | G7: Description | H7: UnitsA | I7: Column2 | J7: Column3 | K7: Column4 | L7: Column6 | M7: Column7 | N7: UnitsB | O7: Column8 | P7: Column9 | Q7: Column10 | R7: Column12 | S7: Column13 | T7: UnitsC | U7: Column14 | V7: Column15 | W7: Column16 | X7: Column18 | Y7: Column19
K8: =tblCostComp[[#This Row],[Column2]]*tblCostComp[[#This Row],[Column3]] -> 0 | M8: =tblCostComp[[#This Row],[Column4]]-tblCostComp[[#This Row],[Column4]]*tblCostComp[[#This Row],[Column6]] -> 0 | Q8: =tblCostComp[[#This Row],[Column8]]*tblCostComp[[#This Row],[Column9]] -> 0 | S8: =tblCostComp[[#This Row],[Column10]]-tblCostComp[[#This Row],[Column10]]*tblCostComp[[#This Row],[Column12]] -> 0 | W8: =tblCostComp[[#This Row],[Column14]]*tblCostComp[[#This Row],[Column15]] -> 0 | Y8: =tblCostComp[[#This Row],[Column16]]-tblCostComp[[#This Row],[Column16]]*tblCostComp[[#This Row],[Column18]] -> 0
G9: Estimated Repair Charge | K9: =SUM(tblCostComp[Column4]) -> 0 | M9: =SUM(tblCostComp[Column7]) -> 0 | Q9: =SUM(tblCostComp[Column10]) -> 0 | S9: =SUM(tblCostComp[Column13]) -> 0 | W9: =SUM(tblCostComp[Column16]) -> 0 | Y9: =SUM(tblCostComp[Column19]) -> 0
G10: Final Gross Discount | L10: 0 | M10: =M9*L10 -> 0 | R10: 0 | S10: =S9*R10 -> 0 | X10: 0 | Y10: =Y9*X10 -> 0
G11: Grand Total Repair Charge | M11: =M9-M10 -> 0 | S11: =S9-S10 -> 0 | Y11: =Y9-Y10 -> 0
G13: Docking and General Service | H13: G100.00 | M13: =SUMIF(StandardAndSpecific[Item No],"G*",tblCostComp[Column7])-SUMIF(StandardAndSpecific[Item No],"G*",tblCostComp[Column7])*CCGDiscA -> 0 | S13: =SUMIF(StandardAndSpecific[Item No],"G*",tblCostComp[Column13])-SUMIF(StandardAndSpecific[Item No],"G*",tblCostComp[Column13])*CCGDiscB -> 0 | Y13: =SUMIF(StandardAndSpecific[Item No],"G*",tblCostComp[Column19])-SUMIF(StandardAndSpecific[Item No],"G*",tblCostComp[Column19])*CCGDiscC -> 0
G14: Hull | H14: H100.00 | M14: =SUMIF(StandardAndSpecific[Item No],"H*",tblCostComp[Column7])-SUMIF(StandardAndSpecific[Item No],"H*",tblCostComp[Column7])*CCGDiscA -> 0 | S14: =SUMIF(StandardAndSpecific[Item No],"H*",tblCostComp[Column13])-SUMIF(StandardAndSpecific[Item No],"H*",tblCostComp[Column13])*CCGDiscB -> 0 | Y14: =SUMIF(StandardAndSpecific[Item No],"H*",tblCostComp[Column19])-SUMIF(StandardAndSpecific[Item No],"H*",tblCostComp[Column19])*CCGDiscC -> 0
G15: Deck | H15: D100.00 | M15: =SUMIF(StandardAndSpecific[Item No],"D*",tblCostComp[Column7])-SUMIF(StandardAndSpecific[Item No],"D*",tblCostComp[Column7])*CCGDiscA -> 0 | S15: =SUMIF(StandardAndSpecific[Item No],"D*",tblCostComp[Column13])-SUMIF(StandardAndSpecific[Item No],"D*",tblCostComp[Column13])*CCGDiscB -> 0 | Y15: =SUMIF(StandardAndSpecific[Item No],"D*",tblCostComp[Column19])-SUMIF(StandardAndSpecific[Item No],"D*",tblCostComp[Column19])*CCGDiscC -> 0
G16: Cargo Holds | H16: C100.00 | M16: =SUMIF(StandardAndSpecific[Item No],"C*",tblCostComp[Column7])-SUMIF(StandardAndSpecific[Item No],"C*",tblCostComp[Column7])*CCGDiscA -> 0 | S16: =SUMIF(StandardAndSpecific[Item No],"C*",tblCostComp[Column13])-SUMIF(StandardAndSpecific[Item No],"C*",tblCostComp[Column13])*CCGDiscB -> 0 | Y16: =SUMIF(StandardAndSpecific[Item No],"C*",tblCostComp[Column19])-SUMIF(StandardAndSpecific[Item No],"C*",tblCostComp[Column19])*CCGDiscC -> 0
G17: Machinery | H17: M100.00 | M17: =SUMIF(StandardAndSpecific[Item No],"M*",tblCostComp[Column7])-SUMIF(StandardAndSpecific[Item No],"M*",tblCostComp[Column7])*CCGDiscA -> 0 | S17: =SUMIF(StandardAndSpecific[Item No],"M*",tblCostComp[Column13])-SUMIF(StandardAndSpecific[Item No],"M*",tblCostComp[Column13])*CCGDiscB -> 0 | Y17: =SUMIF(StandardAndSpecific[Item No],"M*",tblCostComp[Column19])-SUMIF(StandardAndSpecific[Item No],"M*",tblCostComp[Column19])*CCGDiscC -> 0
G18: Electrical | H18: E100.00 | M18: =SUMIF(StandardAndSpecific[Item No],"E*",tblCostComp[Column7])-SUMIF(StandardAndSpecific[Item No],"E*",tblCostComp[Column7])*CCGDiscA -> 0 | S18: =SUMIF(StandardAndSpecific[Item No],"E*",tblCostComp[Column13])-SUMIF(StandardAndSpecific[Item No],"E*",tblCostComp[Column13])*CCGDiscB -> 0 | Y18: =SUMIF(StandardAndSpecific[Item No],"E*",tblCostComp[Column19])-SUMIF(StandardAndSpecific[Item No],"E*",tblCostComp[Column19])*CCGDiscC -> 0
G19: Other repairs | H19: O100.00 | M19: =SUMIF(StandardAndSpecific[Item No],"O*",tblCostComp[Column7])-SUMIF(StandardAndSpecific[Item No],"O*",tblCostComp[Column7])*CCGDiscA -> 0 | S19: =SUMIF(StandardAndSpecific[Item No],"O*",tblCostComp[Column13])-SUMIF(StandardAndSpecific[Item No],"O*",tblCostComp[Column13])*CCGDiscB -> 0 | Y19: =SUMIF(StandardAndSpecific[Item No],"O*",tblCostComp[Column19])-SUMIF(StandardAndSpecific[Item No],"O*",tblCostComp[Column19])*CCGDiscC -> 0
G20: Summary of Ship Specific Jobs | M20: =SUM(SUMIF(StandardAndSpecific[Item No],_xlfn.UNIQUE((_xlfn._xlws.FILTER(tblShipSpecific[Item No],tblShipSpecific[Item No]<>""))),tblCostComp[Column7]))-SUM(SUMIF(StandardAndSpecific[Item No],_xlfn.UNIQUE((_xlfn._xlws.FILTER(tblShipSpecific[Item No],tblShipSpecific[Item No]<>""))),tblCostComp[Column7]))*CCGDiscA -> 0 | S20: =SUM(SUMIF(StandardAndSpecific[Item No],_xlfn.UNIQUE((_xlfn._xlws.FILTER(tblShipSpecific[Item No],tblShipSpecific[Item No]<>""))),tblCostComp[Column13]))-SUM(SUMIF(StandardAndSpecific[Item No],_xlfn.UNIQUE((_xlfn._xlws.FILTER(tblShipSpecific[Item No],tblShipSpecific[Item No]<>""))),tblCostComp[Column13]))*CCGDiscB -> 0 | Y20: =SUM(SUMIF(StandardAndSpecific[Item No],_xlfn.UNIQUE((_xlfn._xlws.FILTER(tblShipSpecific[Item No],tblShipSpecific[Item No]<>""))),tblCostComp[Column19]))-SUM(SUMIF(StandardAndSpecific[Item No],_xlfn.UNIQUE((_xlfn._xlws.FILTER(tblShipSpecific[Item No],tblShipSpecific[Item No]<>""))),tblCostComp[Column19]))*CCGDiscC -> 0

Sheet Selected Shipyard (hidden)
B2: Back to top | H2: Add'l Cost | I2: ='Additional Jobs'!I5 -> 0 | L2: Grand Total Repair Charge | M2: =SYGrandTotal -> 0
F3: VESSEL: | G3: =IF('Home Page'!H12="Click here to select a vessel","Select a vessel at Home Page",'Home Page'!H12) -> Select a vessel at Home Page | H3: =Shipyard -> Nothing selected yet
H4: =IF(Shipyard="A",'Cost Comparison'!H4,IF(Shipyard="B",'Cost Comparison'!N4,IF(Shipyard="C",'Cost Comparison'!T4,""))) -> 
H6: Unit type | I6: Unit price | J6: Qty | K6: Gross | L6: Discount | M6: Net
F7: Item No | G7: Description | H7: UnitsA | I7: Column2 | J7: Column3 | K7: Column4 | L7: Column6 | M7: Column7
G9: Estimated Repair Charge | K9: =SUM(QryCostCompRange[Column4]) -> 0 | M9: =SUM(QryCostCompRange[Column7]) -> 0
G10: Final Gross Discount | L10: 0 | M10: =SUM(QryCostCompRange[Column7])*SYGDisc -> 0
G11: Grand Total Repair Charge | M11: =SUM(QryCostCompRange[Column7])-SUM(QryCostCompRange[Column7])*SYGDisc -> 0
G13: Docking and General Service | H13: G100.00 | M13: =SUMIF(QryCostCompRange[Item No],"G*",QryCostCompRange[Column7])-SUMIF(QryCostCompRange[Item No],"G*",QryCostCompRange[Column7])*SYGDisc -> 0
G14: Hull | H14: H100.00 | M14: =SUMIF(QryCostCompRange[Item No],"H*",QryCostCompRange[Column7])-SUMIF(QryCostCompRange[Item No],"H*",QryCostCompRange[Column7])*SYGDisc -> 0
G15: Deck | H15: D100.00 | M15: =SUMIF(QryCostCompRange[Item No],"D*",QryCostCompRange[Column7])-SUMIF(QryCostCompRange[Item No],"D*",QryCostCompRange[Column7])*SYGDisc -> 0
G16: Cargo Holds | H16: C100.00 | M16: =SUMIF(QryCostCompRange[Item No],"C*",QryCostCompRange[Column7])-SUMIF(QryCostCompRange[Item No],"C*",QryCostCompRange[Column7])*SYGDisc -> 0
G17: Machinery | H17: M100.00 | M17: =SUMIF(QryCostCompRange[Item No],"M*",QryCostCompRange[Column7])-SUMIF(QryCostCompRange[Item No],"M*",QryCostCompRange[Column7])*SYGDisc -> 0
G18: Electrical | H18: E100.00 | M18: =SUMIF(QryCostCompRange[Item No],"E*",QryCostCompRange[Column7])-SUMIF(QryCostCompRange[Item No],"E*",QryCostCompRange[Column7])*SYGDisc -> 0
G19: Other Repairs | H19: O100.00 | M19: =SUMIF(QryCostCompRange[Item No],"O*",QryCostCompRange[Column7])-SUMIF(QryCostCompRange[Item No],"O*",QryCostCompRange[Column7])*SYGDisc -> 0
G20: Summary of Ship Specific Jobs | M20: =SUM(SUMIF(QryCostCompRange[Item No],_xlfn.UNIQUE((_xlfn._xlws.FILTER(tblShipSpecific[Item No],tblShipSpecific[Item No]<>""))),QryCostCompRange[Column7]))-SUM(SUMIF(QryCostCompRange[Item No],_xlfn.UNIQUE((_xlfn._xlws.FILTER(tblShipSpecific[Item No],tblShipSpecific[Item No]<>""))),QryCostCompRange[Column7]))*SYGDisc -> 0
F22: Additional Jobs
F23: Item No | G23: Description | H23: Cost
G24: title is bold
G25: description
G26: just type in below the last row, and it will be automatically included in the table

Sheet Additional Jobs (hidden)
B2: Back to top | F2: ADDITIONAL JOBS
F4: =IF('Home Page'!H12="Click here to select a vessel","Select a vessel at Home Page",'Home Page'!H12) -> Select a vessel at Home Page
H5: Total | I5: =SUM(tblAdditionalJobs[Cost]) -> 0
F7: Item No | G7: Description | H7: Cost | I7: Remarks
G8: title is bold
G9: description
G10: just type in below the last row, and it will be automatically included in the table
B85: Back to top
B123: Back to top
B161: Back to top
B199: Back to top
B237: Back to top
B275: Back to top
B313: Back to top

Sheet Project Costs (hidden)
F3: PROJECT COSTS
J6: Totals | K6: =SUM(ProjCost[Cost]) -> 0 | L6: =SUM(ProjCost[Accounts]) -> 0
F7: Project No | G7: Description | H7: RQ # | I7: PO # | J7: Supplier | K7: Cost | L7: Accounts
F8: P1-2021 | G8: title is bold
G9: description
G10: just type in below the last row, and it will be automatically included in the table
B85: Back to top
B123: Back to top
B161: Back to top
B199: Back to top
B237: Back to top
B275: Back to top
B313: Back to top

Sheet Cost of Services (hidden)
F3: COST OF SERVICES, SPARES, PAINTS ETC…
G5: Totals | H5: =SUM(tblPaints[Cost]) -> 0 | I5: =SUM(tblPaints[Accounts]) -> 0 | N5: Totals | O5: =SUM(tblSpareParts[Cost]) -> 0 | P5: =SUM(tblSpareParts[Accounts]) -> 0 | U5: Totals | V5: =SUM(tblContJCServices[Cost]) -> 0 | W5: =SUM(tblContJCServices[Accounts]) -> 0 | Y5: =SUM(tblClass[Cost]) -> 0 | Z5: =SUM(tblClass[Accounts]) -> 0 | AB5: =SUM(tblAgency[Cost]) -> 0 | AC5: =SUM(tblAgency[Accounts]) -> 0
F6: Paints | K6: Spare Parts | R6: Contractors/Job Cards/Services | Y6: Class NK / ABS | AB6: Agency Charges
F7: PO # | G7: Paints Chugoku Marine | H7: Cost | I7: Accounts | K7: RQ # | L7: PO # | M7: Supplier | N7: Description | O7: Cost | P7: Accounts | R7: RQ # | S7: PO # | T7: Supplier | U7: Description | V7: Cost | W7: Accounts | Y7: Cost | Z7: Accounts | AB7: Cost | AC7: Accounts
B85: Back to top
B123: Back to top
B161: Back to top
B199: Back to top
B237: Back to top
B275: Back to top
B313: Back to top

Sheet Off-hire Bunkers (hidden)
F1: Bunker Consumption for Docking
F3: OFF-HIRE BUNKERS
F6: LS Bunker Cost USD | H6: ULS Bunker Cost USD | I6: LS MGO Bunker Cost USD | J6: Av ME Cons/Day mt | K6: Av DA Cons/Day mt | M6: Av BLR Con/Day mt
F9: Repositioning Vessel to Dry Dock
F10: Dep/Arr Port | H10: Sea Distance Nm | I10: Vsl Speed | J10: Steaming Time | K10: Days | L10: Hours | M10: LS Cons/Day | N10: LS Cons mt | O10: LS Cost
K11: =IFERROR(TRUNC(J12),"") ->  | L11: =IFERROR((J12-TRUNC(J12))*24,"") ->  | M11: =J7 -> 0 | N11: =IFERROR(J12*M11,"") ->  | O11: =IFERROR(F7*N11,"") -> 
J12: =IFERROR((H11/I11)/24,"") -> 
F13: ECA Consumption | H13: Sea Distance Nm | I13: Vsl Speed | J13: Steaming Time | K13: Days | L13: Hours | M13: ULS Cons/Day | N13: ULS Cons mt | O13: ULS Cost
K14: =IFERROR(TRUNC(J15),"") ->  | L14: =IFERROR((J15-TRUNC(J15))*24,"") ->  | M14: =J7 -> 0 | N14: =IFERROR(J15*M14,"") ->  | O14: =IFERROR(H7*N14,"") -> 
J15: =IFERROR((H14/I14)/24,"") -> 
I16: Total | J16: =IFERROR(J12+J15,"") ->  | K16: =IFERROR(TRUNC(J16),"") ->  | L16: =IFERROR((J16-TRUNC(J16))*24,"") -> 
L17: Removal Cost | O17: =IFERROR(O11+O14,"") -> 
F19: Consumption during Docking Period / ME & DA's Shifting
F20: Shifting to Dock Hrs | H20: FO in Use MGO/LS HFO | I20: Fuel in use Cost | J20: LS FO/MGO Cost | N20: Total Cost of Bunkers
J21: =F21*I21*((J7/24)+(K7/24)) -> 0
F22: Shifting From Dock hrs | H22: FO in Use MGO/LS HFO | I22: Fuel in use Cost | J22: LS FO/MGO Cost | N22: Repositioning | O22: =O17 -> 
J23: =F23*I23*((J7/24)+(K7/24)) -> 0
F24: Sea Trials Hrs | H24: FO in Use MGO/LS HFO | I24: Fuel in use Cost | J24: LS FO/MGO Cost | N24: Shifting | O24: =J26 -> 0
J25: =F25*I25*((J7/24)+(K7/24)) -> 0
H26: Shifting Cost | J26: =J21+J23+J25 -> 0 | N26: @ Yard | O26: =J35 -> 0
F28: DA & Blr Consumption @ Repair Yard/Dry Dock
F29: Days in Dock | H29: 6 | I29: Days Alongside | J29: 8 | N29: Total | O29: =IFERROR(O22+O24+O26,"") -> 
F31: Generators Est not on Shore Power | H31: FO in Use MGO/LS HFO | I31: Fuel in use Cost | J31: LS FO/MGO Cost
J32: =F32*K7*I32 -> 0
F33: Boiler Est not on Shore Power | H33: FO in Use MGO/LS HFO | I33: Fuel in use Cost | J33: LS FO/MGO Cost
J34: =F34*M7*I34 -> 0
H35: DA & Blr Cons Cost @ Repair Yard/Dry Dock | J35: =J32+J34 -> 0

Sheet Specific Cost (hidden)
F3: SPECIFIC COSTS
F5: VESSEL : | G5: =IF('Home Page'!H12="Click here to select a vessel","Select a vessel at Home Page",'Home Page'!H12) -> Select a vessel at Home Page
F8: Yard Cost
G9: Docking and General Service | I9: =DGSTotal+SUMIF(tblAdditionalCost[Item No],"G*",tblAdditionalCost[Cost]) -> 0
G10: Hull | I10: =HTotal+SUMIF(tblAdditionalCost[Item No],"H*",tblAdditionalCost[Cost]) -> 0
G11: Deck | I11: =DTotal+SUMIF(tblAdditionalCost[Item No],"D*",tblAdditionalCost[Cost]) -> 0
G12: Cargo Holds | I12: =CHTotal+SUMIF(tblAdditionalCost[Item No],"C*",tblAdditionalCost[Cost]) -> 0
G13: Machinery | I13: =MTotal+SUMIF(tblAdditionalCost[Item No],"M*",tblAdditionalCost[Cost]) -> 0
G14: Electrical | I14: =ETotal+SUMIF(tblAdditionalCost[Item No],"E*",tblAdditionalCost[Cost]) -> 0
G15: Other Repairs | I15: =ORTotals+SUMIF(tblAdditionalCost[Item No],"O*",tblAdditionalCost[Cost]) -> 0
G16: Projects (not included in total) | I16: ='Project Costs'!K6 -> 0
G18: Total Repair Cost | I18: =SUM(I9:I15) -> 0
G19: Final Discount | I19: 0.04
G20: Final Yard Cost | I20: =SUM((I18*(1-I19))) -> 0
K21: Actual cost (fm Accounts)
G22: Paints (Hull/Hold/Deck) | I22: ='Cost of Services'!H5 -> 0 | K22: ='Cost of Services'!I5 -> 0
G23: Spare Parts | I23: ='Cost of Services'!O5 -> 0 | K23: ='Cost of Services'!P5 -> 0
G24: Other Services | I24: ='Cost of Services'!V5 -> 0 | K24: ='Cost of Services'!W5 -> 0
G25: Class NK / ABS Fee | I25: ='Cost of Services'!Y5 -> 0 | K25: ='Cost of Services'!Z5 -> 0
G26: Off hire bunkers | I26: ='Off-hire Bunkers'!O29 ->  | K26: 0
G27: Agency Charges | I27: ='Cost of Services'!AB5 -> 0 | K27: ='Cost of Services'!AC5 -> 0
I29: =SUM(I20:I27) -> 0 | K29: =SUM(K21:K27) -> 0
G31: GSM Fee | H31: 0.05 | I31: =I29*H31 -> 0
G33: Total for drydocking and repairs | I33: =SUM(I29:I32) -> 0 | K33: =SUM(K29:K32) -> 0
B125: Back to top
B163: Back to top
B201: Back to top
B239: Back to top
B277: Back to top
B315: Back to top

Sheet Sign Off (hidden)
F3: SIGN OFF
F5: VESSEL : | G5: =IF('Home Page'!H12="Click here to select a vessel","Select a vessel at Home Page",'Home Page'!H12) -> Select a vessel at Home Page | I5: DD Date:
H7: BUDGETED PRICES | I7: QUOTED PRICES | K7: ACTUAL PRICES | M7: COMMENTS /REASONS
G9: Docking and General Service | I9: =DGSTotal+SUMIF(tblAdditionalCost[Item No],"G*",tblAdditionalCost[Cost]) -> 0
G10: Hull | I10: =HTotal+SUMIF(tblAdditionalCost[Item No],"H*",tblAdditionalCost[Cost]) -> 0
G11: Deck | I11: =DTotal+SUMIF(tblAdditionalCost[Item No],"D*",tblAdditionalCost[Cost]) -> 0
G12: Cargo Holds | I12: =CHTotal+SUMIF(tblAdditionalCost[Item No],"C*",tblAdditionalCost[Cost]) -> 0
G13: Machinery | I13: =MTotal+SUMIF(tblAdditionalCost[Item No],"M*",tblAdditionalCost[Cost]) -> 0
G14: Electrical | I14: =ETotal+SUMIF(tblAdditionalCost[Item No],"E*",tblAdditionalCost[Cost]) -> 0
G15: Other Repairs | I15: =ORTotals+SUMIF(tblAdditionalCost[Item No],"O*",tblAdditionalCost[Cost]) -> 0
G16: Projects (not included in total) | I16: ='Project Costs'!L6 -> 0
G18: Total Repair Cost | H18: =SUM(H9:H16) -> 0 | I18: =SUM(I9:I16) -> 0 | K18: =SUM(K9:K16) -> 0
H19: =H10+H12 -> 0 | I19: =I10+I12 -> 0 | K19: =K10+K12 -> 0 | M19: Hull & CH painting
H20: =H19*1 -> 0 | I20: =I19*0.95 -> 0 | K20: =K19*0.95 -> 0 | M20: Hull & CH painting with 5% discount
G21: Final Discount (%) | H21: 0.05 | I21: 0.05 | K21: 0.05
G22: Final Yard Cost | H22: =H9+H11+H13+H14+H15+H20 -> 0 | I22: =I9+I11+I13+I14+I15+I20 -> 0 | K22: =K9+K11+K13+K14+K15+K20 -> 0
G24: Paints (Hull/Hold/Deck) | I24: ='Accounts Summary'!G16 -> 0 | K24: ='Accounts Summary'!I16 -> 0
G25: Spare Parts | I25: ='Accounts Summary'!G17 -> 0 | K25: ='Accounts Summary'!I17 -> 0
G26: Other Services | I26: ='Accounts Summary'!G18 -> 0 | K26: ='Accounts Summary'!I18 -> 0
G27: Class NK / ABS Fee | I27: ='Accounts Summary'!G19 -> 0 | K27: ='Accounts Summary'!I19 -> 0
H29: =SUM(H24:H27) -> 0 | I29: =SUM(I24:I27) -> 0 | K29: =SUM(K24:K27) -> 0
G31: GSM Fee@1,500pd | I31: =16*1500 -> 24000 | K31: ='Accounts Summary'!I23 -> 0
G33: Total for drydocking and repairs | H33: =SUM(H22+H29+H31) -> 0 | I33: =SUM(I22+I29+I31) -> 24000 | K33: =SUM(K22+K29+K31) -> 0
G35: Number of Days | K35: ='Accounts Summary'!G11 -> 19.425
G38: Off hire bunkers | K38: ='Accounts Summary'!I22 -> 0
G39: Agency Charges | I39: ='Accounts Summary'!G20 -> 0 | K39: ='Accounts Summary'!I20 -> 0
G41: Total for owners account | H41: =H38+H39 -> 0 | I41: =I38+I39 -> 0 | K41: =K38+K39 -> 0
G43: Capitalised value | K43: =K41+K33 -> 0
G45: Approvals
G46: Ship Manager | H46: Marine Manager | I46: General Manager | K46: Chief Executive Officer
G47: Henry Dayo | H47: Hilton Stroebel | I47: Quentin Foyle | K47: Martyn Wade
B125: Back to top
B163: Back to top
B201: Back to top
B239: Back to top
B277: Back to top
B315: Back to top

Sheet Accounts Summary (hidden)
F3: ACCOUNTS SUMMARY
F5: VESSEL : | G5: =IF('Home Page'!H12="Click here to select a vessel","Select a vessel at Home Page",'Home Page'!H12) -> Select a vessel at Home Page
F6: Arrive HRDD | G6: 2021-02-22T00:24:00
F7: Month end | G7: 2021-02-28
F8: Depart HRDD | G8: 2021-03-13T10:36:00
F9: Drydock Days - Feb | G9: =G7-G6 -> 5.983333333
F10: Drydock Days - Mar | G10: =G8-G7 -> 13.44166667
F11: Total Drydock Days | G11: =G9+G10 -> 19.425
F13: Drydock | G13: Estimate
G14: As per SM | H14: Budget | I14: Actuals | J14: Capitalised in Mar | K14: Variance
F15: Yard cost | G15: ='Specific Cost'!I20 -> 0 | I15: =SUMIFS(tblSAP[Amount in local currency],tblSAP[Text],"HRDD*") -> 0 | K15: =I15-J15 -> 0
F16: Paints | G16: ='Cost of Services'!H5 -> 0 | I16: ='Cost of Services'!I5 -> 0 | K16: =I16-J16 -> 0
F17: Spare Parts | G17: ='Cost of Services'!P5 -> 0 | I17: ='Cost of Services'!P5 -> 0 | K17: 0
F18: Other Services | G18: ='Cost of Services'!V5 -> 0 | I18: ='Cost of Services'!W5 -> 0 | K18: 0
F19: Class NK | G19: ='Cost of Services'!Y5 -> 0 | I19: ='Cost of Services'!Z5 -> 0 | K19: 0
F20: Agency Fees (incl. Pilot/Tugs) | G20: ='Cost of Services'!AB5 -> 0 | I20: ='Cost of Services'!AC5 -> 0 | K20: 0
G21: =SUM(G15:G20) -> 0 | I21: =SUM(I15:I20) -> 0 | J21: =SUM(J15:J20) -> 0 | K21: =SUM(K15:K20) -> 0
F22: Bunkers | I22: =SUMIFS(tblSAP[Amount in local currency],tblSAP[Text],"*Bunkers*") -> 0 | K22: 0
F23: Management fee @ $1,500 pd | I23: =SUMIFS(tblSAP[Amount in local currency],tblSAP[Text],G5&"*") -> 0 | K23: 0
F24: Total Drydock cost | G24: =G21+G22+G23 -> 0 | H24: =H21+H22+H23 -> 0 | I24: 0 | J24: =SUM(J21:J23) -> 0 | K24: =SUM(K21:K23) -> 0
I26: =tblSAP[[#Totals],[Amount in local currency]] -> 0
F28: Next Docking (Earliest) | H28: 7.5Y IDD | I28: 2023-09-01 | J28: 2023-09-01
F29: Next Docking (As per GSM) | H29: 7.5Y IDD | I29: 2023-09-01 | J29: 2023-09-01
F31: Current drydock capitalised | I31: 2021-04-01 | J31: 2021-04-01
F32: Next drydock capitalised | I32: 2023-10-01 | J32: 2023-10-01
F33: Months | I33: 30 | J33: 30
F35: Depreciation pm | I35: =I24/I33 -> 0 | J35: =J24/J33 -> 0
B125: Back to top
B163: Back to top
B201: Back to top
B239: Back to top
B277: Back to top
B315: Back to top

Sheet SAP DL (hidden)
B2: Back to top
F3: SAP DL
M6: Total | N6: =tblSAP[[#Totals],[Amount in local currency]] -> 0
F7: Account | G7: Assignment | H7: Document Number | I7: Document Type | J7: Document Date | K7: Posting Period | L7: Year/month | M7: Posting Key | N7: Amount in local currency | O7: Local Currency | P7: Text | Q7: Amount in doc. curr. | R7: Document currency
F13: Total | N13: =SUBTOTAL(109,tblSAP[Amount in local currency]) -> 0
B126: Back to top
B164: Back to top
B202: Back to top
B240: Back to top
B278: Back to top
B316: Back to top

Sheet General Instructions (hidden)
F3: GENERAL INSTRUCTIONS

Sheet VesselNameCode (hidden)
A1: NAME | B1: CODE | C1: SIZE | D1: VSLgsi | E1: Infcol | G1: Select a Job classification | Q1: barrel
A2: IVS BOSCH HOEK | B2: BHK | C2: Supramax | D2: =CONCATENATE(VesselNameCode[[#This Row],[CODE]],"gsi") -> BHKgsi | E2: x | G2: =IF(OR('Home Page'!H16="2.5-yr Docking",'Home Page'!H16="7.5-yr Docking",'Home Page'!H16="12.5-yr Docking"),"tbl2.5yr7.5yr12.5yrDocking",IF('Home Page'!H16="1st Special Survey (5-yr)","tbl1stSpecialSurvey5yr",IF('Home Page'!H16="2nd Special Survey (10-yr)","tbl2ndSpecialSurvey10yr",IF('Home Page'!H16="3rd Special Survey (15-yr)","tbl3rdSpecialSurvey15yr",IF('Home Page'!H16="Click here to select a docking type","tblEmpty",""))))) -> tblEmpty | I2: G100.00 | K2: G100.00 | M2: =_xlfn._xlws.FILTER(VesselNameCode[NAME],VesselNameCode[Infcol]="x") -> IVS BOSCH HOEK | Q2: connect
A3: Click here to select a vessel | B3: Empty | D3: =CONCATENATE(VesselNameCode[[#This Row],[CODE]],"gsi") -> Emptygsi | E3: x | I3: H100.00 | K3: H100.00 | M3: Click here to select a vessel | Q3: day
A4: IVS GLENEAGLES | B4: GLE | C4: Supramax | D4: =CONCATENATE(VesselNameCode[[#This Row],[CODE]],"gsi") -> GLEgsi | E4: x | I4: D100.00 | K4: D100.00 | M4: IVS GLENEAGLES | Q4: day/line
A5: IVS HIRONO | B5: HRO | C5: Supramax | D5: =CONCATENATE(VesselNameCode[[#This Row],[CODE]],"gsi") -> HROgsi | E5: x | G5: Select a vessel | I5: C100.00 | K5: C100.00 | M5: IVS HIRONO | Q5: day/set
A6: IVS IBIS | B6: IBS | C6: Handysize | D6: =CONCATENATE(VesselNameCode[[#This Row],[CODE]],"gsi") -> IBSgsi | E6: x | G6: =VLOOKUP(VslSelection,VesselNameCode[],4,FALSE) -> Emptygsi | I6: M100.00 | K6: M100.00 | M6: IVS IBIS | Q6: days
A7: IVS KESTREL | B7: KES | C7: Handysize | D7: =CONCATENATE(VesselNameCode[[#This Row],[CODE]],"gsi") -> KESgsi | E7: x | I7: E100.00 | K7: E100.00 | M7: IVS KESTREL | Q7: drum
A8: IVS KINGBIRD | B8: KGB | C8: Handysize | D8: =CONCATENATE(VesselNameCode[[#This Row],[CODE]],"gsi") -> KGBgsi | E8: x | I8: O100.00 | K8: O100.00 | M8: IVS KINGBIRD | Q8: estimate
A9: IVS KINGLET | B9: KIN | C9: Handysize | D9: =CONCATENATE(VesselNameCode[[#This Row],[CODE]],"gsi") -> KINgsi | E9: x | K9: Totals | M9: IVS KINGLET | Q9: hatch
A10: IVS KNOT | B10: KNO | C10: Handysize | D10: =CONCATENATE(VesselNameCode[[#This Row],[CODE]],"gsi") -> KNOgsi | E10: x | M10: IVS KNOT | Q10: hold
A11: IVS MERLION | B11: MER | C11: Handysize | D11: =CONCATENATE(VesselNameCode[[#This Row],[CODE]],"gsi") -> MERgsi | E11: x | M11: IVS MERLION | Q11: hr
A12: IVS MAGPIE | B12: MGP | C12: Handysize | D12: =CONCATENATE(VesselNameCode[[#This Row],[CODE]],"gsi") -> MGPgsi | E12: x | M12: IVS MAGPIE | Q12: job
A13: IVS NORTH BERWICK | B13: NBW | C13: Supramax | D13: =CONCATENATE(VesselNameCode[[#This Row],[CODE]],"gsi") -> NBWgsi | E13: x | M13: IVS NORTH BERWICK | Q13: kg
A14: IVS OKUDOGO | B14: OKU | C14: Supramax | D14: =CONCATENATE(VesselNameCode[[#This Row],[CODE]],"gsi") -> OKUgsi | E14: x | M14: IVS OKUDOGO | Q14: KwH
A15: IVS ORCHARD | B15: ORC | C15: Handysize | D15: =CONCATENATE(VesselNameCode[[#This Row],[CODE]],"gsi") -> ORCgsi | E15: x | M15: IVS ORCHARD | Q15: letter
A16: IVS PHINDA | B16: PHD | C16: Handysize | D16: =CONCATENATE(VesselNameCode[[#This Row],[CODE]],"gsi") -> PHDgsi | E16: x | M16: IVS PHINDA | Q16: line
A17: IVS PHOENIX | B17: PHX | C17: Supramax | D17: =CONCATENATE(VesselNameCode[[#This Row],[CODE]],"gsi") -> PHXgsi | E17: x | M17: IVS PHOENIX | Q17: location
A18: IVS PRESTWICK | B18: PRE | C18: Supramax | D18: =CONCATENATE(VesselNameCode[[#This Row],[CODE]],"gsi") -> PREgsi | E18: x | M18: IVS PRESTWICK | Q18: lump
A19: IVS RAFFLES | B19: RAF | C19: Handysize | D19: =CONCATENATE(VesselNameCode[[#This Row],[CODE]],"gsi") -> RAFgsi | E19: x | M19: IVS RAFFLES | Q19: m
A20: IVS SENTOSA | B20: SEN | C20: Handysize | D20: =CONCATENATE(VesselNameCode[[#This Row],[CODE]],"gsi") -> SENgsi | E20: x | M20: IVS SENTOSA | Q20: m2
A21: IVS SPARROWHAWK | B21: SPW | C21: Handysize | D21: =CONCATENATE(VesselNameCode[[#This Row],[CODE]],"gsi") -> SPWgsi | E21: x | M21: IVS SPARROWHAWK | Q21: m3
A22: IVS SUNBIRD | B22: SUN | C22: Handysize | D22: =CONCATENATE(VesselNameCode[[#This Row],[CODE]],"gsi") -> SUNgsi | E22: x | M22: IVS SUNBIRD | Q22: m³
A23: IVS SWINLEY FOREST | B23: SWF | C23: Supramax | D23: =CONCATENATE(VesselNameCode[[#This Row],[CODE]],"gsi") -> SWFgsi | E23: x | M23: IVS SWINLEY FOREST | Q23: Man/day
A24: IVS TEMBE | B24: TBE | C24: Handysize | D24: =CONCATENATE(VesselNameCode[[#This Row],[CODE]],"gsi") -> TBEgsi | E24: x | M24: IVS TEMBE | Q24: manpower
A25: IVS THANDA | B25: THA | C25: Handysize | D25: =CONCATENATE(VesselNameCode[[#This Row],[CODE]],"gsi") -> THAgsi | E25: x | M25: IVS THANDA | Q25: panel
A26: IVS WENTWORTH | B26: WWH | C26: Supramax | D26: =CONCATENATE(VesselNameCode[[#This Row],[CODE]],"gsi") -> WWHgsi | E26: x | M26: IVS WENTWORTH | Q26: Pc
Q27: pc x time
Q28: pcs
Q29: per bilge
Q30: per hold
Q31: set
Q32: set/day
Q33: shift
Q34: tank
Q35: time
Q36: ton
Q37: unit
Q38: vessel
Q39: visit

Sheet Job Desc Data Source (hidden)
B2: 2.5-yr/7.5-yr/12.5-yr Docking | G2: 1st Special Survey (5-yr) | L2: 2nd Special Survey (10-yr) | Q2: 3rd Special Survey (15-yr) | V2: 3rd Special Survey (15-yr)
B5: Item No | C5: Description | D5: Cost | E5: Remarks | G5: Item No | H5: Description | I5: Cost | J5: Remarks | L5: Item No | M5: Description | N5: Cost | O5: Remarks | Q5: Item No | R5: Description | S5: Cost | T5: Remarks | V5: Item No | W5: Description | X5: Cost | Y5: Remarks
B6: G100.00 | C6: GENERAL SERVICES 2.5-yr Docking | G6: G100.00 | H6: GENERAL SERVICES 5-yr Docking | L6: G100.00 | M6: GENERAL SERVICES 10-yr Docking | Q6: G100.00 | R6: GENERAL SERVICES 15-yr Docking | W6: Select a docking type at Home Page
B7: G101.00 | C7: Fire line | G7: G101.00 | H7: Fire line | L7: G101.00 | M7: Fire line | Q7: G101.00 | R7: Fire line
C8: To provide fire line connecting ship’s shore connection and to maintain fire line under pressure throughout repair period. Hose sizes to be confriemd with each ship whhen the safety officer attends on opening meeting. Maintaining 5 bar pressure on the bridge wings gauges : | H8: To provide fire line connecting ship’s shore connection and to maintain fire line under pressure throughout repair period. Hose sizes to be confriemd with each ship whhen the safety officer attends on opening meeting. Maintaining 5 bar pressure on the bridge wings gauges : | M8: To provide fire line connecting ship’s shore connection and to maintain fire line under pressure throughout repair period. Hose sizes to be confriemd with each ship whhen the safety officer attends on opening meeting. Maintaining 5 bar pressure on the bridge wings gauges : | R8: To provide fire line connecting ship’s shore connection and to maintain fire line under pressure throughout repair period. Hose sizes to be confriemd with each ship whhen the safety officer attends on opening meeting. Maintaining 5 bar pressure on the bridge wings gauges :
B9: G101.01 | C9: Price for Connect and Disconnect (1 Time): $- | G9: G101.01 | H9: Price for Connect and Disconnect (1 Time): $- | L9: G101.01 | M9: Price for Connect and Disconnect (1 Time): $- | Q9: G101.01 | R9: Price for Connect and Disconnect (1 Time): $-
B10: G101.02 | C10: Unit Price per Day $- | G10: G101.02 | H10: Unit Price per Day $- | L10: G101.02 | M10: Unit Price per Day $- | Q10: G101.02 | R10: Unit Price per Day $-
B11: G101.03 | C11: CO2 system to disable/enable: $ | G11: G101.03 | H11: CO2 system to disable/enable: $ | L11: G101.03 | M11: CO2 system to disable/enable: $ | Q11: G101.03 | R11: CO2 system to disable/enable: $
B12: G101.04 | C12: Portable Fire Extinguishers onboard $ | G12: G101.04 | H12: Portable Fire Extinguishers onboard $ | L12: G101.04 | M12: Portable Fire Extinguishers onboard $ | Q12: G101.04 | R12: Portable Fire Extinguishers onboard $
B13: G102.00 | C13: DAILY FIRE WATCH BY SHIPYARD | G13: G102.00 | H13: DAILY FIRE WATCH BY SHIPYARD | L13: G102.00 | M13: DAILY FIRE WATCH BY SHIPYARD | Q13: G102.00 | R13: DAILY FIRE WATCH BY SHIPYARD
C14: To provide fire watch throughout the repair period. | H14: To provide fire watch throughout the repair period. | M14: To provide fire watch throughout the repair period. | R14: To provide fire watch throughout the repair period.
B15: G102.01 | C15: Unit Price per Day: $ | G15: G102.01 | H15: Unit Price per Day: $ | L15: G102.01 | M15: Unit Price per Day: $ | Q15: G102.01 | R15: Unit Price per Day: $
B16: G102.02 | C16: Security watchman per day $- | G16: G102.02 | H16: Security watchman per day $- | L16: G102.02 | M16: Security watchman per day $- | Q16: G102.02 | R16: Security watchman per day $-
B17: G103.00 | C17: COOLING WATER | G17: G103.00 | H17: COOLING WATER | L17: G103.00 | M17: COOLING WATER | Q17: G103.00 | R17: COOLING WATER
C18: To supply cooling water for the following system when ship is in dry dock. Provision Reefer – Hose 40A/50A/65A/100A Air Conditioning Plant for Accommodation – Hose 40A/50A/65A/100A | H18: To supply cooling water for the following system when ship is in dry dock. Provision Reefer – Hose 40A/50A/65A/100A Air Conditioning Plant for Accommodation – Hose 40A/50A/65A/100A | M18: To supply cooling water for the following system when ship is in dry dock. Provision Reefer – Hose 40A/50A/65A/100A Air Conditioning Plant for Accommodation – Hose 40A/50A/65A/100A | R18: To supply cooling water for the following system when ship is in dry dock. Provision Reefer – Hose 40A/50A/65A/100A Air Conditioning Plant for Accommodation – Hose 40A/50A/65A/100A
B19: G103.01 | C19: Price for Connect and Dis(4 Times): $- | G19: G103.01 | H19: Price for Connect and Dis(4 Times): $- | L19: G103.01 | M19: Price for Connect and Dis(4 Times): $- | Q19: G103.01 | R19: Price for Connect and Dis(4 Times): $-
B20: G103.02 | C20: Unit Price per Day: $ | G20: G103.02 | H20: Unit Price per Day: $ | L20: G103.02 | M20: Unit Price per Day: $ | Q20: G103.02 | R20: Unit Price per Day: $
B21: G104.00 | C21: BALLAST WATER | G21: G104.00 | H21: BALLAST WATER | L21: G104.00 | M21: BALLAST WATER | Q21: G104.00 | R21: BALLAST WATER
C22: Basis dock in / Dock out condition as follows: F: X M A: X M To allow removal and refitting of deck air pipe x6 for ship’s inlet connection. FPT X MT No. 1 WBT (P & S) X MT No. 2 WBT (P & S) X MT No. 3 WBT (P & S) X M No. 4 WBT (P & S) X M No. 5 WBT (P & S) X M No. 6 WBT (P & S) X M TOTAL X MT | H22: Basis dock in / Dock out condition as follows: F: X M A: X M To allow removal and refitting of deck air pipe x6 for ship’s inlet connection. FPT X MT No. 1 WBT (P & S) X MT No. 2 WBT (P & S) X MT No. 3 WBT (P & S) X M No. 4 WBT (P & S) X M No. 5 WBT (P & S) X M No. 6 WBT (P & S) X M TOTAL X MT | M22: Basis dock in / Dock out condition as follows: F: X M A: X M To allow removal and refitting of deck air pipe x6 for ship’s inlet connection. FPT X MT No. 1 WBT (P & S) X MT No. 2 WBT (P & S) X MT No. 3 WBT (P & S) X M No. 4 WBT (P & S) X M No. 5 WBT (P & S) X M No. 6 WBT (P & S) X M TOTAL X MT | R22: Basis dock in / Dock out condition as follows: F: X M A: X M To allow removal and refitting of deck air pipe x6 for ship’s inlet connection. FPT X MT No. 1 WBT (P & S) X MT No. 2 WBT (P & S) X MT No. 3 WBT (P & S) X M No. 4 WBT (P & S) X M No. 5 WBT (P & S) X M No. 6 WBT (P & S) X M TOTAL X MT
B23: G104.01 | C23: Price for Connect and Dis (2 Times): $- | G23: G104.01 | H23: Price for Connect and Dis (2 Times): $- | L23: G104.01 | M23: Price for Connect and Dis (2 Times): $- | Q23: G104.01 | R23: Price for Connect and Dis (2 Times): $-
B24: G104.02 | C24: Unit Price per Metric Ton: $- | G24: G104.02 | H24: Unit Price per Metric Ton: $- | L24: G104.02 | M24: Unit Price per Metric Ton: $- | Q24: G104.02 | R24: Unit Price per Metric Ton: $-
B25: G104.03 | C25: Airpipe removed/refit: $- | G25: G104.03 | H25: Airpipe removed/refit: $- | L25: G104.03 | M25: Airpipe removed/refit: $- | Q25: G104.03 | R25: Airpipe removed/refit: $-
